Workbook

Sheet Backdrop
B2: Drawdown Suite | I2: PLEASE SAVE THE CALCULATORS TOOL TO YOUR LOCAL DRIVE BEFORE USING IT. THIS WILL ENSURE YOU CAN ACCESS THE PDF OUTPUTS CORRECTLY. MACROS NEED TO BE ENABLED IN ORDER TO USE THIS PROGRAM. IF THE HOME SCREEN HAS NOT APPEARED PLEASE CLICK THE BUTTON ABOVE TO ENABLE MACROS AND RUN THE PROGRAM.
B27: V2.5

Sheet EUC (hidden)
B2: End User Control Frontsheet
B4: Name of Sheet | C4: Coversheet v 1.6
B6: Original Location | C6: I:\Illustrations team\Projects\2015\Drawdown Tools Suite\[Drawdown Suite v2.5.xlsm]EUC | E6: =IF(C18<>C6,"Warning this sheet location does not agree with the original location and name it may be uncontrolled","") -> 
B8: Owner | C8: Declan Hughes (HUGHED3) | E8: Include RACFID to easily identify author
B10: Users | C10: Avaliable to users via A4A | E10: If not part of audience refer to owner
B12: Data Classification (if data is used) | C12: No data used or stored
B14: Purpose | C14: To provide advisers with tools for faciliatating Drawdown sales.
B16: Use by Date | C16: 2018-04-05 | E16: =IF(C16="","",IF(C16<TODAY(),"Warning this tool is outside of the use by date - variables may be out of date check with owner","")) -> 
B18: Current location | C18: =CELL("filename") -> 
B20: Complexity | C20: Advanced | E20: Control Details - list any controls required in Red or added in Green
B21: Change Frequency | C21: Medium
B22: Error Incidence | C22: Low
B23: Automation | C23: Low
B24: System Access / Frequency | C24: Medium
B25: Overall Assessment | C25: Medium
B27: Version Control
B29: Name | C29: Changes | D29: Changed by | E29: When | F29: Checked / Approved by | G29: When
B30: Coversheet v 0.1 | C30: Draft Version | D30: HUGHED3 | E30: 2015-03-26
B31: Coversheet v 1.0 | C31: Production | D31: HUGHED3 | E31: 2015-04-06
B32: Coversheet v 1.1 | C32: Production - change start up process due to some Fas not being able to use | D32: HUGHED3 | E32: 2015-09-29
B33: Coversheet v 1.2 | C33: Production - update for FCA interest assumptions and CMI table | D33: HUGHED3 | E33: 2016-04-06
B34: Coversheet v 1.3 | C34: Production - update for FCA interest assumptions and CMI table | D34: HUGHED3 | E34: 2017-04-06
B35: Coversheet v 1.4 | C35: Production - update for FCA interest assumptions and CMI table | D35: HUGHED3 | E35: 2017-07-01
B36: Coversheet v 1.5 | C36: Production - update GAD rates for July 2017 | D36: HUGHED3 | E36: 2018-04-06
B37: Coversheet v 1.6 | C37: Production - update EIW to TIW as part of Devon | D37: HUGHED3 | E37: 2018-04-06

Sheet Inputsnew (hidden)
A1: Efficient Income Withdrawal | E1: CYA/CYB Calculation | F1: CYB
A2: Reference | B2: Test | E2: Reference
A3: Date of birth | B3: 01/01/1950 | E3: Date of birth | F3: 29/01/1955
A4: Start date | B4: 14/04/2015 | E4: Start date | F4: 12/04/2017
A5: Drawdown type | B5: Flexi-Access | E5: Annuity date | F5: 00:00:00
A6: Pre retirement fund | B6: 500000 | E6: Fund | F6: 49733.33
A7: Post retirement fund | B7: 0 | E7: Income 1 | F7: 11,499.96
A8: Income required per year | B8: 12000 | E8: Income 1 Start | F8: 12/04/2017
A9: TFC | B9: 25.00% | E9: Income 2 | F9: 0.00
A10: Gilt yield | B10: 3.25% | E10: Income 2 Start | F10: 13/04/2017
A11: Tax bracket | B11: 20% | E11: Income 3 | F11: 0.00
A12: Assumed growth rate | B12: 0.05 | E12: Income 3 Start | F12: 13/04/2017
A13: AMC | B13: 1.00% | E13: Gilt | F13: 0.02
A14: Dreawdown charges | B14: 0 | E14: Drawdown charge | F14: 0
A15: EB | B15: No | E15: AMC | F15: 0.019
A16: Policy start date | B16: 14/04/2015 | E16: Ret age | F16: 75
A17: income paid in current year | B17: 0.00 | E17: Spouse Benefits | F17: N
A18: Amount crystallised | B18: 0.00 | E18: Gender | F18: f
A19: EB pre retirement fund | B19: 0.00 | E19: Escalation | F19: N
A20: EB post retirement fund | B20: 0.00 | E20: Escalation Rate | F20: 0
E22: OAC Percentage
E23: payable
E24: guarantee
E25: initial advice charge

Sheet EIW Calcs (hidden)
B2: Efficient Income Withdrawal | I2: Notes:
B3: DOB | C3: =Inputsnew!B3*1 -> 1950-01-01 | I3: Yellow fields are input fields.
B4: Invest | C4: =Inputsnew!B6*1+Inputsnew!B7*1 -> 500000 | I4: Targeting net income when tax codes are fixed to 20% (BR), 40% (D0) and 45% (D1)
B5: Growth | C5: =Inputsnew!B12*1 -> 0.05 | I5: - ensure that an appropriate tax rate is entered into cell G12.
B6: Charges | C6: =Inputsnew!B13*1 -> 0.01
B7: %'age of GAD | C7: 1.5 | I7: Targeting gross income when tax code is 0%
B8: Drawdown charge | C8: =Inputsnew!B14*1 -> 0 | I8: - you will have to gross up the net income and enter that into cell C12,
B9: Flexi | C9: =IF(Inputsnew!B5="Capped", "N", "Y") -> Y | I9: - ensure that an appropriate tax rate of 0% is entered into cell G12.
B11: Existing Business Only
B12: Target Income | C12: =Inputsnew!B17*1 -> 0
B13: Pre fund | C13: =Inputsnew!B19*1 -> 0
B14: Post fund | C14: =Inputsnew!B20*1 -> 0
B15: Month into year | C15: =DATEDIF(D15, B21, "m") -> 21 | D15: 2013-06-26
B16: Taxable Income paid in year | C16: =Inputsnew!B17*1 -> 0
B17: Crystallisation paid to date | C17: 0
M18: NB CALCS | W18: EB CALCS | AG18: TOTAL CALCS
A20: Age | B20: Start date | C20: Month | D20: Net Y (NB) | E20: Net Y (EB) | F20: TFC | G20: GAD | H20: Gilt | I20: Tax | J20: Growth | K20: Charges | M20: Pre fund | N20: Post fund | O20: Total Funds | P20: Check | Q20: Crystallisation | R20: TFC | S20: Gross Y | T20: Net Y | U20: Y | W20: Pre fund | X20: Post fund | Y20: Total Funds | Z20: Check | AA20: Crystallisation | AB20: TFC | AC20: Gross Y | AD20: Net Y | AE20: Y | AG20: Pre fund | AH20: Post fund | AI20: Total Funds | AJ20: Crystallisation | AK20: TFC | AL20: Gross Y | AM20: Net Y | AN20: Y
A21: =INT((B21-C3)/365.25) -> 65 | B21: =Inputsnew!B4*1 -> 2015-04-14 | C21: 1 | D21: =Inputsnew!B8/12 -> 1000 | E21: =C12 -> 0 | F21: =Inputsnew!B9*1 -> 0.25 | G21: =IF($C$9="Y", 100, VLOOKUP(A21,GAD!$A$2:$AH$64, VLOOKUP(H21, GAD!$AK$2:$AL$34, 2, FALSE), FALSE)/10*$C$7) -> 100 | H21: =Inputsnew!B10*1 -> 0.0325 | I21: =Inputsnew!B11*1 -> 0.2 | J21: =C5 -> 0.05 | K21: =C6 -> 0.01 | M21: =C4*((1+$J21-$K21)^(1/12))-IF(C9="y", $C$8/12) -> 501636.8699 | N21: =0 -> 0 | O21: =M21+N21 -> 501636.8699 | Q21: =MAX(0, D21/((1-F21) * (G21/100) * (1-I21) + F21)) -> 1176.470588 | R21: =Q21*F21 -> 294.1176471 | S21: =IF(Q21=0, D21/(1-I21),(Q21-R21)*(G21/100)) -> 882.3529412 | T21: =S21*(1-I21) -> 705.8823529 | U21: =R21+T21 -> 1000 | W21: =IF($C21<$C$15,0,IF($C21=$C$15,$C$13*((1+J21-K21)^(1/12)),IF($C21>$C$15,W20*((1+J21-K21)^(1/12))))) -> 0 | X21: =IF($C21<$C$15,0,IF($C21=$C$15,$C$14*((1+J21-K21)^(1/12)),IF($C21>$C$15,(X20-AA20)*((1+J21-K21)^(1/12))))) -> 0 | Y21: =W21+X21 -> 0 | AA21: =IF($C21<$C$15,$C$17/($C$15-1),MAX(0, E21/((1-F21) * (G21/100) * (1-I21) + F21))) -> 0 | AB21: =AA21*F21 -> 0 | AC21: =IF($C21<$C$15,$C$16/($C$15-1),IF(Q21=0, D21/(1-I21),(Q21-R21)*(G21/100))) -> 0 | AD21: =AC21*(1-I21) -> 0 | AE21: =AB21+AD21 -> 0 | AG21: =(M21-Q21)+(W21-AA21) -> 500460.3993 | AH21: =MAX(0,(AJ21-AK21-AL21)-($C$8/12)) -> 0 | AI21: =O21+Y21 -> 501636.8699 | AJ21: =Q21+AA21 -> 1176.470588 | AK21: =R21+AB21 -> 294.1176471 | AL21: =S21+AC21 -> 882.3529412 | AM21: =T21+AD21 -> 705.8823529 | AN21: =U21+AE21 -> 1000
A22: =INT((B22-$C$3)/365.25) -> 65 | B22: =EDATE(B21, 1) -> 2015-05-14 | C22: =C21+1 -> 2 | D22: =D21 -> 1000 | E22: =E21 -> 0 | F22: =F21 -> 0.25 | G22: =IF($C$9="Y", 100, VLOOKUP(A22,GAD!$A$2:$AH$64, VLOOKUP(H22, GAD!$AK$2:$AL$34, 2, FALSE), FALSE)/10*$C$7) -> 100 | H22: =H21 -> 0.0325 | I22: =I21 -> 0.2 | J22: =J21 -> 0.05 | K22: =K21 -> 0.01 | M22: =MAX(0, (M21-Q21)*((1+J22-K22)^(1/12))-IF($C$9="y", $C$8/12)) -> 502098.7764 | N22: =MAX(0, (Q21-R21-S21+N21-($C$8/12))*((1+$J22-$K22)^(1/12))) -> 0 | O22: 502098.7764 | P22: =S21 -> 882.3529412 | Q22: =IF($C$9="Y", MAX(0, D22/((1-F22) * (G22/100) * (1-I22) + F22)), IF(MAX(0, ((D22-((N22*(G22/100)-SUM(S21:S21))*(1-I22)))/((1-F22) * (G22/100) * (1-I22) + F22)))>(D22/F22), D22/F22, MAX(0, ((D22-((N22*(G22/100)-SUM(S21:S21))*(1-I22)))/((1-F22) * (G22/100) * (1-I22) + F22))))) -> 1176.470588 | R22: 294.1176471 | S22: =IF($C$9="Y", MAX(0, (Q22+N22-R22)*(G22/100)), (MIN(D22/(1-I22), MAX(0, (Q22+N22-R22)*(G22/100)-SUM(S21:S21))))) -> 882.3529412 | T22: =S22*(1-I22) -> 705.8823529 | U22: =R22+T22 -> 1000 | W22: =IF($C22<$C$15,0,IF($C22=$C$15,$C$13*((1+J22-K22)^(1/12)),IF($C22>$C$15,W21*((1+J22-K22)^(1/12))))) -> 0 | X22: =IF($C22<$C$15,0,IF($C22=$C$15,$C$14*((1+J22-K22)^(1/12)),IF($C22>$C$15,(X21-AA21)*((1+J22-K22)^(1/12))))) -> 0 | Y22: =W22+X22 -> 0 | Z22: =AC21 -> 0 | AA22: =IF($C22<$C$15,$C$17/($C$15-1),IF($C$9="Y", MAX(0, E22/((1-F22) * (G22/100) * (1-I22) + F22)), IF(MAX(0, ((E22-((X22*(G22/100)-SUM($AC$21:AC21))*(1-I22)))/((1-F22) * (G22/100) * (1-I22) + F22)))>(E22/F22), E22/F22, MAX(0, ((E22-((X22*(G22/100)-SUM($AC$21:AC21))*(1-I22)))/((1-F22) * (G22/100) * (1-I22) + F22)))))) -> 0 | AB22: 0 | AC22: =IF($C22<$C$15,$C$16/($C$15-1),IF($C$9="Y", MAX(0, (AA22+X22-AB22)*(G22/100)), (MIN(E22/(1-I22), MAX(0, (AA22+X22-AB22)*(G22/100)-SUM($AC$21:AC21)))))) -> 0 | AD22: 0 | AE22: =AB22+AD22 -> 0 | AG22: =(M22-Q22)+(W22-AA22) -> 500922.3058 | AH22: =MAX(0, AJ22-AK22-AL22+(AH21*((1+$J22-$K22)^(1/12)))-($C$8/12)) -> 0 | AI22: 502098.7764 | AJ22: =Q22+AA22 -> 1176.470588 | AK22: =R22+AB22 -> 294.1176471 | AL22: =S22+AC22 -> 882.3529412 | AM22: 705.8823529 | AN22: 1000
A23: =INT((B23-$C$3)/365.25) -> 65 | B23: 2015-06-14 | C23: =C22+1 -> 3 | D23: =D22 -> 1000 | E23: 0 | F23: 0.25 | G23: =IF($C$9="Y", 100, VLOOKUP(A23,GAD!$A$2:$AH$64, VLOOKUP(H23, GAD!$AK$2:$AL$34, 2, FALSE), FALSE)/10*$C$7) -> 100 | H23: =H22 -> 0.0325 | I23: =I22 -> 0.2 | J23: 0.05 | K23: 0.01 | M23: =MAX(0, (M22-Q22)*((1+J23-K23)^(1/12))-IF($C$9="y", $C$8/12)) -> 502562.1951 | N23: =MAX(0, (Q22-R22-S22+N22-($C$8/12))*((1+$J23-$K23)^(1/12))) -> 0 | O23: 502562.1951 | P23: =P22+S22 -> 1764.705882 | Q23: =IF($C$9="Y", MAX(0, D23/((1-F23) * (G23/100) * (1-I23) + F23)), IF(MAX(0, ((D23-((N23*(G23/100)-SUM(S21:S22))*(1-I23)))/((1-F23) * (G23/100) * (1-I23) + F23)))>(D23/F23), D23/F23, MAX(0, ((D23-((N23*(G23/100)-SUM(S21:S22))*(1-I23)))/((1-F23) * (G23/100) * (1-I23) + F23))))) -> 1176.470588 | R23: 294.1176471 | S23: =IF($C$9="Y", MAX(0, (Q23+N23-R23)*(G23/100)), (MIN(D23/(1-I23), MAX(0, (Q23+N23-R23)*(G23/100)-SUM(S21:S22))))) -> 882.3529412 | T23: 705.8823529 | U23: 1000 | W23: =IF($C23<$C$15,0,IF($C23=$C$15,$C$13*((1+J23-K23)^(1/12)),IF($C23>$C$15,W22*((1+J23-K23)^(1/12))))) -> 0 | X23: =IF($C23<$C$15,0,IF($C23=$C$15,$C$14*((1+J23-K23)^(1/12)),IF($C23>$C$15,(X22-AA22)*((1+J23-K23)^(1/12))))) -> 0 | Y23: =W23+X23 -> 0 | Z23: =Z22+AC22 -> 0 | AA23: =IF($C23<$C$15,$C$17/($C$15-1),IF($C$9="Y", MAX(0, E23/((1-F23) * (G23/100) * (1-I23) + F23)), IF(MAX(0, ((E23-((X23*(G23/100)-SUM($AC$21:AC22))*(1-I23)))/((1-F23) * (G23/100) * (1-I23) + F23)))>(E23/F23), E23/F23, MAX(0, ((E23-((X23*(G23/100)-SUM($AC$21:AC22))*(1-I23)))/((1-F23) * (G23/100) * (1-I23) + F23)))))) -> 0 | AB23: 0 | AC23: =IF($C23<$C$15,$C$16/($C$15-1),IF($C$9="Y", MAX(0, (AA23+X23-AB23)*(G23/100)), (MIN(E23/(1-I23), MAX(0, (AA23+X23-AB23)*(G23/100)-SUM($AC$21:AC22)))))) -> 0 | AD23: 0 | AE23: =AB23+AD23 -> 0 | AG23: 501385.7245 | AH23: =MAX(0, AJ23-AK23-AL23+(AH22*((1+$J23-$K23)^(1/12)))-($C$8/12)) -> 0 | AI23: 502562.1951 | AJ23: 1176.470588 | AK23: 294.1176471 | AL23: 882.3529412 | AM23: 705.8823529 | AN23: 1000
A24: 65 | B24: 2015-07-14 | C24: 4 | D24: 1000 | E24: 0 | F24: 0.25 | G24: =IF($C$9="Y", 100, VLOOKUP(A24,GAD!$A$2:$AH$64, VLOOKUP(H24, GAD!$AK$2:$AL$34, 2, FALSE), FALSE)/10*$C$7) -> 100 | H24: 0.0325 | I24: 0.2 | J24: 0.05 | K24: 0.01 | M24: 503027.1309 | N24: 0 | O24: 503027.1309 | P24: 2647.058824 | Q24: =IF($C$9="Y", MAX(0, D24/((1-F24) * (G24/100) * (1-I24) + F24)), IF(MAX(0, ((D24-((N24*(G24/100)-SUM(S21:S23))*(1-I24)))/((1-F24) * (G24/100) * (1-I24) + F24)))>(D24/F24), D24/F24, MAX(0, ((D24-((N24*(G24/100)-SUM(S21:S23))*(1-I24)))/((1-F24) * (G24/100) * (1-I24) + F24))))) -> 1176.470588 | R24: 294.1176471 | S24: =IF($C$9="Y", MAX(0, (Q24+N24-R24)*(G24/100)), (MIN(D24/(1-I24), MAX(0, (Q24+N24-R24)*(G24/100)-SUM(S21:S23))))) -> 882.3529412 | T24: 705.8823529 | U24: 1000 | W24: =IF($C24<$C$15,0,IF($C24=$C$15,$C$13*((1+J24-K24)^(1/12)),IF($C24>$C$15,W23*((1+J24-K24)^(1/12))))) -> 0 | X24: =IF($C24<$C$15,0,IF($C24=$C$15,$C$14*((1+J24-K24)^(1/12)),IF($C24>$C$15,(X23-AA23)*((1+J24-K24)^(1/12))))) -> 0 | Y24: =W24+X24 -> 0 | Z24: 0 | AA24: =IF($C24<$C$15,$C$17/($C$15-1),IF($C$9="Y", MAX(0, E24/((1-F24) * (G24/100) * (1-I24) + F24)), IF(MAX(0, ((E24-((X24*(G24/100)-SUM($AC$21:AC23))*(1-I24)))/((1-F24) * (G24/100) * (1-I24) + F24)))>(E24/F24), E24/F24, MAX(0, ((E24-((X24*(G24/100)-SUM($AC$21:AC23))*(1-I24)))/((1-F24) * (G24/100) * (1-I24) + F24)))))) -> 0 | AB24: 0 | AC24: =IF($C24<$C$15,$C$16/($C$15-1),IF($C$9="Y", MAX(0, (AA24+X24-AB24)*(G24/100)), (MIN(E24/(1-I24), MAX(0, (AA24+X24-AB24)*(G24/100)-SUM($AC$21:AC23)))))) -> 0 | AD24: 0 | AE24: 0 | AG24: 501850.6603 | AH24: 0 | AI24: 503027.1309 | AJ24: 1176.470588 | AK24: 294.1176471 | AL24: 882.3529412 | AM24: 705.8823529 | AN24: 1000
A25: 65 | B25: 2015-08-14 | C25: 5 | D25: 1000 | E25: 0 | F25: 0.25 | G25: =IF($C$9="Y", 100, VLOOKUP(A25,GAD!$A$2:$AH$64, VLOOKUP(H25, GAD!$AK$2:$AL$34, 2, FALSE), FALSE)/10*$C$7) -> 100 | H25: 0.0325 | I25: 0.2 | J25: 0.05 | K25: 0.01 | M25: 503493.5888 | N25: 0 | O25: 503493.5888 | P25: 3529.411765 | Q25: =IF($C$9="Y", MAX(0, D25/((1-F25) * (G25/100) * (1-I25) + F25)), IF(MAX(0, ((D25-((N25*(G25/100)-SUM(S21:S24))*(1-I25)))/((1-F25) * (G25/100) * (1-I25) + F25)))>(D25/F25), D25/F25, MAX(0, ((D25-((N25*(G25/100)-SUM(S21:S24))*(1-I25)))/((1-F25) * (G25/100) * (1-I25) + F25))))) -> 1176.470588 | R25: 294.1176471 | S25: =IF($C$9="Y", MAX(0, (Q25+N25-R25)*(G25/100)), (MIN(D25/(1-I25), MAX(0, (Q25+N25-R25)*(G25/100)-SUM(S21:S24))))) -> 882.3529412 | T25: 705.8823529 | U25: 1000 | W25: =IF($C25<$C$15,0,IF($C25=$C$15,$C$13*((1+J25-K25)^(1/12)),IF($C25>$C$15,W24*((1+J25-K25)^(1/12))))) -> 0 | X25: =IF($C25<$C$15,0,IF($C25=$C$15,$C$14*((1+J25-K25)^(1/12)),IF($C25>$C$15,(X24-AA24)*((1+J25-K25)^(1/12))))) -> 0 | Y25: 0 | Z25: 0 | AA25: =IF($C25<$C$15,$C$17/($C$15-1),IF($C$9="Y", MAX(0, E25/((1-F25) * (G25/100) * (1-I25) + F25)), IF(MAX(0, ((E25-((X25*(G25/100)-SUM($AC$21:AC24))*(1-I25)))/((1-F25) * (G25/100) * (1-I25) + F25)))>(E25/F25), E25/F25, MAX(0, ((E25-((X25*(G25/100)-SUM($AC$21:AC24))*(1-I25)))/((1-F25) * (G25/100) * (1-I25) + F25)))))) -> 0 | AB25: 0 | AC25: =IF($C25<$C$15,$C$16/($C$15-1),IF($C$9="Y", MAX(0, (AA25+X25-AB25)*(G25/100)), (MIN(E25/(1-I25), MAX(0, (AA25+X25-AB25)*(G25/100)-SUM($AC$21:AC24)))))) -> 0 | AD25: 0 | AE25: 0 | AG25: 502317.1182 | AH25: 0 | AI25: 503493.5888 | AJ25: 1176.470588 | AK25: 294.1176471 | AL25: 882.3529412 | AM25: 705.8823529 | AN25: 1000
A26: 65 | B26: 2015-09-14 | C26: 6 | D26: 1000 | E26: 0 | F26: 0.25 | G26: =IF($C$9="Y", 100, VLOOKUP(A26,GAD!$A$2:$AH$64, VLOOKUP(H26, GAD!$AK$2:$AL$34, 2, FALSE), FALSE)/10*$C$7) -> 100 | H26: 0.0325 | I26: 0.2 | J26: 0.05 | K26: 0.01 | M26: 503961.5737 | N26: 0 | O26: 503961.5737 | P26: 4411.764706 | Q26: =IF($C$9="Y", MAX(0, D26/((1-F26) * (G26/100) * (1-I26) + F26)), IF(MAX(0, ((D26-((N26*(G26/100)-SUM(S21:S25))*(1-I26)))/((1-F26) * (G26/100) * (1-I26) + F26)))>(D26/F26), D26/F26, MAX(0, ((D26-((N26*(G26/100)-SUM(S21:S25))*(1-I26)))/((1-F26) * (G26/100) * (1-I26) + F26))))) -> 1176.470588 | R26: 294.1176471 | S26: =IF($C$9="Y", MAX(0, (Q26+N26-R26)*(G26/100)), (MIN(D26/(1-I26), MAX(0, (Q26+N26-R26)*(G26/100)-SUM(S21:S25))))) -> 882.3529412 | T26: 705.8823529 | U26: 1000 | W26: =IF($C26<$C$15,0,IF($C26=$C$15,$C$13*((1+J26-K26)^(1/12)),IF($C26>$C$15,(W25-AA25)*((1+J26-K26)^(1/12))))) -> 0 | X26: =IF($C26<$C$15,0,IF($C26=$C$15,$C$14*((1+J26-K26)^(1/12)),IF($C26>$C$15,(X25+AA25-AB25-AC25)*((1+J26-K26)^(1/12))))) -> 0 | Y26: =W26+X26 -> 0 | Z26: 0 | AA26: =IF($C26<$C$15,$C$17/($C$15-1),IF($C$9="Y", MAX(0, E26/((1-F26) * (G26/100) * (1-I26) + F26)), IF(MAX(0, ((E26-((X26*(G26/100)-SUM($AC$21:AC25))*(1-I26)))/((1-F26) * (G26/100) * (1-I26) + F26)))>(E26/F26), E26/F26, MAX(0, ((E26-((X26*(G26/100)-SUM($AC$21:AC25))*(1-I26)))/((1-F26) * (G26/100) * (1-I26) + F26)))))) -> 0 | AB26: 0 | AC26: =IF($C26<$C$15,$C$16/($C$15-1),IF($C$9="Y", MAX(0, (AA26+X26-AB26)*(G26/100)), (MIN(E26/(1-I26), MAX(0, (AA26+X26-AB26)*(G26/100)-SUM($AC$21:AC25)))))) -> 0 | AD26: 0 | AE26: 0 | AG26: 502785.1032 | AH26: 0 | AI26: 503961.5737 | AJ26: 1176.470588 | AK26: 294.1176471 | AL26: 882.3529412 | AM26: 705.8823529 | AN26: 1000
A27: 65 | B27: 2015-10-14 | C27: 7 | D27: 1000 | E27: 0 | F27: 0.25 | G27: =IF($C$9="Y", 100, VLOOKUP(A27,GAD!$A$2:$AH$64, VLOOKUP(H27, GAD!$AK$2:$AL$34, 2, FALSE), FALSE)/10*$C$7) -> 100 | H27: 0.0325 | I27: 0.2 | J27: 0.05 | K27: 0.01 | M27: 504431.0908 | N27: 0 | O27: 504431.0908 | P27: 5294.117647 | Q27: =IF($C$9="Y", MAX(0, D27/((1-F27) * (G27/100) * (1-I27) + F27)), IF(MAX(0, ((D27-((N27*(G27/100)-SUM(S21:S26))*(1-I27)))/((1-F27) * (G27/100) * (1-I27) + F27)))>(D27/F27), D27/F27, MAX(0, ((D27-((N27*(G27/100)-SUM(S21:S26))*(1-I27)))/((1-F27) * (G27/100) * (1-I27) + F27))))) -> 1176.470588 | R27: 294.1176471 | S27: =IF($C$9="Y", MAX(0, (Q27+N27-R27)*(G27/100)), (MIN(D27/(1-I27), MAX(0, (Q27+N27-R27)*(G27/100)-SUM(S21:S26))))) -> 882.3529412 | T27: 705.8823529 | U27: 1000 | W27: 0 | X27: 0 | Y27: =W27+X27 -> 0 | Z27: 0 | AA27: =IF($C27<$C$15,$C$17/($C$15-1),IF($C$9="Y", MAX(0, E27/((1-F27) * (G27/100) * (1-I27) + F27)), IF(MAX(0, ((E27-((X27*(G27/100)-SUM($AC$21:AC26))*(1-I27)))/((1-F27) * (G27/100) * (1-I27) + F27)))>(E27/F27), E27/F27, MAX(0, ((E27-((X27*(G27/100)-SUM($AC$21:AC26))*(1-I27)))/((1-F27) * (G27/100) * (1-I27) + F27)))))) -> 0 | AB27: 0 | AC27: =IF($C27<$C$15,$C$16/($C$15-1),IF($C$9="Y", MAX(0, (AA27+X27-AB27)*(G27/100)), (MIN(E27/(1-I27), MAX(0, (AA27+X27-AB27)*(G27/100)-SUM($AC$21:AC26)))))) -> 0 | AD27: 0 | AE27: 0 | AG27: 503254.6202 | AH27: 0 | AI27: 504431.0908 | AJ27: 1176.470588 | AK27: 294.1176471 | AL27: 882.3529412 | AM27: 705.8823529 | AN27: 1000
A28: 65 | B28: 2015-11-14 | C28: 8 | D28: 1000 | E28: 0 | F28: 0.25 | G28: =IF($C$9="Y", 100, VLOOKUP(A28,GAD!$A$2:$AH$64, VLOOKUP(H28, GAD!$AK$2:$AL$34, 2, FALSE), FALSE)/10*$C$7) -> 100 | H28: 0.0325 | I28: 0.2 | J28: 0.05 | K28: 0.01 | M28: 504902.1448 | N28: 0 | O28: 504902.1448 | P28: 6176.470588 | Q28: =IF($C$9="Y", MAX(0, D28/((1-F28) * (G28/100) * (1-I28) + F28)), IF(MAX(0, ((D28-((N28*(G28/100)-SUM(S21:S27))*(1-I28)))/((1-F28) * (G28/100) * (1-I28) + F28)))>(D28/F28), D28/F28, MAX(0, ((D28-((N28*(G28/100)-SUM(S21:S27))*(1-I28)))/((1-F28) * (G28/100) * (1-I28) + F28))))) -> 1176.470588 | R28: 294.1176471 | S28: =IF($C$9="Y", MAX(0, (Q28+N28-R28)*(G28/100)), (MIN(D28/(1-I28), MAX(0, (Q28+N28-R28)*(G28/100)-SUM(S21:S27))))) -> 882.3529412 | T28: 705.8823529 | U28: 1000 | W28: 0 | X28: 0 | Y28: =W28+X28 -> 0 | Z28: 0 | AA28: =IF($C28<$C$15,$C$17/($C$15-1),IF($C$9="Y", MAX(0, E28/((1-F28) * (G28/100) * (1-I28) + F28)), IF(MAX(0, ((E28-((X28*(G28/100)-SUM($AC$21:AC27))*(1-I28)))/((1-F28) * (G28/100) * (1-I28) + F28)))>(E28/F28), E28/F28, MAX(0, ((E28-((X28*(G28/100)-SUM($AC$21:AC27))*(1-I28)))/((1-F28) * (G28/100) * (1-I28) + F28)))))) -> 0 | AB28: 0 | AC28: =IF($C28<$C$15,$C$16/($C$15-1),IF($C$9="Y", MAX(0, (AA28+X28-AB28)*(G28/100)), (MIN(E28/(1-I28), MAX(0, (AA28+X28-AB28)*(G28/100)-SUM($AC$21:AC27)))))) -> 0 | AD28: 0 | AE28: 0 | AG28: 503725.6742 | AH28: 0 | AI28: 504902.1448 | AJ28: 1176.470588 | AK28: 294.1176471 | AL28: 882.3529412 | AM28: 705.8823529 | AN28: 1000
A29: 65 | B29: 2015-12-14 | C29: 9 | D29: 1000 | E29: 0 | F29: 0.25 | G29: =IF($C$9="Y", 100, VLOOKUP(A29,GAD!$A$2:$AH$64, VLOOKUP(H29, GAD!$AK$2:$AL$34, 2, FALSE), FALSE)/10*$C$7) -> 100 | H29: 0.0325 | I29: 0.2 | J29: 0.05 | K29: 0.01 | M29: 505374.741 | N29: =MAX(0, (Q28-R28-S28+N28-($C$8/12))*((1+$J29-$K29)^(1/12))) -> 0 | O29: 505374.741 | P29: 7058.823529 | Q29: =IF($C$9="Y", MAX(0, D29/((1-F29) * (G29/100) * (1-I29) + F29)), IF(MAX(0, ((D29-((N29*(G29/100)-SUM(S21:S28))*(1-I29)))/((1-F29) * (G29/100) * (1-I29) + F29)))>(D29/F29), D29/F29, MAX(0, ((D29-((N29*(G29/100)-SUM(S21:S28))*(1-I29)))/((1-F29) * (G29/100) * (1-I29) + F29))))) -> 1176.470588 | R29: 294.1176471 | S29: =IF($C$9="Y", MAX(0, (Q29+N29-R29)*(G29/100)), (MIN(D29/(1-I29), MAX(0, (Q29+N29-R29)*(G29/100)-SUM(S21:S28))))) -> 882.3529412 | T29: 705.8823529 | U29: 1000 | W29: 0 | X29: 0 | Y29: =W29+X29 -> 0 | Z29: 0 | AA29: =IF($C29<$C$15,$C$17/($C$15-1),IF($C$9="Y", MAX(0, E29/((1-F29) * (G29/100) * (1-I29) + F29)), IF(MAX(0, ((E29-((X29*(G29/100)-SUM($AC$21:AC28))*(1-I29)))/((1-F29) * (G29/100) * (1-I29) + F29)))>(E29/F29), E29/F29, MAX(0, ((E29-((X29*(G29/100)-SUM($AC$21:AC28))*(1-I29)))/((1-F29) * (G29/100) * (1-I29) + F29)))))) -> 0 | AB29: 0 | AC29: =IF($C29<$C$15,$C$16/($C$15-1),IF($C$9="Y", MAX(0, (AA29+X29-AB29)*(G29/100)), (MIN(E29/(1-I29), MAX(0, (AA29+X29-AB29)*(G29/100)-SUM($AC$21:AC28)))))) -> 0 | AD29: 0 | AE29: 0 | AG29: 504198.2704 | AH29: 0 | AI29: 505374.741 | AJ29: =Q29+AA29 -> 1176.470588 | AK29: 294.1176471 | AL29: 882.3529412 | AM29: 705.8823529 | AN29: 1000
A30: 66 | B30: 2016-01-14 | C30: 10 | D30: 1000 | E30: 0 | F30: 0.25 | G30: =IF($C$9="Y", 100, VLOOKUP(A30,GAD!$A$2:$AH$64, VLOOKUP(H30, GAD!$AK$2:$AL$34, 2, FALSE), FALSE)/10*$C$7) -> 100 | H30: 0.0325 | I30: 0.2 | J30: 0.05 | K30: 0.01 | M30: 505848.8844 | N30: 0 | O30: 505848.8844 | P30: 7941.176471 | Q30: =IF($C$9="Y", MAX(0, D30/((1-F30) * (G30/100) * (1-I30) + F30)), IF(MAX(0, ((D30-((N30*(G30/100)-SUM(S21:S29))*(1-I30)))/((1-F30) * (G30/100) * (1-I30) + F30)))>(D30/F30), D30/F30, MAX(0, ((D30-((N30*(G30/100)-SUM(S21:S29))*(1-I30)))/((1-F30) * (G30/100) * (1-I30) + F30))))) -> 1176.470588 | R30: 294.1176471 | S30: =IF($C$9="Y", MAX(0, (Q30+N30-R30)*(G30/100)), (MIN(D30/(1-I30), MAX(0, (Q30+N30-R30)*(G30/100)-SUM(S21:S29))))) -> 882.3529412 | T30: 705.8823529 | U30: 1000 | W30: 0 | X30: 0 | Y30: =W30+X30 -> 0 | Z30: 0 | AA30: =IF($C30<$C$15,$C$17/($C$15-1),IF($C$9="Y", MAX(0, E30/((1-F30) * (G30/100) * (1-I30) + F30)), IF(MAX(0, ((E30-((X30*(G30/100)-SUM($AC$21:AC29))*(1-I30)))/((1-F30) * (G30/100) * (1-I30) + F30)))>(E30/F30), E30/F30, MAX(0, ((E30-((X30*(G30/100)-SUM($AC$21:AC29))*(1-I30)))/((1-F30) * (G30/100) * (1-I30) + F30)))))) -> 0 | AB30: 0 | AC30: =IF($C30<$C$15,$C$16/($C$15-1),IF($C$9="Y", MAX(0, (AA30+X30-AB30)*(G30/100)), (MIN(E30/(1-I30), MAX(0, (AA30+X30-AB30)*(G30/100)-SUM($AC$21:AC29)))))) -> 0 | AD30: 0 | AE30: 0 | AG30: 504672.4138 | AH30: 0 | AI30: 505848.8844 | AJ30: =Q30+AA30 -> 1176.470588 | AK30: 294.1176471 | AL30: 882.3529412 | AM30: 705.8823529 | AN30: 1000
A31: 66 | B31: 2016-02-14 | C31: 11 | D31: 1000 | E31: 0 | F31: 0.25 | G31: =IF($C$9="Y", 100, VLOOKUP(A31,GAD!$A$2:$AH$64, VLOOKUP(H31, GAD!$AK$2:$AL$34, 2, FALSE), FALSE)/10*$C$7) -> 100 | H31: 0.0325 | I31: 0.2 | J31: 0.05 | K31: 0.01 | M31: 506324.5799 | N31: 0 | O31: 506324.5799 | P31: 8823.529412 | Q31: =IF($C$9="Y", MAX(0, D31/((1-F31) * (G31/100) * (1-I31) + F31)), IF(MAX(0, ((D31-((N31*(G31/100)-SUM(S21:S30))*(1-I31)))/((1-F31) * (G31/100) * (1-I31) + F31)))>(D31/F31), D31/F31, MAX(0, ((D31-((N31*(G31/100)-SUM(S21:S30))*(1-I31)))/((1-F31) * (G31/100) * (1-I31) + F31))))) -> 1176.470588 | R31: 294.1176471 | S31: =IF($C$9="Y", MAX(0, (Q31+N31-R31)*(G31/100)), (MIN(D31/(1-I31), MAX(0, (Q31+N31-R31)*(G31/100)-SUM(S21:S30))))) -> 882.3529412 | T31: 705.8823529 | U31: 1000 | W31: 0 | X31: 0 | Y31: =W31+X31 -> 0 | Z31: 0 | AA31: =IF($C31<$C$15,$C$17/($C$15-1),IF($C$9="Y", MAX(0, E31/((1-F31) * (G31/100) * (1-I31) + F31)), IF(MAX(0, ((E31-((X31*(G31/100)-SUM($AC$21:AC30))*(1-I31)))/((1-F31) * (G31/100) * (1-I31) + F31)))>(E31/F31), E31/F31, MAX(0, ((E31-((X31*(G31/100)-SUM($AC$21:AC30))*(1-I31)))/((1-F31) * (G31/100) * (1-I31) + F31)))))) -> 0 | AB31: 0 | AC31: =IF($C31<$C$15,$C$16/($C$15-1),IF($C$9="Y", MAX(0, (AA31+X31-AB31)*(G31/100)), (MIN(E31/(1-I31), MAX(0, (AA31+X31-AB31)*(G31/100)-SUM($AC$21:AC30)))))) -> 0 | AD31: 0 | AE31: 0 | AG31: 505148.1094 | AH31: 0 | AI31: 506324.5799 | AJ31: =Q31+AA31 -> 1176.470588 | AK31: 294.1176471 | AL31: 882.3529412 | AM31: 705.8823529 | AN31: 1000
A32: 66 | B32: 2016-03-14 | C32: 12 | D32: 1000 | E32: 0 | F32: 0.25 | G32: =IF($C$9="Y", 100, VLOOKUP(A32,GAD!$A$2:$AH$64, VLOOKUP(H32, GAD!$AK$2:$AL$34, 2, FALSE), FALSE)/10*$C$7) -> 100 | H32: 0.0325 | I32: 0.2 | J32: 0.05 | K32: 0.01 | M32: 506801.8328 | N32: 0 | O32: 506801.8328 | P32: 9705.882353 | Q32: =IF($C$9="Y", MAX(0, D32/((1-F32) * (G32/100) * (1-I32) + F32)), IF(MAX(0, ((D32-((N32*(G32/100)-SUM(S21:S31))*(1-I32)))/((1-F32) * (G32/100) * (1-I32) + F32)))>(D32/F32), D32/F32, MAX(0, ((D32-((N32*(G32/100)-SUM(S21:S31))*(1-I32)))/((1-F32) * (G32/100) * (1-I32) + F32))))) -> 1176.470588 | R32: 294.1176471 | S32: =IF($C$9="Y", MAX(0, (Q32+N32-R32)*(G32/100)), (MIN(D32/(1-I32), MAX(0, (Q32+N32-R32)*(G32/100)-SUM(S21:S31))))) -> 882.3529412 | T32: 705.8823529 | U32: 1000 | W32: 0 | X32: 0 | Y32: 0 | Z32: 0 | AA32: =IF($C32<$C$15,$C$17/($C$15-1),IF($C$9="Y", MAX(0, E32/((1-F32) * (G32/100) * (1-I32) + F32)), IF(MAX(0, ((E32-((X32*(G32/100)-SUM($AC$21:AC31))*(1-I32)))/((1-F32) * (G32/100) * (1-I32) + F32)))>(E32/F32), E32/F32, MAX(0, ((E32-((X32*(G32/100)-SUM($AC$21:AC31))*(1-I32)))/((1-F32) * (G32/100) * (1-I32) + F32)))))) -> 0 | AB32: 0 | AC32: =IF($C32<$C$15,$C$16/($C$15-1),IF($C$9="Y", MAX(0, (AA32+X32-AB32)*(G32/100)), (MIN(E32/(1-I32), MAX(0, (AA32+X32-AB32)*(G32/100)-SUM($AC$21:AC31)))))) -> 0 | AD32: 0 | AE32: 0 | AG32: 505625.3622 | AH32: 0 | AI32: 506801.8328 | AJ32: =Q32+AA32 -> 1176.470588 | AK32: 294.1176471 | AL32: 882.3529412 | AM32: 705.8823529 | AN32: 1000
A33: 66 | B33: 2016-04-14 | C33: 13 | D33: 1000 | E33: 0 | F33: 0.25 | G33: =IF($C$9="Y", 100, VLOOKUP(A33,GAD!$A$2:$AH$64, VLOOKUP(H33, GAD!$AK$2:$AL$34, 2, FALSE), FALSE)/10*$C$7) -> 100 | H33: 0.0325 | I33: 0.2 | J33: 0.05 | K33: 0.01 | M33: 507280.6481 | N33: 0 | O33: 507280.6481 | P33: =IF(N33*(G33/100)*(1-I33)>D33, P32, N33*(G33/100)*(1-I33)) -> 0 | Q33: =IF($C$9="Y", MAX(0, D32/((1-F32) * (G32/100) * (1-I32) + F32)), IF(P33>(D33/(1-I33)), 0, ((D33-((N33*(G33/100)-SUM(S21:S32))*(1-I33)))/((1-F33) * (G33/100) * (1-I33) + F33)))) -> 1176.470588 | R33: 294.1176471 | S33: =IF($C$9="Y", (Q33+N33-R33)*(G33/100), IF(Q33=0, D33/(1-I33), (Q33+N33-R33)*(G33/100)-SUM(S21:S32))) -> 882.3529412 | T33: 705.8823529 | U33: 1000 | W33: 0 | X33: 0 | Y33: 0 | Z33: =IF(X33*(G33/100)*(1-I33)>D33, Z32, X33*(G33/100)*(1-I33)) -> 0 | AA33: =IF($C$9="Y", MAX(0, E32/((1-F32) * (G32/100) * (1-I32) + F32)), IF(Z33>(E33/(1-I33)), 0, ((E33-((X33*(G33/100)-SUM(AC21:AC32))*(1-I33)))/((1-F33) * (G33/100) * (1-I33) + F33)))) -> 0 | AB33: 0 | AC33: =IF($C$9="Y", (AA33+X33-AB33)*(G33/100), IF(AA33=0, E33/(1-I33), (AA33+X33-AB33)*(G33/100)-SUM(AC21:AC32))) -> 0 | AD33: 0 | AE33: 0 | AG33: 506104.1775 | AH33: 0 | AI33: 507280.6481 | AJ33: 1176.470588 | AK33: 294.1176471 | AL33: 882.3529412 | AM33: 705.8823529 | AN33: 1000
A34: 66 | B34: 2016-05-14 | C34: 14 | D34: 1000 | E34: 0 | F34: 0.25 | G34: =IF($C$9="Y", 100, VLOOKUP(A34,GAD!$A$2:$AH$64, VLOOKUP(H34, GAD!$AK$2:$AL$34, 2, FALSE), FALSE)/10*$C$7) -> 100 | H34: 0.0325 | I34: 0.2 | J34: 0.05 | K34: 0.01 | M34: 507761.0309 | N34: 0 | O34: 507761.0309 | P34: =IF(Q34=0, P33, N34*(G34/100)*(1-I34)) -> 0 | Q34: =IF($C$9="Y", MAX(0, D34/((1-F34) * (G34/100) * (1-I34) + F34)), IF(MAX(0, ((D34-((N34*(G34/100)-SUM(S33:S33))*(1-I34)))/((1-F34) * (G34/100) * (1-I34) + F34)))>(D34/F34), D34/F34, MAX(0, ((D34-((N34*(G34/100)-SUM(S33:S33))*(1-I34)))/((1-F34) * (G34/100) * (1-I34) + F34))))) -> 1176.470588 | R34: 294.1176471 | S34: =IF($C$9="Y", MAX(0, (Q34+N34-R34)*(G34/100)), (MIN(D34/(1-I34), MAX(0, (Q34+N34-R34)*(G34/100)-SUM(S33:S33))))) -> 882.3529412 | T34: 705.8823529 | U34: 1000 | W34: 0 | X34: 0 | Y34: 0 | Z34: =IF(AA34=0, Z33, X34*(G34/100)*(1-I34)) -> 0 | AA34: =IF($C$9="Y", MAX(0, E34/((1-F34) * (G34/100) * (1-I34) + F34)), IF(MAX(0, ((E34-((X34*(G34/100)-SUM($AC$33:AC33))*(1-I34)))/((1-F34) * (G34/100) * (1-I34) + F34)))>(E34/F34), E34/F34, MAX(0, ((E34-((X34*(G34/100)-SUM($AC$33:AC33))*(1-I34)))/((1-F34) * (G34/100) * (1-I34) + F34))))) -> 0 | AB34: 0 | AC34: =IF($C$9="Y", MAX(0, (AA34+X34-AB34)*(G34/100)), (MIN(E34/(1-I34), MAX(0, (AA34+X34-AB34)*(G34/100)-SUM(AC33:AC33))))) -> 0 | AD34: 0 | AE34: 0 | AG34: 506584.5603 | AH34: 0 | AI34: 507761.0309 | AJ34: =Q34+AA34 -> 1176.470588 | AK34: 294.1176471 | AL34: 882.3529412 | AM34: 705.8823529 | AN34: 1000
A35: 66 | B35: 2016-06-14 | C35: 15 | D35: 1000 | E35: 0 | F35: 0.25 | G35: =IF($C$9="Y", 100, VLOOKUP(A35,GAD!$A$2:$AH$64, VLOOKUP(H35, GAD!$AK$2:$AL$34, 2, FALSE), FALSE)/10*$C$7) -> 100 | H35: 0.0325 | I35: 0.2 | J35: 0.05 | K35: 0.01 | M35: 508242.9863 | N35: 0 | O35: 508242.9863 | P35: 0 | Q35: =IF($C$9="Y", MAX(0, D35/((1-F35) * (G35/100) * (1-I35) + F35)), IF(MAX(0, ((D35-((N35*(G35/100)-SUM(S33:S34))*(1-I35)))/((1-F35) * (G35/100) * (1-I35) + F35)))>(D35/F35), D35/F35, MAX(0, ((D35-((N35*(G35/100)-SUM(S33:S34))*(1-I35)))/((1-F35) * (G35/100) * (1-I35) + F35))))) -> 1176.470588 | R35: 294.1176471 | S35: =IF($C$9="Y", MAX(0, (Q35+N35-R35)*(G35/100)), (MIN(D35/(1-I35), MAX(0, (Q35+N35-R35)*(G35/100)-SUM(S33:S34))))) -> 882.3529412 | T35: 705.8823529 | U35: 1000 | W35: 0 | X35: 0 | Y35: 0 | Z35: 0 | AA35: =IF($C$9="Y", MAX(0, E35/((1-F35) * (G35/100) * (1-I35) + F35)), IF(MAX(0, ((E35-((X35*(G35/100)-SUM($AC$33:AC34))*(1-I35)))/((1-F35) * (G35/100) * (1-I35) + F35)))>(E35/F35), E35/F35, MAX(0, ((E35-((X35*(G35/100)-SUM($AC$33:AC34))*(1-I35)))/((1-F35) * (G35/100) * (1-I35) + F35))))) -> 0 | AB35: 0 | AC35: =IF($C$9="Y", MAX(0, (AA35+X35-AB35)*(G35/100)), (MIN(E35/(1-I35), MAX(0, (AA35+X35-AB35)*(G35/100)-SUM(AC34:AC34))))) -> 0 | AD35: 0 | AE35: 0 | AG35: 507066.5157 | AH35: 0 | AI35: 508242.9863 | AJ35: =Q35+AA35 -> 1176.470588 | AK35: 294.1176471 | AL35: 882.3529412 | AM35: 705.8823529 | AN35: 1000
A36: 66 | B36: 2016-07-14 | C36: 16 | D36: 1000 | E36: 0 | F36: 0.25 | G36: =IF($C$9="Y", 100, VLOOKUP(A36,GAD!$A$2:$AH$64, VLOOKUP(H36, GAD!$AK$2:$AL$34, 2, FALSE), FALSE)/10*$C$7) -> 100 | H36: 0.0325 | I36: 0.2 | J36: 0.05 | K36: 0.01 | M36: 508726.5196 | N36: 0 | O36: 508726.5196 | P36: 0 | Q36: =IF($C$9="Y", MAX(0, D36/((1-F36) * (G36/100) * (1-I36) + F36)), IF(MAX(0, ((D36-((N36*(G36/100)-SUM(S33:S35))*(1-I36)))/((1-F36) * (G36/100) * (1-I36) + F36)))>(D36/F36), D36/F36, MAX(0, ((D36-((N36*(G36/100)-SUM(S33:S35))*(1-I36)))/((1-F36) * (G36/100) * (1-I36) + F36))))) -> 1176.470588 | R36: 294.1176471 | S36: =IF($C$9="Y", MAX(0, (Q36+N36-R36)*(G36/100)), (MIN(D36/(1-I36), MAX(0, (Q36+N36-R36)*(G36/100)-SUM(S33:S35))))) -> 882.3529412 | T36: 705.8823529 | U36: 1000 | W36: 0 | X36: 0 | Y36: 0 | Z36: 0 | AA36: =IF($C$9="Y", MAX(0, E36/((1-F36) * (G36/100) * (1-I36) + F36)), IF(MAX(0, ((E36-((X36*(G36/100)-SUM($AC$33:AC35))*(1-I36)))/((1-F36) * (G36/100) * (1-I36) + F36)))>(E36/F36), E36/F36, MAX(0, ((E36-((X36*(G36/100)-SUM($AC$33:AC35))*(1-I36)))/((1-F36) * (G36/100) * (1-I36) + F36))))) -> 0 | AB36: 0 | AC36: =IF($C$9="Y", MAX(0, (AA36+X36-AB36)*(G36/100)), (MIN(E36/(1-I36), MAX(0, (AA36+X36-AB36)*(G36/100)-SUM(AC35:AC35))))) -> 0 | AD36: 0 | AE36: 0 | AG36: 507550.049 | AH36: 0 | AI36: 508726.5196 | AJ36: =Q36+AA36 -> 1176.470588 | AK36: 294.1176471 | AL36: 882.3529412 | AM36: 705.8823529 | AN36: 1000
A37: 66 | B37: 2016-08-14 | C37: 17 | D37: 1000 | E37: 0 | F37: 0.25 | G37: =IF($C$9="Y", 100, VLOOKUP(A37,GAD!$A$2:$AH$64, VLOOKUP(H37, GAD!$AK$2:$AL$34, 2, FALSE), FALSE)/10*$C$7) -> 100 | H37: 0.0325 | I37: 0.2 | J37: 0.05 | K37: 0.01 | M37: 509211.6358 | N37: 0 | O37: 509211.6358 | P37: 0 | Q37: =IF($C$9="Y", MAX(0, D37/((1-F37) * (G37/100) * (1-I37) + F37)), IF(MAX(0, ((D37-((N37*(G37/100)-SUM(S33:S36))*(1-I37)))/((1-F37) * (G37/100) * (1-I37) + F37)))>(D37/F37), D37/F37, MAX(0, ((D37-((N37*(G37/100)-SUM(S33:S36))*(1-I37)))/((1-F37) * (G37/100) * (1-I37) + F37))))) -> 1176.470588 | R37: 294.1176471 | S37: =IF($C$9="Y", MAX(0, (Q37+N37-R37)*(G37/100)), (MIN(D37/(1-I37), MAX(0, (Q37+N37-R37)*(G37/100)-SUM(S33:S36))))) -> 882.3529412 | T37: 705.8823529 | U37: =R37+T37 -> 1000 | W37: 0 | X37: 0 | Y37: 0 | Z37: 0 | AA37: =IF($C$9="Y", MAX(0, E37/((1-F37) * (G37/100) * (1-I37) + F37)), IF(MAX(0, ((E37-((X37*(G37/100)-SUM($AC$33:AC36))*(1-I37)))/((1-F37) * (G37/100) * (1-I37) + F37)))>(E37/F37), E37/F37, MAX(0, ((E37-((X37*(G37/100)-SUM($AC$33:AC36))*(1-I37)))/((1-F37) * (G37/100) * (1-I37) + F37))))) -> 0 | AB37: 0 | AC37: 0 | AD37: 0 | AE37: 0 | AG37: 508035.1652 | AH37: 0 | AI37: 509211.6358 | AJ37: =Q37+AA37 -> 1176.470588 | AK37: 294.1176471 | AL37: 882.3529412 | AM37: 705.8823529 | AN37: 1000
A38: 66 | B38: 2016-09-14 | C38: 18 | D38: 1000 | E38: 0 | F38: 0.25 | G38: =IF($C$9="Y", 100, VLOOKUP(A38,GAD!$A$2:$AH$64, VLOOKUP(H38, GAD!$AK$2:$AL$34, 2, FALSE), FALSE)/10*$C$7) -> 100 | H38: 0.0325 | I38: 0.2 | J38: 0.05 | K38: 0.01 | M38: =MAX(0, (M37-Q37)*((1+J38-K38)^(1/12))-IF($C$9="y", $C$8/12)) -> 509698.3401 | N38: 0 | O38: 509698.3401 | P38: 0 | Q38: =IF($C$9="Y", MAX(0, D38/((1-F38) * (G38/100) * (1-I38) + F38)), IF(MAX(0, ((D38-((N38*(G38/100)-SUM(S33:S37))*(1-I38)))/((1-F38) * (G38/100) * (1-I38) + F38)))>(D38/F38), D38/F38, MAX(0, ((D38-((N38*(G38/100)-SUM(S33:S37))*(1-I38)))/((1-F38) * (G38/100) * (1-I38) + F38))))) -> 1176.470588 | R38: 294.1176471 | S38: =IF($C$9="Y", MAX(0, (Q38+N38-R38)*(G38/100)), (MIN(D38/(1-I38), MAX(0, (Q38+N38-R38)*(G38/100)-SUM(S33:S37))))) -> 882.3529412 | T38: 705.8823529 | U38: =R38+T38 -> 1000 | W38: 0 | X38: 0 | Y38: 0 | Z38: 0 | AA38: =IF($C$9="Y", MAX(0, E38/((1-F38) * (G38/100) * (1-I38) + F38)), IF(MAX(0, ((E38-((X38*(G38/100)-SUM($AC$33:AC37))*(1-I38)))/((1-F38) * (G38/100) * (1-I38) + F38)))>(E38/F38), E38/F38, MAX(0, ((E38-((X38*(G38/100)-SUM($AC$33:AC37))*(1-I38)))/((1-F38) * (G38/100) * (1-I38) + F38))))) -> 0 | AB38: 0 | AC38: 0 | AD38: 0 | AE38: 0 | AG38: 508521.8695 | AH38: 0 | AI38: 509698.3401 | AJ38: 1176.470588 | AK38: 294.1176471 | AL38: 882.3529412 | AM38: 705.8823529 | AN38: 1000
A39: 66 | B39: 2016-10-14 | C39: 19 | D39: =D38 -> 1000 | E39: 0 | F39: 0.25 | G39: =IF($C$9="Y", 100, VLOOKUP(A39,GAD!$A$2:$AH$64, VLOOKUP(H39, GAD!$AK$2:$AL$34, 2, FALSE), FALSE)/10*$C$7) -> 100 | H39: 0.0325 | I39: =I38 -> 0.2 | J39: 0.05 | K39: 0.01 | M39: 510186.6378 | N39: 0 | O39: 510186.6378 | P39: 0 | Q39: =IF($C$9="Y", MAX(0, D39/((1-F39) * (G39/100) * (1-I39) + F39)), IF(MAX(0, ((D39-((N39*(G39/100)-SUM(S33:S38))*(1-I39)))/((1-F39) * (G39/100) * (1-I39) + F39)))>(D39/F39), D39/F39, MAX(0, ((D39-((N39*(G39/100)-SUM(S33:S38))*(1-I39)))/((1-F39) * (G39/100) * (1-I39) + F39))))) -> 1176.470588 | R39: 294.1176471 | S39: =IF($C$9="Y", MAX(0, (Q39+N39-R39)*(G39/100)), (MIN(D39/(1-I39), MAX(0, (Q39+N39-R39)*(G39/100)-SUM(S33:S38))))) -> 882.3529412 | T39: 705.8823529 | U39: =R39+T39 -> 1000 | W39: 0 | X39: 0 | Y39: 0 | Z39: 0 | AA39: =IF($C$9="Y", MAX(0, E39/((1-F39) * (G39/100) * (1-I39) + F39)), IF(MAX(0, ((E39-((X39*(G39/100)-SUM($AC$33:AC38))*(1-I39)))/((1-F39) * (G39/100) * (1-I39) + F39)))>(E39/F39), E39/F39, MAX(0, ((E39-((X39*(G39/100)-SUM($AC$33:AC38))*(1-I39)))/((1-F39) * (G39/100) * (1-I39) + F39))))) -> 0 | AB39: 0 | AC39: 0 | AD39: 0 | AE39: 0 | AG39: 509010.1672 | AH39: 0 | AI39: 510186.6378 | AJ39: 1176.470588 | AK39: 294.1176471 | AL39: 882.3529412 | AM39: 705.8823529 | AN39: 1000
A40: 66 | B40: 2016-11-14 | C40: 20 | D40: 1000 | E40: 0 | F40: 0.25 | G40: =IF($C$9="Y", 100, VLOOKUP(A40,GAD!$A$2:$AH$64, VLOOKUP(H40, GAD!$AK$2:$AL$34, 2, FALSE), FALSE)/10*$C$7) -> 100 | H40: 0.0325 | I40: 0.2 | J40: 0.05 | K40: 0.01 | M40: 510676.534 | N40: 0 | O40: 510676.534 | P40: 0 | Q40: =IF($C$9="Y", MAX(0, D40/((1-F40) * (G40/100) * (1-I40) + F40)), IF(MAX(0, ((D40-((N40*(G40/100)-SUM(S33:S39))*(1-I40)))/((1-F40) * (G40/100) * (1-I40) + F40)))>(D40/F40), D40/F40, MAX(0, ((D40-((N40*(G40/100)-SUM(S33:S39))*(1-I40)))/((1-F40) * (G40/100) * (1-I40) + F40))))) -> 1176.470588 | R40: 294.1176471 | S40: =IF($C$9="Y", MAX(0, (Q40+N40-R40)*(G40/100)), (MIN(D40/(1-I40), MAX(0, (Q40+N40-R40)*(G40/100)-SUM(S33:S39))))) -> 882.3529412 | T40: 705.8823529 | U40: =R40+T40 -> 1000 | W40: 0 | X40: 0 | Y40: 0 | Z40: 0 | AA40: =IF($C$9="Y", MAX(0, E40/((1-F40) * (G40/100) * (1-I40) + F40)), IF(MAX(0, ((E40-((X40*(G40/100)-SUM($AC$33:AC39))*(1-I40)))/((1-F40) * (G40/100) * (1-I40) + F40)))>(E40/F40), E40/F40, MAX(0, ((E40-((X40*(G40/100)-SUM($AC$33:AC39))*(1-I40)))/((1-F40) * (G40/100) * (1-I40) + F40))))) -> 0 | AB40: 0 | AC40: 0 | AD40: 0 | AE40: 0 | AG40: 509500.0634 | AH40: 0 | AI40: 510676.534 | AJ40: 1176.470588 | AK40: 294.1176471 | AL40: 882.3529412 | AM40: 705.8823529 | AN40: 1000
A41: 66 | B41: 2016-12-14 | C41: 21 | D41: 1000 | E41: 0 | F41: 0.25 | G41: =IF($C$9="Y", 100, VLOOKUP(A41,GAD!$A$2:$AH$64, VLOOKUP(H41, GAD!$AK$2:$AL$34, 2, FALSE), FALSE)/10*$C$7) -> 100 | H41: 0.0325 | I41: 0.2 | J41: 0.05 | K41: 0.01 | M41: 511168.0341 | N41: 0 | O41: 511168.0341 | P41: 0 | Q41: =IF($C$9="Y", MAX(0, D41/((1-F41) * (G41/100) * (1-I41) + F41)), IF(MAX(0, ((D41-((N41*(G41/100)-SUM(S33:S40))*(1-I41)))/((1-F41) * (G41/100) * (1-I41) + F41)))>(D41/F41), D41/F41, MAX(0, ((D41-((N41*(G41/100)-SUM(S33:S40))*(1-I41)))/((1-F41) * (G41/100) * (1-I41) + F41))))) -> 1176.470588 | R41: 294.1176471 | S41: =IF($C$9="Y", MAX(0, (Q41+N41-R41)*(G41/100)), (MIN(D41/(1-I41), MAX(0, (Q41+N41-R41)*(G41/100)-SUM(S33:S40))))) -> 882.3529412 | T41: 705.8823529 | U41: 1000 | W41: 0 | X41: 0 | Y41: 0 | Z41: 0 | AA41: =IF($C$9="Y", MAX(0, E41/((1-F41) * (G41/100) * (1-I41) + F41)), IF(MAX(0, ((E41-((X41*(G41/100)-SUM($AC$33:AC40))*(1-I41)))/((1-F41) * (G41/100) * (1-I41) + F41)))>(E41/F41), E41/F41, MAX(0, ((E41-((X41*(G41/100)-SUM($AC$33:AC40))*(1-I41)))/((1-F41) * (G41/100) * (1-I41) + F41))))) -> 0 | AB41: 0 | AC41: 0 | AD41: 0 | AE41: 0 | AG41: 509991.5635 | AH41: 0 | AI41: 511168.0341 | AJ41: 1176.470588 | AK41: 294.1176471 | AL41: 882.3529412 | AM41: 705.8823529 | AN41: 1000
A42: 67 | B42: 2017-01-14 | C42: 22 | D42: 1000 | E42: 0 | F42: 0.25 | G42: =IF($C$9="Y", 100, VLOOKUP(A42,GAD!$A$2:$AH$64, VLOOKUP(H42, GAD!$AK$2:$AL$34, 2, FALSE), FALSE)/10*$C$7) -> 100 | H42: 0.0325 | I42: 0.2 | J42: 0.05 | K42: 0.01 | M42: 511661.1432 | N42: 0 | O42: 511661.1432 | P42: 0 | Q42: =IF($C$9="Y", MAX(0, D42/((1-F42) * (G42/100) * (1-I42) + F42)), IF(MAX(0, ((D42-((N42*(G42/100)-SUM(S33:S41))*(1-I42)))/((1-F42) * (G42/100) * (1-I42) + F42)))>(D42/F42), D42/F42, MAX(0, ((D42-((N42*(G42/100)-SUM(S33:S41))*(1-I42)))/((1-F42) * (G42/100) * (1-I42) + F42))))) -> 1176.470588 | R42: 294.1176471 | S42: =IF($C$9="Y", MAX(0, (Q42+N42-R42)*(G42/100)), (MIN(D42/(1-I42), MAX(0, (Q42+N42-R42)*(G42/100)-SUM(S33:S41))))) -> 882.3529412 | T42: 705.8823529 | U42: 1000 | W42: 0 | X42: 0 | Y42: 0 | Z42: 0 | AA42: =IF($C$9="Y", MAX(0, E42/((1-F42) * (G42/100) * (1-I42) + F42)), IF(MAX(0, ((E42-((X42*(G42/100)-SUM($AC$33:AC41))*(1-I42)))/((1-F42) * (G42/100) * (1-I42) + F42)))>(E42/F42), E42/F42, MAX(0, ((E42-((X42*(G42/100)-SUM($AC$33:AC41))*(1-I42)))/((1-F42) * (G42/100) * (1-I42) + F42))))) -> 0 | AB42: 0 | AC42: 0 | AD42: 0 | AE42: 0 | AG42: 510484.6726 | AH42: 0 | AI42: 511661.1432 | AJ42: 1176.470588 | AK42: 294.1176471 | AL42: 882.3529412 | AM42: 705.8823529 | AN42: 1000
A43: 67 | B43: 2017-02-14 | C43: 23 | D43: 1000 | E43: 0 | F43: 0.25 | G43: =IF($C$9="Y", 100, VLOOKUP(A43,GAD!$A$2:$AH$64, VLOOKUP(H43, GAD!$AK$2:$AL$34, 2, FALSE), FALSE)/10*$C$7) -> 100 | H43: 0.0325 | I43: 0.2 | J43: 0.05 | K43: 0.01 | M43: 512155.8665 | N43: 0 | O43: 512155.8665 | P43: 0 | Q43: =IF($C$9="Y", MAX(0, D43/((1-F43) * (G43/100) * (1-I43) + F43)), IF(MAX(0, ((D43-((N43*(G43/100)-SUM(S33:S42))*(1-I43)))/((1-F43) * (G43/100) * (1-I43) + F43)))>(D43/F43), D43/F43, MAX(0, ((D43-((N43*(G43/100)-SUM(S33:S42))*(1-I43)))/((1-F43) * (G43/100) * (1-I43) + F43))))) -> 1176.470588 | R43: 294.1176471 | S43: =IF($C$9="Y", MAX(0, (Q43+N43-R43)*(G43/100)), (MIN(D43/(1-I43), MAX(0, (Q43+N43-R43)*(G43/100)-SUM(S33:S42))))) -> 882.3529412 | T43: 705.8823529 | U43: 1000 | W43: 0 | X43: 0 | Y43: 0 | Z43: 0 | AA43: =IF($C$9="Y", MAX(0, E43/((1-F43) * (G43/100) * (1-I43) + F43)), IF(MAX(0, ((E43-((X43*(G43/100)-SUM($AC$33:AC42))*(1-I43)))/((1-F43) * (G43/100) * (1-I43) + F43)))>(E43/F43), E43/F43, MAX(0, ((E43-((X43*(G43/100)-SUM($AC$33:AC42))*(1-I43)))/((1-F43) * (G43/100) * (1-I43) + F43))))) -> 0 | AB43: 0 | AC43: 0 | AD43: 0 | AE43: 0 | AG43: 510979.396 | AH43: 0 | AI43: 512155.8665 | AJ43: 1176.470588 | AK43: 294.1176471 | AL43: 882.3529412 | AM43: 705.8823529 | AN43: 1000
A44: 67 | B44: 2017-03-14 | C44: 24 | D44: 1000 | E44: 0 | F44: 0.25 | G44: =IF($C$9="Y", 100, VLOOKUP(A44,GAD!$A$2:$AH$64, VLOOKUP(H44, GAD!$AK$2:$AL$34, 2, FALSE), FALSE)/10*$C$7) -> 100 | H44: 0.0325 | I44: 0.2 | J44: 0.05 | K44: 0.01 | M44: 512652.2095 | N44: 0 | O44: 512652.2095 | P44: 0 | Q44: =IF($C$9="Y", MAX(0, D44/((1-F44) * (G44/100) * (1-I44) + F44)), IF(MAX(0, ((D44-((N44*(G44/100)-SUM(S33:S43))*(1-I44)))/((1-F44) * (G44/100) * (1-I44) + F44)))>(D44/F44), D44/F44, MAX(0, ((D44-((N44*(G44/100)-SUM(S33:S43))*(1-I44)))/((1-F44) * (G44/100) * (1-I44) + F44))))) -> 1176.470588 | R44: 294.1176471 | S44: =IF($C$9="Y", MAX(0, (Q44+N44-R44)*(G44/100)), (MIN(D44/(1-I44), MAX(0, (Q44+N44-R44)*(G44/100)-SUM(S33:S43))))) -> 882.3529412 | T44: 705.8823529 | U44: 1000 | W44: 0 | X44: 0 | Y44: 0 | Z44: 0 | AA44: =IF($C$9="Y", MAX(0, E44/((1-F44) * (G44/100) * (1-I44) + F44)), IF(MAX(0, ((E44-((X44*(G44/100)-SUM($AC$33:AC43))*(1-I44)))/((1-F44) * (G44/100) * (1-I44) + F44)))>(E44/F44), E44/F44, MAX(0, ((E44-((X44*(G44/100)-SUM($AC$33:AC43))*(1-I44)))/((1-F44) * (G44/100) * (1-I44) + F44))))) -> 0 | AB44: 0 | AC44: 0 | AD44: 0 | AE44: 0 | AG44: 511475.7389 | AH44: 0 | AI44: 512652.2095 | AJ44: 1176.470588 | AK44: 294.1176471 | AL44: 882.3529412 | AM44: 705.8823529 | AN44: 1000
A45: 67 | B45: =EDATE(B44, 1) -> 2017-04-14 | C45: 25 | D45: 1000 | E45: 0 | F45: 0.25 | G45: =IF($C$9="Y", 100, VLOOKUP(A45,GAD!$A$2:$AH$64, VLOOKUP(H45, GAD!$AK$2:$AL$34, 2, FALSE), FALSE)/10*$C$7) -> 100 | H45: 0.0325 | I45: 0.2 | J45: 0.05 | K45: 0.01 | M45: 513150.1774 | N45: 0 | O45: 513150.1774 | P45: =IF(N45*(G45/100)*(1-I45)>D45, P44, N45*(G45/100)*(1-I45)) -> 0 | Q45: =IF($C$9="Y", MAX(0, D44/((1-F44) * (G44/100) * (1-I44) + F44)), IF(P45>(D45/(1-I45)), 0, ((D45-((N45*(G45/100)-SUM(S33:S44))*(1-I45)))/((1-F45) * (G45/100) * (1-I45) + F45)))) -> 1176.470588 | R45: 294.1176471 | S45: =IF($C$9="Y", (Q45+N45-R45)*(G45/100), IF(Q45=0, D45/(1-I45), (Q45+N45-R45)*(G45/100)-SUM(S33:S44))) -> 882.3529412 | T45: 705.8823529 | U45: 1000 | W45: =IF($C45<$C$15,0,IF($C45=$C$15,$C$13*((1+J45-K45)^(1/12)),IF($C45>$C$15,(W44-AA44)*((1+J45-K45)^(1/12))))) -> 0 | X45: =IF($C45<$C$15,0,IF($C45=$C$15,$C$14*((1+J45-K45)^(1/12)),IF($C45>$C$15,(X44+AA44-AB44-AC44)*((1+J45-K45)^(1/12))))) -> 0 | Y45: =W45+X45 -> 0 | Z45: =IF(X45*(G45/100)*(1-I45)>D45, Z44, X45*(G45/100)*(1-I45)) -> 0 | AA45: =IF($C$9="Y", MAX(0, E44/((1-F44) * (G44/100) * (1-I44) + F44)), IF(Z45>(E45/(1-I45)), 0, ((E45-((X45*(G45/100)-SUM(AC33:AC44))*(1-I45)))/((1-F45) * (G45/100) * (1-I45) + F45)))) -> 0 | AB45: =AA45*F45 -> 0 | AC45: =IF($C$9="Y", (AA45+X45-AB45)*(G45/100), IF(AA45=0, E45/(1-I45), (AA45+X45-AB45)*(G45/100)-SUM(AC33:AC44))) -> 0 | AD45: =AC45*(1-I45) -> 0 | AE45: =AB45+AD45 -> 0 | AG45: 511973.7068 | AH45: 0 | AI45: 513150.1774 | AJ45: 1176.470588 | AK45: 294.1176471 | AL45: 882.3529412 | AM45: 705.8823529 | AN45: 1000
A46: 67 | B46: =EDATE(B45, 1) -> 2017-05-14 | C46: 26 | D46: 1000 | E46: 0 | F46: 0.25 | G46: =IF($C$9="Y", 100, VLOOKUP(A46,GAD!$A$2:$AH$64, VLOOKUP(H46, GAD!$AK$2:$AL$34, 2, FALSE), FALSE)/10*$C$7) -> 100 | H46: 0.0325 | I46: 0.2 | J46: 0.05 | K46: 0.01 | M46: 513649.7755 | N46: 0 | O46: 513649.7755 | P46: =IF(Q46=0, P45, N46*(G46/100)*(1-I46)) -> 0 | Q46: =IF($C$9="Y", MAX(0, D46/((1-F46) * (G46/100) * (1-I46) + F46)), IF(MAX(0, ((D46-((N46*(G46/100)-SUM(S45:S45))*(1-I46)))/((1-F46) * (G46/100) * (1-I46) + F46)))>(D46/F46), D46/F46, MAX(0, ((D46-((N46*(G46/100)-SUM(S45:S45))*(1-I46)))/((1-F46) * (G46/100) * (1-I46) + F46))))) -> 1176.470588 | R46: 294.1176471 | S46: =IF($C$9="Y", MAX(0, (Q46+N46-R46)*(G46/100)), (MIN(D46/(1-I46), MAX(0, (Q46+N46-R46)*(G46/100)-SUM(S45:S45))))) -> 882.3529412 | T46: 705.8823529 | U46: 1000 | W46: 0 | X46: 0 | Y46: 0 | Z46: =IF(AA46=0, Z45, X46*(G46/100)*(1-I46)) -> 0 | AA46: =IF($C$9="Y", MAX(0, E46/((1-F46) * (G46/100) * (1-I46) + F46)), IF(MAX(0, ((E46-((X46*(G46/100)-SUM($AC$45:AC45))*(1-I46)))/((1-F46) * (G46/100) * (1-I46) + F46)))>(E46/F46), E46/F46, MAX(0, ((E46-((X46*(G46/100)-SUM($AC$45:AC45))*(1-I46)))/((1-F46) * (G46/100) * (1-I46) + F46))))) -> 0 | AB46: =AA46*F46 -> 0 | AC46: =IF($C$9="Y", MAX(0, (AA46+X46-AB46)*(G46/100)), (MIN(E46/(1-I46), MAX(0, (AA46+X46-AB46)*(G46/100)-SUM($AC$45:AC45))))) -> 0 | AD46: =AC46*(1-I46) -> 0 | AE46: =AB46+AD46 -> 0 | AG46: 512473.3049 | AH46: 0 | AI46: 513649.7755 | AJ46: 1176.470588 | AK46: 294.1176471 | AL46: 882.3529412 | AM46: 705.8823529 | AN46: 1000
A47: 67 | B47: =EDATE(B46, 1) -> 2017-06-14 | C47: 27 | D47: 1000 | E47: 0 | F47: 0.25 | G47: =IF($C$9="Y", 100, VLOOKUP(A47,GAD!$A$2:$AH$64, VLOOKUP(H47, GAD!$AK$2:$AL$34, 2, FALSE), FALSE)/10*$C$7) -> 100 | H47: 0.0325 | I47: 0.2 | J47: 0.05 | K47: 0.01 | M47: 514151.0092 | N47: 0 | O47: 514151.0092 | P47: 0 | Q47: =IF($C$9="Y", MAX(0, D47/((1-F47) * (G47/100) * (1-I47) + F47)), IF(MAX(0, ((D47-((N47*(G47/100)-SUM(S45:S46))*(1-I47)))/((1-F47) * (G47/100) * (1-I47) + F47)))>(D47/F47), D47/F47, MAX(0, ((D47-((N47*(G47/100)-SUM(S45:S46))*(1-I47)))/((1-F47) * (G47/100) * (1-I47) + F47))))) -> 1176.470588 | R47: 294.1176471 | S47: =IF($C$9="Y", MAX(0, (Q47+N47-R47)*(G47/100)), (MIN(D47/(1-I47), MAX(0, (Q47+N47-R47)*(G47/100)-SUM(S45:S46))))) -> 882.3529412 | T47: 705.8823529 | U47: 1000 | W47: 0 | X47: 0 | Y47: 0 | Z47: 0 | AA47: =IF($C$9="Y", MAX(0, E47/((1-F47) * (G47/100) * (1-I47) + F47)), IF(MAX(0, ((E47-((X47*(G47/100)-SUM($AC$45:AC46))*(1-I47)))/((1-F47) * (G47/100) * (1-I47) + F47)))>(E47/F47), E47/F47, MAX(0, ((E47-((X47*(G47/100)-SUM($AC$45:AC46))*(1-I47)))/((1-F47) * (G47/100) * (1-I47) + F47))))) -> 0 | AB47: =AA47*F47 -> 0 | AC47: =IF($C$9="Y", MAX(0, (AA47+X47-AB47)*(G47/100)), (MIN(E47/(1-I47), MAX(0, (AA47+X47-AB47)*(G47/100)-SUM($AC$45:AC46))))) -> 0 | AD47: =AC47*(1-I47) -> 0 | AE47: =AB47+AD47 -> 0 | AG47: 512974.5386 | AH47: 0 | AI47: 514151.0092 | AJ47: 1176.470588 | AK47: 294.1176471 | AL47: 882.3529412 | AM47: 705.8823529 | AN47: 1000
A48: 67 | B48: =EDATE(B47, 1) -> 2017-07-14 | C48: 28 | D48: 1000 | E48: 0 | F48: 0.25 | G48: =IF($C$9="Y", 100, VLOOKUP(A48,GAD!$A$2:$AH$64, VLOOKUP(H48, GAD!$AK$2:$AL$34, 2, FALSE), FALSE)/10*$C$7) -> 100 | H48: 0.0325 | I48: 0.2 | J48: 0.05 | K48: 0.01 | M48: 514653.8837 | N48: 0 | O48: =M48+N48 -> 514653.8837 | P48: 0 | Q48: =IF($C$9="Y", MAX(0, D48/((1-F48) * (G48/100) * (1-I48) + F48)), IF(MAX(0, ((D48-((N48*(G48/100)-SUM(S45:S47))*(1-I48)))/((1-F48) * (G48/100) * (1-I48) + F48)))>(D48/F48), D48/F48, MAX(0, ((D48-((N48*(G48/100)-SUM(S45:S47))*(1-I48)))/((1-F48) * (G48/100) * (1-I48) + F48))))) -> 1176.470588 | R48: 294.1176471 | S48: =IF($C$9="Y", MAX(0, (Q48+N48-R48)*(G48/100)), (MIN(D48/(1-I48), MAX(0, (Q48+N48-R48)*(G48/100)-SUM(S45:S47))))) -> 882.3529412 | T48: 705.8823529 | U48: 1000 | W48: 0 | X48: 0 | Y48: 0 | Z48: 0 | AA48: =IF($C$9="Y", MAX(0, E48/((1-F48) * (G48/100) * (1-I48) + F48)), IF(MAX(0, ((E48-((X48*(G48/100)-SUM($AC$45:AC47))*(1-I48)))/((1-F48) * (G48/100) * (1-I48) + F48)))>(E48/F48), E48/F48, MAX(0, ((E48-((X48*(G48/100)-SUM($AC$45:AC47))*(1-I48)))/((1-F48) * (G48/100) * (1-I48) + F48))))) -> 0 | AB48: =AA48*F48 -> 0 | AC48: =IF($C$9="Y", MAX(0, (AA48+X48-AB48)*(G48/100)), (MIN(E48/(1-I48), MAX(0, (AA48+X48-AB48)*(G48/100)-SUM($AC$45:AC47))))) -> 0 | AD48: =AC48*(1-I48) -> 0 | AE48: =AB48+AD48 -> 0 | AG48: 513477.4132 | AH48: 0 | AI48: 514653.8837 | AJ48: 1176.470588 | AK48: 294.1176471 | AL48: 882.3529412 | AM48: 705.8823529 | AN48: 1000
A49: 67 | B49: 2017-08-14 | C49: 29 | D49: 1000 | E49: 0 | F49: 0.25 | G49: =IF($C$9="Y", 100, VLOOKUP(A49,GAD!$A$2:$AH$64, VLOOKUP(H49, GAD!$AK$2:$AL$34, 2, FALSE), FALSE)/10*$C$7) -> 100 | H49: 0.0325 | I49: 0.2 | J49: 0.05 | K49: 0.01 | M49: 515158.4046 | N49: 0 | O49: =M49+N49 -> 515158.4046 | P49: 0 | Q49: =IF($C$9="Y", MAX(0, D49/((1-F49) * (G49/100) * (1-I49) + F49)), IF(MAX(0, ((D49-((N49*(G49/100)-SUM(S45:S48))*(1-I49)))/((1-F49) * (G49/100) * (1-I49) + F49)))>(D49/F49), D49/F49, MAX(0, ((D49-((N49*(G49/100)-SUM(S45:S48))*(1-I49)))/((1-F49) * (G49/100) * (1-I49) + F49))))) -> 1176.470588 | R49: 294.1176471 | S49: =IF($C$9="Y", MAX(0, (Q49+N49-R49)*(G49/100)), (MIN(D49/(1-I49), MAX(0, (Q49+N49-R49)*(G49/100)-SUM(S45:S48))))) -> 882.3529412 | T49: 705.8823529 | U49: 1000 | W49: 0 | X49: 0 | Y49: 0 | Z49: 0 | AA49: =IF($C$9="Y", MAX(0, E49/((1-F49) * (G49/100) * (1-I49) + F49)), IF(MAX(0, ((E49-((X49*(G49/100)-SUM($AC$45:AC48))*(1-I49)))/((1-F49) * (G49/100) * (1-I49) + F49)))>(E49/F49), E49/F49, MAX(0, ((E49-((X49*(G49/100)-SUM($AC$45:AC48))*(1-I49)))/((1-F49) * (G49/100) * (1-I49) + F49))))) -> 0 | AB49: =AA49*F49 -> 0 | AC49: =IF($C$9="Y", MAX(0, (AA49+X49-AB49)*(G49/100)), (MIN(E49/(1-I49), MAX(0, (AA49+X49-AB49)*(G49/100)-SUM($AC$45:AC48))))) -> 0 | AD49: =AC49*(1-I49) -> 0 | AE49: 0 | AG49: 513981.934 | AH49: 0 | AI49: 515158.4046 | AJ49: 1176.470588 | AK49: 294.1176471 | AL49: 882.3529412 | AM49: 705.8823529 | AN49: 1000
A50: 67 | B50: 2017-09-14 | C50: 30 | D50: 1000 | E50: 0 | F50: 0.25 | G50: =IF($C$9="Y", 100, VLOOKUP(A50,GAD!$A$2:$AH$64, VLOOKUP(H50, GAD!$AK$2:$AL$34, 2, FALSE), FALSE)/10*$C$7) -> 100 | H50: 0.0325 | I50: 0.2 | J50: 0.05 | K50: 0.01 | M50: 515664.5771 | N50: 0 | O50: =M50+N50 -> 515664.5771 | P50: 0 | Q50: =IF($C$9="Y", MAX(0, D50/((1-F50) * (G50/100) * (1-I50) + F50)), IF(MAX(0, ((D50-((N50*(G50/100)-SUM(S45:S49))*(1-I50)))/((1-F50) * (G50/100) * (1-I50) + F50)))>(D50/F50), D50/F50, MAX(0, ((D50-((N50*(G50/100)-SUM(S45:S49))*(1-I50)))/((1-F50) * (G50/100) * (1-I50) + F50))))) -> 1176.470588 | R50: 294.1176471 | S50: =IF($C$9="Y", MAX(0, (Q50+N50-R50)*(G50/100)), (MIN(D50/(1-I50), MAX(0, (Q50+N50-R50)*(G50/100)-SUM(S45:S49))))) -> 882.3529412 | T50: 705.8823529 | U50: 1000 | W50: 0 | X50: 0 | Y50: 0 | Z50: 0 | AA50: =IF($C$9="Y", MAX(0, E50/((1-F50) * (G50/100) * (1-I50) + F50)), IF(MAX(0, ((E50-((X50*(G50/100)-SUM($AC$45:AC49))*(1-I50)))/((1-F50) * (G50/100) * (1-I50) + F50)))>(E50/F50), E50/F50, MAX(0, ((E50-((X50*(G50/100)-SUM($AC$45:AC49))*(1-I50)))/((1-F50) * (G50/100) * (1-I50) + F50))))) -> 0 | AB50: =AA50*F50 -> 0 | AC50: =IF($C$9="Y", MAX(0, (AA50+X50-AB50)*(G50/100)), (MIN(E50/(1-I50), MAX(0, (AA50+X50-AB50)*(G50/100)-SUM($AC$45:AC49))))) -> 0 | AD50: =AC50*(1-I50) -> 0 | AE50: 0 | AG50: 514488.1065 | AH50: 0 | AI50: 515664.5771 | AJ50: 1176.470588 | AK50: 294.1176471 | AL50: 882.3529412 | AM50: 705.8823529 | AN50: 1000
A51: 67 | B51: 2017-10-14 | C51: 31 | D51: 1000 | E51: 0 | F51: 0.25 | G51: =IF($C$9="Y", 100, VLOOKUP(A51,GAD!$A$2:$AH$64, VLOOKUP(H51, GAD!$AK$2:$AL$34, 2, FALSE), FALSE)/10*$C$7) -> 100 | H51: 0.0325 | I51: 0.2 | J51: 0.05 | K51: 0.01 | M51: 516172.4067 | N51: 0 | O51: =M51+N51 -> 516172.4067 | P51: 0 | Q51: =IF($C$9="Y", MAX(0, D51/((1-F51) * (G51/100) * (1-I51) + F51)), IF(MAX(0, ((D51-((N51*(G51/100)-SUM(S45:S50))*(1-I51)))/((1-F51) * (G51/100) * (1-I51) + F51)))>(D51/F51), D51/F51, MAX(0, ((D51-((N51*(G51/100)-SUM(S45:S50))*(1-I51)))/((1-F51) * (G51/100) * (1-I51) + F51))))) -> 1176.470588 | R51: 294.1176471 | S51: =IF($C$9="Y", MAX(0, (Q51+N51-R51)*(G51/100)), (MIN(D51/(1-I51), MAX(0, (Q51+N51-R51)*(G51/100)-SUM(S45:S50))))) -> 882.3529412 | T51: 705.8823529 | U51: 1000 | W51: 0 | X51: 0 | Y51: 0 | Z51: 0 | AA51: =IF($C$9="Y", MAX(0, E51/((1-F51) * (G51/100) * (1-I51) + F51)), IF(MAX(0, ((E51-((X51*(G51/100)-SUM($AC$45:AC50))*(1-I51)))/((1-F51) * (G51/100) * (1-I51) + F51)))>(E51/F51), E51/F51, MAX(0, ((E51-((X51*(G51/100)-SUM($AC$45:AC50))*(1-I51)))/((1-F51) * (G51/100) * (1-I51) + F51))))) -> 0 | AB51: 0 | AC51: =IF($C$9="Y", MAX(0, (AA51+X51-AB51)*(G51/100)), (MIN(E51/(1-I51), MAX(0, (AA51+X51-AB51)*(G51/100)-SUM($AC$45:AC50))))) -> 0 | AD51: =AC51*(1-I51) -> 0 | AE51: 0 | AG51: 514995.9361 | AH51: 0 | AI51: 516172.4067 | AJ51: 1176.470588 | AK51: 294.1176471 | AL51: 882.3529412 | AM51: 705.8823529 | AN51: 1000
A52: 67 | B52: 2017-11-14 | C52: 32 | D52: 1000 | E52: 0 | F52: 0.25 | G52: =IF($C$9="Y", 100, VLOOKUP(A52,GAD!$A$2:$AH$64, VLOOKUP(H52, GAD!$AK$2:$AL$34, 2, FALSE), FALSE)/10*$C$7) -> 100 | H52: 0.0325 | I52: 0.2 | J52: 0.05 | K52: 0.01 | M52: 516681.8988 | N52: 0 | O52: =M52+N52 -> 516681.8988 | P52: 0 | Q52: =IF($C$9="Y", MAX(0, D52/((1-F52) * (G52/100) * (1-I52) + F52)), IF(MAX(0, ((D52-((N52*(G52/100)-SUM(S45:S51))*(1-I52)))/((1-F52) * (G52/100) * (1-I52) + F52)))>(D52/F52), D52/F52, MAX(0, ((D52-((N52*(G52/100)-SUM(S45:S51))*(1-I52)))/((1-F52) * (G52/100) * (1-I52) + F52))))) -> 1176.470588 | R52: 294.1176471 | S52: =IF($C$9="Y", MAX(0, (Q52+N52-R52)*(G52/100)), (MIN(D52/(1-I52), MAX(0, (Q52+N52-R52)*(G52/100)-SUM(S45:S51))))) -> 882.3529412 | T52: 705.8823529 | U52: 1000 | W52: 0 | X52: 0 | Y52: 0 | Z52: 0 | AA52: =IF($C$9="Y", MAX(0, E52/((1-F52) * (G52/100) * (1-I52) + F52)), IF(MAX(0, ((E52-((X52*(G52/100)-SUM($AC$45:AC51))*(1-I52)))/((1-F52) * (G52/100) * (1-I52) + F52)))>(E52/F52), E52/F52, MAX(0, ((E52-((X52*(G52/100)-SUM($AC$45:AC51))*(1-I52)))/((1-F52) * (G52/100) * (1-I52) + F52))))) -> 0 | AB52: 0 | AC52: =IF($C$9="Y", MAX(0, (AA52+X52-AB52)*(G52/100)), (MIN(E52/(1-I52), MAX(0, (AA52+X52-AB52)*(G52/100)-SUM($AC$45:AC51))))) -> 0 | AD52: 0 | AE52: 0 | AG52: 515505.4282 | AH52: 0 | AI52: 516681.8988 | AJ52: 1176.470588 | AK52: 294.1176471 | AL52: 882.3529412 | AM52: 705.8823529 | AN52: 1000
A53: 67 | B53: 2017-12-14 | C53: 33 | D53: 1000 | E53: 0 | F53: 0.25 | G53: =IF($C$9="Y", 100, VLOOKUP(A53,GAD!$A$2:$AH$64, VLOOKUP(H53, GAD!$AK$2:$AL$34, 2, FALSE), FALSE)/10*$C$7) -> 100 | H53: 0.0325 | I53: 0.2 | J53: 0.05 | K53: 0.01 | M53: 517193.0588 | N53: 0 | O53: 517193.0588 | P53: 0 | Q53: =IF($C$9="Y", MAX(0, D53/((1-F53) * (G53/100) * (1-I53) + F53)), IF(MAX(0, ((D53-((N53*(G53/100)-SUM(S45:S52))*(1-I53)))/((1-F53) * (G53/100) * (1-I53) + F53)))>(D53/F53), D53/F53, MAX(0, ((D53-((N53*(G53/100)-SUM(S45:S52))*(1-I53)))/((1-F53) * (G53/100) * (1-I53) + F53))))) -> 1176.470588 | R53: 294.1176471 | S53: =IF($C$9="Y", MAX(0, (Q53+N53-R53)*(G53/100)), (MIN(D53/(1-I53), MAX(0, (Q53+N53-R53)*(G53/100)-SUM(S45:S52))))) -> 882.3529412 | T53: 705.8823529 | U53: 1000 | W53: 0 | X53: 0 | Y53: 0 | Z53: =IF(AA53=0, Z52, X53*(G53/100)*(1-I53)) -> 0 | AA53: =IF($C$9="Y", MAX(0, E53/((1-F53) * (G53/100) * (1-I53) + F53)), IF(MAX(0, ((E53-((X53*(G53/100)-SUM($AC$45:AC52))*(1-I53)))/((1-F53) * (G53/100) * (1-I53) + F53)))>(E53/F53), E53/F53, MAX(0, ((E53-((X53*(G53/100)-SUM($AC$45:AC52))*(1-I53)))/((1-F53) * (G53/100) * (1-I53) + F53))))) -> 0 | AB53: 0 | AC53: =IF($C$9="Y", MAX(0, (AA53+X53-AB53)*(G53/100)), (MIN(E53/(1-I53), MAX(0, (AA53+X53-AB53)*(G53/100)-SUM($AC$45:AC52))))) -> 0 | AD53: 0 | AE53: 0 | AG53: 516016.5882 | AH53: 0 | AI53: 517193.0588 | AJ53: 1176.470588 | AK53: 294.1176471 | AL53: 882.3529412 | AM53: 705.8823529 | AN53: 1000
A54: 68 | B54: 2018-01-14 | C54: 34 | D54: 1000 | E54: 0 | F54: 0.25 | G54: =IF($C$9="Y", 100, VLOOKUP(A54,GAD!$A$2:$AH$64, VLOOKUP(H54, GAD!$AK$2:$AL$34, 2, FALSE), FALSE)/10*$C$7) -> 100 | H54: 0.0325 | I54: 0.2 | J54: 0.05 | K54: 0.01 | M54: 517705.8923 | N54: 0 | O54: 517705.8923 | P54: 0 | Q54: =IF($C$9="Y", MAX(0, D54/((1-F54) * (G54/100) * (1-I54) + F54)), IF(MAX(0, ((D54-((N54*(G54/100)-SUM(S45:S53))*(1-I54)))/((1-F54) * (G54/100) * (1-I54) + F54)))>(D54/F54), D54/F54, MAX(0, ((D54-((N54*(G54/100)-SUM(S45:S53))*(1-I54)))/((1-F54) * (G54/100) * (1-I54) + F54))))) -> 1176.470588 | R54: 294.1176471 | S54: =IF($C$9="Y", MAX(0, (Q54+N54-R54)*(G54/100)), (MIN(D54/(1-I54), MAX(0, (Q54+N54-R54)*(G54/100)-SUM(S45:S53))))) -> 882.3529412 | T54: 705.8823529 | U54: 1000 | W54: 0 | X54: 0 | Y54: 0 | Z54: 0 | AA54: =IF($C$9="Y", MAX(0, E54/((1-F54) * (G54/100) * (1-I54) + F54)), IF(MAX(0, ((E54-((X54*(G54/100)-SUM($AC$45:AC53))*(1-I54)))/((1-F54) * (G54/100) * (1-I54) + F54)))>(E54/F54), E54/F54, MAX(0, ((E54-((X54*(G54/100)-SUM($AC$45:AC53))*(1-I54)))/((1-F54) * (G54/100) * (1-I54) + F54))))) -> 0 | AB54: 0 | AC54: =IF($C$9="Y", MAX(0, (AA54+X54-AB54)*(G54/100)), (MIN(E54/(1-I54), MAX(0, (AA54+X54-AB54)*(G54/100)-SUM($AC$45:AC53))))) -> 0 | AD54: 0 | AE54: 0 | AG54: 516529.4217 | AH54: 0 | AI54: 517705.8923 | AJ54: 1176.470588 | AK54: 294.1176471 | AL54: 882.3529412 | AM54: 705.8823529 | AN54: 1000
A55: 68 | B55: 2018-02-14 | C55: 35 | D55: =D54 -> 1000 | E55: 0 | F55: 0.25 | G55: =IF($C$9="Y", 100, VLOOKUP(A55,GAD!$A$2:$AH$64, VLOOKUP(H55, GAD!$AK$2:$AL$34, 2, FALSE), FALSE)/10*$C$7) -> 100 | H55: 0.0325 | I55: =I54 -> 0.2 | J55: 0.05 | K55: 0.01 | M55: 518220.4046 | N55: 0 | O55: 518220.4046 | P55: 0 | Q55: =IF($C$9="Y", MAX(0, D55/((1-F55) * (G55/100) * (1-I55) + F55)), IF(MAX(0, ((D55-((N55*(G55/100)-SUM(S45:S54))*(1-I55)))/((1-F55) * (G55/100) * (1-I55) + F55)))>(D55/F55), D55/F55, MAX(0, ((D55-((N55*(G55/100)-SUM(S45:S54))*(1-I55)))/((1-F55) * (G55/100) * (1-I55) + F55))))) -> 1176.470588 | R55: 294.1176471 | S55: =IF($C$9="Y", MAX(0, (Q55+N55-R55)*(G55/100)), (MIN(D55/(1-I55), MAX(0, (Q55+N55-R55)*(G55/100)-SUM(S45:S54))))) -> 882.3529412 | T55: 705.8823529 | U55: 1000 | W55: 0 | X55: 0 | Y55: 0 | Z55: 0 | AA55: =IF($C$9="Y", MAX(0, E55/((1-F55) * (G55/100) * (1-I55) + F55)), IF(MAX(0, ((E55-((X55*(G55/100)-SUM($AC$45:AC54))*(1-I55)))/((1-F55) * (G55/100) * (1-I55) + F55)))>(E55/F55), E55/F55, MAX(0, ((E55-((X55*(G55/100)-SUM($AC$45:AC54))*(1-I55)))/((1-F55) * (G55/100) * (1-I55) + F55))))) -> 0 | AB55: 0 | AC55: =IF($C$9="Y", MAX(0, (AA55+X55-AB55)*(G55/100)), (MIN(E55/(1-I55), MAX(0, (AA55+X55-AB55)*(G55/100)-SUM($AC$45:AC54))))) -> 0 | AD55: 0 | AE55: 0 | AG55: 517043.934 | AH55: 0 | AI55: 518220.4046 | AJ55: 1176.470588 | AK55: 294.1176471 | AL55: 882.3529412 | AM55: 705.8823529 | AN55: 1000
A56: 68 | B56: 2018-03-14 | C56: 36 | D56: 1000 | E56: 0 | F56: 0.25 | G56: =IF($C$9="Y", 100, VLOOKUP(A56,GAD!$A$2:$AH$64, VLOOKUP(H56, GAD!$AK$2:$AL$34, 2, FALSE), FALSE)/10*$C$7) -> 100 | H56: 0.0325 | I56: 0.2 | J56: 0.05 | K56: 0.01 | M56: 518736.6013 | N56: 0 | O56: 518736.6013 | P56: 0 | Q56: =IF($C$9="Y", MAX(0, D56/((1-F56) * (G56/100) * (1-I56) + F56)), IF(MAX(0, ((D56-((N56*(G56/100)-SUM(S45:S55))*(1-I56)))/((1-F56) * (G56/100) * (1-I56) + F56)))>(D56/F56), D56/F56, MAX(0, ((D56-((N56*(G56/100)-SUM(S45:S55))*(1-I56)))/((1-F56) * (G56/100) * (1-I56) + F56))))) -> 1176.470588 | R56: 294.1176471 | S56: =IF($C$9="Y", MAX(0, (Q56+N56-R56)*(G56/100)), (MIN(D56/(1-I56), MAX(0, (Q56+N56-R56)*(G56/100)-SUM(S45:S55))))) -> 882.3529412 | T56: 705.8823529 | U56: 1000 | W56: 0 | X56: 0 | Y56: 0 | Z56: 0 | AA56: =IF($C$9="Y", MAX(0, E56/((1-F56) * (G56/100) * (1-I56) + F56)), IF(MAX(0, ((E56-((X56*(G56/100)-SUM($AC$45:AC55))*(1-I56)))/((1-F56) * (G56/100) * (1-I56) + F56)))>(E56/F56), E56/F56, MAX(0, ((E56-((X56*(G56/100)-SUM($AC$45:AC55))*(1-I56)))/((1-F56) * (G56/100) * (1-I56) + F56))))) -> 0 | AB56: 0 | AC56: =IF($C$9="Y", MAX(0, (AA56+X56-AB56)*(G56/100)), (MIN(E56/(1-I56), MAX(0, (AA56+X56-AB56)*(G56/100)-SUM($AC$45:AC55))))) -> 0 | AD56: 0 | AE56: 0 | AG56: 517560.1307 | AH56: 0 | AI56: 518736.6013 | AJ56: 1176.470588 | AK56: 294.1176471 | AL56: 882.3529412 | AM56: 705.8823529 | AN56: 1000

Sheet IR Calcs (hidden)
B2: Aviva Income Recycling
B4: Inputs | G4: Outputs
B5: Customer age | E5: 65 | G5: TFC taken | J5: =E8*E9 -> 31250 | K5: =E8*E9 -> 31250
B6: Start date | E6: 14/04/2015 | G6: Gross annual income | J6: 0 | K6: =E12 -> 6000
B7: Pre retirement fund | E7: 500000 | G7: Gross annual pension contributions | J7: 0 | K7: =E12 -> 6000
B8: Amount to be moved into drawdown | E8: 125000 | G8: Post retirement drawdown fund | J8: =calc_routine(E8-J5, 0, 0, E14*100, E16*100, E13-E5) -> 200718.8693 | K8: =calc_routine(E8-K5, 0, K7, E14*100, E16*100, E13-E5) -> 110504.971
B9: Tax free cash | E9: 0.25 | G9: Pre retirement fund at retirement | J9: =calc_routine(E7-E8, 0, 0, E14*100, E16*100, E13-E5) -> 802875.4771 | K9: =calc_routine(E7-E8, K7, 0, E14*100, E16*100, E13-E5) -> 893089.3754
B10: Gilt yield | E10: 0.0325 | G10: Total pre and post retirement funds | J10: =J8+J9 -> 1003594.346 | K10: =K8+K9 -> 1003594.346
B11: Initial maximum annual income | E11: 8578.125 | G11: Additional TFC at retirement | J11: =J9*E9 -> 200718.8693 | K11: =K9*E9 -> 223272.3439
B12: Income level required | E12: 6000
B13: Planned retirement age | E13: 75 | G13: Total TFC taken | J13: =J5+J11 -> 231968.8693 | K13: =K5+K11 -> 254522.3439
B14: Assumed growth before charges | E14: 0.09 | G14: Total fund to buy a pension | J14: =J8+J9-J11 -> 802875.4771 | K14: =K8+K9 -> 1003594.346
B15: Drawdown charges | E15: 0 | G15: Lump sum death benefit at retirement | J15: =(J8*0.45)+(J9) -> 893198.9683 | K15: =(K8*0.45)+(K9) -> 942816.6124
B16: Other charges | E16: 0.01
B19: Version 0.1 | K19: © Aviva UK Life

Sheet CYA Calcs (hidden)
B2: CURRENT (23/09/2016) | E2: FUTURE (23/09/2026)
G3: =I3*12 -> 120 | H3: 10 years | I3: 10 | J3: 72877.597 | K3: 0.009779497215
B4: Fund Value | C4: =Inputsnew!F6 -> 49733.33 | E4: =C15 -> -65669.21819 | G4: =DATEDIF(Inputsnew!F4, EDATE(Inputsnew!F3, Inputsnew!F16*12),"m") -> 153 | H4: ="At "&Inputsnew!F16 -> At 75 | I4: =Inputsnew!F16*1 -> 75 | J4: 76106.457 | K4: 0.005265765558
B5: Tax free cash | C5: 0 | E5: 0 | F5: TFC already paid
B7: To buy annuity | C7: =C4-C5 -> 49733.33 | E7: =E4-E5 -> -65669.21819 | H7: 10 years | I7: 120 | J7: 38969.9 | K7: 0.0311
H8: ="At "&Inputsnew!F20 -> At 0 | I8: 66 | J8: 46126.14
B9: Aviva Annuity | C9: =Inputsnew!F7 -> 11,499.96 | E9: 3665.4
B10: FCA Annuity | E10: 3544.02 | F10: calculated annuity at 23/09/2026
B12: Difference (%) | C12: =C10/C9-1 -> -1 | E12: =E10/E9-1 -> -0.03311507612
B15: Fund value after 10 years | C15: =VLOOKUP(120, $B$20:$F$139, 5, FALSE) -> -65669.21819
B16: (from below calculations)
C18: =Inputsnew!F25 -> 0 | D18: annuity income | E18: growth | F18: charges | G18: oac | H18: fv end
B19: month | C19: start | D19: =C9 -> 11,499.96 | E19: 0.005265765558 | F19: =Inputsnew!F15/100 -> 0.00019 | G19: =Inputsnew!F22/100 -> 0 | H19: =Inputsnew!F14/12 -> 0
B20: 1 | C20: =C7-C18 -> 49733.33 | D20: =$D$19/12 -> 958.33 | E20: =(C20-D20)*(1+$E$19)^(1/12) -> 48796.35166 | F20: =(E20)*(1-$F$19)^(1/12) -> 48795.57898 | G20: =F20*($G$19/12) -> 0 | H20: =F20-G20-$H$19 -> 48795.57898
B21: 2 | C21: =H20 -> 48795.57898 | D21: =$D$19/12 -> 958.33 | E21: 47858.19014 | F21: =(E21)*(1-$F$19)^(1/12) -> 47857.43232 | G21: =F21*($G$19/12) -> 0 | H21: =F21-G21-$H$19 -> 47857.43232
B22: 3 | C22: =H21 -> 47857.43232 | D22: =$D$19/12 -> 958.33 | E22: 46919.63279 | F22: 46918.88983 | G22: 0 | H22: 46918.88983
B23: 4 | C23: 46918.88983 | D23: =$D$19/12 -> 958.33 | E23: 45980.67944 | F23: 45979.95135 | G23: 0 | H23: 45979.95135
B24: 5 | C24: 45979.95135 | D24: 958.33 | E24: 45041.32994 | F24: 45040.61672 | G24: 0 | H24: 45040.61672 | L24: 120
B25: 6 | C25: 45040.61672 | D25: 958.33 | E25: 44101.58411 | F25: 44100.88577 | G25: 0 | H25: 44100.88577
B26: 7 | C26: 44100.88577 | D26: 958.33 | E26: 43161.44178 | F26: 43160.75833 | G26: 0 | H26: 43160.75833 | L26: =L24-10 -> 110 | N26: 88.31 | P26: 88.31
B27: 8 | C27: 43160.75833 | D27: 958.33 | E27: 42220.9028 | F27: 42220.23424 | G27: 0 | H27: 42220.23424
B28: 9 | C28: 42220.23424 | D28: 958.33 | E28: 41279.96698 | F28: 41279.31332 | G28: 0 | H28: 41279.31332 | N28: 3023.12
B29: 10 | C29: 41279.31332 | D29: 958.33 | E29: 40338.63417 | F29: 40337.99542 | G29: 0 | H29: 40337.99542 | N29: 7
B30: 11 | C30: 40337.99542 | D30: 958.33 | E30: 39396.90419 | F30: 39396.28035 | G30: 0 | H30: 39396.28035
B31: 12 | C31: 39396.28035 | D31: 958.33 | E31: 38454.77689 | F31: 38454.16796 | G31: 0 | H31: 38454.16796 | N31: 2.29
B32: 13 | C32: 38454.16796 | D32: 958.33 | E32: 37512.25208 | F32: 37511.65808 | G32: 0 | H32: 37511.65808
B33: 14 | C33: 37511.65808 | D33: 958.33 | E33: 36569.3296 | F33: 36568.75054 | G33: 0 | H33: 36568.75054 | N33: =N28+N31 -> 3025.41
B34: 15 | C34: 36568.75054 | D34: 958.33 | E34: 35626.0093 | F34: 35625.44517 | G34: 0 | H34: 35625.44517
B35: 16 | C35: 35625.44517 | D35: 958.33 | E35: 34682.29099 | F35: 34681.7418 | G35: 0 | H35: 34681.7418 | N35: =N33-N29 -> 3018.41
B36: 17 | C36: 34681.7418 | D36: 958.33 | E36: 33738.1745 | F36: 33737.64027 | G36: 0 | H36: 33737.64027
B37: 18 | C37: 33737.64027 | D37: 958.33 | E37: 32793.65968 | F37: 32793.14041 | G37: 0 | H37: 32793.14041 | N37: =3150-N35 -> 131.59
B38: 19 | C38: 32793.14041 | D38: 958.33 | E38: 31848.74636 | F38: 31848.24204 | G38: 0 | H38: 31848.24204
B39: 20 | C39: 31848.24204 | D39: 958.33 | E39: 30903.43436 | F39: 30902.94501 | G39: 0 | H39: 30902.94501 | N39: =N26+N37 -> 219.9
B40: 21 | C40: 30902.94501 | D40: 958.33 | E40: 29957.72351 | F40: 29957.24914 | G40: 0 | H40: 29957.24914
B41: 22 | C41: 29957.24914 | D41: 958.33 | E41: 29011.61366 | F41: 29011.15427 | G41: 0 | H41: 29011.15427
B42: 23 | C42: 29011.15427 | D42: 958.33 | E42: 28065.10462 | F42: 28064.66022 | G42: 0 | H42: 28064.66022
B43: 24 | C43: 28064.66022 | D43: 958.33 | E43: 27118.19624 | F43: 27117.76683 | G43: 0 | H43: 27117.76683
B44: 25 | C44: 27117.76683 | D44: 958.33 | E44: 26170.88834 | F44: 26170.47393 | G44: 0 | H44: 26170.47393
B45: 26 | C45: 26170.47393 | D45: 958.33 | E45: 25223.18076 | F45: 25222.78136 | G45: 0 | H45: 25222.78136
B46: 27 | C46: 25222.78136 | D46: 958.33 | E46: 24275.07332 | F46: 24274.68893 | G46: 0 | H46: 24274.68893
B47: 28 | C47: 24274.68893 | D47: 958.33 | E47: 23326.56586 | F47: 23326.19649 | G47: 0 | H47: 23326.19649
B48: 29 | C48: 23326.19649 | D48: 958.33 | E48: 22377.65821 | F48: 22377.30387 | G48: 0 | H48: 22377.30387
B49: 30 | C49: 22377.30387 | D49: 958.33 | E49: 21428.3502 | F49: 21428.01089 | G49: 0 | H49: 21428.01089
B50: 31 | C50: 21428.01089 | D50: 958.33 | E50: 20478.64166 | F50: 20478.31739 | G50: 0 | H50: 20478.31739
B51: 32 | C51: 20478.31739 | D51: 958.33 | E51: 19528.53242 | F51: 19528.22319 | G51: 0 | H51: 19528.22319
B52: 33 | C52: 19528.22319 | D52: 958.33 | E52: 18578.02232 | F52: 18577.72814 | G52: 0 | H52: 18577.72814
B53: 34 | C53: 18577.72814 | D53: 958.33 | E53: 17627.11118 | F53: 17626.83206 | G53: 0 | H53: 17626.83206
B54: 35 | C54: 17626.83206 | D54: 958.33 | E54: 16675.79883 | F54: 16675.53478 | G54: 0 | H54: 16675.53478
B55: 36 | C55: 16675.53478 | D55: 958.33 | E55: 15724.08511 | F55: 15723.83613 | G55: 0 | H55: 15723.83613
B56: 37 | C56: 15723.83613 | D56: 958.33 | E56: 14771.96985 | F56: 14771.73594 | G56: 0 | H56: 14771.73594
B57: 38 | C57: 14771.73594 | D57: 958.33 | E57: 13819.45287 | F57: 13819.23405 | G57: 0 | H57: 13819.23405
B58: 39 | C58: 13819.23405 | D58: 958.33 | E58: 12866.53401 | F58: 12866.33027 | G58: 0 | H58: 12866.33027
B59: 40 | C59: 12866.33027 | D59: 958.33 | E59: 11913.2131 | F59: 11913.02446 | G59: 0 | H59: 11913.02446
B60: 41 | C60: 11913.02446 | D60: 958.33 | E60: 10959.48997 | F60: 10959.31643 | G60: 0 | H60: 10959.31643
B61: 42 | C61: 10959.31643 | D61: 958.33 | E61: 10005.36444 | F61: 10005.20601 | G61: 0 | H61: 10005.20601
B62: 43 | C62: 10005.20601 | D62: 958.33 | E62: 9050.836354 | F62: 9050.693036 | G62: 0 | H62: 9050.693036
B63: 44 | C63: 9050.693036 | D63: 958.33 | E63: 8095.905535 | F63: 8095.777339 | G63: 0 | H63: 8095.777339
B64: 45 | C64: 8095.777339 | D64: 958.33 | E64: 7140.571815 | F64: 7140.458747 | G64: 0 | H64: 7140.458747
B65: 46 | C65: 7140.458747 | D65: 958.33 | E65: 6184.835025 | F65: 6184.73709 | G65: 0 | H65: 6184.73709
B66: 47 | C66: 6184.73709 | D66: 958.33 | E66: 5228.694993 | F66: 5228.612198 | G66: 0 | H66: 5228.612198
B67: 48 | C67: 5228.612198 | D67: 958.33 | E67: 4272.151549 | F67: 4272.083901 | G67: 0 | H67: 4272.083901
B68: 49 | C68: 4272.083901 | D68: 958.33 | E68: 3315.204524 | F68: 3315.152029 | G68: 0 | H68: 3315.152029
B69: 50 | C69: 3315.152029 | D69: 958.33 | E69: 2357.853747 | F69: 2357.816411 | G69: 0 | H69: 2357.816411
B70: 51 | C70: 2357.816411 | D70: 958.33 | E70: 1400.099048 | F70: 1400.076878 | G70: 0 | H70: 1400.076878
B71: 52 | C71: 1400.076878 | D71: 958.33 | E71: 441.940256 | F71: 441.933258 | G71: 0 | H71: 441.933258
B72: 53 | C72: 441.933258 | D72: 958.33 | E72: -516.6227989 | F72: -516.6146184 | G72: 0 | H72: -516.6146184
B73: 54 | C73: -516.6146184 | D73: 958.33 | E73: -1475.590288 | F73: -1475.566922 | G73: 0 | H73: -1475.566922
B74: 55 | C74: -1475.566922 | D74: 958.33 | E74: -2434.962381 | F74: -2434.923824 | G74: 0 | H74: -2434.923824
B75: 56 | C75: -2434.923824 | D75: 958.33 | E75: -3394.739249 | F75: -3394.685494 | G75: 0 | H75: -3394.685494
B76: 57 | C76: -3394.685494 | D76: 958.33 | E76: -4354.921062 | F76: -4354.852104 | G76: 0 | H76: -4354.852104
B77: 58 | C77: -4354.852104 | D77: 958.33 | E77: -5315.507993 | F77: -5315.423823 | G77: 0 | H77: -5315.423823
B78: 59 | C78: -5315.423823 | D78: 958.33 | E78: -6276.500211 | F78: -6276.400825 | G78: 0 | H78: -6276.400825
B79: 60 | C79: -6276.400825 | D79: 958.33 | E79: -7237.897888 | F79: -7237.783278 | G79: 0 | H79: -7237.783278
B80: 61 | C80: -7237.783278 | D80: 958.33 | E80: -8199.701194 | F80: -8199.571354 | G80: 0 | H80: -8199.571354
B81: 62 | C81: -8199.571354 | D81: 958.33 | E81: -9161.910301 | F81: -9161.765225 | G81: 0 | H81: -9161.765225
B82: 63 | C82: -9161.765225 | D82: 958.33 | E82: -10124.52538 | F82: -10124.36506 | G82: 0 | H82: -10124.36506
B83: 64 | C83: -10124.36506 | D83: 958.33 | E83: -11087.5466 | F83: -11087.37104 | G83: 0 | H83: -11087.37104
B84: 65 | C84: -11087.37104 | D84: 958.33 | E84: =(C84-D84)*(1+$E$19)^(1/12) -> -12050.97414 | F84: -12050.78332 | G84: 0 | H84: -12050.78332
B85: 66 | C85: -12050.78332 | D85: 958.33 | E85: -13014.80816 | F85: =(E85)*(1-$F$19)^(1/12) -> -13014.60208 | G85: =F85*($G$19/12) -> 0 | H85: =F85-G85-$H$19 -> -13014.60208
B86: 67 | C86: =H85 -> -13014.60208 | D86: 958.33 | E86: -13979.04884 | F86: -13978.82749 | G86: 0 | H86: -13978.82749
B87: 68 | C87: -13978.82749 | D87: =$D$19/12 -> 958.33 | E87: -14943.69636 | F87: -14943.45973 | G87: 0 | H87: -14943.45973
B88: 69 | C88: -14943.45973 | D88: 958.33 | E88: -15908.75087 | F88: -15908.49896 | G88: 0 | H88: -15908.49896
B89: 70 | C89: -15908.49896 | D89: 958.33 | E89: -16874.21255 | F89: -16873.94535 | G89: 0 | H89: -16873.94535
B90: 71 | C90: -16873.94535 | D90: 958.33 | E90: -17840.08158 | F90: -17839.79908 | G90: 0 | H90: -17839.79908
B91: 72 | C91: -17839.79908 | D91: 958.33 | E91: -18806.35812 | F91: -18806.06033 | G91: 0 | H91: -18806.06033
B92: 73 | C92: -18806.06033 | D92: 958.33 | E92: -19773.04235 | F92: -19772.72925 | G92: 0 | H92: -19772.72925
B93: 74 | C93: -19772.72925 | D93: 958.33 | E93: -20740.13445 | F93: -20739.80603 | G93: 0 | H93: -20739.80603
B94: 75 | C94: -20739.80603 | D94: 958.33 | E94: -21707.63457 | F94: -21707.29084 | G94: 0 | H94: -21707.29084
B95: 76 | C95: -21707.29084 | D95: 958.33 | E95: -22675.5429 | F95: -22675.18384 | G95: 0 | H95: -22675.18384
B96: 77 | C96: -22675.18384 | D96: 958.33 | E96: -23643.85961 | F96: -23643.48521 | G96: 0 | H96: -23643.48521
B97: 78 | C97: -23643.48521 | D97: 958.33 | E97: -24612.58486 | F97: -24612.19513 | G97: 0 | H97: -24612.19513
B98: 79 | C98: -24612.19513 | D98: 958.33 | E98: -25581.71884 | F98: -25581.31376 | G98: 0 | H98: -25581.31376
B99: 80 | C99: -25581.31376 | D99: 958.33 | E99: -26551.26171 | F99: -26550.84127 | G99: 0 | H99: -26550.84127
B100: 81 | C100: -26550.84127 | D100: 958.33 | E100: -27521.21364 | F100: -27520.77785 | G100: 0 | H100: -27520.77785
B101: 82 | C101: -27520.77785 | D101: 958.33 | E101: -28491.57482 | F101: -28491.12366 | G101: 0 | H101: -28491.12366
B102: 83 | C102: -28491.12366 | D102: 958.33 | E102: -29462.3454 | F102: -29461.87887 | G102: 0 | H102: -29461.87887
B103: 84 | C103: -29461.87887 | D103: 958.33 | E103: -30433.52557 | F103: -30433.04367 | G103: 0 | H103: -30433.04367
B104: 85 | C104: -30433.04367 | D104: 958.33 | E104: -31405.1155 | F104: -31404.61821 | G104: 0 | H104: -31404.61821
B105: 86 | C105: -31404.61821 | D105: 958.33 | E105: -32377.11536 | F105: -32376.60268 | G105: 0 | H105: -32376.60268
B106: 87 | C106: -32376.60268 | D106: 958.33 | E106: -33349.52532 | F106: -33348.99724 | G106: 0 | H106: -33348.99724
B107: 88 | C107: -33348.99724 | D107: 958.33 | E107: -34322.34555 | F107: -34321.80207 | G107: 0 | H107: -34321.80207
B108: 89 | C108: -34321.80207 | D108: 958.33 | E108: -35295.57624 | F108: -35295.01735 | G108: 0 | H108: -35295.01735
B109: 90 | C109: -35295.01735 | D109: 958.33 | E109: -36269.21755 | F109: -36268.64324 | G109: 0 | H109: -36268.64324
B110: 91 | C110: -36268.64324 | D110: 958.33 | E110: -37243.26965 | F110: -37242.67991 | G110: 0 | H110: -37242.67991
B111: 92 | C111: -37242.67991 | D111: 958.33 | E111: -38217.73272 | F111: -38217.12756 | G111: 0 | H111: -38217.12756
B112: 93 | C112: -38217.12756 | D112: 958.33 | E112: -39192.60694 | F112: -39191.98633 | G112: 0 | H112: -39191.98633
B113: 94 | C113: -39191.98633 | D113: 958.33 | E113: -40167.89247 | F113: -40167.25642 | G113: 0 | H113: -40167.25642
B114: 95 | C114: -40167.25642 | D114: 958.33 | E114: -41143.58949 | F114: -41142.93799 | G114: 0 | H114: -41142.93799
B115: 96 | C115: -41142.93799 | D115: 958.33 | E115: -42119.69817 | F115: -42119.03121 | G115: 0 | H115: -42119.03121
B116: 97 | C116: -42119.03121 | D116: 958.33 | E116: -43096.21869 | F116: -43095.53627 | G116: 0 | H116: -43095.53627
B117: 98 | C117: -43095.53627 | D117: 958.33 | E117: -44073.15121 | F117: -44072.45333 | G117: 0 | H117: -44072.45333
B118: 99 | C118: -44072.45333 | D118: 958.33 | E118: -45050.49593 | F118: -45049.78257 | G118: 0 | H118: -45049.78257
B119: 100 | C119: -45049.78257 | D119: 958.33 | E119: -46028.253 | F119: -46027.52415 | G119: 0 | H119: -46027.52415
B120: 101 | C120: -46027.52415 | D120: 958.33 | E120: -47006.4226 | F120: -47005.67827 | G120: 0 | H120: -47005.67827
B121: 102 | C121: -47005.67827 | D121: 958.33 | E121: -47985.00491 | F121: -47984.24508 | G121: 0 | H121: -47984.24508
B122: 103 | C122: -47984.24508 | D122: 958.33 | E122: -48964.0001 | F122: -48963.22477 | G122: 0 | H122: -48963.22477
B123: 104 | C123: -48963.22477 | D123: 958.33 | E123: -49943.40834 | F123: -49942.6175 | G123: 0 | H123: -49942.6175
B124: 105 | C124: -49942.6175 | D124: 958.33 | E124: -50923.22981 | F124: -50922.42346 | G124: 0 | H124: -50922.42346
B125: 106 | C125: -50922.42346 | D125: 958.33 | E125: -51903.46469 | F125: -51902.64281 | G125: 0 | H125: -51902.64281
B126: 107 | C126: -51902.64281 | D126: 958.33 | E126: -52884.11314 | F126: -52883.27573 | G126: 0 | H126: -52883.27573
B127: 108 | C127: -52883.27573 | D127: 958.33 | E127: -53865.17534 | F127: -53864.3224 | G127: 0 | H127: -53864.3224
B128: 109 | C128: -53864.3224 | D128: 958.33 | E128: -54846.65147 | F128: -54845.78299 | G128: 0 | H128: -54845.78299
B129: 110 | C129: -54845.78299 | D129: 958.33 | E129: -55828.5417 | F129: -55827.65768 | G129: 0 | H129: -55827.65768
B130: 111 | C130: -55827.65768 | D130: 958.33 | E130: -56810.84621 | F130: -56809.94663 | G130: 0 | H130: -56809.94663
B131: 112 | C131: -56809.94663 | D131: 958.33 | E131: -57793.56517 | F131: -57792.65003 | G131: 0 | H131: -57792.65003
B132: 113 | C132: -57792.65003 | D132: 958.33 | E132: -58776.69875 | F132: -58775.76804 | G132: 0 | H132: -58775.76804
B133: 114 | C133: -58775.76804 | D133: 958.33 | E133: -59760.24714 | F133: -59759.30085 | G133: 0 | H133: -59759.30085
B134: 115 | C134: -59759.30085 | D134: 958.33 | E134: -60744.2105 | F134: -60743.24863 | G134: 0 | H134: -60743.24863
B135: 116 | C135: -60743.24863 | D135: 958.33 | E135: -61728.58901 | F135: -61727.61155 | G135: 0 | H135: -61727.61155
B136: 117 | C136: -61727.61155 | D136: 958.33 | E136: -62713.38284 | F136: -62712.38979 | G136: 0 | H136: -62712.38979
B137: 118 | C137: -62712.38979 | D137: 958.33 | E137: -63698.59218 | F137: -63697.58353 | G137: 0 | H137: -63697.58353
B138: 119 | C138: -63697.58353 | D138: 958.33 | E138: -64684.21719 | F138: -64683.19293 | G138: 0 | H138: -64683.19293
B139: 120 | C139: -64683.19293 | D139: 958.33 | E139: -65670.25805 | F139: -65669.21819 | G139: 0 | H139: -65669.21819
B140: 121 | C140: =H139 -> -65669.21819 | D140: 958.33 | E140: =(C140-D140)*(1+$E$19)^(1/12) -> -66656.71495 | F140: =(E140)*(1-$F$19)^(1/12) -> -66655.65946 | G140: =F140*($G$19/12) -> 0 | H140: =F140-G140-$H$19 -> -66655.65946
B141: 122 | C141: -66655.65946 | D141: 958.33 | E141: -67643.58804 | F141: -67642.51692 | G141: 0 | H141: -67642.51692
B142: 123 | C142: -67642.51692 | D142: 958.33 | E142: -68630.87751 | F142: -68629.79076 | G142: 0 | H142: -68629.79076
B143: 124 | C143: -68629.79076 | D143: 958.33 | E143: -69618.58354 | F143: -69617.48115 | G143: 0 | H143: -69617.48115
B144: 125 | C144: -69617.48115 | D144: 958.33 | E144: -70606.70629 | F144: -70605.58826 | G144: 0 | H144: -70605.58826
B145: 126 | C145: -70605.58826 | D145: 958.33 | E145: -71595.24595 | F145: -71594.11226 | G145: 0 | H145: -71594.11226
B146: 127 | C146: -71594.11226 | D146: 958.33 | E146: -72584.2027 | F146: -72583.05335 | G146: 0 | H146: -72583.05335
B147: 128 | C147: -72583.05335 | D147: 958.33 | E147: -73573.5767 | F147: -73572.41168 | G147: 0 | H147: -73572.41168
B148: 129 | C148: -73572.41168 | D148: 958.33 | E148: -74563.36813 | F148: -74562.18744 | G148: 0 | H148: -74562.18744
B149: 130 | C149: -74562.18744 | D149: 958.33 | E149: -75553.57717 | F149: -75552.3808 | G149: 0 | H149: -75552.3808
B150: 131 | C150: -75552.3808 | D150: 958.33 | E150: -76544.204 | F150: -76542.99194 | G150: 0 | H150: -76542.99194
B151: 132 | C151: -76542.99194 | D151: =$D$19/12 -> 958.33 | E151: -77535.24879 | F151: -77534.02104 | G151: 0 | H151: -77534.02104
B152: 133 | C152: -77534.02104 | D152: 958.33 | E152: -78526.71172 | F152: -78525.46827 | G152: 0 | H152: -78525.46827
B153: 134 | C153: -78525.46827 | D153: 958.33 | E153: -79518.59296 | F153: -79517.33381 | G153: 0 | H153: -79517.33381
B154: 135 | C154: -79517.33381 | D154: 958.33 | E154: -80510.89269 | F154: -80509.61783 | G154: 0 | H154: -80509.61783
B155: 136 | C155: -80509.61783 | D155: 958.33 | E155: -81503.6111 | F155: -81502.32051 | G155: 0 | H155: -81502.32051
B156: 137 | C156: -81502.32051 | D156: 958.33 | E156: -82496.74834 | F156: -82495.44203 | G156: 0 | H156: -82495.44203
B157: 138 | C157: -82495.44203 | D157: 958.33 | E157: -83490.30461 | F157: -83488.98256 | G157: 0 | H157: -83488.98256
B158: 139 | C158: -83488.98256 | D158: 958.33 | E158: -84484.28007 | F158: -84482.94229 | G158: 0 | H158: -84482.94229
B159: 140 | C159: -84482.94229 | D159: 958.33 | E159: -85478.67491 | F159: -85477.32138 | G159: 0 | H159: -85477.32138
B160: 141 | C160: -85477.32138 | D160: 958.33 | E160: -86473.48931 | F160: -86472.12002 | G160: 0 | H160: -86472.12002
B161: 142 | C161: -86472.12002 | D161: 958.33 | E161: -87468.72343 | F161: -87467.33838 | G161: 0 | H161: -87467.33838
B162: 143 | C162: -87467.33838 | D162: 958.33 | E162: -88464.37745 | F162: -88462.97664 | G162: 0 | H162: -88462.97664
B163: 144 | C163: -88462.97664 | D163: 958.33 | E163: -89460.45156 | F163: -89459.03498 | G163: 0 | H163: -89459.03498
B164: 145 | C164: -89459.03498 | D164: 958.33 | E164: -90456.94593 | F164: -90455.51357 | G164: 0 | H164: -90455.51357
B165: 146 | C165: -90455.51357 | D165: 958.33 | E165: -91453.86074 | F165: -91452.41259 | G165: 0 | H165: -91452.41259
B166: 147 | C166: -91452.41259 | D166: 958.33 | E166: -92451.19616 | F166: -92449.73222 | G166: 0 | H166: -92449.73222
B167: 148 | C167: -92449.73222 | D167: 958.33 | E167: -93448.95238 | F167: -93447.47264 | G167: 0 | H167: -93447.47264
B168: 149 | C168: -93447.47264 | D168: 958.33 | E168: -94447.12956 | F168: -94445.63402 | G168: 0 | H168: -94445.63402
B169: 150 | C169: -94445.63402 | D169: 958.33 | E169: -95445.72789 | F169: -95444.21654 | G169: 0 | H169: -95444.21654
B170: 151 | C170: -95444.21654 | D170: 958.33 | E170: -96444.74755 | F170: -96443.22037 | G170: 0 | H170: -96443.22037
B171: 152 | C171: -96443.22037 | D171: 958.33 | E171: -97444.18871 | F171: -97442.64571 | G171: 0 | H171: -97442.64571
B172: 153 | C172: -97442.64571 | D172: 958.33 | E172: -98444.05155 | F172: -98442.49272 | G172: 0 | H172: -98442.49272
B173: 154 | C173: -98442.49272 | D173: 958.33 | E173: -99444.33625 | F173: -99442.76158 | G173: 0 | H173: -99442.76158
B174: 155 | C174: -99442.76158 | D174: 958.33 | E174: -100445.043 | F174: -100443.4525 | G174: 0 | H174: -100443.4525
B175: 156 | C175: -100443.4525 | D175: 958.33 | E175: -101446.1719 | F175: -101444.5656 | G175: 0 | H175: -101444.5656
B176: 157 | C176: -101444.5656 | D176: 958.33 | E176: -102447.7233 | F176: -102446.1011 | G176: 0 | H176: -102446.1011
B177: 158 | C177: -102446.1011 | D177: 958.33 | E177: -103449.6972 | F177: -103448.0591 | G177: 0 | H177: -103448.0591
B178: 159 | C178: -103448.0591 | D178: 958.33 | E178: -104452.0939 | F178: -104450.4399 | G178: 0 | H178: -104450.4399
B179: 160 | C179: -104450.4399 | D179: 958.33 | E179: -105454.9135 | F179: -105453.2436 | G179: 0 | H179: -105453.2436
B180: 161 | C180: -105453.2436 | D180: 958.33 | E180: -106458.1562 | F180: -106456.4704 | G180: 0 | H180: -106456.4704
B181: 162 | C181: -106456.4704 | D181: 958.33 | E181: -107461.8221 | F181: -107460.1205 | G181: 0 | H181: -107460.1205
B182: 163 | C182: -107460.1205 | D182: 958.33 | E182: -108465.9116 | F182: -108464.1941 | G182: 0 | H182: -108464.1941
B183: 164 | C183: -108464.1941 | D183: 958.33 | E183: -109470.4247 | F183: -109468.6912 | G183: 0 | H183: -109468.6912
B184: 165 | C184: -109468.6912 | D184: 958.33 | E184: -110475.3616 | F184: -110473.6122 | G184: 0 | H184: -110473.6122
B185: 166 | C185: -110473.6122 | D185: 958.33 | E185: -111480.7225 | F185: -111478.9572 | G185: 0 | H185: -111478.9572
B186: 167 | C186: -111478.9572 | D186: 958.33 | E186: -112486.5076 | F186: -112484.7264 | G186: 0 | H186: -112484.7264
B187: 168 | C187: -112484.7264 | D187: 958.33 | E187: -113492.717 | F187: -113490.9199 | G187: 0 | H187: -113490.9199
B188: 169 | C188: -113490.9199 | D188: 958.33 | E188: -114499.351 | F188: -114497.5379 | G188: 0 | H188: -114497.5379
B189: 170 | C189: -114497.5379 | D189: 958.33 | E189: -115506.4097 | F189: -115504.5807 | G189: 0 | H189: -115504.5807
B190: 171 | C190: -115504.5807 | D190: 958.33 | E190: -116513.8933 | F190: -116512.0483 | G190: 0 | H190: -116512.0483
B191: 172 | C191: -116512.0483 | D191: 958.33 | E191: -117521.802 | F191: -117519.941 | G191: 0 | H191: -117519.941
B192: 173 | C192: -117519.941 | D192: 958.33 | E192: -118530.1359 | F192: -118528.259 | G192: 0 | H192: -118528.259
B193: 174 | C193: -118528.259 | D193: 958.33 | E193: -119538.8952 | F193: -119537.0024 | G193: 0 | H193: -119537.0024
B194: 175 | C194: -119537.0024 | D194: 958.33 | E194: -120548.0802 | F194: -120546.1714 | G194: 0 | H194: -120546.1714
B195: 176 | C195: -120546.1714 | D195: 958.33 | E195: -121557.691 | F195: -121555.7661 | G195: 0 | H195: -121555.7661
B196: 177 | C196: -121555.7661 | D196: 958.33 | E196: -122567.7277 | F196: -122565.7869 | G196: 0 | H196: -122565.7869
B197: 178 | C197: -122565.7869 | D197: 958.33 | E197: -123578.1906 | F197: -123576.2337 | G197: 0 | H197: -123576.2337
B198: 179 | C198: -123576.2337 | D198: 958.33 | E198: -124589.0798 | F198: -124587.107 | G198: 0 | H198: -124587.107
B199: 180 | C199: -124587.107 | D199: 958.33 | E199: -125600.3955 | F199: -125598.4067 | G199: 0 | H199: -125598.4067
B200: 181 | C200: -125598.4067 | D200: 958.33 | E200: -126612.1379 | F200: -126610.1331 | G200: 0 | H200: -126610.1331
B201: 182 | C201: -126610.1331 | D201: 958.33 | E201: -127624.3072 | F201: -127622.2863 | G201: 0 | H201: -127622.2863
B202: 183 | C202: -127622.2863 | D202: 958.33 | E202: -128636.9035 | F202: -128634.8666 | G202: 0 | H202: -128634.8666
B203: 184 | C203: -128634.8666 | D203: 958.33 | E203: -129649.9271 | F203: -129647.8741 | G203: 0 | H203: -129647.8741
B204: 185 | C204: =H203 -> -129647.8741 | D204: 958.33 | E204: =(C204-D204)*(1+$E$19)^(1/12) -> -130663.3781 | F204: =(E204)*(1-$F$19)^(1/12) -> -130661.3091 | G204: =F204*($G$19/12) -> 0 | H204: =F204-G204-$H$19 -> -130661.3091
B205: 186 | C205: -130661.3091 | D205: 958.33 | E205: -131677.2567 | F205: -131675.1716 | G205: 0 | H205: -131675.1716
B206: 187 | C206: -131675.1716 | D206: 958.33 | E206: -132691.563 | F206: -132689.4619 | G206: 0 | H206: -132689.4619
... 413 more rows

Sheet GAD (hidden)
A1: Age | B1: 0 | C1: 0.0025 | D1: 0.005 | E1: 0.0075 | F1: 0.01 | G1: 0.0125 | H1: 0.015 | I1: 0.0175 | J1: 0.02 | K1: 0.0225 | L1: 0.025 | M1: 0.0275 | N1: 0.03 | O1: 0.0325 | P1: 0.035 | Q1: 0.0375 | R1: 0.04 | S1: 0.0425 | T1: 0.045 | U1: 0.0475 | V1: 0.05 | W1: 0.0525 | X1: 0.055 | Y1: 0.0575 | Z1: 0.06 | AA1: 0.0625 | AB1: 0.065 | AC1: 0.0675 | AD1: 0.07 | AE1: 0.0725 | AF1: 0.075 | AG1: 0.0775 | AH1: 0.08
A2: 23 | B2: 16 | C2: 17 | D2: 18 | E2: 20 | F2: 21 | G2: 23 | H2: 24 | I2: 26 | J2: 27 | K2: 29 | L2: 31 | M2: 33 | N2: 35 | O2: 36 | P2: 38 | Q2: 40 | R2: 42 | S2: 44 | T2: 46 | U2: 48 | V2: 50 | W2: 52 | X2: 55 | Y2: 57 | Z2: 59 | AA2: 61 | AB2: 63 | AC2: 65 | AD2: 68 | AE2: 70 | AF2: 72 | AG2: 74 | AH2: 76 | AK2: 0 | AL2: 2 | AO2: Age | AP2: =INT(AP16) -> 68 | AQ2: =AP2*1 -> 68
A3: 24 | B3: 16 | C3: 17 | D3: 18 | E3: 20 | F3: 21 | G3: 23 | H3: 24 | I3: 26 | J3: 27 | K3: 29 | L3: 31 | M3: 33 | N3: 35 | O3: 36 | P3: 38 | Q3: 40 | R3: 42 | S3: 44 | T3: 46 | U3: 48 | V3: 50 | W3: 52 | X3: 55 | Y3: 57 | Z3: 59 | AA3: 61 | AB3: 63 | AC3: 65 | AD3: 68 | AE3: 70 | AF3: 72 | AG3: 74 | AH3: 76 | AK3: 0.0025 | AL3: 3 | AO3: Fund | AP3: 3000 | AQ3: =AP3*1 -> 3000
A4: 25 | B4: 16 | C4: 17 | D4: 18 | E4: 20 | F4: 21 | G4: 23 | H4: 24 | I4: 26 | J4: 27 | K4: 29 | L4: 31 | M4: 33 | N4: 35 | O4: 36 | P4: 38 | Q4: 40 | R4: 42 | S4: 44 | T4: 46 | U4: 48 | V4: 50 | W4: 52 | X4: 55 | Y4: 57 | Z4: 59 | AA4: 61 | AB4: 63 | AC4: 65 | AD4: 68 | AE4: 70 | AF4: 72 | AG4: 74 | AH4: 76 | AK4: 0.005 | AL4: 4 | AO4: TFC | AP4: 0 | AQ4: =IF((AP4*1)>1, AP4/100, AP4*1) -> 0
A5: 26 | B5: 16 | C5: 17 | D5: 18 | E5: 20 | F5: 21 | G5: 23 | H5: 24 | I5: 26 | J5: 28 | K5: 29 | L5: 31 | M5: 33 | N5: 35 | O5: 37 | P5: 39 | Q5: 40 | R5: 42 | S5: 44 | T5: 46 | U5: 48 | V5: 51 | W5: 53 | X5: 55 | Y5: 57 | Z5: 59 | AA5: 61 | AB5: 63 | AC5: 65 | AD5: 68 | AE5: 70 | AF5: 72 | AG5: 74 | AH5: 76 | AK5: 0.0075 | AL5: 5 | AO5: Gilt | AP5: 0 | AQ5: =IF((AP5*1)>1, AP5/100, AP5*1) -> 0
A6: 27 | B6: 16 | C6: 17 | D6: 19 | E6: 20 | F6: 22 | G6: 23 | H6: 25 | I6: 26 | J6: 28 | K6: 30 | L6: 31 | M6: 33 | N6: 35 | O6: 37 | P6: 39 | Q6: 41 | R6: 43 | S6: 45 | T6: 47 | U6: 49 | V6: 51 | W6: 53 | X6: 55 | Y6: 57 | Z6: 59 | AA6: 61 | AB6: 63 | AC6: 66 | AD6: 68 | AE6: 70 | AF6: 72 | AG6: 74 | AH6: 76 | AK6: 0.01 | AL6: 6
A7: 28 | B7: 16 | C7: 18 | D7: 19 | E7: 20 | F7: 22 | G7: 23 | H7: 25 | I7: 27 | J7: 28 | K7: 30 | L7: 32 | M7: 33 | N7: 35 | O7: 37 | P7: 39 | Q7: 41 | R7: 43 | S7: 45 | T7: 47 | U7: 49 | V7: 51 | W7: 53 | X7: 55 | Y7: 57 | Z7: 59 | AA7: 61 | AB7: 64 | AC7: 66 | AD7: 68 | AE7: 70 | AF7: 72 | AG7: 74 | AH7: 77 | AK7: 0.0125 | AL7: 7 | AO7: Fund | AP7: =(AP3*(1-AP4)) -> 3000 | AQ7: =(AQ3*(1-AQ4)) -> 3000
A8: 29 | B8: 17 | C8: 18 | D8: 19 | E8: 21 | F8: 22 | G8: 24 | H8: 25 | I8: 27 | J8: 28 | K8: 30 | L8: 32 | M8: 34 | N8: 35 | O8: 37 | P8: 39 | Q8: 41 | R8: 43 | S8: 45 | T8: 47 | U8: 49 | V8: 51 | W8: 53 | X8: 55 | Y8: 57 | Z8: 59 | AA8: 62 | AB8: 64 | AC8: 66 | AD8: 68 | AE8: 70 | AF8: 72 | AG8: 75 | AH8: 77 | AK8: 0.015 | AL8: 8 | AO8: GAD | AP8: =VLOOKUP(AP2*1, $A$2:$AH$64, VLOOKUP(AP5*1, $AK$2:$AL$34, 2, FALSE), FALSE) -> 46 | AQ8: =VLOOKUP(AQ2, $A$2:$AH$64, VLOOKUP(AQ5, $AK$2:$AL$34, 2, FALSE), FALSE) -> 46
A9: 30 | B9: 17 | C9: 18 | D9: 20 | E9: 21 | F9: 22 | G9: 24 | H9: 25 | I9: 27 | J9: 29 | K9: 30 | L9: 32 | M9: 34 | N9: 36 | O9: 38 | P9: 39 | Q9: 41 | R9: 43 | S9: 45 | T9: 47 | U9: 49 | V9: 51 | W9: 53 | X9: 55 | Y9: 57 | Z9: 60 | AA9: 62 | AB9: 64 | AC9: 66 | AD9: 68 | AE9: 70 | AF9: 72 | AG9: 75 | AH9: 77 | AK9: 0.0175 | AL9: 9 | AQ9: 1.5
A10: 31 | B10: 17 | C10: 19 | D10: 20 | E10: 21 | F10: 23 | G10: 24 | H10: 26 | I10: 27 | J10: 29 | K10: 31 | L10: 32 | M10: 34 | N10: 36 | O10: 38 | P10: 40 | Q10: 42 | R10: 43 | S10: 45 | T10: 47 | U10: 49 | V10: 51 | W10: 53 | X10: 56 | Y10: 58 | Z10: 60 | AA10: 62 | AB10: 64 | AC10: 66 | AD10: 68 | AE10: 70 | AF10: 73 | AG10: 75 | AH10: 77 | AK10: 0.02 | AL10: 10 | AO10: Max GAD | AP10: =IF(ISERROR(AP7*(AP8/1000)), 0, AP7*(AP8/1000)) -> 138 | AQ10: =IF(ISERROR(AQ7*(AQ8/1000)), 0, AQ7*(AQ8/1000))*AQ9 -> 207
A11: 32 | B11: 18 | C11: 19 | D11: 20 | E11: 22 | F11: 23 | G11: 25 | H11: 26 | I11: 28 | J11: 29 | K11: 31 | L11: 33 | M11: 34 | N11: 36 | O11: 38 | P11: 40 | Q11: 42 | R11: 44 | S11: 46 | T11: 48 | U11: 50 | V11: 52 | W11: 54 | X11: 56 | Y11: 58 | Z11: 60 | AA11: 62 | AB11: 64 | AC11: 66 | AD11: 68 | AE11: 71 | AF11: 73 | AG11: 75 | AH11: 77 | AK11: 0.0225 | AL11: 11
A12: 33 | B12: 18 | C12: 19 | D12: 21 | E12: 22 | F12: 23 | G12: 25 | H12: 26 | I12: 28 | J12: 30 | K12: 31 | L12: 33 | M12: 35 | N12: 36 | O12: 38 | P12: 40 | Q12: 42 | R12: 44 | S12: 46 | T12: 48 | U12: 50 | V12: 52 | W12: 54 | X12: 56 | Y12: 58 | Z12: 60 | AA12: 62 | AB12: 64 | AC12: 66 | AD12: 69 | AE12: 71 | AF12: 73 | AG12: 75 | AH12: 77 | AK12: 0.025 | AL12: 12
A13: 34 | B13: 18 | C13: 20 | D13: 21 | E13: 22 | F13: 24 | G13: 25 | H13: 27 | I13: 28 | J13: 30 | K13: 32 | L13: 33 | M13: 35 | N13: 37 | O13: 39 | P13: 40 | Q13: 42 | R13: 44 | S13: 46 | T13: 48 | U13: 50 | V13: 52 | W13: 54 | X13: 56 | Y13: 58 | Z13: 60 | AA13: 62 | AB13: 64 | AC13: 67 | AD13: 69 | AE13: 71 | AF13: 73 | AG13: 75 | AH13: 77 | AK13: 0.0275 | AL13: 13
A14: 35 | B14: 19 | C14: 20 | D14: 21 | E14: 23 | F14: 24 | G14: 26 | H14: 27 | I14: 29 | J14: 30 | K14: 32 | L14: 34 | M14: 35 | N14: 37 | O14: 39 | P14: 41 | Q14: 43 | R14: 44 | S14: 46 | T14: 48 | U14: 50 | V14: 52 | W14: 54 | X14: 56 | Y14: 58 | Z14: 61 | AA14: 63 | AB14: 65 | AC14: 67 | AD14: 69 | AE14: 71 | AF14: 73 | AG14: 75 | AH14: 77 | AK14: 0.03 | AL14: 14 | AP14: 1949-05-09
A15: 36 | B15: 19 | C15: 20 | D15: 22 | E15: 23 | F15: 24 | G15: 26 | H15: 27 | I15: 29 | J15: 31 | K15: 32 | L15: 34 | M15: 36 | N15: 37 | O15: 39 | P15: 41 | Q15: 43 | R15: 45 | S15: 47 | T15: 49 | U15: 51 | V15: 53 | W15: 55 | X15: 57 | Y15: 59 | Z15: 61 | AA15: 63 | AB15: 65 | AC15: 67 | AD15: 69 | AE15: 71 | AF15: 73 | AG15: 76 | AH15: 78 | AK15: 0.0325 | AL15: 15
A16: 37 | B16: 19 | C16: 21 | D16: 22 | E16: 23 | F16: 25 | G16: 26 | H16: 28 | I16: 29 | J16: 31 | K16: 33 | L16: 34 | M16: 36 | N16: 38 | O16: 40 | P16: 41 | Q16: 43 | R16: 45 | S16: 47 | T16: 49 | U16: 51 | V16: 53 | W16: 55 | X16: 57 | Y16: 59 | Z16: 61 | AA16: 63 | AB16: 65 | AC16: 67 | AD16: 69 | AE16: 71 | AF16: 74 | AG16: 76 | AH16: 78 | AK16: 0.035 | AL16: 16 | AP16: =DATEDIF(AP14, NOW(), "m")/12 -> 68.83333333
A17: 38 | B17: 20 | C17: 21 | D17: 22 | E17: 24 | F17: 25 | G17: 27 | H17: 28 | I17: 30 | J17: 31 | K17: 33 | L17: 35 | M17: 36 | N17: 38 | O17: 40 | P17: 42 | Q17: 44 | R17: 45 | S17: 47 | T17: 49 | U17: 51 | V17: 53 | W17: 55 | X17: 57 | Y17: 59 | Z17: 61 | AA17: 63 | AB17: 65 | AC17: 67 | AD17: 70 | AE17: 72 | AF17: 74 | AG17: 76 | AH17: 78 | AK17: 0.0375 | AL17: 17
A18: 39 | B18: 20 | C18: 21 | D18: 23 | E18: 24 | F18: 26 | G18: 27 | H18: 29 | I18: 30 | J18: 32 | K18: 33 | L18: 35 | M18: 37 | N18: 38 | O18: 40 | P18: 42 | Q18: 44 | R18: 46 | S18: 48 | T18: 50 | U18: 51 | V18: 53 | W18: 55 | X18: 57 | Y18: 59 | Z18: 61 | AA18: 64 | AB18: 66 | AC18: 68 | AD18: 70 | AE18: 72 | AF18: 74 | AG18: 76 | AH18: 78 | AK18: 0.04 | AL18: 18
A19: 40 | B19: 21 | C19: 22 | D19: 23 | E19: 25 | F19: 26 | G19: 27 | H19: 29 | I19: 30 | J19: 32 | K19: 34 | L19: 35 | M19: 37 | N19: 39 | O19: 41 | P19: 42 | Q19: 44 | R19: 46 | S19: 48 | T19: 50 | U19: 52 | V19: 54 | W19: 56 | X19: 58 | Y19: 60 | Z19: 62 | AA19: 64 | AB19: 66 | AC19: 68 | AD19: 70 | AE19: 72 | AF19: 74 | AG19: 76 | AH19: 78 | AK19: 0.0425 | AL19: 19
A20: 41 | B20: 21 | C20: 22 | D20: 24 | E20: 25 | F20: 26 | G20: 28 | H20: 29 | I20: 31 | J20: 33 | K20: 34 | L20: 36 | M20: 38 | N20: 39 | O20: 41 | P20: 43 | Q20: 45 | R20: 46 | S20: 48 | T20: 50 | U20: 52 | V20: 54 | W20: 56 | X20: 58 | Y20: 60 | Z20: 62 | AA20: 64 | AB20: 66 | AC20: 68 | AD20: 70 | AE20: 72 | AF20: 74 | AG20: 77 | AH20: 79 | AK20: 0.045 | AL20: 20
A21: 42 | B21: 21 | C21: 23 | D21: 24 | E21: 25 | F21: 27 | G21: 28 | H21: 30 | I21: 31 | J21: 33 | K21: 35 | L21: 36 | M21: 38 | N21: 40 | O21: 41 | P21: 43 | Q21: 45 | R21: 47 | S21: 49 | T21: 51 | U21: 53 | V21: 54 | W21: 56 | X21: 58 | Y21: 60 | Z21: 62 | AA21: 64 | AB21: 66 | AC21: 69 | AD21: 71 | AE21: 73 | AF21: 75 | AG21: 77 | AH21: 79 | AK21: 0.0475 | AL21: 21
A22: 43 | B22: 22 | C22: 23 | D22: 25 | E22: 26 | F22: 27 | G22: 29 | H22: 30 | I22: 32 | J22: 33 | K22: 35 | L22: 37 | M22: 38 | N22: 40 | O22: 42 | P22: 44 | Q22: 45 | R22: 47 | S22: 49 | T22: 51 | U22: 53 | V22: 55 | W22: 57 | X22: 59 | Y22: 61 | Z22: 63 | AA22: 65 | AB22: 67 | AC22: 69 | AD22: 71 | AE22: 73 | AF22: 75 | AG22: 77 | AH22: 79 | AK22: 0.05 | AL22: 22
A23: 44 | B23: 22 | C23: 24 | D23: 25 | E23: 26 | F23: 28 | G23: 29 | H23: 31 | I23: 32 | J23: 34 | K23: 36 | L23: 37 | M23: 39 | N23: 41 | O23: 42 | P23: 44 | Q23: 46 | R23: 48 | S23: 50 | T23: 51 | U23: 53 | V23: 55 | W23: 57 | X23: 59 | Y23: 61 | Z23: 63 | AA23: 65 | AB23: 67 | AC23: 69 | AD23: 71 | AE23: 73 | AF23: 75 | AG23: 77 | AH23: 80 | AK23: 0.0525 | AL23: 23 | AP23: 207
A24: 45 | B24: 23 | C24: 24 | D24: 26 | E24: 27 | F24: 28 | G24: 30 | H24: 31 | I24: 33 | J24: 34 | K24: 36 | L24: 38 | M24: 39 | N24: 41 | O24: 43 | P24: 45 | Q24: 46 | R24: 48 | S24: 50 | T24: 52 | U24: 54 | V24: 56 | W24: 58 | X24: 60 | Y24: 62 | Z24: 64 | AA24: 66 | AB24: 68 | AC24: 70 | AD24: 72 | AE24: 74 | AF24: 76 | AG24: 78 | AH24: 80 | AK24: 0.055 | AL24: 24 | AP24: =AP23*12 -> 2484
A25: 46 | B25: 23 | C25: 25 | D25: 26 | E25: 27 | F25: 29 | G25: 30 | H25: 32 | I25: 33 | J25: 35 | K25: 37 | L25: 38 | M25: 40 | N25: 42 | O25: 43 | P25: 45 | Q25: 47 | R25: 49 | S25: 50 | T25: 52 | U25: 54 | V25: 56 | W25: 58 | X25: 60 | Y25: 62 | Z25: 64 | AA25: 66 | AB25: 68 | AC25: 70 | AD25: 72 | AE25: 74 | AF25: 76 | AG25: 78 | AH25: 80 | AK25: 0.0575 | AL25: 25
A26: 47 | B26: 24 | C26: 25 | D26: 27 | E26: 28 | F26: 29 | G26: 31 | H26: 32 | I26: 34 | J26: 36 | K26: 37 | L26: 39 | M26: 40 | N26: 42 | O26: 44 | P26: 46 | Q26: 47 | R26: 49 | S26: 51 | T26: 53 | U26: 55 | V26: 57 | W26: 59 | X26: 60 | Y26: 62 | Z26: 64 | AA26: 66 | AB26: 68 | AC26: 70 | AD26: 72 | AE26: 74 | AF26: 76 | AG26: 79 | AH26: 81 | AK26: 0.06 | AL26: 26
A27: 48 | B27: 25 | C27: 26 | D27: 27 | E27: 29 | F27: 30 | G27: 32 | H27: 33 | I27: 35 | J27: 36 | K27: 38 | L27: 39 | M27: 41 | N27: 43 | O27: 44 | P27: 46 | Q27: 48 | R27: 50 | S27: 52 | T27: 53 | U27: 55 | V27: 57 | W27: 59 | X27: 61 | Y27: 63 | Z27: 65 | AA27: 67 | AB27: 69 | AC27: 71 | AD27: 73 | AE27: 75 | AF27: 77 | AG27: 79 | AH27: 81 | AK27: 0.0625 | AL27: 27
A28: 49 | B28: 25 | C28: 27 | D28: 28 | E28: 29 | F28: 31 | G28: 32 | H28: 34 | I28: 35 | J28: 37 | K28: 38 | L28: 40 | M28: 42 | N28: 43 | O28: 45 | P28: 47 | Q28: 49 | R28: 50 | S28: 52 | T28: 54 | U28: 56 | V28: 58 | W28: 60 | X28: 61 | Y28: 63 | Z28: 65 | AA28: 67 | AB28: 69 | AC28: 71 | AD28: 73 | AE28: 75 | AF28: 77 | AG28: 79 | AH28: 81 | AK28: 0.065 | AL28: 28
A29: 50 | B29: 26 | C29: 27 | D29: 29 | E29: 30 | F29: 31 | G29: 33 | H29: 34 | I29: 36 | J29: 37 | K29: 39 | L29: 41 | M29: 42 | N29: 44 | O29: 46 | P29: 47 | Q29: 49 | R29: 51 | S29: 53 | T29: 55 | U29: 56 | V29: 58 | W29: 60 | X29: 62 | Y29: 64 | Z29: 66 | AA29: 68 | AB29: 70 | AC29: 72 | AD29: 74 | AE29: 76 | AF29: 78 | AG29: 80 | AH29: 82 | AK29: 0.0675 | AL29: 29
A30: 51 | B30: 27 | C30: 28 | D30: 29 | E30: 31 | F30: 32 | G30: 33 | H30: 35 | I30: 37 | J30: 38 | K30: 40 | L30: 41 | M30: 43 | N30: 45 | O30: 46 | P30: 48 | Q30: 50 | R30: 52 | S30: 53 | T30: 55 | U30: 57 | V30: 59 | W30: 61 | X30: 63 | Y30: 65 | Z30: 67 | AA30: 68 | AB30: 70 | AC30: 72 | AD30: 74 | AE30: 76 | AF30: 78 | AG30: 80 | AH30: 82 | AK30: 0.07 | AL30: 30
A31: 52 | B31: 27 | C31: 29 | D31: 30 | E31: 31 | F31: 33 | G31: 34 | H31: 36 | I31: 37 | J31: 39 | K31: 40 | L31: 42 | M31: 44 | N31: 45 | O31: 47 | P31: 49 | Q31: 50 | R31: 52 | S31: 54 | T31: 56 | U31: 58 | V31: 60 | W31: 61 | X31: 63 | Y31: 65 | Z31: 67 | AA31: 69 | AB31: 71 | AC31: 73 | AD31: 75 | AE31: 77 | AF31: 79 | AG31: 81 | AH31: 83 | AK31: 0.0725 | AL31: 31
A32: 53 | B32: 28 | C32: 29 | D32: 31 | E32: 32 | F32: 34 | G32: 35 | H32: 36 | I32: 38 | J32: 40 | K32: 41 | L32: 43 | M32: 44 | N32: 46 | O32: 48 | P32: 49 | Q32: 51 | R32: 53 | S32: 55 | T32: 57 | U32: 58 | V32: 60 | W32: 62 | X32: 64 | Y32: 66 | Z32: 68 | AA32: 70 | AB32: 72 | AC32: 74 | AD32: 76 | AE32: 78 | AF32: 80 | AG32: 82 | AH32: 84 | AK32: 0.075 | AL32: 32
A33: 54 | B33: 29 | C33: 30 | D33: 31 | E33: 33 | F33: 34 | G33: 36 | H33: 37 | I33: 39 | J33: 40 | K33: 42 | L33: 44 | M33: 45 | N33: 47 | O33: 49 | P33: 50 | Q33: 52 | R33: 54 | S33: 55 | T33: 57 | U33: 59 | V33: 61 | W33: 63 | X33: 65 | Y33: 67 | Z33: 68 | AA33: 70 | AB33: 72 | AC33: 74 | AD33: 76 | AE33: 78 | AF33: 80 | AG33: 82 | AH33: 84 | AK33: 0.0775 | AL33: 33
A34: 55 | B34: 30 | C34: 31 | D34: 32 | E34: 34 | F34: 35 | G34: 37 | H34: 38 | I34: 40 | J34: 41 | K34: 43 | L34: 44 | M34: 46 | N34: 48 | O34: 49 | P34: 51 | Q34: 53 | R34: 55 | S34: 56 | T34: 58 | U34: 60 | V34: 62 | W34: 64 | X34: 65 | Y34: 67 | Z34: 69 | AA34: 71 | AB34: 73 | AC34: 75 | AD34: 77 | AE34: 79 | AF34: 81 | AG34: 83 | AH34: 85 | AK34: 0.08 | AL34: 34
A35: 56 | B35: 31 | C35: 32 | D35: 33 | E35: 35 | F35: 36 | G35: 38 | H35: 39 | I35: 41 | J35: 42 | K35: 44 | L35: 45 | M35: 47 | N35: 49 | O35: 50 | P35: 52 | Q35: 54 | R35: 55 | S35: 57 | T35: 59 | U35: 61 | V35: 63 | W35: 64 | X35: 66 | Y35: 68 | Z35: 70 | AA35: 72 | AB35: 74 | AC35: 76 | AD35: 78 | AE35: 80 | AF35: 82 | AG35: 84 | AH35: 86
A36: 57 | B36: 31 | C36: 33 | D36: 34 | E36: 36 | F36: 37 | G36: 38 | H36: 40 | I36: 41 | J36: 43 | K36: 45 | L36: 46 | M36: 48 | N36: 49 | O36: 51 | P36: 53 | Q36: 55 | R36: 56 | S36: 58 | T36: 60 | U36: 62 | V36: 63 | W36: 65 | X36: 67 | Y36: 69 | Z36: 71 | AA36: 73 | AB36: 75 | AC36: 77 | AD36: 79 | AE36: 80 | AF36: 82 | AG36: 84 | AH36: 86
A37: 58 | B37: 32 | C37: 34 | D37: 35 | E37: 37 | F37: 38 | G37: 39 | H37: 41 | I37: 42 | J37: 44 | K37: 46 | L37: 47 | M37: 49 | N37: 50 | O37: 52 | P37: 54 | Q37: 56 | R37: 57 | S37: 59 | T37: 61 | U37: 63 | V37: 64 | W37: 66 | X37: 68 | Y37: 70 | Z37: 72 | AA37: 74 | AB37: 76 | AC37: 77 | AD37: 79 | AE37: 81 | AF37: 83 | AG37: 85 | AH37: 87
A38: 59 | B38: 33 | C38: 35 | D38: 36 | E38: 38 | F38: 39 | G38: 40 | H38: 42 | I38: 44 | J38: 45 | K38: 47 | L38: 48 | M38: 50 | N38: 51 | O38: 53 | P38: 55 | Q38: 57 | R38: 58 | S38: 60 | T38: 62 | U38: 64 | V38: 65 | W38: 67 | X38: 69 | Y38: 71 | Z38: 73 | AA38: 75 | AB38: 76 | AC38: 78 | AD38: 80 | AE38: 82 | AF38: 84 | AG38: 86 | AH38: 88
A39: 60 | B39: 35 | C39: 36 | D39: 37 | E39: 39 | F39: 40 | G39: 42 | H39: 43 | I39: 45 | J39: 46 | K39: 48 | L39: 49 | M39: 51 | N39: 53 | O39: 54 | P39: 56 | Q39: 58 | R39: 59 | S39: 61 | T39: 63 | U39: 65 | V39: 66 | W39: 68 | X39: 70 | Y39: 72 | Z39: 74 | AA39: 76 | AB39: 77 | AC39: 79 | AD39: 81 | AE39: 83 | AF39: 85 | AG39: 87 | AH39: 89
A40: 61 | B40: 36 | C40: 37 | D40: 38 | E40: 40 | F40: 41 | G40: 43 | H40: 44 | I40: 46 | J40: 47 | K40: 49 | L40: 51 | M40: 52 | N40: 54 | O40: 55 | P40: 57 | Q40: 59 | R40: 61 | S40: 62 | T40: 64 | U40: 66 | V40: 68 | W40: 69 | X40: 71 | Y40: 73 | Z40: 75 | AA40: 77 | AB40: 79 | AC40: 80 | AD40: 82 | AE40: 84 | AF40: 86 | AG40: 88 | AH40: 90
A41: 62 | B41: 37 | C41: 38 | D41: 40 | E41: 41 | F41: 43 | G41: 44 | H41: 46 | I41: 47 | J41: 49 | K41: 50 | L41: 52 | M41: 53 | N41: 55 | O41: 57 | P41: 58 | Q41: 60 | R41: 62 | S41: 63 | T41: 65 | U41: 67 | V41: 69 | W41: 71 | X41: 72 | Y41: 74 | Z41: 76 | AA41: 78 | AB41: 80 | AC41: 82 | AD41: 84 | AE41: 85 | AF41: 87 | AG41: 89 | AH41: 91
A42: 63 | B42: 38 | C42: 40 | D42: 41 | E42: 42 | F42: 44 | G42: 45 | H42: 47 | I42: 48 | J42: 50 | K42: 52 | L42: 53 | M42: 55 | N42: 56 | O42: 58 | P42: 60 | Q42: 61 | R42: 63 | S42: 65 | T42: 67 | U42: 68 | V42: 70 | W42: 72 | X42: 74 | Y42: 76 | Z42: 77 | AA42: 79 | AB42: 81 | AC42: 83 | AD42: 85 | AE42: 87 | AF42: 89 | AG42: 91 | AH42: 92
A43: 64 | B43: 40 | C43: 41 | D43: 42 | E43: 44 | F43: 45 | G43: 47 | H43: 48 | I43: 50 | J43: 51 | K43: 53 | L43: 55 | M43: 56 | N43: 58 | O43: 59 | P43: 61 | Q43: 63 | R43: 65 | S43: 66 | T43: 68 | U43: 70 | V43: 72 | W43: 73 | X43: 75 | Y43: 77 | Z43: 79 | AA43: 81 | AB43: 82 | AC43: 84 | AD43: 86 | AE43: 88 | AF43: 90 | AG43: 92 | AH43: 94
A44: 65 | B44: 41 | C44: 43 | D44: 44 | E44: 45 | F44: 47 | G44: 48 | H44: 50 | I44: 51 | J44: 53 | K44: 55 | L44: 56 | M44: 58 | N44: 59 | O44: 61 | P44: 63 | Q44: 64 | R44: 66 | S44: 68 | T44: 70 | U44: 71 | V44: 73 | W44: 75 | X44: 77 | Y44: 78 | Z44: 80 | AA44: 82 | AB44: 84 | AC44: 86 | AD44: 88 | AE44: 89 | AF44: 91 | AG44: 93 | AH44: 95
A45: 66 | B45: 43 | C45: 44 | D45: 46 | E45: 47 | F45: 49 | G45: 50 | H45: 52 | I45: 53 | J45: 55 | K45: 56 | L45: 58 | M45: 59 | N45: 61 | O45: 63 | P45: 64 | Q45: 66 | R45: 68 | S45: 69 | T45: 71 | U45: 73 | V45: 75 | W45: 76 | X45: 78 | Y45: 80 | Z45: 82 | AA45: 84 | AB45: 85 | AC45: 87 | AD45: 89 | AE45: 91 | AF45: 93 | AG45: 95 | AH45: 97
A46: 67 | B46: 44 | C46: 46 | D46: 47 | E46: 49 | F46: 50 | G46: 52 | H46: 53 | I46: 55 | J46: 56 | K46: 58 | L46: 60 | M46: 61 | N46: 63 | O46: 64 | P46: 66 | Q46: 68 | R46: 69 | S46: 71 | T46: 73 | U46: 75 | V46: 76 | W46: 78 | X46: 80 | Y46: 82 | Z46: 83 | AA46: 85 | AB46: 87 | AC46: 89 | AD46: 91 | AE46: 93 | AF46: 95 | AG46: 96 | AH46: 98
A47: 68 | B47: 46 | C47: 48 | D47: 49 | E47: 51 | F47: 52 | G47: 54 | H47: 55 | I47: 57 | J47: 58 | K47: 60 | L47: 61 | M47: 63 | N47: 65 | O47: 66 | P47: 68 | Q47: 70 | R47: 71 | S47: 73 | T47: 75 | U47: 76 | V47: 78 | W47: 80 | X47: 82 | Y47: 84 | Z47: 85 | AA47: 87 | AB47: 89 | AC47: 91 | AD47: 93 | AE47: 94 | AF47: 96 | AG47: 98 | AH47: 100
A48: 69 | B48: 48 | C48: 50 | D48: 51 | E48: 53 | F48: 54 | G48: 56 | H48: 57 | I48: 59 | J48: 60 | K48: 62 | L48: 63 | M48: 65 | N48: 67 | O48: 68 | P48: 70 | Q48: 72 | R48: 73 | S48: 75 | T48: 77 | U48: 78 | V48: 80 | W48: 82 | X48: 84 | Y48: 86 | Z48: 87 | AA48: 89 | AB48: 91 | AC48: 93 | AD48: 95 | AE48: 96 | AF48: 98 | AG48: 100 | AH48: 102
A49: 70 | B49: 50 | C49: 52 | D49: 53 | E49: 55 | F49: 56 | G49: 58 | H49: 59 | I49: 61 | J49: 62 | K49: 64 | L49: 66 | M49: 67 | N49: 69 | O49: 70 | P49: 72 | Q49: 74 | R49: 75 | S49: 77 | T49: 79 | U49: 81 | V49: 82 | W49: 84 | X49: 86 | Y49: 88 | Z49: 89 | AA49: 91 | AB49: 93 | AC49: 95 | AD49: 97 | AE49: 99 | AF49: 100 | AG49: 102 | AH49: 104
A50: 71 | B50: 53 | C50: 54 | D50: 56 | E50: 57 | F50: 59 | G50: 60 | H50: 62 | I50: 63 | J50: 65 | K50: 66 | L50: 68 | M50: 70 | N50: 71 | O50: 73 | P50: 75 | Q50: 76 | R50: 78 | S50: 80 | T50: 81 | U50: 83 | V50: 85 | W50: 86 | X50: 88 | Y50: 90 | Z50: 92 | AA50: 94 | AB50: 95 | AC50: 97 | AD50: 99 | AE50: 101 | AF50: 103 | AG50: 105 | AH50: 106
A51: 72 | B51: 55 | C51: 57 | D51: 58 | E51: 60 | F51: 61 | G51: 63 | H51: 64 | I51: 66 | J51: 67 | K51: 69 | L51: 71 | M51: 72 | N51: 74 | O51: 75 | P51: 77 | Q51: 79 | R51: 80 | S51: 82 | T51: 84 | U51: 86 | V51: 87 | W51: 89 | X51: 91 | Y51: 93 | Z51: 94 | AA51: 96 | AB51: 98 | AC51: 100 | AD51: 102 | AE51: 103 | AF51: 105 | AG51: 107 | AH51: 109
A52: 73 | B52: 58 | C52: 59 | D52: 61 | E52: 62 | F52: 64 | G52: 65 | H52: 67 | I52: 69 | J52: 70 | K52: 72 | L52: 73 | M52: 75 | N52: 77 | O52: 78 | P52: 80 | Q52: 82 | R52: 83 | S52: 85 | T52: 87 | U52: 88 | V52: 90 | W52: 92 | X52: 94 | Y52: 95 | Z52: 97 | AA52: 99 | AB52: 101 | AC52: 103 | AD52: 104 | AE52: 106 | AF52: 108 | AG52: 110 | AH52: 112
A53: 74 | B53: 61 | C53: 62 | D53: 64 | E53: 65 | F53: 67 | G53: 69 | H53: 70 | I53: 72 | J53: 73 | K53: 75 | L53: 77 | M53: 78 | N53: 80 | O53: 81 | P53: 83 | Q53: 85 | R53: 87 | S53: 88 | T53: 90 | U53: 92 | V53: 93 | W53: 95 | X53: 97 | Y53: 99 | Z53: 100 | AA53: 102 | AB53: 104 | AC53: 106 | AD53: 108 | AE53: 109 | AF53: 111 | AG53: 113 | AH53: 115
A54: 75 | B54: 64 | C54: 66 | D54: 67 | E54: 69 | F54: 70 | G54: 72 | H54: 74 | I54: 75 | J54: 77 | K54: 78 | L54: 80 | M54: 82 | N54: 83 | O54: 85 | P54: 87 | Q54: 88 | R54: 90 | S54: 92 | T54: 93 | U54: 95 | V54: 97 | W54: 99 | X54: 100 | Y54: 102 | Z54: 104 | AA54: 106 | AB54: 108 | AC54: 109 | AD54: 111 | AE54: 113 | AF54: 115 | AG54: 117 | AH54: 119
A55: 76 | B55: 68 | C55: 70 | D55: 71 | E55: 73 | F55: 74 | G55: 76 | H55: 77 | I55: 79 | J55: 81 | K55: 82 | L55: 84 | M55: 86 | N55: 87 | O55: 89 | P55: 91 | Q55: 92 | R55: 94 | S55: 96 | T55: 97 | U55: 99 | V55: 101 | W55: 103 | X55: 104 | Y55: 106 | Z55: 108 | AA55: 110 | AB55: 112 | AC55: 113 | AD55: 115 | AE55: 117 | AF55: 119 | AG55: 121 | AH55: 123
A56: 77 | B56: 72 | C56: 74 | D56: 75 | E56: 77 | F56: 79 | G56: 80 | H56: 82 | I56: 83 | J56: 85 | K56: 87 | L56: 88 | M56: 90 | N56: 92 | O56: 93 | P56: 95 | Q56: 97 | R56: 98 | S56: 100 | T56: 102 | U56: 104 | V56: 105 | W56: 107 | X56: 109 | Y56: 111 | Z56: 113 | AA56: 114 | AB56: 116 | AC56: 118 | AD56: 120 | AE56: 122 | AF56: 123 | AG56: 125 | AH56: 127
A57: 78 | B57: 77 | C57: 79 | D57: 80 | E57: 82 | F57: 83 | G57: 85 | H57: 87 | I57: 88 | J57: 90 | K57: 92 | L57: 93 | M57: 95 | N57: 97 | O57: 98 | P57: 100 | Q57: 102 | R57: 103 | S57: 105 | T57: 107 | U57: 109 | V57: 110 | W57: 112 | X57: 114 | Y57: 116 | Z57: 118 | AA57: 119 | AB57: 121 | AC57: 123 | AD57: 125 | AE57: 127 | AF57: 128 | AG57: 130 | AH57: 132
A58: 79 | B58: 82 | C58: 84 | D58: 85 | E58: 87 | F58: 89 | G58: 90 | H58: 92 | I58: 94 | J58: 95 | K58: 97 | L58: 99 | M58: 100 | N58: 102 | O58: 104 | P58: 105 | Q58: 107 | R58: 109 | S58: 111 | T58: 112 | U58: 114 | V58: 116 | W58: 118 | X58: 120 | Y58: 121 | Z58: 123 | AA58: 125 | AB58: 127 | AC58: 129 | AD58: 130 | AE58: 132 | AF58: 134 | AG58: 136 | AH58: 138
A59: 80 | B59: 88 | C59: 90 | D59: 91 | E59: 93 | F59: 94 | G59: 96 | H59: 98 | I59: 99 | J59: 101 | K59: 103 | L59: 105 | M59: 106 | N59: 108 | O59: 110 | P59: 111 | Q59: 113 | R59: 115 | S59: 117 | T59: 118 | U59: 120 | V59: 122 | W59: 124 | X59: 126 | Y59: 127 | Z59: 129 | AA59: 131 | AB59: 133 | AC59: 135 | AD59: 136 | AE59: 138 | AF59: 140 | AG59: 142 | AH59: 144
A60: 81 | B60: 94 | C60: 96 | D60: 98 | E60: 99 | F60: 101 | G60: 103 | H60: 104 | I60: 106 | J60: 108 | K60: 109 | L60: 111 | M60: 113 | N60: 115 | O60: 116 | P60: 118 | Q60: 120 | R60: 122 | S60: 123 | T60: 125 | U60: 127 | V60: 129 | W60: 130 | X60: 132 | Y60: 134 | Z60: 136 | AA60: 138 | AB60: 140 | AC60: 141 | AD60: 143 | AE60: 145 | AF60: 147 | AG60: 149 | AH60: 151
A61: 82 | B61: 101 | C61: 103 | D61: 105 | E61: 106 | F61: 108 | G61: 110 | H61: 111 | I61: 113 | J61: 115 | K61: 116 | L61: 118 | M61: 120 | N61: 122 | O61: 123 | P61: 125 | Q61: 127 | R61: 129 | S61: 130 | T61: 132 | U61: 134 | V61: 136 | W61: 138 | X61: 139 | Y61: 141 | Z61: 143 | AA61: 145 | AB61: 147 | AC61: 149 | AD61: 150 | AE61: 152 | AF61: 154 | AG61: 156 | AH61: 158
A62: 83 | B62: 109 | C62: 110 | D62: 112 | E62: 114 | F62: 115 | G62: 117 | H62: 119 | I62: 121 | J62: 122 | K62: 124 | L62: 126 | M62: 128 | N62: 129 | O62: 131 | P62: 133 | Q62: 135 | R62: 136 | S62: 138 | T62: 140 | U62: 142 | V62: 144 | W62: 145 | X62: 147 | Y62: 149 | Z62: 151 | AA62: 153 | AB62: 155 | AC62: 156 | AD62: 158 | AE62: 160 | AF62: 162 | AG62: 164 | AH62: 166
A63: 84 | B63: 117 | C63: 119 | D63: 120 | E63: 122 | F63: 124 | G63: 125 | H63: 127 | I63: 129 | J63: 131 | K63: 132 | L63: 134 | M63: 136 | N63: 138 | O63: 139 | P63: 141 | Q63: 143 | R63: 145 | S63: 147 | T63: 148 | U63: 150 | V63: 152 | W63: 154 | X63: 156 | Y63: 158 | Z63: 159 | AA63: 161 | AB63: 163 | AC63: 165 | AD63: 167 | AE63: 169 | AF63: 170 | AG63: 172 | AH63: 174
A64: 85 | B64: 126 | C64: 127 | D64: 129 | E64: 131 | F64: 133 | G64: 134 | H64: 136 | I64: 138 | J64: 140 | K64: 141 | L64: 143 | M64: 145 | N64: 147 | O64: 149 | P64: 150 | Q64: 152 | R64: 154 | S64: 156 | T64: 158 | U64: 159 | V64: 161 | W64: 163 | X64: 165 | Y64: 167 | Z64: 169 | AA64: 170 | AB64: 172 | AC64: 174 | AD64: 176 | AE64: 178 | AF64: 180 | AG64: 181 | AH64: 183
A66: 0 | B66: 2
A67: 0.0025 | B67: 3
A68: 0.005 | B68: 4
A69: 0.0075 | B69: 5
A70: 0.01 | B70: 6
A71: 0.0125 | B71: 7
A72: 0.015 | B72: 8
A73: 0.0175 | B73: 9
A74: 0.02 | B74: 10
A75: 0.0225 | B75: 11
A76: 0.025 | B76: 12
A77: 0.0275 | B77: 13
A78: 0.03 | B78: 14
A79: 0.0325 | B79: 15
A80: 0.035 | B80: 16
A81: 0.0375 | B81: 17
A82: 0.04 | B82: 18
A83: 0.0425 | B83: 19
A84: 0.045 | B84: 20
A85: 0.0475 | B85: 21
A86: 0.05 | B86: 22
A87: 0.0525 | B87: 23
A88: 0.055 | B88: 24
A89: 0.0575 | B89: 25
A90: 0.06 | B90: 26
A91: 0.0625 | B91: 27
A92: 0.065 | B92: 28
A93: 0.0675 | B93: 29
A94: 0.07 | B94: 30
A95: 0.0725 | B95: 31
A96: 0.075 | B96: 32
A97: 0.0775 | B97: 33
A98: 0.08 | B98: 34

Sheet EIW Output (hidden)
A1: Taxable Income Withdrawal Calculator
B2: For Financial Adviser use only. Not approved for use with customers.
B4: Below is the information entered to produce your Taxable Income Withdrawal example.
B6: This does not constitute a quote and cannot be used to apply for our Taxable Income Withdrawal. Valid quotes can be obtained from
B8: https:\\www.aviva-for-advisers.co.uk
B10: Compiled for | Q10: =" "&Inputsnew!B2 -> Test
B13: The following has been assumed within the calculations and resulting output:
C14: ▪ income is paid monthly in arrears
C15: ▪ there is no allowance for personal tax codes and income is taxed at the rate entered
C16: ▪ the annual percentage charges accounts for product, fund and adviser charges
C17: ▪ the annual drawdown charge is taken monthly
C18: =IF(O27="Flex", "", "▪ GAD income is taken at 150%") -> ▪ GAD income is taken at 150%
B21: Tools inputs
B23: Date of birth | O23: =Inputsnew!B3 -> 01/01/1950 | Z23: =IF(Inputsnew!B15="Yes", "You have selected to include your existing business policy", "") -> 
B25: Start date | O25: =Inputsnew!B4 -> 14/04/2015 | Z25: Start date | AM25: =IF(Inputsnew!B15="Yes", Inputsnew!B16, "") -> 
B27: Drawdown type | O27: =Inputsnew!B5 -> Flexi-Access | Z27: Income already paid in the year | AM27: =IF(Inputsnew!B15="Yes", Inputsnew!B17*1, "") -> 
B29: Pre retirement fund | O29: =Inputsnew!B6*1 -> 500000 | Z29: EB pre retirement fund | AM29: =IF(Inputsnew!B15="Yes", Inputsnew!B19*1, "") -> 
B31: Income required per year | O31: =Inputsnew!B8*1 -> 12000 | Z31: EB post retirement fund | AM31: =IF(Inputsnew!B15="Yes", Inputsnew!B20*1, "") -> 
B33: Tax free cash (PCLS) | O33: =(Inputsnew!B9)*1 -> 0.25
B35: Gilt yield | O35: =(Inputsnew!B10)*1 -> 0.0325
B37: Tax bracket | O37: =(Inputsnew!B11)*1 -> 0.2
O38: .
B39: Assumed growth before charge | O39: =Inputsnew!B12*1 -> 0.05
B41: Annual drawdown charges | O41: =Inputsnew!B14*1 -> 0
B43: Annual percentage charges | O43: =Inputsnew!B13*1 -> 0.01
A59: Taxable Income Withdrawal Calculator
A60: Results
B62: The table below shows the possible payments that would be made based on the inputs used. Please be aware that income is paid via PAYE.
B64: If your client's actual tax position differs from the rate selected in the calculator, their net income will differ from the amount shown.
B66: This table can be used to understand the differences between the amount of income paid out tax free by tax free cash, and the amount paid out gross or net of tax. The amount of income made up by these elements can vary through the life of the plan.
B68: It is important you and your client understand the potential tax consquences.
B70: Crystallisation to pay income will take place before disinvestment. There is a risk that a fall in the value of the investment following crystallisation means that there are not sufficient funds in the post-retirement account to pay the requested level of income. To reduce this risk we will automatically increase the client’s first crystallisation by 10%. At future crystallisations we will seek to maintain but not increase this safeguard to provide a similar protection from investment falls by taking into account any money in the post-retirement account.
B73: Month/Year | F73: Pre-fund | L73: Post-fund | R73: Crystallisation | W73: Tax free cash | AC73: Gross income | AI73: Net income | AO73: Total Income
B74: ='EIW Calcs'!B21 -> 2015-04-14 | F74: ='EIW Calcs'!AG21 -> 500460.3993 | L74: ='EIW Calcs'!AH21 -> 0 | R74: ='EIW Calcs'!AJ21 -> 1176.470588 | W74: ='EIW Calcs'!AK21 -> 294.1176471 | AC74: ='EIW Calcs'!AL21 -> 882.3529412 | AI74: ='EIW Calcs'!AM21 -> 705.8823529 | AO74: ='EIW Calcs'!AN21 -> 1000
B75: ='EIW Calcs'!B22 -> 2015-05-14 | F75: ='EIW Calcs'!AG22 -> 500922.3058 | L75: ='EIW Calcs'!AH22 -> 0 | R75: ='EIW Calcs'!AJ22 -> 1176.470588 | W75: ='EIW Calcs'!AK22 -> 294.1176471 | AC75: ='EIW Calcs'!AL22 -> 882.3529412 | AI75: ='EIW Calcs'!AM22 -> 705.8823529 | AO75: ='EIW Calcs'!AN22 -> 1000
B76: ='EIW Calcs'!B23 -> 2015-06-14 | F76: ='EIW Calcs'!AG23 -> 501385.7245 | L76: ='EIW Calcs'!AH23 -> 0 | R76: ='EIW Calcs'!AJ23 -> 1176.470588 | W76: ='EIW Calcs'!AK23 -> 294.1176471 | AC76: ='EIW Calcs'!AL23 -> 882.3529412 | AI76: ='EIW Calcs'!AM23 -> 705.8823529 | AO76: ='EIW Calcs'!AN23 -> 1000
B77: ='EIW Calcs'!B24 -> 2015-07-14 | F77: ='EIW Calcs'!AG24 -> 501850.6603 | L77: ='EIW Calcs'!AH24 -> 0 | R77: ='EIW Calcs'!AJ24 -> 1176.470588 | W77: ='EIW Calcs'!AK24 -> 294.1176471 | AC77: ='EIW Calcs'!AL24 -> 882.3529412 | AI77: ='EIW Calcs'!AM24 -> 705.8823529 | AO77: ='EIW Calcs'!AN24 -> 1000
B78: ='EIW Calcs'!B25 -> 2015-08-14 | F78: ='EIW Calcs'!AG25 -> 502317.1182 | L78: ='EIW Calcs'!AH25 -> 0 | R78: ='EIW Calcs'!AJ25 -> 1176.470588 | W78: ='EIW Calcs'!AK25 -> 294.1176471 | AC78: ='EIW Calcs'!AL25 -> 882.3529412 | AI78: ='EIW Calcs'!AM25 -> 705.8823529 | AO78: ='EIW Calcs'!AN25 -> 1000
B79: ='EIW Calcs'!B26 -> 2015-09-14 | F79: ='EIW Calcs'!AG26 -> 502785.1032 | L79: ='EIW Calcs'!AH26 -> 0 | R79: ='EIW Calcs'!AJ26 -> 1176.470588 | W79: ='EIW Calcs'!AK26 -> 294.1176471 | AC79: ='EIW Calcs'!AL26 -> 882.3529412 | AI79: ='EIW Calcs'!AM26 -> 705.8823529 | AO79: ='EIW Calcs'!AN26 -> 1000
B80: ='EIW Calcs'!B27 -> 2015-10-14 | F80: ='EIW Calcs'!AG27 -> 503254.6202 | L80: ='EIW Calcs'!AH27 -> 0 | R80: ='EIW Calcs'!AJ27 -> 1176.470588 | W80: ='EIW Calcs'!AK27 -> 294.1176471 | AC80: ='EIW Calcs'!AL27 -> 882.3529412 | AI80: ='EIW Calcs'!AM27 -> 705.8823529 | AO80: ='EIW Calcs'!AN27 -> 1000
B81: ='EIW Calcs'!B28 -> 2015-11-14 | F81: ='EIW Calcs'!AG28 -> 503725.6742 | L81: ='EIW Calcs'!AH28 -> 0 | R81: ='EIW Calcs'!AJ28 -> 1176.470588 | W81: ='EIW Calcs'!AK28 -> 294.1176471 | AC81: ='EIW Calcs'!AL28 -> 882.3529412 | AI81: ='EIW Calcs'!AM28 -> 705.8823529 | AO81: ='EIW Calcs'!AN28 -> 1000
B82: ='EIW Calcs'!B29 -> 2015-12-14 | F82: ='EIW Calcs'!AG29 -> 504198.2704 | L82: ='EIW Calcs'!AH29 -> 0 | R82: ='EIW Calcs'!AJ29 -> 1176.470588 | W82: ='EIW Calcs'!AK29 -> 294.1176471 | AC82: ='EIW Calcs'!AL29 -> 882.3529412 | AI82: ='EIW Calcs'!AM29 -> 705.8823529 | AO82: ='EIW Calcs'!AN29 -> 1000
B83: ='EIW Calcs'!B30 -> 2016-01-14 | F83: ='EIW Calcs'!AG30 -> 504672.4138 | L83: ='EIW Calcs'!AH30 -> 0 | R83: ='EIW Calcs'!AJ30 -> 1176.470588 | W83: ='EIW Calcs'!AK30 -> 294.1176471 | AC83: ='EIW Calcs'!AL30 -> 882.3529412 | AI83: ='EIW Calcs'!AM30 -> 705.8823529 | AO83: ='EIW Calcs'!AN30 -> 1000
B84: ='EIW Calcs'!B31 -> 2016-02-14 | F84: ='EIW Calcs'!AG31 -> 505148.1094 | L84: ='EIW Calcs'!AH31 -> 0 | R84: ='EIW Calcs'!AJ31 -> 1176.470588 | W84: ='EIW Calcs'!AK31 -> 294.1176471 | AC84: ='EIW Calcs'!AL31 -> 882.3529412 | AI84: ='EIW Calcs'!AM31 -> 705.8823529 | AO84: ='EIW Calcs'!AN31 -> 1000
B85: ='EIW Calcs'!B32 -> 2016-03-14 | F85: ='EIW Calcs'!AG32 -> 505625.3622 | L85: ='EIW Calcs'!AH32 -> 0 | R85: ='EIW Calcs'!AJ32 -> 1176.470588 | W85: ='EIW Calcs'!AK32 -> 294.1176471 | AC85: ='EIW Calcs'!AL32 -> 882.3529412 | AI85: ='EIW Calcs'!AM32 -> 705.8823529 | AO85: ='EIW Calcs'!AN32 -> 1000
B86: ='EIW Calcs'!B33 -> 2016-04-14 | F86: ='EIW Calcs'!AG33 -> 506104.1775 | L86: ='EIW Calcs'!AH33 -> 0 | R86: ='EIW Calcs'!AJ33 -> 1176.470588 | W86: ='EIW Calcs'!AK33 -> 294.1176471 | AC86: ='EIW Calcs'!AL33 -> 882.3529412 | AI86: ='EIW Calcs'!AM33 -> 705.8823529 | AO86: ='EIW Calcs'!AN33 -> 1000
B87: ='EIW Calcs'!B34 -> 2016-05-14 | F87: ='EIW Calcs'!AG34 -> 506584.5603 | L87: ='EIW Calcs'!AH34 -> 0 | R87: ='EIW Calcs'!AJ34 -> 1176.470588 | W87: ='EIW Calcs'!AK34 -> 294.1176471 | AC87: ='EIW Calcs'!AL34 -> 882.3529412 | AI87: ='EIW Calcs'!AM34 -> 705.8823529 | AO87: ='EIW Calcs'!AN34 -> 1000
B88: ='EIW Calcs'!B35 -> 2016-06-14 | F88: ='EIW Calcs'!AG35 -> 507066.5157 | L88: ='EIW Calcs'!AH35 -> 0 | R88: ='EIW Calcs'!AJ35 -> 1176.470588 | W88: ='EIW Calcs'!AK35 -> 294.1176471 | AC88: ='EIW Calcs'!AL35 -> 882.3529412 | AI88: ='EIW Calcs'!AM35 -> 705.8823529 | AO88: ='EIW Calcs'!AN35 -> 1000
B89: ='EIW Calcs'!B36 -> 2016-07-14 | F89: ='EIW Calcs'!AG36 -> 507550.049 | L89: ='EIW Calcs'!AH36 -> 0 | R89: ='EIW Calcs'!AJ36 -> 1176.470588 | W89: ='EIW Calcs'!AK36 -> 294.1176471 | AC89: ='EIW Calcs'!AL36 -> 882.3529412 | AI89: ='EIW Calcs'!AM36 -> 705.8823529 | AO89: ='EIW Calcs'!AN36 -> 1000
B90: ='EIW Calcs'!B37 -> 2016-08-14 | F90: ='EIW Calcs'!AG37 -> 508035.1652 | L90: ='EIW Calcs'!AH37 -> 0 | R90: ='EIW Calcs'!AJ37 -> 1176.470588 | W90: ='EIW Calcs'!AK37 -> 294.1176471 | AC90: ='EIW Calcs'!AL37 -> 882.3529412 | AI90: ='EIW Calcs'!AM37 -> 705.8823529 | AO90: ='EIW Calcs'!AN37 -> 1000
B91: ='EIW Calcs'!B38 -> 2016-09-14 | F91: ='EIW Calcs'!AG38 -> 508521.8695 | L91: ='EIW Calcs'!AH38 -> 0 | R91: ='EIW Calcs'!AJ38 -> 1176.470588 | W91: ='EIW Calcs'!AK38 -> 294.1176471 | AC91: ='EIW Calcs'!AL38 -> 882.3529412 | AI91: ='EIW Calcs'!AM38 -> 705.8823529 | AO91: ='EIW Calcs'!AN38 -> 1000
B92: ='EIW Calcs'!B39 -> 2016-10-14 | F92: ='EIW Calcs'!AG39 -> 509010.1672 | L92: ='EIW Calcs'!AH39 -> 0 | R92: ='EIW Calcs'!AJ39 -> 1176.470588 | W92: ='EIW Calcs'!AK39 -> 294.1176471 | AC92: ='EIW Calcs'!AL39 -> 882.3529412 | AI92: ='EIW Calcs'!AM39 -> 705.8823529 | AO92: ='EIW Calcs'!AN39 -> 1000
B93: ='EIW Calcs'!B40 -> 2016-11-14 | F93: ='EIW Calcs'!AG40 -> 509500.0634 | L93: ='EIW Calcs'!AH40 -> 0 | R93: ='EIW Calcs'!AJ40 -> 1176.470588 | W93: ='EIW Calcs'!AK40 -> 294.1176471 | AC93: ='EIW Calcs'!AL40 -> 882.3529412 | AI93: ='EIW Calcs'!AM40 -> 705.8823529 | AO93: ='EIW Calcs'!AN40 -> 1000
B94: ='EIW Calcs'!B41 -> 2016-12-14 | F94: ='EIW Calcs'!AG41 -> 509991.5635 | L94: ='EIW Calcs'!AH41 -> 0 | R94: ='EIW Calcs'!AJ41 -> 1176.470588 | W94: ='EIW Calcs'!AK41 -> 294.1176471 | AC94: ='EIW Calcs'!AL41 -> 882.3529412 | AI94: ='EIW Calcs'!AM41 -> 705.8823529 | AO94: ='EIW Calcs'!AN41 -> 1000
B95: ='EIW Calcs'!B42 -> 2017-01-14 | F95: ='EIW Calcs'!AG42 -> 510484.6726 | L95: ='EIW Calcs'!AH42 -> 0 | R95: ='EIW Calcs'!AJ42 -> 1176.470588 | W95: ='EIW Calcs'!AK42 -> 294.1176471 | AC95: ='EIW Calcs'!AL42 -> 882.3529412 | AI95: ='EIW Calcs'!AM42 -> 705.8823529 | AO95: ='EIW Calcs'!AN42 -> 1000
B96: ='EIW Calcs'!B43 -> 2017-02-14 | F96: ='EIW Calcs'!AG43 -> 510979.396 | L96: ='EIW Calcs'!AH43 -> 0 | R96: ='EIW Calcs'!AJ43 -> 1176.470588 | W96: ='EIW Calcs'!AK43 -> 294.1176471 | AC96: ='EIW Calcs'!AL43 -> 882.3529412 | AI96: ='EIW Calcs'!AM43 -> 705.8823529 | AO96: ='EIW Calcs'!AN43 -> 1000
B97: ='EIW Calcs'!B44 -> 2017-03-14 | F97: ='EIW Calcs'!AG44 -> 511475.7389 | L97: ='EIW Calcs'!AH44 -> 0 | R97: ='EIW Calcs'!AJ44 -> 1176.470588 | W97: ='EIW Calcs'!AK44 -> 294.1176471 | AC97: ='EIW Calcs'!AL44 -> 882.3529412 | AI97: ='EIW Calcs'!AM44 -> 705.8823529 | AO97: ='EIW Calcs'!AN44 -> 1000
B98: ='EIW Calcs'!B45 -> 2017-04-14 | F98: ='EIW Calcs'!AG45 -> 511973.7068 | L98: ='EIW Calcs'!AH45 -> 0 | R98: ='EIW Calcs'!AJ45 -> 1176.470588 | W98: ='EIW Calcs'!AK45 -> 294.1176471 | AC98: ='EIW Calcs'!AL45 -> 882.3529412 | AI98: ='EIW Calcs'!AM45 -> 705.8823529 | AO98: ='EIW Calcs'!AN45 -> 1000
B99: ='EIW Calcs'!B46 -> 2017-05-14 | F99: ='EIW Calcs'!AG46 -> 512473.3049 | L99: ='EIW Calcs'!AH46 -> 0 | R99: ='EIW Calcs'!AJ46 -> 1176.470588 | W99: ='EIW Calcs'!AK46 -> 294.1176471 | AC99: ='EIW Calcs'!AL46 -> 882.3529412 | AI99: ='EIW Calcs'!AM46 -> 705.8823529 | AO99: ='EIW Calcs'!AN46 -> 1000
B100: ='EIW Calcs'!B47 -> 2017-06-14 | F100: ='EIW Calcs'!AG47 -> 512974.5386 | L100: ='EIW Calcs'!AH47 -> 0 | R100: ='EIW Calcs'!AJ47 -> 1176.470588 | W100: ='EIW Calcs'!AK47 -> 294.1176471 | AC100: ='EIW Calcs'!AL47 -> 882.3529412 | AI100: ='EIW Calcs'!AM47 -> 705.8823529 | AO100: ='EIW Calcs'!AN47 -> 1000
B101: ='EIW Calcs'!B48 -> 2017-07-14 | F101: ='EIW Calcs'!AG48 -> 513477.4132 | L101: ='EIW Calcs'!AH48 -> 0 | R101: ='EIW Calcs'!AJ48 -> 1176.470588 | W101: ='EIW Calcs'!AK48 -> 294.1176471 | AC101: ='EIW Calcs'!AL48 -> 882.3529412 | AI101: ='EIW Calcs'!AM48 -> 705.8823529 | AO101: ='EIW Calcs'!AN48 -> 1000
B102: ='EIW Calcs'!B49 -> 2017-08-14 | F102: ='EIW Calcs'!AG49 -> 513981.934 | L102: ='EIW Calcs'!AH49 -> 0 | R102: ='EIW Calcs'!AJ49 -> 1176.470588 | W102: ='EIW Calcs'!AK49 -> 294.1176471 | AC102: ='EIW Calcs'!AL49 -> 882.3529412 | AI102: ='EIW Calcs'!AM49 -> 705.8823529 | AO102: ='EIW Calcs'!AN49 -> 1000
B103: ='EIW Calcs'!B50 -> 2017-09-14 | F103: ='EIW Calcs'!AG50 -> 514488.1065 | L103: ='EIW Calcs'!AH50 -> 0 | R103: ='EIW Calcs'!AJ50 -> 1176.470588 | W103: ='EIW Calcs'!AK50 -> 294.1176471 | AC103: ='EIW Calcs'!AL50 -> 882.3529412 | AI103: ='EIW Calcs'!AM50 -> 705.8823529 | AO103: ='EIW Calcs'!AN50 -> 1000
B104: ='EIW Calcs'!B51 -> 2017-10-14 | F104: ='EIW Calcs'!AG51 -> 514995.9361 | L104: ='EIW Calcs'!AH51 -> 0 | R104: ='EIW Calcs'!AJ51 -> 1176.470588 | W104: ='EIW Calcs'!AK51 -> 294.1176471 | AC104: ='EIW Calcs'!AL51 -> 882.3529412 | AI104: ='EIW Calcs'!AM51 -> 705.8823529 | AO104: ='EIW Calcs'!AN51 -> 1000
B105: ='EIW Calcs'!B52 -> 2017-11-14 | F105: ='EIW Calcs'!AG52 -> 515505.4282 | L105: ='EIW Calcs'!AH52 -> 0 | R105: ='EIW Calcs'!AJ52 -> 1176.470588 | W105: ='EIW Calcs'!AK52 -> 294.1176471 | AC105: ='EIW Calcs'!AL52 -> 882.3529412 | AI105: ='EIW Calcs'!AM52 -> 705.8823529 | AO105: ='EIW Calcs'!AN52 -> 1000
B106: ='EIW Calcs'!B53 -> 2017-12-14 | F106: ='EIW Calcs'!AG53 -> 516016.5882 | L106: ='EIW Calcs'!AH53 -> 0 | R106: ='EIW Calcs'!AJ53 -> 1176.470588 | W106: ='EIW Calcs'!AK53 -> 294.1176471 | AC106: ='EIW Calcs'!AL53 -> 882.3529412 | AI106: ='EIW Calcs'!AM53 -> 705.8823529 | AO106: ='EIW Calcs'!AN53 -> 1000
B107: ='EIW Calcs'!B54 -> 2018-01-14 | F107: ='EIW Calcs'!AG54 -> 516529.4217 | L107: ='EIW Calcs'!AH54 -> 0 | R107: ='EIW Calcs'!AJ54 -> 1176.470588 | W107: ='EIW Calcs'!AK54 -> 294.1176471 | AC107: ='EIW Calcs'!AL54 -> 882.3529412 | AI107: ='EIW Calcs'!AM54 -> 705.8823529 | AO107: ='EIW Calcs'!AN54 -> 1000
B108: ='EIW Calcs'!B55 -> 2018-02-14 | F108: ='EIW Calcs'!AG55 -> 517043.934 | L108: ='EIW Calcs'!AH55 -> 0 | R108: ='EIW Calcs'!AJ55 -> 1176.470588 | W108: ='EIW Calcs'!AK55 -> 294.1176471 | AC108: ='EIW Calcs'!AL55 -> 882.3529412 | AI108: ='EIW Calcs'!AM55 -> 705.8823529 | AO108: ='EIW Calcs'!AN55 -> 1000
B109: ='EIW Calcs'!B56 -> 2018-03-14 | F109: ='EIW Calcs'!AG56 -> 517560.1307 | L109: ='EIW Calcs'!AH56 -> 0 | R109: ='EIW Calcs'!AJ56 -> 1176.470588 | W109: ='EIW Calcs'!AK56 -> 294.1176471 | AC109: ='EIW Calcs'!AL56 -> 882.3529412 | AI109: ='EIW Calcs'!AM56 -> 705.8823529 | AO109: ='EIW Calcs'!AN56 -> 1000
B110: The above values are shown at the end of each month.
B112: These figures are only indicative and the actual values may be higher or lower depending on such factors as actual growth rate and level of charges.
A114: Taxable Income Withdrawal Calculator
A115: Terms of use
B117: =Caveats!A3 -> Terms and Conditions for use of the Income Drawdown Calculators
B119: =Caveats!A5 -> These Terms and Conditions govern the use of the Aviva Taxable Income Withdrawal, Aviva Critical Yield A ("CYA"), Aviva Critical Yield B (“CYB”) and the Aviva Income Recycling (IR) calculators ( “the calculators”) and are supplementary to the Terms of Business For Firms (“our Terms of Business”) and Terms and Conditions for the Aviva Adviser Portal which you have previously entered into (the “Portal Terms and Condition”).
B121: =Caveats!A7 -> Please read these Terms and Conditions carefully. By proceeding to use the calculators you confirm that you have read and agree to these Terms and Conditions and that you agree to be bound by them.
B123: =Caveats!A9 -> Any references to Aviva in these Terms and Conditions shall have the same meaning as Aviva in our Terms of Business. Any reference to you or your in these Terms and Conditions shall mean any party accessing the calculators other than Aviva.
B125: =Caveats!A11 -> These Terms and Conditions shall be interpreted in accordance with the law of England and Wales and the English courts shall have sole jurisdiction.
B127: =Caveats!A13 -> Nothing in these Terms and Conditions shall operate in any way so as to assign, transfer or otherwise dispose of any Intellectual Property Rights owned by Aviva or the Aviva Group Companies in relation to the calculators.
B130: =Caveats!A15 -> About the calculators
B132: =Caveats!A17 -> The calculators may only be used by financial advisers who have previously entered into Terms of Business For Firms with Aviva, and who have a current distribution account with Aviva.
B134: =Caveats!A19 -> The figures provided by the calculators are not guaranteed and are based on the information provided by you as well as Aviva’s understanding of current legislation and tax rates. Actual figures may vary and the calculators should only be used as a general guide.
B136: =Caveats!A21 -> Aviva does not give any warranty in respect of the information produced by the calculators or in respect of any subsequent use of that information. You acknowledge and agree that no such warranty has been provided by Aviva. Any warranties which may be implied by law are excluded to the fullest possible extent.
B138: =Caveats!A23 -> Any advice or guidance provided by you as a consequence of your use of the calculators will remain your sole responsibility, and Aviva will have no liability in respect of any claim that may be made by any of your clients or any other party relating to your use of the calculators.
B140: =Caveats!A25 -> Aviva may withdraw the calculators at any time without notice.
B143: =Caveats!A27 -> Taxable Income Withdrawal
B145: =Caveats!A29 -> The Taxable Income Withdrawal calculator is designed to show how a client’s income may be divided between taxable and non taxable income each month under the Taxable Income Withdrawal option available under the Aviva Pension Portfolio.
B147: =Caveats!A31 -> The Taxable Income Withdrawal calculator assumes a flat tax rate for the whole calculation. This means no other tax rates or bands that may apply to a client’s income are taken into account by the calculator.
B149: =Caveats!A33 -> Please note that when using Taxable Income Withdrawal functionality the total income payment due each month may vary. If your client opts to use Taxable Income Withdrawal functionality under their Pension Portfolio and their tax position is not exactly as input then over or under crystallisation could occur. This could lead to an over or under payment of income and the possibility of a client needing to claim tax back at a later date.
B151: =Caveats!A35 -> Taxable Income Withdrawal is only available through Aviva’s Pension Portfolio product.
B153: =Caveats!A53 -> Your obligations
B155: =Caveats!A55 -> You acknowledge that the calculators may be unavailable for use at any time, and that Aviva is not liable for the unavailability of the calculators under any circumstances.
B157: =Caveats!A57 -> You undertake not to interfere with any programs or data relating to the calculators.
B159: =Caveats!A59 -> You undertake not to subcontract these Terms and Conditions or sublicence the calculators.
B161: =Caveats!A61 -> You promise to pay Aviva's losses and expenses (if any) and hold Aviva harmless in respect of any claim that may be made by your clients or any other party directly or through their legal representatives arising from your use of the calculators.
B163: =Caveats!A63 -> You agree not to use our intellectual property rights other than as permitted by us under these Terms and Conditions and promise to pay Aviva for any losses we suffer arising from any breach by you.
B165: =Caveats!A65 -> You undertake that where your client’s consent is required for the purposes of the Data Protection Act you will be responsible for ensuring this has been obtained.
A174: =Q10&" - "&(TEXT(NOW(), "dd/mm/yyyy"))&" - "&Backdrop!B27 -> Test - 27/03/2018 - V2.5

Sheet IR Output (hidden)
A1: Income Recycling Calculator
B2: For Financial Adviser use only. Not approved for use with customers.
B4: Below is the information entered to produce your Income Recycling example.
B6: This does not constitute a quote and cannot be used to apply for our Taxable Income Withdrawal. Valid quotes can be obtained from
B7: https:\\www.aviva-for-advisers.co.uk
B9: Compiled for | Q9: =" "&Inputsnew!B2 -> Test
B11: Under current pension legislation there is the ability for clients to recycle income from their income drawdown plan back into their pre retirement pension plan.
B13: This can help to maximise any death benefits by holding more funds in the pre retirement account.
B15: It also allows the client to build up a second pension commencement lump sum by recycling income payments back into the pre retirement account.
B18: Tools inputs
B20: Customer age | R20: ='IR Calcs'!E5 -> 65
B22: Start date | R22: ='IR Calcs'!E6 -> 14/04/2015
B24: Pre retirement fund | R24: ='IR Calcs'!E7 -> 500000
B26: Amount moved into drawdown | R26: ='IR Calcs'!E8 -> 125000
B28: Tax free cash (PCLS) | R28: ='IR Calcs'!E9 -> 0.25
B30: Gilt yield | R30: ='IR Calcs'!E10 -> 0.0325
B32: Iniitial maximum annual income | R32: ='IR Calcs'!E11 -> 8578.125
B34: Annual income required | R34: ='IR Calcs'!E12 -> 6000
B36: Planned retirement age | R36: ='IR Calcs'!E13 -> 75
B38: Assumed growth before charges | R38: ='IR Calcs'!E14 -> 0.09
B40: Annual drawdown charges | R40: ='IR Calcs'!E15 -> 0
B42: Annual percentage charges | R42: ='IR Calcs'!E16 -> 0.01
B44: Results
B46: The tables below show the difference between recycling and not recycling drawdown income based on the inputs used.
B48: It is important you and your client understand the potential consequences of recycling income as well as the rules covering contributions. Some key points are highlighted below but for more information please visit the HMRC website.
C50: ▪ Relevant UK individuals are able to contribute up to the basic amount, currently £3,600, each year to a registered pension scheme and obtain tax relief on those member contributions. Any member contributions above £3,600 will need to be supported by a member's relevant UK earnings.
C52: ▪ Taking Flexi-access payments will reduce your client's Annual Allowance to £10,000 per annum for Money Purchase Schemes.
C54: ▪ As pension income (from either an annuity or drawdown plan) is not classed as relevant UK earnings, this can only be recycled where there are relevant UK earnings at least equal to the gross amount paid as pension contributions.
C56: ▪ As with any investment in a pension arrangement, fund values can go down as well as up and the pension income available from any 'recycled' contributions may be less than the pension income when it was initially received.
B58: Impact of Income Recycling on the Pension Fund
R60: Income recycling not used | AA60: Income recycling used
B62: Tax free cash taken | R62: ='IR Calcs'!J5 -> 31250 | AA62: ='IR Calcs'!K5 -> 31250
B64: Gross annual income | R64: ='IR Calcs'!J6 -> 0 | AA64: ='IR Calcs'!K6 -> 6000
B66: Gross annual pension contributions | R66: ='IR Calcs'!J7 -> 0 | AA66: ='IR Calcs'!K7 -> 6000
B68: Post retirement drawdown fund | R68: ='IR Calcs'!J8 -> 200718.8693 | AA68: ='IR Calcs'!K8 -> 110504.971
B70: Pre retirement drawdown fund | R70: ='IR Calcs'!J9 -> 802875.4771 | AA70: ='IR Calcs'!K9 -> 893089.3754
B72: Total retirement funds | R72: ='IR Calcs'!J10 -> 1003594.346 | AA72: ='IR Calcs'!K10 -> 1003594.346
B74: Additional tax free cash at retirement | R74: ='IR Calcs'!J11 -> 200718.8693 | AA74: ='IR Calcs'!K11 -> 223272.3439
B77: Client Benefits
B79: Total tax free cash | R79: ='IR Calcs'!J13 -> 231968.8693 | AA79: ='IR Calcs'!K13 -> 254522.3439
B81: Total fund to buy a pension | R81: ='IR Calcs'!J14 -> 802875.4771 | AA81: ='IR Calcs'!K14 -> 1003594.346
B83: Lump sum death benefit at retirement | R83: ='IR Calcs'!J15 -> 893198.9683 | AA83: ='IR Calcs'!K15 -> 942816.6124
B85: These figures are only indicative and the actual values may be higher or lower depending on such factors as actual growth rate and level of charges.
A86: Income Recycling Calculator
A87: Terms of use
B89: =Caveats!A3 -> Terms and Conditions for use of the Income Drawdown Calculators
B91: =Caveats!A5 -> These Terms and Conditions govern the use of the Aviva Taxable Income Withdrawal, Aviva Critical Yield A ("CYA"), Aviva Critical Yield B (“CYB”) and the Aviva Income Recycling (IR) calculators ( “the calculators”) and are supplementary to the Terms of Business For Firms (“our Terms of Business”) and Terms and Conditions for the Aviva Adviser Portal which you have previously entered into (the “Portal Terms and Condition”).
B93: =Caveats!A7 -> Please read these Terms and Conditions carefully. By proceeding to use the calculators you confirm that you have read and agree to these Terms and Conditions and that you agree to be bound by them.
B95: =Caveats!A9 -> Any references to Aviva in these Terms and Conditions shall have the same meaning as Aviva in our Terms of Business. Any reference to you or your in these Terms and Conditions shall mean any party accessing the calculators other than Aviva.
B97: =Caveats!A11 -> These Terms and Conditions shall be interpreted in accordance with the law of England and Wales and the English courts shall have sole jurisdiction.
B99: =Caveats!A13 -> Nothing in these Terms and Conditions shall operate in any way so as to assign, transfer or otherwise dispose of any Intellectual Property Rights owned by Aviva or the Aviva Group Companies in relation to the calculators.
B102: =Caveats!A15 -> About the calculators
B104: =Caveats!A17 -> The calculators may only be used by financial advisers who have previously entered into Terms of Business For Firms with Aviva, and who have a current distribution account with Aviva.
B106: =Caveats!A19 -> The figures provided by the calculators are not guaranteed and are based on the information provided by you as well as Aviva’s understanding of current legislation and tax rates. Actual figures may vary and the calculators should only be used as a general guide.
B108: =Caveats!A21 -> Aviva does not give any warranty in respect of the information produced by the calculators or in respect of any subsequent use of that information. You acknowledge and agree that no such warranty has been provided by Aviva. Any warranties which may be implied by law are excluded to the fullest possible extent.
B110: =Caveats!A23 -> Any advice or guidance provided by you as a consequence of your use of the calculators will remain your sole responsibility, and Aviva will have no liability in respect of any claim that may be made by any of your clients or any other party relating to your use of the calculators.
B112: =Caveats!A25 -> Aviva may withdraw the calculators at any time without notice.
B115: =Caveats!A45 -> Income Recycling
B117: =Caveats!A47 -> The IR calculator is intended to illustrate the effect of recycling income back into a pre retirement account on both a pre retirement and a post retirement account.
B119: =Caveats!A49 -> IR should only be used where all relevant rules and regulations as directed by the HMRC or other such appropriate body are adhered to in full.
B122: =Caveats!A53 -> Your obligations
B124: =Caveats!A55 -> You acknowledge that the calculators may be unavailable for use at any time, and that Aviva is not liable for the unavailability of the calculators under any circumstances.
B126: =Caveats!A57 -> You undertake not to interfere with any programs or data relating to the calculators.
B128: =Caveats!A59 -> You undertake not to subcontract these Terms and Conditions or sublicence the calculators.
B130: =Caveats!A61 -> You promise to pay Aviva's losses and expenses (if any) and hold Aviva harmless in respect of any claim that may be made by your clients or any other party directly or through their legal representatives arising from your use of the calculators.
B132: =Caveats!A63 -> You agree not to use our intellectual property rights other than as permitted by us under these Terms and Conditions and promise to pay Aviva for any losses we suffer arising from any breach by you.
B134: =Caveats!A65 -> You undertake that where your client’s consent is required for the purposes of the Data Protection Act you will be responsible for ensuring this has been obtained.
A156: =Q9&" - "&(TEXT(NOW(), "dd/mm/yyyy"))&" - "&Backdrop!B27 -> Test - 27/03/2018 - V2.5

Sheet CYB Output (hidden)
A1: Critical Yield B Calculator
B2: For Financial Adviser use only. Not approved for use with customers.
B4: Below is the information entered to produce your Critical Yield B example.
B6: This does not constitute a quote and cannot be used to apply for our Taxable Income Withdrawal. Valid quotes can be obtained from
B7: `
B8: https:\\www.aviva-for-advisers.co.uk
B10: Compiled for | Q10: =" "&Inputsnew!F2 -> 
B13: Tools inputs
B15: Start date | L15: ='annuity inputs'!C28 -> 2017-04-12
B17: Date of birth | L17: ='annuity inputs'!C30 -> 1955-01-29
B19: Gender | L19: =IF('annuity inputs'!C29="m", "Male", "Female") -> Female
B21: Age to buy an annuity | L21: ='annuity inputs'!C31 -> 2030-01-29
B23: Pre retirement fund | L23: ='annuity inputs'!C27 -> 49733.33
L25: First income payment | V25: =IF(V27=0, "", "Second income payment") ->  | AF25: =IF(AF27=0, "", "Third income payment") -> 
B27: Annual income amount | L27: ='annuity inputs'!C34 -> 11499.96 | V27: =IF(ISERROR('annuity inputs'!D33), 0, 'annuity inputs'!D33) -> 0 | AF27: =IF(ISERROR('annuity inputs'!E33), 0, 'annuity inputs'!E33) -> 0
B29: Income start date | L29: =Inputsnew!F8 -> 12/04/2017 | V29: =IF(ISERROR('annuity inputs'!D34), 0, 'annuity inputs'!D34) -> 2237-04-13 | AF29: =IF(ISERROR('annuity inputs'!E34), 0, 'annuity inputs'!E34) -> 2237-04-13
B31: Gilt yield | L31: ='annuity inputs'!C35 -> 0.02 | X31: =IF(Inputsnew!B27="Yes", "You have selected to include your existing business policy", "") -> 
B33: Annual drawdown charges | L33: ='annuity inputs'!C32 -> 0 | X33: =IF(Inputsnew!B29="Yes", "You have selected to include your existing business policy", "") -> 
B35: Annual percentage charges | L35: ='annuity inputs'!C33 -> 0.019 | X35: =IF(Inputsnew!B31="Yes", "You have selected to include your existing business policy", "") -> 
B39: The table below show the critical yields that may be needed to maintain the level(s) of income requested.
B41: We have projected in 5 year segments from your clients' current age to the age they plan to buy an annuity. This is to show how the critical yield changes over time.
B43: It is important the relationship between the level of income being taken and the impact it has on the fund in the long term is understood.
B45: =IF(Inputsnew!F17="N","The below is based on a single life annuity, payable monthly in advance, guaranteed for 5 years.","The below is based on a joint life annuity, payable monthly in advance, guaranteed for 5 years, paying 50% spouse benefits assuming your spouse is "&IF(Inputsnew!F18="m"," 3 years younger."," 3 years older.")) -> The below is based on a single life annuity, payable monthly in advance, guaranteed for 5 years.
B48: Age | G48: Critical yield to maintain income
B50: ='annuity inputs'!I32 -> 55 | G50: ='annuity inputs'!J32 -> n/a
B52: ='annuity inputs'!I33 -> 60 | G52: ='annuity inputs'!J33 -> n/a
B54: ='annuity inputs'!I34 -> 65 | G54: ='annuity inputs'!J34 -> 0.2898903499
B56: ='annuity inputs'!I35 -> 70 | G56: ='annuity inputs'!J35 -> 0.2673172615
B58: ='annuity inputs'!I36 -> 75 | G58: ='annuity inputs'!J36 -> 0.2601330837
B61: These figures are only indicative and the actual values may be higher or lower depending on such factors as actual growth rate and level of charges.
A63: Critical Yield B Calculator
A64: Terms of use
B66: =Caveats!A3 -> Terms and Conditions for use of the Income Drawdown Calculators
B68: =Caveats!A5 -> These Terms and Conditions govern the use of the Aviva Taxable Income Withdrawal, Aviva Critical Yield A ("CYA"), Aviva Critical Yield B (“CYB”) and the Aviva Income Recycling (IR) calculators ( “the calculators”) and are supplementary to the Terms of Business For Firms (“our Terms of Business”) and Terms and Conditions for the Aviva Adviser Portal which you have previously entered into (the “Portal Terms and Condition”).
B70: =Caveats!A7 -> Please read these Terms and Conditions carefully. By proceeding to use the calculators you confirm that you have read and agree to these Terms and Conditions and that you agree to be bound by them.
B72: =Caveats!A9 -> Any references to Aviva in these Terms and Conditions shall have the same meaning as Aviva in our Terms of Business. Any reference to you or your in these Terms and Conditions shall mean any party accessing the calculators other than Aviva.
B74: =Caveats!A11 -> These Terms and Conditions shall be interpreted in accordance with the law of England and Wales and the English courts shall have sole jurisdiction.
B76: =Caveats!A13 -> Nothing in these Terms and Conditions shall operate in any way so as to assign, transfer or otherwise dispose of any Intellectual Property Rights owned by Aviva or the Aviva Group Companies in relation to the calculators.
B79: =Caveats!A15 -> About the calculators
B81: =Caveats!A17 -> The calculators may only be used by financial advisers who have previously entered into Terms of Business For Firms with Aviva, and who have a current distribution account with Aviva.
B83: =Caveats!A19 -> The figures provided by the calculators are not guaranteed and are based on the information provided by you as well as Aviva’s understanding of current legislation and tax rates. Actual figures may vary and the calculators should only be used as a general guide.
B85: =Caveats!A21 -> Aviva does not give any warranty in respect of the information produced by the calculators or in respect of any subsequent use of that information. You acknowledge and agree that no such warranty has been provided by Aviva. Any warranties which may be implied by law are excluded to the fullest possible extent.
B87: =Caveats!A23 -> Any advice or guidance provided by you as a consequence of your use of the calculators will remain your sole responsibility, and Aviva will have no liability in respect of any claim that may be made by any of your clients or any other party relating to your use of the calculators.
B89: =Caveats!A25 -> Aviva may withdraw the calculators at any time without notice.
B92: =Caveats!A41 -> Critical Yield B
B94: =Caveats!A43 -> The main purpose of the CYB calculator is to provide an indication of the growth rate needed to maintain the drawdown income. The calculator can also be used to produce figures that take account of one or more changing levels of income during the plan.
B97: =Caveats!A53 -> Your obligations
B99: =Caveats!A55 -> You acknowledge that the calculators may be unavailable for use at any time, and that Aviva is not liable for the unavailability of the calculators under any circumstances.
B101: =Caveats!A57 -> You undertake not to interfere with any programs or data relating to the calculators.
B103: =Caveats!A59 -> You undertake not to subcontract these Terms and Conditions or sublicence the calculators.
B105: =Caveats!A61 -> You promise to pay Aviva's losses and expenses (if any) and hold Aviva harmless in respect of any claim that may be made by your clients or any other party directly or through their legal representatives arising from your use of the calculators.
B107: =Caveats!A63 -> You agree not to use our intellectual property rights other than as permitted by us under these Terms and Conditions and promise to pay Aviva for any losses we suffer arising from any breach by you.
B109: =Caveats!A65 -> You undertake that where your client’s consent is required for the purposes of the Data Protection Act you will be responsible for ensuring this has been obtained.
A123: =Q10&" - "&(TEXT(NOW(), "dd/mm/yyyy"))&" - "&Backdrop!B27 -> - 27/03/2018 - V2.5

Sheet CYA Output (hidden)
A1: Critical Yield A Calculator
B2: For Financial Adviser use only. Not approved for use with customers.
B4: Below is the information entered to produce your Critical Yield A example.
B6: This does not constitute a quote and cannot be used to apply for our Taxable Income Withdrawal. Valid quotes can be obtained from
B8: https:\\www.aviva-for-advisers.co.uk
B10: Compiled for | Q10: =" "&Inputsnew!F2 -> 
B13: Tool inputs
B15: Start date | L15: ='annuity inputs'!C28 -> 2017-04-12
B17: Date of birth | L17: ='annuity inputs'!C30 -> 1955-01-29
B19: Gender | L19: =IF('annuity inputs'!C29="m", "Male", "Female") -> Female
B21: Age to buy an annuity | L21: ='annuity inputs'!C31 -> 2030-01-29
B23: Post retirement fund | L23: ='annuity inputs'!C27 -> 49733.33
B25: Annual charges | L25: =Inputsnew!F15/100 -> 0.00019
B27: Initial adviser charge | L27: =Inputsnew!F25 -> 0
B29: Ongoing adviser charge (%) | L29: =Inputsnew!F22/100 -> 0
B31: Ongoing adviser charge (£'s) | L31: =Inputsnew!F14 -> 0
B33: Annual annuity amount | L33: =Inputsnew!F7 -> 11,499.96
B35: Spouse date of birth | L35: =Inputsnew!H17 -> 0
B39: The table below show the critical yields that may be needed to maintain the level(s) of current Aviva annuity.
B41: We have projected to your chosen retirement age, and to 10 years.
B43: It is important the relationship between the level of income being taken and the impact it has on the fund in the long term is understood.
B45: =IF(Inputsnew!F17="N","The below is based on a single life annuity, payable monthly in "&LOWER(Inputsnew!F23)&", guaranteed for "&Inputsnew!F24&" years.","The below is based on a joint life annuity, payable monthly in "&LOWER(Inputsnew!F23)&", guaranteed for "&Inputsnew!F24&" years, paying "&TEXT(Inputsnew!G17/100,"0.00%")&"") -> The below is based on a single life annuity, payable monthly in , guaranteed for years.
I48: Critical yield to maintain income
B50: After 10 years | I50: ='CYA Calcs'!K3 -> 0.009779497215
B52: ="At age "&Inputsnew!F16 -> At age 75 | I52: ='CYA Calcs'!K4 -> 0.005265765558
B61: These figures are only indicative and the actual values may be higher or lower depending on such factors as actual growth rate and level of charges.
A63: Critical Yield A Calculator
A64: Terms of use
B66: =Caveats!A3 -> Terms and Conditions for use of the Income Drawdown Calculators
B68: =Caveats!A5 -> These Terms and Conditions govern the use of the Aviva Taxable Income Withdrawal, Aviva Critical Yield A ("CYA"), Aviva Critical Yield B (“CYB”) and the Aviva Income Recycling (IR) calculators ( “the calculators”) and are supplementary to the Terms of Business For Firms (“our Terms of Business”) and Terms and Conditions for the Aviva Adviser Portal which you have previously entered into (the “Portal Terms and Condition”).
B70: =Caveats!A7 -> Please read these Terms and Conditions carefully. By proceeding to use the calculators you confirm that you have read and agree to these Terms and Conditions and that you agree to be bound by them.
B72: =Caveats!A9 -> Any references to Aviva in these Terms and Conditions shall have the same meaning as Aviva in our Terms of Business. Any reference to you or your in these Terms and Conditions shall mean any party accessing the calculators other than Aviva.
B74: =Caveats!A11 -> These Terms and Conditions shall be interpreted in accordance with the law of England and Wales and the English courts shall have sole jurisdiction.
B76: =Caveats!A13 -> Nothing in these Terms and Conditions shall operate in any way so as to assign, transfer or otherwise dispose of any Intellectual Property Rights owned by Aviva or the Aviva Group Companies in relation to the calculators.
B79: =Caveats!A15 -> About the calculators
B81: =Caveats!A17 -> The calculators may only be used by financial advisers who have previously entered into Terms of Business For Firms with Aviva, and who have a current distribution account with Aviva.
B83: =Caveats!A19 -> The figures provided by the calculators are not guaranteed and are based on the information provided by you as well as Aviva’s understanding of current legislation and tax rates. Actual figures may vary and the calculators should only be used as a general guide.
B85: =Caveats!A21 -> Aviva does not give any warranty in respect of the information produced by the calculators or in respect of any subsequent use of that information. You acknowledge and agree that no such warranty has been provided by Aviva. Any warranties which may be implied by law are excluded to the fullest possible extent.
B87: =Caveats!A23 -> Any advice or guidance provided by you as a consequence of your use of the calculators will remain your sole responsibility, and Aviva will have no liability in respect of any claim that may be made by any of your clients or any other party relating to your use of the calculators.
B89: =Caveats!A25 -> Aviva may withdraw the calculators at any time without notice.
B92: =Caveats!A37 -> Critical Yield A
B94: =Caveats!A39 -> The main purpose of the CYA calculator is to provide an indication of the growth rate needed to match the annuity that could be purchased with your whole post retirement fund now. The calculation assumes you take that amount as drawdown income and then buy an annuity of that amount.
B97: =Caveats!A53 -> Your obligations
B99: =Caveats!A55 -> You acknowledge that the calculators may be unavailable for use at any time, and that Aviva is not liable for the unavailability of the calculators under any circumstances.
B101: =Caveats!A57 -> You undertake not to interfere with any programs or data relating to the calculators.
B103: =Caveats!A59 -> You undertake not to subcontract these Terms and Conditions or sublicence the calculators.
B105: =Caveats!A61 -> You promise to pay Aviva's losses and expenses (if any) and hold Aviva harmless in respect of any claim that may be made by your clients or any other party directly or through their legal representatives arising from your use of the calculators.
B107: =Caveats!A63 -> You agree not to use our intellectual property rights other than as permitted by us under these Terms and Conditions and promise to pay Aviva for any losses we suffer arising from any breach by you.
B109: =Caveats!A65 -> You undertake that where your client’s consent is required for the purposes of the Data Protection Act you will be responsible for ensuring this has been obtained.
A123: =Q10&" - "&(TEXT(NOW(), "dd/mm/yyyy"))&" - "&Backdrop!B27 -> - 27/03/2018 - V2.5

Sheet Caveats (hidden)
A1: Income Drawdown Calculators
A3: Terms and Conditions for use of the Income Drawdown Calculators
A5: These Terms and Conditions govern the use of the Aviva Taxable Income Withdrawal, Aviva Critical Yield A ("CYA"), Aviva Critical Yield B (“CYB”) and the Aviva Income Recycling (IR) calculators ( “the calculators”) and are supplementary to the Terms of Business For Firms (“our Terms of Business”) and Terms and Conditions for the Aviva Adviser Portal which you have previously entered into (the “Portal Terms and Condition”).
A7: Please read these Terms and Conditions carefully. By proceeding to use the calculators you confirm that you have read and agree to these Terms and Conditions and that you agree to be bound by them.
A9: Any references to Aviva in these Terms and Conditions shall have the same meaning as Aviva in our Terms of Business. Any reference to you or your in these Terms and Conditions shall mean any party accessing the calculators other than Aviva.
A11: These Terms and Conditions shall be interpreted in accordance with the law of England and Wales and the English courts shall have sole jurisdiction.
A13: Nothing in these Terms and Conditions shall operate in any way so as to assign, transfer or otherwise dispose of any Intellectual Property Rights owned by Aviva or the Aviva Group Companies in relation to the calculators.
A15: About the calculators
A17: The calculators may only be used by financial advisers who have previously entered into Terms of Business For Firms with Aviva, and who have a current distribution account with Aviva.
A19: The figures provided by the calculators are not guaranteed and are based on the information provided by you as well as Aviva’s understanding of current legislation and tax rates. Actual figures may vary and the calculators should only be used as a general guide.
A21: Aviva does not give any warranty in respect of the information produced by the calculators or in respect of any subsequent use of that information. You acknowledge and agree that no such warranty has been provided by Aviva. Any warranties which may be implied by law are excluded to the fullest possible extent.
A23: Any advice or guidance provided by you as a consequence of your use of the calculators will remain your sole responsibility, and Aviva will have no liability in respect of any claim that may be made by any of your clients or any other party relating to your use of the calculators.
A25: Aviva may withdraw the calculators at any time without notice.
A27: Taxable Income Withdrawal
A29: The Taxable Income Withdrawal calculator is designed to show how a client’s income may be divided between taxable and non taxable income each month under the Taxable Income Withdrawal option available under the Aviva Pension Portfolio.
A31: The Taxable Income Withdrawal calculator assumes a flat tax rate for the whole calculation. This means no other tax rates or bands that may apply to a client’s income are taken into account by the calculator.
A33: Please note that when using Taxable Income Withdrawal functionality the total income payment due each month may vary. If your client opts to use Taxable Income Withdrawal functionality under their Pension Portfolio and their tax position is not exactly as input then over or under crystallisation could occur. This could lead to an over or under payment of income and the possibility of a client needing to claim tax back at a later date.
A35: Taxable Income Withdrawal is only available through Aviva’s Pension Portfolio product.
A37: Critical Yield A
A39: The main purpose of the CYA calculator is to provide an indication of the growth rate needed to match the annuity that could be purchased with your whole post retirement fund now. The calculation assumes you take that amount as drawdown income and then buy an annuity of that amount.
A41: Critical Yield B
A43: The main purpose of the CYB calculator is to provide an indication of the growth rate needed to maintain the drawdown income. The calculator can also be used to produce figures that take account of one or more changing levels of income during the plan.
A45: Income Recycling
A47: The IR calculator is intended to illustrate the effect of recycling income back into a pre retirement account on both a pre retirement and a post retirement account.
A49: IR should only be used where all relevant rules and regulations as directed by the HMRC or other such appropriate body are adhered to in full.
A53: Your obligations
A55: You acknowledge that the calculators may be unavailable for use at any time, and that Aviva is not liable for the unavailability of the calculators under any circumstances.
A57: You undertake not to interfere with any programs or data relating to the calculators.
A59: You undertake not to subcontract these Terms and Conditions or sublicence the calculators.
A61: You promise to pay Aviva's losses and expenses (if any) and hold Aviva harmless in respect of any claim that may be made by your clients or any other party directly or through their legal representatives arising from your use of the calculators.
A63: You agree not to use our intellectual property rights other than as permitted by us under these Terms and Conditions and promise to pay Aviva for any losses we suffer arising from any breach by you.
A65: You undertake that where your client’s consent is required for the purposes of the Data Protection Act you will be responsible for ensuring this has been obtained.
A67: You agree that if you cease to have a distribution account with Aviva your right to access the calculators can be terminated forthwith.
A69: You have read and agree to the above information and Terms and Conditions and wish to use the calculators

Sheet Sheet1 (hidden)
B3: EIW Assumptions
B5: income is paid monthly in arrears
B6: tax is paid at the inputted rate on the full payment - no allowance of tax codes or tax allowances
B7: amc accounts for product, fund and adviser charges
B8: annual drawdown charge of £100 (capped) or £250 (flex) is taken monthly
B9: ??? All crystallisations occur on the 19th of the month (or the next avaliable working day)

Sheet CYB CALCS >>> (hidden)

Sheet PA80 (hidden)
B3: PMA80 | C3: PFA80
A5: Age!x | B5: l{x}
A7: 20 | B7: 9980.0048 | C7: 9992.4621 | D7: 20 | E7: 211.22976 | F7: 20 | G7: 144.69553 | I7: 20 | J7: 9980.0048 | K7: 9992.4621
A8: 21 | B8: 9975.0547 | C8: 9990.6535 | D8: 21 | E8: 211.01188 | F8: 21 | G8: 144.65192 | I8: 21 | J8: 9975.0547 | K8: 9990.6535
A9: 22 | B9: 9970.3764 | C9: 9988.8652 | D9: 22 | E9: 210.79928 | F9: 22 | G9: 144.60832 | I9: 22 | J9: 9970.3764 | K9: 9988.8652
A10: 23 | B10: 9965.9496 | C10: 9987.0971 | D10: 23 | E10: 210.59504 | F10: 23 | G10: 144.56473 | I10: 23 | J10: 9965.9496 | K10: 9987.0971
A11: 24 | B11: 9961.7539 | C11: 9985.3294 | D11: 24 | E11: 210.4044 | F11: 24 | G11: 144.52116 | I11: 24 | J11: 9961.7539 | K11: 9985.3294
A12: 25 | B12: 9957.7692 | C12: 9983.552 | D12: 25 | E12: 210.23077 | F12: 25 | G12: 144.4776 | I12: 25 | J12: 9957.7692 | K12: 9983.552
A13: 26 | B13: 9953.9554 | C13: 9981.755 | D13: 26 | E13: 210.07411 | F13: 26 | G13: 144.43405 | I13: 26 | J13: 9953.9554 | K13: 9981.755
A14: 27 | B14: 9950.2923 | C14: 9979.9283 | D14: 27 | E14: 209.92999 | F14: 27 | G14: 144.39052 | I14: 27 | J14: 9950.2923 | K14: 9979.9283
A15: 28 | B15: 9946.7301 | C15: 9978.0521 | D15: 28 | E15: 209.79532 | F15: 28 | G15: 144.347 | I15: 28 | J15: 9946.7301 | K15: 9978.0521
A16: 29 | B16: 9943.2488 | C16: 9976.0864 | D16: 29 | E16: 209.66666 | F16: 29 | G16: 144.30349 | I16: 29 | J16: 9943.2488 | K16: 9976.0864
A17: 30 | B17: 9939.8084 | C17: 9973.9715 | D17: 30 | E17: 209.54125 | F17: 30 | G17: 144.26 | I17: 30 | J17: 9939.8084 | K17: 9973.9715
A18: 31 | B18: 9936.3593 | C18: 9971.6974 | D18: 31 | E18: 209.41888 | F18: 31 | G18: 144.21652 | I18: 31 | J18: 9936.3593 | K18: 9971.6974
A19: 32 | B19: 9932.8518 | C19: 9969.2444 | D19: 32 | E19: 209.29956 | F19: 32 | G19: 144.17305 | I19: 32 | J19: 9932.8518 | K19: 9969.2444
A20: 33 | B20: 9929.2362 | C20: 9966.5826 | D20: 33 | E20: 209.17131 | F20: 33 | G20: 144.12512 | I20: 33 | J20: 9929.2362 | K20: 9966.5826
A21: 34 | B21: 9925.4532 | C21: 9963.7023 | D21: 34 | E21: 209.0319 | F21: 34 | G21: 144.0717 | I21: 34 | J21: 9925.4532 | K21: 9963.7023
A22: 35 | B22: 9921.4532 | C22: 9960.5637 | D22: 35 | E22: 208.88025 | F22: 35 | G22: 144.01216 | I22: 35 | J22: 9921.4532 | K22: 9960.5637
A23: 36 | B23: 9917.1473 | C23: 9957.1373 | D23: 36 | E23: 208.71504 | F23: 36 | G23: 143.9458 | I23: 36 | J23: 9917.1473 | K23: 9957.1373
A24: 37 | B24: 9912.4664 | C24: 9953.3834 | D24: 37 | E24: 208.53468 | F24: 37 | G24: 143.87185 | I24: 37 | J24: 9912.4664 | K24: 9953.3834
A25: 38 | B25: 9907.3417 | C25: 9949.2826 | D25: 38 | E25: 208.33723 | F25: 38 | G25: 143.78945 | I25: 38 | J25: 9907.3417 | K25: 9949.2826
A26: 39 | B26: 9901.6648 | C26: 9944.7856 | D26: 39 | E26: 208.12036 | F26: 39 | G26: 143.69762 | I26: 39 | J26: 9901.6648 | K26: 9944.7856
A27: 40 | B27: 9895.3475 | C27: 9939.843 | D27: 40 | E27: 207.88122 | F27: 40 | G27: 143.5953 | I27: 40 | J27: 9895.3475 | K27: 9939.843
A28: 41 | B28: 9888.2723 | C28: 9934.4059 | D28: 41 | E28: 207.6164 | F28: 41 | G28: 143.48131 | I28: 41 | J28: 9888.2723 | K28: 9934.4059
A29: 42 | B29: 9880.3221 | C29: 9928.4155 | D29: 42 | E29: 207.32178 | F29: 42 | G29: 143.35431 | I29: 42 | J29: 9880.3221 | K29: 9928.4155
A30: 43 | B30: 9871.3607 | C30: 9921.823 | D30: 43 | E30: 206.99239 | F30: 43 | G30: 143.21285 | I30: 43 | J30: 9871.3607 | K30: 9921.823
A31: 44 | B31: 9861.2623 | C31: 9914.5503 | D31: 44 | E31: 206.62233 | F31: 44 | G31: 143.0553 | I31: 44 | J31: 9861.2623 | K31: 9914.5503
A32: 45 | B32: 9849.8627 | C32: 9906.5294 | D32: 45 | E32: 206.20454 | F32: 45 | G32: 142.87984 | I32: 45 | J32: 9849.8627 | K32: 9906.5294
A33: 46 | B33: 9836.9889 | C33: 9897.6829 | D33: 46 | E33: 205.73072 | F33: 46 | G33: 142.68446 | I33: 46 | J33: 9836.9889 | K33: 9897.6829
A34: 47 | B34: 9822.4597 | C34: 9887.9139 | D34: 47 | E34: 205.19109 | F34: 47 | G34: 142.46695 | I34: 47 | J34: 9822.4597 | K34: 9887.9139
A35: 48 | B35: 9806.0758 | C35: 9877.1262 | D35: 48 | E35: 204.57428 | F35: 48 | G35: 142.22483 | I35: 48 | J35: 9806.0758 | K35: 9877.1262
A36: 49 | B36: 9787.611 | C36: 9865.2045 | D36: 49 | E36: 203.86719 | F36: 49 | G36: 141.95538 | I36: 49 | J36: 9787.611 | K36: 9865.2045
A37: 50 | B37: 9766.8319 | C37: 9852.0344 | D37: 50 | E37: 203.05489 | F37: 50 | G37: 141.65557 | I37: 50 | J37: 9766.8319 | K37: 9852.0344
A38: 51 | B38: 9743.4794 | C38: 9837.483 | D38: 51 | E38: 202.12057 | F38: 51 | G38: 141.32206 | I38: 51 | J38: 9743.4794 | K38: 9837.483
A39: 52 | B39: 9717.2694 | C39: 9821.3987 | D39: 52 | E39: 201.04562 | F39: 52 | G39: 140.95118 | I39: 52 | J39: 9717.2694 | K39: 9821.3987
A40: 53 | B40: 9687.9038 | C40: 9803.6318 | D40: 53 | E40: 199.80977 | F40: 53 | G40: 140.53884 | I40: 53 | J40: 9687.9038 | K40: 9803.6318
A41: 54 | B41: 9655.0425 | C41: 9784.0049 | D41: 54 | E41: 198.39133 | F41: 54 | G41: 140.08058 | I41: 54 | J41: 9655.0425 | K41: 9784.0049
A42: 55 | B42: 9618.334 | C42: 9762.3235 | D42: 55 | E42: 196.76769 | F42: 55 | G42: 139.57147 | I42: 55 | J42: 9618.334 | K42: 9762.3235
A43: 56 | B43: 9577.61 | C43: 9738.3766 | D43: 56 | E43: 194.9158 | F43: 56 | G43: 139.00611 | I43: 56 | J43: 9577.61 | K43: 9738.3766
A44: 57 | B44: 9532.6048 | C44: 9711.9369 | D44: 57 | E44: 192.81289 | F44: 57 | G44: 138.37856 | I44: 57 | J44: 9532.6048 | K44: 9711.9369
A45: 58 | B45: 9482.7778 | C45: 9682.7525 | D45: 58 | E45: 190.43727 | F45: 58 | G45: 137.68236 | I45: 58 | J45: 9482.7778 | K45: 9682.7525
A46: 59 | B46: 9427.5217 | C46: 9650.5477 | D46: 59 | E46: 187.86315 | F46: 59 | G46: 136.91044 | I46: 59 | J46: 9427.5217 | K46: 9650.5477
A47: 60 | B47: 9366.1768 | C47: 9615.0144 | D47: 60 | E47: 185.08929 | F47: 60 | G47: 136.05512 | I47: 60 | J47: 9366.1768 | K47: 9615.0144
A48: 61 | B48: 9298.0472 | C48: 9575.8332 | D48: 61 | E48: 182.10433 | F48: 61 | G48: 135.10806 | I48: 61 | J48: 9298.0472 | K48: 9575.8332
A49: 62 | B49: 9221.4685 | C49: 9532.1291 | D49: 62 | E49: 178.89705 | F49: 62 | G49: 134.06026 | I49: 62 | J49: 9221.4685 | K49: 9532.1291
A50: 63 | B50: 9135.4322 | C50: 9483.4199 | D50: 63 | E50: 175.45657 | F50: 63 | G50: 132.90204 | I50: 63 | J50: 9135.4322 | K50: 9483.4199
A51: 64 | B51: 9038.8798 | C51: 9429.1652 | D51: 64 | E51: 171.77258 | F51: 64 | G51: 131.62304 | I51: 64 | J51: 9038.8798 | K51: 9429.1652
A52: 65 | B52: 8930.6844 | C52: 9368.7809 | D52: 65 | E52: 167.83559 | F52: 65 | G52: 130.21222 | I52: 65 | J52: 8930.6844 | K52: 9368.7809
A53: 66 | B53: 8809.6826 | C53: 9301.6442 | D53: 66 | E53: 163.63726 | F53: 66 | G53: 128.65792 | I53: 66 | J53: 8809.6826 | K53: 9301.6442
A54: 67 | B54: 8674.6566 | C54: 9227.0729 | D54: 67 | E54: 159.17069 | F54: 67 | G54: 126.94788 | I54: 67 | J54: 8674.6566 | K54: 9227.0729
A55: 68 | B55: 8524.3942 | C55: 9144.5275 | D55: 68 | E55: 154.43089 | F55: 68 | G55: 125.06938 | I55: 68 | J55: 8524.3942 | K55: 9144.5275
A56: 69 | B56: 8357.6997 | C56: 9053.0457 | D56: 69 | E56: 149.41514 | F56: 69 | G56: 123.00933 | I56: 69 | J56: 8357.6997 | K56: 9053.0457
A57: 70 | B57: 8173.4207 | C57: 8951.1265 | D57: 70 | E57: 144.12349 | F57: 70 | G57: 120.75444 | I57: 70 | J57: 8173.4207 | K57: 8951.1265
A58: 71 | B58: 7970.5074 | C58: 8837.116 | D58: 71 | E58: 138.55922 | F58: 71 | G58: 118.2915 | I58: 71 | J58: 7970.5074 | K58: 8837.116
A59: 72 | B59: 7748.0585 | C59: 8709.2252 | D59: 72 | E59: 132.72941 | F59: 72 | G59: 115.60758 | I59: 72 | J59: 7748.0585 | K59: 8709.2252
A60: 73 | B60: 7505.3583 | C60: 8565.5491 | D60: 73 | E60: 126.64537 | F60: 73 | G60: 112.69049 | I60: 73 | J60: 7505.3583 | K60: 8565.5491
A61: 74 | B61: 7241.9503 | C61: 8404.1399 | D61: 74 | E61: 120.32318 | F61: 74 | G61: 109.52914 | I61: 74 | J61: 7241.9503 | K61: 8404.1399
A62: 75 | B62: 6957.711 | C62: 8223.0307 | D62: 75 | E62: 113.78412 | F62: 75 | G62: 106.1141 | I62: 75 | J62: 6957.711 | K62: 8223.0307
A63: 76 | B63: 6652.8936 | C63: 8020.3577 | D63: 76 | E63: 107.05504 | F63: 76 | G63: 102.43818 | I63: 76 | J63: 6652.8936 | K63: 8020.3577
A64: 77 | B64: 6328.2058 | C64: 7794.4082 | D64: 77 | E64: 100.16858 | F64: 77 | G64: 98.497166 | I64: 77 | J64: 6328.2058 | K64: 7794.4082
A65: 78 | B65: 5984.8627 | C65: 7543.7868 | D65: 78 | E65: 93.163318 | F65: 78 | G65: 94.290549 | I65: 78 | J65: 5984.8627 | K65: 7543.7868
A66: 79 | B66: 5624.6338 | C66: 7267.5107 | D66: 79 | E66: 86.083608 | F66: 79 | G66: 89.822377 | I66: 79 | J66: 5624.6338 | K66: 7267.5107
A67: 80 | B67: 5249.8701 | C67: 6965.1604 | D67: 80 | E67: 78.979273 | F67: 80 | G67: 85.102115 | I67: 80 | J67: 5249.8701 | K67: 6965.1604
A68: 81 | B68: 4863.5111 | C68: 6637.0178 | D68: 81 | E68: 71.904956 | F68: 81 | G68: 80.145499 | I68: 81 | J68: 4863.5111 | K68: 6637.0178
A69: 82 | B69: 4469.0609 | C69: 6284.1873 | D69: 82 | E69: 64.919188 | F69: 82 | G69: 74.975327 | I69: 82 | J69: 4469.0609 | K69: 6284.1873
A70: 83 | B70: 4070.5235 | C70: 5908.6757 | D70: 83 | E70: 58.08312 | F70: 83 | G70: 69.622116 | I70: 83 | J70: 4070.5235 | K70: 5908.6757
A71: 84 | B71: 3672.3123 | C71: 5513.4562 | D71: 84 | E71: 51.458933 | F71: 84 | G71: 64.124533 | I71: 84 | J71: 3672.3123 | K71: 5513.4562
A72: 85 | B72: 3279.1325 | C72: 5102.4611 | D72: 85 | E72: 45.107959 | F72: 85 | G72: 58.529498 | I72: 85 | J72: 3279.1325 | K72: 5102.4611
A73: 86 | B73: 2895.7987 | C73: 4680.508 | D73: 86 | E73: 39.088571 | F73: 86 | G73: 52.891859 | I73: 86 | J73: 2895.7987 | K73: 4680.508
A74: 87 | B74: 2527.0621 | C74: 4253.1542 | D74: 87 | E74: 33.453944 | F74: 87 | G74: 47.273532 | I74: 87 | J74: 2527.0621 | K74: 4253.1542
A75: 88 | B75: 2177.3951 | C75: 3826.4565 | D75: 88 | E75: 28.249807 | F75: 88 | G75: 41.742031 | I75: 88 | J75: 2177.3951 | K75: 3826.4565
A76: 89 | B76: 1850.7923 | C76: 3406.7172 | D76: 89 | E76: 23.512356 | F76: 89 | G76: 36.368333 | I76: 89 | J76: 1850.7923 | K76: 3406.7172
A77: 90 | B77: 1550.5735 | C77: 3000.1493 | D77: 90 | E77: 19.266488 | F77: 90 | G77: 31.224105 | I77: 90 | J77: 1550.5735 | K77: 3000.1493
A78: 91 | B78: 1279.2309 | C78: 2612.557 | D78: 91 | E78: 15.524537 | F78: 91 | G78: 26.378379 | I78: 91 | J78: 1279.2309 | K78: 2612.557
A79: 92 | B79: 1038.3133 | C79: 2249.0171 | D79: 92 | E79: 12.285668 | F79: 92 | G79: 21.89388 | I79: 92 | J79: 1038.3133 | K79: 2249.0171
A80: 93 | B80: 828.37363 | C80: 1913.6234 | D80: 93 | E80: 9.5360192 | F80: 93 | G80: 17.823273 | I80: 93 | J80: 828.37363 | K80: 1913.6234
A81: 94 | B81: 648.94625 | C81: 1609.3114 | D81: 94 | E81: 7.2496656 | F81: 94 | G81: 14.205717 | I81: 94 | J81: 648.94625 | K81: 1609.3114
A82: 95 | B82: 498.56204 | C82: 1337.7626 | D82: 95 | E82: 5.3903353 | F82: 95 | G82: 11.064126 | I82: 95 | J82: 498.56204 | K82: 1337.7626
A83: 96 | B83: 375.09265 | C83: 1099.2155 | D83: 96 | E83: 3.913773 | F83: 96 | G83: 8.4035493 | I83: 96 | J83: 375.09265 | K83: 1099.2155
A84: 97 | B84: 275.93353 | C84: 892.17164 | D84: 97 | E84: 2.7705378 | F84: 97 | G84: 6.2109789 | I84: 97 | J84: 275.93353 | K84: 892.17164
A85: 98 | B85: 198.15808 | C85: 714.60004 | D85: 98 | E85: 1.9089747 | F85: 98 | G85: 4.4567328 | I85: 98 | J85: 198.15808 | K85: 714.60004
A86: 99 | B86: 138.67697 | C86: 564.25462 | D86: 99 | E86: 1.2780767 | F86: 99 | G86: 3.0973437 | I86: 99 | J86: 138.67697 | K86: 564.25462
A87: 100 | B87: 94.401018 | C87: 438.72659 | D87: 100 | E87: 0.82997096 | F87: 100 | G87: 2.0796373 | I87: 100 | J87: 94.401018 | K87: 438.72659
A88: 101 | B88: 62.383025 | C88: 335.49335 | D88: 101 | E88: 0.52182439 | F88: 101 | G88: 1.3454763 | I88: 101 | J88: 62.383025 | K88: 335.49335
A89: 102 | B89: 39.934743 | C89: 251.97597 | D89: 102 | E89: 0.31704987 | F89: 102 | G89: 0.83652609 | I89: 102 | J89: 39.934743 | K89: 251.97597
A90: 103 | B90: 24.708185 | C90: 185.60021 | D90: 103 | E90: 0.18579813 | F90: 103 | G90: 0.49841133 | I90: 103 | J90: 24.708185 | K90: 185.60021
A91: 104 | B91: 14.739297 | C91: 133.85672 | D91: 104 | E91: 0.10481417 | F91: 104 | G91: 0.28376724 | I91: 104 | J91: 14.739297 | K91: 133.85672
A92: 105 | B92: 8.4550945 | C92: 94.357211 | D92: 105 | E92: 0.05680759 | F92: 105 | G92: 0.1539363 | I92: 105 | J92: 8.4550945 | K92: 94.357211
A93: 106 | B93: 4.6509276 | C93: 64.883887 | D93: 106 | E93: 0.02952127 | F93: 106 | G93: 0.07933181 | I93: 106 | J93: 4.6509276 | K93: 64.883887
A94: 107 | B94: 2.4457833 | C94: 43.430484 | D94: 107 | E94: 0.01468034 | F94: 107 | G94: 0.03872543 | I94: 107 | J94: 2.4457833 | K94: 43.430484
A95: 108 | B95: 1.2255209 | C95: 28.23077 | D95: 108 | E95: 0.00697169 | F95: 108 | G95: 0.01785263 | I95: 108 | J95: 1.2255209 | K95: 28.23077
A96: 109 | B96: 0.58303543 | C96: 17.774121 | D96: 109 | E96: 0.00315552 | F96: 109 | G96: 0.00774974 | I96: 109 | J96: 0.58303543 | K96: 17.774121
A97: 110 | B97: 0.26233038 | C97: 10.80775 | D97: 110 | E97: 0.00135854 | F97: 110 | G97: 0.00315854 | I97: 110 | J97: 0.26233038 | K97: 10.80775
A98: 111 | B98: 0.11115515 | C98: 6.3266082 | D98: 111 | E98: 0.00055525 | F98: 111 | G98: 0.0012052 | I98: 111 | J98: 0.11115515 | K98: 6.3266082
A99: 112 | B99: 0.04464358 | C99: 3.5731418 | D99: 112 | E99: 0.00021502 | F99: 112 | G99: 0.00042933 | I99: 112 | J99: 0.04464358 | K99: 3.5731418
A100: 113 | B100: 0.01694706 | C100: 1.9413951 | D100: 113 | E100: 7.874e-05 | F100: 113 | G100: 0.0001424 | I100: 113 | J100: 0.01694706 | K100: 1.9413951
A101: 114 | B101: 0.00606234 | C101: 1.0115503 | D101: 114 | E101: 2.722e-05 | F101: 114 | G101: 4.386e-05 | I101: 114 | J101: 0.00606234 | K101: 1.0115503
A102: 115 | B102: 0.00203727 | C102: 0.50370048 | D102: 115 | E102: 8.86e-06 | F102: 115 | G102: 1.251e-05 | I102: 115 | J102: 0.00203727 | K102: 0.50370048
A103: 116 | B103: 0.00064109 | C103: 0.23879886 | D103: 116 | E103: 2.72e-06 | F103: 116 | G103: 3.3e-06 | I103: 116 | J103: 0.00064109 | K103: 0.23879886
A104: 117 | B104: 0.00018827 | C104: 0.10734438 | D104: 117 | E104: 7.8e-07 | F104: 117 | G104: 8e-07 | I104: 117 | J104: 0.00018827 | K104: 0.10734438
A105: 118 | B105: 5.142e-05 | C105: 0.04554708 | I105: 118 | J105: 5.142e-05 | K105: 0.04554708
A106: 119 | B106: 1.301e-05 | C106: 0.01815256 | I106: 119 | J106: 1.301e-05 | K106: 0.01815256
A107: 120 | B107: 3.04e-06 | C107: 0.00675885 | I107: 120 | J107: 3.04e-06 | K107: 0.00675885

Sheet Inputs (hidden)
A1: i sex | B1: =IF(Isex="M",1,IF(Isex="F",0,"")) -> 0 | C1: =IF(i_sex=1,"Male","Female") -> Female | D1: =IF(basis=1,IF(FSA_basis=0,"Invalid combination of basis and FSA basis","FSA pre 6.4.2003 basis"),IF(FSA_basis=0,"post 6.4.03 SMPI basis","post 6.4.03 FSA basis")) -> post 6.4.03 FSA basis
A2: age | B2: =PA_year+PA_month/12 -> 75 | C2: =age+(FSA_age_diff) -> 75 | E2: =CHOOSE(i_special,1,0,4,7,9,11,13,15,17,2,3,6,8,10,12,14,16) -> 17 | F2: =IF(basis=1,IF(FSA_basis=0,"Invalid combination of basis and FSA basis","FSA pre 6.4.2003 basis"),IF(FSA_basis=0,"post 6.4.03 SMPI basis","post 6.4.03 FSA basis")) -> post 6.4.03 FSA basis
A3: spouse% | B3: =IF(SMPI=1,0.5,i_spouse) -> 0 | C3: SP ret age | D3: FSA annuity basis | E3: =IF(SMPI=1,0,i_esc) -> 1 | F3: =IF(FSA_basis=0,"SMPI",CHOOSE(FSA_basis,"fixed","RPI","LPI")) -> fixed
A4: Esc rate | B4: =IF(SMPI=1,0,IF(i_esc>1,0,i_escrate)) -> 0 | D4: Low,mid or high ? | E4: =FSA_rate_basis -> 3 | F4: =IF(FSA_basis=0,"SMPI",CHOOSE(L_M_H,"Very Low","Low","Mid","High")) -> Mid
A5: mode | B5: =IF(SMPI=1,12,CHOOSE(i_mode,1,2,4,12)) -> 12 | C5: =IF(FSA_basis=0,IF(a_mode=12,"Monthly","Set to 12 for SMPI basis"),VLOOKUP(a_mode,mode_table,2)) -> Monthly | D5: Protected rights basis | E5: =CHOOSE(i_protected,1,0) -> 0 | F5: =IF(Protected_rights=0,"Non Protected rights","Protected rights") -> Non Protected rights
A6: gtee | B6: =IF(SMPI=1,IF(Protected_rights=1,0,5),i_gtee-1) -> 5 | D6: SMPI | E6: =CHOOSE(i_special,0,0,0,0,0,0,0,0,0,1,1,1,1,1,1,1,1) -> 0
A7: rate | B7: =IF(Inputsnew!F1="CYB",'annuity inputs'!C37, IF(basis=1,IF(FSA_basis=0,VLOOKUP(2002,SMPI_rate,2),VLOOKUP(L_M_H,FSA_interest_basis_old,FSA_basis+1)),IF(FSA_basis=0,SMPI_interest,VLOOKUP(L_M_H,FSA_interest_basis_new,FSA_basis+1)))+int_adj) -> 0.2031330837 | C7: =IF(basis=Pre_4.03,VLOOKUP(L_M_H,FSA_interest_basis_old,FSA_basis+1),IF(FSA_basis=0,SMPI_interest,VLOOKUP(L_M_H,FSA_interest_basis_new,FSA_basis+1))) -> 0.013 | D7: 0 | E7: int adj
A8: arrears | B8: =IF(SMPI=1,0,CHOOSE(i_adv,0,1)) -> 0 | D8: .
A9: Year of birth | B9: =birth_year -> 1955 | D9: 0 | E9: NPR diff
A10: Year of birth spouse | B10: =sp_birth_year -> 1955 | C10: =IF(sex=1,YOB+INT(age+i_diff)-INT(age),YOB-INT(age+i_diff)+INT(age)) -> 1955 | D10: 0 | E10: YOB adj
A11: age difference | B11: =-FSA_age_diff -> 0 | C11: =(INT(age)-INT(SP_age)) -> 0
A12: SMPI Tax year | B12: =i_tax_year -> 2017 | E12: =IF(spouse>0,working!I7-working!J7,working!I7) -> 5.087 | F12: =IF(spouse>0,"single COF","") -> 
A13: SMPI interest | B13: =VLOOKUP(SMPI_tax_year,SMPI_rate,2) -> -0.022 | D13: =spouse_COF/spouse ->  | E13: =IF(spouse>0,IF(Protected_rights=1,spouse_2way,spouse_4way),0) -> 0 | F13: =IF(spouse>0,"spouse COF","") -> 
A14: age diff for interpolation | B14: =INT(diff-1) -> -1 | D14: =IF(spouse>0,"combined COF","") ->  | E14: =working!I7 -> 5.087
A15: age diff3 for interpolation | B15: =INT(diff+1) -> 1 | E15: =IF((SMPI_interest=0.018)*(basis=2),"LIVE annuity rate",IF(SMPI_interest=0.024,"test annuity rates","set SMPI rate to 2.4% for test, 1.8% for live")) -> set SMPI rate to 2.4% for test, 1.8% for live
A16: Male YOB | B16: =YOB*sex+YOB_S*(1-sex) -> 1955
A17: Female YOB | B17: =YOB*(1-sex)+YOB_S*(sex) -> 1955
A18: d over d rate | B18: =IF(basis=Pre_4.03,IF(FSA_basis=0,VLOOKUP(2002,SMPI_rate,2),VLOOKUP(L_M_H,FSA_interest_basis_old,2)),IF(FSA_basis=0,SMPI_interest,VLOOKUP(L_M_H,FSA_interest_basis_new,2)))+int_adj -> 0.013 | D18: age | E18: =VLOOKUP(INT(age)-adj,IF(sex=1,male_table,female_table),2)/((1+d_over_d_int)^INT(age)) -> 3311.848564 | F18: =VLOOKUP(INT(ER_age)-adj,IF(sex=1,male_table,female_table),2)/((1+d_over_d_int)^INT(ER_age)) -> 
A19: Male retire age | B19: =age+(diff)*(1-sex) -> 75 | D19: age+1 | E19: =VLOOKUP(INT(age)-adj+1,IF(sex=1,male_table,female_table),2)/((1+d_over_d_int)^(INT(age)+1)) -> 3223.841727 | F19: =VLOOKUP(INT(ER_age)-adj+1,IF(sex=1,male_table,female_table),2)/((1+d_over_d_int)^(INT(ER_age)+1)) -> 
A20: Female retire age | B20: =age-(diff)*(sex) -> 75 | E20: =E18*(1+INT(age)-age)+E19*(age-INT(age)) -> 3311.848564 | F20: =F18*(1+INT(age)-age)+F19*(age-INT(age)) ->  | G20: =E20/F20 -> 
E21: DPA | F21: DERA | G21: Dover D
A22: PA | E22: ERA
A23: =12*(YEAR(Retirement_Date)-YEAR(DOB))+MONTH(Retirement_Date)-MONTH(DOB)+IF(DAY(Retirement_Date)>=DAY(DOB),0,-1) -> 900 | B23: months | C23: =IF(Spouse_DOB>0,12*(YEAR(Retirement_Date)-YEAR(Spouse_DOB))+MONTH(Retirement_Date)-MONTH(Spouse_DOB)+IF(DAY(Retirement_Date)>=DAY(Spouse_DOB),0,-1),12*(YEAR(Retirement_Date)-YEAR(Spouse_DOB_Assumed))+MONTH(Retirement_Date)-MONTH(Spouse_DOB_Assumed)+IF(DAY(Retirement_Date)>=DAY(Spouse_DOB_Assumed),0,-1)) -> 900 | D23: =IF(Isex="M",DATE(YEAR(DOB)+3,MONTH(DOB),DAY(DOB)),DATE(YEAR(DOB)-3,MONTH(DOB),DAY(DOB))) -> 1952-01-29 | E23: =12*(YEAR(Early_Retirement_Date)-YEAR(DOB))+MONTH(Early_Retirement_Date)-MONTH(DOB)+IF(DAY(Early_Retirement_Date)>=DAY(DOB),0,-1) -> -661 | F23: months
A24: =FLOOR(A23/12,1) -> 75 | B24: years | C24: =FLOOR(C23/12,1) -> 75 | E24: =FLOOR(E23/12,1) -> -56 | F24: years
A25: YOB | B25: =YEAR(DOB) -> 1955 | C25: =IF(Protected_rights=1,YEAR(DOB)-3,IF(Isex="M", IF(Spouse_DOB>0,YEAR(Spouse_DOB),YEAR(DOB)+3),IF(Spouse_DOB>0, YEAR(Spouse_DOB), YEAR(DOB)-3))) -> 1955 | D25: difference | E25: months | F25: =E23-ERA_Year*12 -> 11
A26: months | B26: =A23-PA_year*12 -> 0 | C26: =C23-SP_PA_YEAR*12 -> 0 | D26: =-(A23-C23)/12 -> 0 | E26: ERA | F26: =ERA_Year+ERA_Month/12 -> -55.08333333
B27: esc basis | D27: =birth_year-sp_birth_year-(PA_month-C26)/12 -> 0
B28: fixed rate
B29: RPI
B30: LPI
B32: annuity basis | D32: Protected rights
B33: advance | D33: Protected
B34: arrears | D34: Non Protected
B36: annuity special | D36: FSA rate
A37: 1 | B37: FSA pre 4.03 | D37: Very Low
A38: 0 | B38: FSA post 4.03 | D38: Low
A39: 4 | B39: FSA post 4.05 | D39: Mid
A40: 7 | B40: FSA post 11.12 | D40: High
A41: 9 | B41: FSA post 4.13
A42: 11 | B42: FSA post 4.14
A43: 13 | B43: FCA post 4.15
A44: 15 | B44: FCA post 4.16
A45: 17 | B45: FCA post 4.17
A46: 2 | B46: SMPI
A47: 3 | B47: SMPI post 4.05
A48: 6 | B48: SMPI post 4.12
A49: 8 | B49: SMPI post 4.13
A50: 10 | B50: SMPI post 4.14
A51: 12 | B51: SMPI post 4.15
A52: 14 | B52: SMPI post 4.16
A53: 16 | B53: SMPI post 4.17
B55: gtee table
B56: nil | C56: 0 | E56: 16.488
B57: 1 year | C57: 5 | E57: 16.868
B58: 2 years | C58: 10 | E58: =E57/E56 -> 1.023047065
B59: 3 years
B60: 4 years
B61: 5 years
B62: 6 years
B63: 7 years
B64: 8 years
B65: 9 years
B66: 10 years

Sheet working (hidden)
B1: decimal places for rounding | F1: Propn married | G1: =IF(Protected_rights=1,IF(i_special=1,0.9,1),1) -> 1 | K1: 1 | L1: =IF(OR(basis=14,basis=15),"PA00_CMI_2015",IF(OR(basis=12,basis=13),"PA00_CMI_2014",IF(OR(basis=10,basis=11),"PA00_CMI_2013",IF(OR(basis=8,basis=9),"PA00_CMI_2012",IF(basis=6,"PA00",IF(basis=7,"PA00_FSA",IF(OR(basis=3,basis=4),"PMA92mc","PMA92"))))))) -> PMA92 | O1: post 4.03 | P1: pre 4.03 | R1: FSA interest basis | T1: fixed | U1: RPI | V1: LPI | X1: FSA interest basis | Z1: fixed | AA1: RPI | AB1: LPI | AH1: SMPI annuity rate
C2: annuity SL or Spouse | D2: overall Combined | F2: sex used | G2: =IF(Protected_rights=1,0,i_sex) -> 0 | K2: 0 | L2: =IF(OR(basis=16,basis=17),"PA08_CMI_2016") -> PA08_CMI_2016 | N2: Expenses | O2: 0 | P2: 1 | R2: pre 6.4.03 | T2: 1 | U2: 2 | V2: 3 | X2: post 6.4.03 | Z2: 1 | AA2: 2 | AB2: 3 | AC2: Post april 2005 add | AE2: mode table | AH2: tax year | AI2: rate
B3: NPR | C3: 3 | D3: 15 | N3: adj | O3: 0 | P3: 1 | R3: Very Low | S3: 1 | X3: Very Low | Y3: 1 | Z3: =ROUNDUP(Z4*3/5,3) -> -0.005 | AA3: =ROUNDUP(IF(AA4<1,(Z4/Z3),(Z3/Z4))*AA4,3) -> -0.045 | AB3: =AA3 -> -0.045 | AC3: 0.005 | AE3: 1 | AF3: Yearly | AH3: 2002 | AI3: 0.024
B4: PR | C4: 15 | D4: 3 | F4: mortality table | G4: =IF(basis<16,$L$1,$L$2) -> PA08_CMI_2016 | H4: adj | I4: =IF(basis=Pre_4.03,HLOOKUP(Pre_4.03,exp_adj_table,2),HLOOKUP(Post_4.03,exp_adj_table,2)) -> 0 | N4: Expense | O4: 0.04 | P4: 0.04 | R4: low | S4: 2 | T4: 0.04 | U4: 0.02 | V4: 0.02 | X4: low | Y4: 2 | Z4: =IF(i_tax_year>2004,Post_april_2005_add,0)+SMPI_interest+0.01 -> -0.007 | AA4: =SMPI_interest-0.01 -> -0.032 | AB4: =AA4 -> -0.032 | AE4: 2 | AF4: Half-Yearly | AH4: 2003 | AI4: 0.018
H5: ExP | I5: =IF(basis=Pre_4.03,HLOOKUP(Pre_4.03,exp_adj_table,IF(FSA_basis=1,3,4)),HLOOKUP(Post_4.03,exp_adj_table,3)) -> 0.04 | N5: RPI EXP | O5: 0.04 | P5: 0.035 | R5: mid | S5: 3 | T5: 0.06 | U5: 0.03 | V5: 0.035 | X5: mid | Y5: 3 | Z5: =IF(i_tax_year>2004,Post_april_2005_add,0)+SMPI_interest+0.03 -> 0.013 | AA5: =SMPI_interest -> -0.022 | AB5: =AA5 -> -0.022 | AE5: 4 | AF5: Quarterly | AH5: 2004 | AI5: 0.018
B6: Rounding used | C6: =IF(Protected_rights=1,C4,C3) -> 3 | D6: =IF(Protected_rights=1,D4,D3) -> 15 | E6: a"(12)10 | G6: =(1+rate)/(1+Esc_rate)-1 -> 0.2031330837 | I6: rate | J6: spouse | R6: high | S6: 4 | T6: 0.08 | U6: 0.04 | V6: 0.05 | X6: high | Y6: 4 | Z6: =IF(i_tax_year>2004,Post_april_2005_add,0)+SMPI_interest+0.05 -> 0.033 | AA6: =SMPI_interest+0.01 -> -0.012 | AB6: =AA6 -> -0.012 | AE6: 12 | AF6: Monthly | AH6: 2005 | AI6: 0.012
E7: =(1-1/((1+interest)^10))/((1+interest)^(1/a_mode)-1)/a_mode*((1+interest*(1-arrears))^(1/a_mode)) -> 4.591819591 | I7: =IF(Protected_rights=1,PR_COF,ROUND(H11+J7,DPcombined)) -> 5.087 | J7: =IF(Protected_rights=1,spouse_2way,IF(INT(i_diff)=diff,spouse_2way,spouse_4way)) -> 0 | Z7: Amended to add extra to post 2005 basis | AH7: 2006 | AI7: 0.006
E8: a"(12)5 | G8: 2 way interp | H8: per 1,000 | I8: =1000/I7 -> 196.5795164 | L8: 0)female | S8: widows | Y8: widowers | AH8: 2007 | AI8: 0.008
D9: =(1-1/((1+interest)^gtee))/((1+interest)^(1/a_mode)-1)/a_mode*((1+interest*(1-arrears))^(1/a_mode)) -> 3.287686204 | E9: =(1-1/((1+interest)^5))/((1+interest)^(1/a_mode)-1)/a_mode*((1+interest*(1-arrears))^(1/a_mode)) -> 3.287686204 | G9: age | H9: =VLOOKUP(INT(age)-adj,IF(sex=1,male_table,female_table),5+(gtee>0)) -> 5.087 | I9: =(VLOOKUP(INT(age)-adj,IF(sex=1,widows,widowers),4)) -> 0.442 | J9: =ROUND(H9+I9*(spouse*PPN_married),DPcombined) -> 5.087 | K9: Age | L9: l{x} | M9: Dx | AE9: spouse 1 year older | AH9: 2008 | AI9: 0.006 | AK9: member 1 year older
A10: Age | B10: l{x} | C10: Dx | D10: a"x | G10: age+1 | H10: =VLOOKUP(INT(age)-adj+1,IF(sex=1,male_table,female_table),5+(gtee>0)) -> 5.034 | I10: =VLOOKUP(INT(age)-adj+1,IF(sex=1,widows,widowers),4) -> 0.47 | J10: =ROUND(H10+I10*(spouse*PPN_married),DPcombined) -> 5.034 | K10: --- | L10: -------- | AH10: 2009 | AI10: 0.006
A11: 20 | B11: =IF(basis<>1,HLOOKUP(YOB*sex+YOB_S*(1-sex),INDIRECT($G$4),$A36-18),VLOOKUP($A11,PA80_new,2)) -> 0 | C11: =(1+interest)^(-A11)*B11 -> 0 | D11: =1+(D12*C12)/C11 ->  | E11: =ROUND((D11-11/24)*(1+EXP)+(1+EXP)*(11/24-(a_mode-1)/(2*a_mode)-1/a_mode*arrears),DPsingle) ->  | F11: =ROUND((1+EXP)*(a_gtee+(VLOOKUP(A11+gtee,male_table,4)-(a_mode-1)/(2*a_mode)-1/a_mode*arrears)*VLOOKUP(A11+gtee,male_table,3)/C11),DPsingle) ->  | H11: =H9*(1+INT(age)-age)+H10*(age-INT(age)) -> 5.087 | I11: =I9*(1+INT(age)-age)+I10*(age-INT(age)) -> 0.442 | J11: =I11*(spouse*PPN_married) -> 0 | K11: 20 | L11: =IF(basis<>1,HLOOKUP(YOB*(1-sex)+YOB_S*(sex),INDIRECT($G$4),$K11-18),VLOOKUP($K11,PA80_new,3)) -> 0 | M11: =(1+interest)^(-K11)*L11 -> 0 | N11: =1+(N12*M12)/M11 ->  | O11: =ROUND((N11-11/24)*(1+EXP)+(1+EXP)*(11/24-(a_mode-1)/(2*a_mode)-1/a_mode*arrears),DPsingle) ->  | P11: =ROUND((1+EXP)*(a_gtee+(VLOOKUP(K11+gtee,female_table,4)-(a_mode-1)/(2*a_mode)-1/a_mode*arrears)*VLOOKUP(K11+gtee,female_table,3)/M11),DPsingle) ->  | AC11: 51232016.47 | AD11: =K11 -> 20 | AE11: =IF(sex=1,VLOOKUP(AD11-diff2,female_table,2)*C11,VLOOKUP(AJ11-diff2,male_table,3)*L11) -> 0 | AF11: =1+(AF12*AE12)/AE11 ->  | AH11: 2010 | AI11: 0.004 | AJ11: =K11 -> 20 | AK11: =IF(sex=1,VLOOKUP(AD11-diff3,female_table,2)*C11,VLOOKUP(AJ11-diff3,male_table,3)*L11) ->  | AL11: =1+(AL12*AK12)/AK11 -> 
A12: 21 | B12: =IF(basis<>1,HLOOKUP(YOB*sex+YOB_S*(1-sex),INDIRECT($G$4),$A12-18),VLOOKUP($A12,PA80,2)) -> 0 | C12: 0 | H12: AGE | I12: age +1 | J12: =J9*(1+INT(age)-age)+J10*(age-INT(age)) -> 5.087 | K12: 21 | L12: =IF(basis<>1,HLOOKUP(YOB*(1-sex)+YOB_S*(sex),INDIRECT($G$4),$K12-18),VLOOKUP($K12,PA81,3)) -> 0 | M12: 0 | R12: =K11 -> 20 | S12: =VLOOKUP(R12-diff,female_table,2)*C11 -> 0 | T12: =1+(T13*S13)/S12 ->  | X12: =K11 -> 20 | Y12: =VLOOKUP(X12-diff,male_table,3)*L11 -> 0 | Z12: =1+(Z13*Y13)/Y12 ->  | AD12: 21 | AE12: 0 | AH12: 2011 | AI12: 0.002 | AJ12: 21 | AK12: 0
A13: 22 | B13: 0 | C13: 0 | G13: 4 way interp | H13: =(VLOOKUP(INT(age)-adj,IF(sex=1,male_table,female_table),5+(gtee>0))) -> 5.087 | I13: =VLOOKUP(INT(age)-adj+1,IF(sex=1,male_table,female_table),5+(gtee>0)) -> 5.034 | J13: =(H13*(1+INT(age)-age)+I13*(age-INT(age))) -> 5.087 | K13: 22 | L13: 0 | M13: 0 | R13: 21 | S13: 0 | X13: 21 | Y13: 0 | AD13: 22 | AE13: 0 | AH13: 2012 | AI13: -0.006 | AJ13: 22 | AK13: 0
A14: 23 | B14: 0 | C14: 0 | G14: square | H14: spouses benefit | K14: 23 | L14: 0 | M14: 0 | R14: 22 | S14: 0 | X14: 22 | Y14: 0 | AD14: 23 | AE14: 0 | AH14: 2013 | AI14: -0.006 | AJ14: 23 | AK14: 0 | AM14: =ROUND((IF(sex=1,VLOOKUP(AJ14-diff3,female_table,4),VLOOKUP(AJ14-diff3,male_table,4))-AL14)*(1+EXP),DPsingle) -> 
A15: 24 | B15: 0 | C15: 0 | H15: spouse | K15: 24 | L15: 0 | M15: 0 | R15: 23 | S15: 0 | X15: 23 | Y15: 0 | AA15: =ROUND((VLOOKUP(X15-diff,male_table,4)-Z15)*(1*1+EXP),DPsingle) ->  | AD15: 24 | AE15: 0 | AH15: 2014 | AI15: -0.004 | AJ15: 24 | AK15: 0
A16: 25 | B16: 0 | C16: 0 | G16: member | H16: age | I16: age +1 | K16: 25 | L16: 0 | M16: 0 | Q16: =L13*C16 -> 0 | R16: 24 | S16: 0 | X16: 24 | Y16: 0 | AD16: 25 | AE16: 0 | AG16: =ROUND((IF(sex=1,VLOOKUP(AD16-diff2*sex,female_table,4),VLOOKUP(AD16-diff2,male_table,4))-AF16)*(1+EXP),DPsingle) ->  | AH16: 2015 | AI16: -0.012 | AJ16: 25 | AK16: 0
A17: 26 | B17: 0 | C17: 0 | G17: age | H17: =VLOOKUP(INT(age)-adj,IF(sex=1,widows,widowers),4) -> 0.442 | I17: =VLOOKUP(INT(age)-adj,widows2,4) -> 0.424 | J17: =(H17*(1+INT(SP_age)-SP_age)+I17*(SP_age-INT(SP_age))) -> 0.442 | K17: 26 | L17: 0 | M17: 0 | R17: 25 | S17: 0 | U17: =ROUND((VLOOKUP(R17-diff,female_table,4)-T17)*(1+EXP),DPsingle) ->  | V17: =(N13-T17)*(1+EXP) ->  | X17: 25 | Y17: 0 | AD17: 26 | AE17: 0 | AH17: 2016 | AI17: -0.014 | AJ17: 26 | AK17: 0
A18: 27 | B18: 0 | C18: 0 | G18: age +1 | H18: =VLOOKUP(INT(age)-adj+1,widowers2,4) -> 0.49 | I18: =VLOOKUP(INT(age)-adj+1,IF(sex=1,widows,widowers),4) -> 0.47 | J18: =(H18*(1+INT(SP_age)-SP_age)+I18*(SP_age-INT(SP_age))) -> 0.49 | K18: 27 | L18: 0 | M18: 0 | R18: 26 | S18: 0 | X18: 26 | Y18: 0 | AD18: 27 | AE18: 0 | AH18: 2017 | AI18: -0.022 | AJ18: 27 | AK18: 0
A19: 28 | B19: 0 | C19: 0 | H19: =(H17*(1+INT(age)-age)+H18*(age-INT(age))) -> 0.442 | I19: =(I17*(1+INT(age)-age)+I18*(age-INT(age))) -> 0.424 | K19: 28 | L19: 0 | M19: 0 | R19: 27 | S19: 0 | X19: 27 | Y19: 0 | AD19: 28 | AE19: 0 | AJ19: 28 | AK19: 0
A20: 29 | B20: 0 | C20: 0 | I20: =(I17*(1+INT(age)-age)+I18*(age-INT(age))) -> 0.424 | J20: =(J17*(1+INT(age)-age)+J18*(age-INT(age)))*(spouse*PPN_married) -> 0 | K20: 29 | L20: 0 | M20: 0 | R20: 28 | S20: 0 | X20: 28 | Y20: 0 | AD20: 29 | AE20: 0 | AJ20: 29 | AK20: 0
A21: 30 | B21: 0 | C21: 0 | G21: 4 way interp | J21: =(H19*(1+INT(SP_age)-SP_age)+I19*(SP_age-INT(SP_age)))*(spouse*PPN_married) -> 0 | K21: 30 | L21: 0 | M21: 0 | R21: 29 | S21: 0 | X21: 29 | Y21: 0 | AD21: 30 | AE21: 0 | AJ21: 30 | AK21: 0
A22: 31 | B22: 0 | C22: 0 | G22: diagonal | K22: 31 | L22: 0 | M22: 0 | R22: 30 | S22: 0 | X22: 30 | Y22: 0 | AD22: 31 | AE22: 0 | AJ22: 31 | AK22: 0
A23: 32 | B23: 0 | C23: 0 | H23: spouses benefit | K23: 32 | L23: 0 | M23: 0 | R23: 31 | S23: 0 | X23: 31 | Y23: 0 | AD23: 32 | AE23: 0 | AJ23: 32 | AK23: 0
A24: 33 | B24: 0 | C24: 0 | H24: spouse | K24: 33 | L24: 0 | M24: 0 | Q24: =L19*C24 -> 0 | R24: 32 | S24: 0 | X24: 32 | Y24: 0 | AD24: 33 | AE24: 0 | AJ24: 33 | AK24: 0
A25: 34 | B25: 0 | C25: 0 | G25: member | H25: age-diff | I25: age +1 | K25: 34 | L25: 0 | M25: 0 | R25: 33 | S25: 0 | V25: =(N19-T25)*(1+EXP) ->  | X25: 33 | Y25: 0 | AD25: 34 | AE25: 0 | AJ25: 34 | AK25: 0
A26: 35 | B26: 0 | C26: 0 | G26: age | H26: =VLOOKUP(INT(age)-adj,IF(diff=INT(i_diff),IF(sex=1,widows,widowers),widows2),4) -> 0.442 | I26: =VLOOKUP(INT(age)-adj+1,IF(diff=INT(i_diff),widowers2,IF(sex=1,widows,widowers)),4) -> 0.49 | K26: 35 | L26: 0 | M26: 0 | R26: 34 | S26: 0 | X26: 34 | Y26: 0 | AD26: 35 | AE26: 0 | AJ26: 35 | AK26: 0
A27: 36 | B27: 0 | C27: 0 | G27: age +1 | H27: =VLOOKUP(INT(age)-adj,IF(diff=INT(i_diff),widowers2,IF(sex=1,widows,widowers)),4) -> 0.459 | I27: =VLOOKUP(INT(age)-adj+1,IF(diff=INT(i_diff),IF(sex=1,widows,widowers),widows2),4) -> 0.47 | K27: 36 | L27: 0 | M27: 0 | R27: 35 | S27: 0 | X27: 35 | Y27: 0 | AD27: 36 | AE27: 0 | AJ27: 36 | AK27: 0
A28: 37 | B28: 0 | C28: 0 | J28: =(H26*(1+INT(age)-age)+I27*(age-INT(age))) -> 0.442 | K28: 37 | L28: 0 | M28: 0 | R28: 36 | S28: 0 | X28: 36 | Y28: 0 | AD28: 37 | AE28: 0 | AJ28: 37 | AK28: 0
A29: 38 | B29: 0 | C29: 0 | J29: =(H27*(1+INT(age)-age)+I26*(age-INT(age))) -> 0.459 | K29: 38 | L29: 0 | M29: 0 | R29: 37 | S29: 0 | X29: 37 | Y29: 0 | AD29: 38 | AE29: 0 | AJ29: 38 | AK29: 0
A30: 39 | B30: 0 | C30: 0 | J30: =(J28*(1+INT(i_diff)-i_diff)+J29*(i_diff-INT(i_diff)))*(spouse*PPN_married) -> 0 | K30: 39 | L30: 0 | M30: 0 | R30: 38 | S30: 0 | X30: 38 | Y30: 0 | AD30: 39 | AE30: 0 | AJ30: 39 | AK30: 0
A31: 40 | B31: 0 | C31: 0 | H31: =J30+H11 -> 5.087 | I31: 86.48132565 | K31: 40 | L31: 0 | M31: 0 | R31: 39 | S31: 0 | X31: 39 | Y31: 0 | AD31: 40 | AE31: 0 | AJ31: 40 | AK31: 0
A32: 41 | B32: 0 | C32: 0 | H32: =(I31-H11)/(spouse*PPN_married) ->  | I32: =(I31-H11) -> 81.39432565 | K32: 41 | L32: 0 | M32: 0 | R32: 40 | S32: 0 | X32: 40 | Y32: 0 | AD32: 41 | AE32: 0 | AJ32: 41 | AK32: 0
A33: 42 | B33: 0 | C33: 0 | K33: 42 | L33: 0 | M33: 0 | R33: 41 | S33: 0 | X33: 41 | Y33: 0 | AD33: 42 | AE33: 0 | AJ33: 42 | AK33: 0
A34: 43 | B34: 0 | C34: 0 | K34: 43 | L34: 0 | M34: 0 | R34: 42 | S34: 0 | X34: 42 | Y34: 0 | AD34: 43 | AE34: 0 | AJ34: 43 | AK34: 0
A35: 44 | B35: 0 | C35: 0 | K35: 44 | L35: 0 | M35: 0 | R35: 43 | S35: 0 | X35: 43 | Y35: 0 | AD35: 44 | AE35: 0 | AJ35: 44 | AK35: 0
A36: 45 | B36: 0 | C36: 0 | K36: 45 | L36: 0 | M36: 0 | R36: 44 | S36: 0 | X36: 44 | Y36: 0 | AD36: 45 | AE36: 0 | AJ36: 45 | AK36: 0
A37: 46 | B37: 0 | C37: 0 | K37: 46 | L37: 0 | M37: 0 | R37: 45 | S37: 0 | X37: 45 | Y37: 0 | AD37: 46 | AE37: 0 | AJ37: 46 | AK37: 0
A38: 47 | B38: 0 | C38: 0 | K38: 47 | L38: 0 | M38: 0 | R38: 46 | S38: 0 | X38: 46 | Y38: 0 | AD38: 47 | AE38: 0 | AJ38: 47 | AK38: 0
A39: 48 | B39: 0 | C39: 0 | K39: 48 | L39: 0 | M39: 0 | R39: 47 | S39: 0 | X39: 47 | Y39: 0 | AD39: 48 | AE39: 0 | AJ39: 48 | AK39: 0
A40: 49 | B40: 0 | C40: 0 | K40: 49 | L40: 0 | M40: 0 | R40: 48 | S40: 0 | X40: 48 | Y40: 0 | AD40: 49 | AE40: 0 | AJ40: 49 | AK40: 0
A41: 50 | B41: 0 | C41: 0 | K41: 50 | L41: 0 | M41: 0 | R41: 49 | S41: 0 | X41: 49 | Y41: 0 | AD41: 50 | AE41: 0 | AJ41: 50 | AK41: 0
A42: 51 | B42: 0 | C42: 0 | K42: 51 | L42: 0 | M42: 0 | R42: 50 | S42: 0 | X42: 50 | Y42: 0 | AD42: 51 | AE42: 0 | AJ42: 51 | AK42: 0
A43: 52 | B43: 0 | C43: =(1+interest)^(-A43)*B43 -> 0 | D43: =1+(D44*C44)/C43 ->  | E43: =ROUND((D43-11/24)*(1+EXP)+(1+EXP)*(11/24-(a_mode-1)/(2*a_mode)-1/a_mode*arrears),DPsingle) ->  | F43: =ROUND((1+EXP)*(a_gtee+(VLOOKUP(A43+gtee,male_table,4)-(a_mode-1)/(2*a_mode)-1/a_mode*arrears)*VLOOKUP(A43+gtee,male_table,3)/C43),DPsingle) ->  | K43: 52 | L43: =IF(basis<>1,HLOOKUP(YOB*(1-sex)+YOB_S*(sex),INDIRECT($G$4),$K43-18),VLOOKUP($K43,PA112,3)) -> 0 | M43: =(1+interest)^(-K43)*L43 -> 0 | N43: =1+(N44*M44)/M43 ->  | O43: =ROUND((N43-11/24)*(1+EXP)+(1+EXP)*(11/24-(a_mode-1)/(2*a_mode)-1/a_mode*arrears),DPsingle) ->  | P43: =ROUND((1+EXP)*(a_gtee+(VLOOKUP(K43+gtee,female_table,4)-(a_mode-1)/(2*a_mode)-1/a_mode*arrears)*VLOOKUP(K43+gtee,female_table,3)/M43),DPsingle) ->  | R43: 51 | S43: 0 | X43: 51 | Y43: 0 | AD43: =K43 -> 52 | AE43: =IF(sex=1,VLOOKUP(AD43-diff2,female_table,2)*C43,VLOOKUP(AJ43-diff2,male_table,3)*L43) -> 0 | AF43: =1+(AF44*AE44)/AE43 ->  | AJ43: =K43 -> 52 | AK43: =IF(sex=1,VLOOKUP(AD43-diff3,female_table,2)*C43,VLOOKUP(AJ43-diff3,male_table,3)*L43) -> 0 | AL43: =1+(AL44*AK44)/AK43 -> 
A44: 53 | B44: =IF(basis<>1,HLOOKUP(YOB*sex+YOB_S*(1-sex),INDIRECT($G$4),$A44-18),VLOOKUP($A44,PA112,2)) -> 10000 | C44: =(1+interest)^(-A44)*B44 -> 0.553828798 | D44: =1+(D45*C45)/C44 -> 5.791094106 | E44: 5.546 | F44: 5.563 | K44: 53 | L44: 10000 | M44: 0.553828798 | N44: 5.791094106 | O44: 5.546 | P44: 5.563 | R44: =K43 -> 52 | S44: =VLOOKUP(R44-diff,female_table,2)*C43 -> 0 | T44: =1+(T45*S45)/S44 ->  | X44: =K43 -> 52 | Y44: =VLOOKUP(X44-diff,male_table,3)*L43 -> 0 | Z44: =1+(Z45*Y45)/Y44 ->  | AD44: 53 | AE44: 4586.085005 | AF44: 5.666709322 | AG44: 0.124 | AJ44: 53 | AK44: 0
A45: 54 | B45: 9962.772998 | C45: 0.4586085005 | D45: 5.785862859 | E45: 5.541 | F45: 5.558 | K45: 54 | L45: 9962.772998 | M45: 0.4586085005 | N45: 5.785862859 | O45: 5.541 | P45: 5.558 | R45: 53 | S45: 5538.28798 | T45: 5.671250971 | U45: 0.125 | X45: 53 | Y45: 5538.28798 | Z45: 5.671250971 | AA45: 0.125 | AD45: 54 | AE45: 3783.187271 | AF45: 5.657115049 | AG45: 0.128 | AJ45: 54 | AK45: 5517.670594 | AL45: 5.666709322 | AM45: 0.129
A46: 55 | B46: 9924.974706 | C46: 0.3797323568 | D46: 5.779958832 | E46: 5.534 | F46: 5.552 | K46: 55 | L46: 9924.974706 | M46: 0.3797323568 | N46: 5.779958832 | O46: 5.534 | P46: 5.552 | R46: 54 | S46: 4569.012385 | T46: 5.662215578 | U46: 0.129 | X46: 54 | Y46: 4569.012385 | Z46: 5.662215578 | AA46: 0.129 | AD46: 55 | AE46: 3120.468141 | AF46: 5.646184348 | AG46: 0.132 | AJ46: 55 | AK46: 4551.677767 | AL46: 5.657115049 | AM46: =ROUND((IF(sex=1,VLOOKUP(AJ46-diff3,female_table,4),VLOOKUP(AJ46-diff3,male_table,4))-AL46)*(1+EXP),DPsingle) -> 0.134
A47: 56 | B47: 9886.801557 | C47: 0.3144056517 | D47: 5.773131058 | E47: 5.527 | F47: 5.546 | K47: 56 | L47: 9886.801557 | M47: 0.3144056517 | N47: 5.773131058 | O47: 5.527 | P47: 5.546 | R47: 55 | S47: 3768.834036 | T47: 5.652071838 | U47: 0.133 | X47: 55 | Y47: 3768.834036 | Z47: 5.652071838 | AA47: =ROUND((VLOOKUP(X47-diff,male_table,4)-Z47)*(1*1+EXP),DPsingle) -> 0.133 | AD47: 56 | AE47: 2573.567223 | AF47: 5.633530806 | AG47: 0.137 | AJ47: 56 | AK47: 3754.338457 | AL47: 5.646184348 | AM47: 0.139
A48: 57 | B48: 9848.244941 | C48: 0.2603033153 | D48: 5.765195035 | E48: 5.519 | F48: 5.538 | K48: 57 | L48: 9848.244941 | M48: 0.2603033153 | N48: 5.765195035 | O48: 5.519 | P48: 5.538 | R48: 56 | S48: 3108.466287 | T48: 5.640365719 | U48: 0.138 | X48: 56 | Y48: 3108.466287 | Z48: 5.640365719 | AA48: 0.138 | AD48: 57 | AE48: 2122.217437 | AF48: 5.618982674 | AG48: =ROUND((IF(sex=1,VLOOKUP(AD48-diff2*sex,female_table,4),VLOOKUP(AD48-diff2,male_table,4))-AF48)*(1+EXP),DPsingle) -> 0.143 | AJ48: 57 | AK48: 3096.343869 | AL48: 5.633530806 | AM48: 0.145
A49: 58 | B49: 9808.979985 | C49: 0.215491943 | D49: 5.756113423 | E49: 5.51 | F49: 5.53 | K49: 58 | L49: 9808.979985 | M49: 0.215491943 | N49: 5.756113423 | O49: 5.51 | P49: 5.53 | R49: 57 | S49: 2563.530808 | T49: 5.626778641 | U49: =ROUND((VLOOKUP(R49-diff,female_table,4)-T49)*(1+EXP),DPsingle) -> 0.144 | X49: 57 | Y49: 2563.530808 | Z49: 5.626778641 | AA49: 0.144 | AD49: 58 | AE49: 1749.666272 | AF49: 5.60248873 | AG49: 0.149 | AJ49: 58 | AK49: 2553.31001 | AL49: 5.618982674 | AM49: 0.152
A50: 59 | B50: 9768.72429 | C50: 0.1783739263 | D50: 5.745818036 | E50: 5.499 | F50: 5.52 | K50: 59 | L50: 9768.72429 | M50: 0.1783739263 | N50: 5.745818036 | O50: 5.499 | P50: 5.52 | R50: 58 | S50: 2113.756156 | T50: 5.611285652 | U50: 0.151 | X50: 58 | Y50: 2113.756156 | Z50: 5.611285652 | AA50: 0.151 | AD50: 59 | AE50: 1442.139324 | AF50: 5.583939892 | AG50: 0.156 | AJ50: 59 | AK50: 2105.081378 | AL50: 5.60248873 | AM50: 0.16
A51: 60 | B51: 9727.237429 | C51: 0.1476282144 | D51: 5.734203315 | E51: 5.487 | F51: 5.51 | K51: 60 | L51: 9727.237429 | M51: 0.1476282144 | N51: 5.734203315 | O51: 5.487 | P51: 5.51 | R51: 59 | S51: 1742.485706 | T51: 5.593809693 | U51: 0.158 | X51: 59 | Y51: 1742.485706 | Z51: 5.593809693 | AA51: 0.158 | AD51: 60 | AE51: 1188.29678 | AF51: 5.563155676 | AG51: 0.164 | AJ51: 60 | AK51: 1735.085532 | AL51: 5.583939892 | AM51: 0.168
A52: 61 | B52: 9684.322032 | C52: 0.1221617945 | D52: 5.721117513 | E52: 5.473 | F52: 5.498 | K52: 61 | L52: 9684.322032 | M52: 0.1221617945 | N52: 5.721117513 | O52: 5.473 | P52: 5.498 | R52: 60 | S52: 1436.014693 | T52: 5.574210186 | U52: 0.166 | X52: 60 | Y52: 1436.014693 | Z52: 5.574210186 | AA52: 0.166 | AD52: 61 | AE52: 978.7899338 | AF52: 5.539884514 | AG52: 0.173 | AJ52: 61 | AK52: 1429.679169 | AL52: 5.563155676 | AM52: 0.178
A53: 62 | B53: 9639.794144 | C53: 0.101069536 | D53: 5.706370194 | E53: 5.458 | F53: 5.484 | K53: 62 | L53: 9639.794144 | M53: 0.101069536 | N53: 5.706370194 | O53: 5.458 | P53: 5.484 | R53: 61 | S53: 1183.054158 | T53: 5.5522674 | U53: 0.176 | X53: 61 | Y53: 1183.054158 | Z53: 5.5522674 | AA53: 0.176 | AD53: 62 | AE53: 805.8998008 | AF53: 5.513828466 | AG53: 0.183 | AJ53: 62 | AK53: 1177.614551 | AL53: 5.539884514 | AM53: 0.188
A54: 63 | B54: 9593.441816 | C54: 0.08360134966 | D54: 5.689748473 | E54: 5.441 | F54: 5.469 | K54: 63 | L54: 9593.441816 | M54: 0.08360134966 | N54: 5.689748473 | O54: 5.441 | P54: 5.469 | R54: 62 | S54: 974.2895208 | T54: 5.527698657 | U54: 0.186 | X54: 62 | Y54: 974.2895208 | Z54: 5.527698657 | AA54: 0.186 | AD54: 63 | AE54: 663.2486024 | AF54: 5.484660575 | AG54: 0.194 | AJ54: 63 | AK54: 969.6047125 | AL54: 5.513828466 | AM54: 0.2
A55: 64 | B55: 9545.01739 | C55: 0.06913562569 | D55: 5.671016903 | E55: 5.421 | F55: 5.451 | K55: 64 | L55: 9545.01739 | M55: 0.06913562569 | N55: 5.671016903 | O55: 5.421 | P55: 5.451 | R55: 63 | S55: 802.0246837 | T55: 5.500191508 | U55: 0.197 | X55: 63 | Y55: 802.0246837 | Z55: 5.500191508 | AA55: 0.197 | AD55: 64 | AE55: 545.5673238 | AF55: 5.452021646 | AG55: 0.206 | AJ55: 64 | AK55: 797.9763363 | AL55: 5.484660575 | AM55: 0.213
A56: 65 | B56: 9494.238176 | C56: 0.05715728967 | D56: 5.649912339 | E56: 5.399 | F56: 5.432 | K56: 65 | L56: 9494.238176 | M56: 0.05715728967 | N56: 5.649912339 | O56: 5.399 | P56: 5.432 | R56: 64 | S56: 659.9007494 | T56: 5.469405322 | U56: 0.21 | X56: 64 | Y56: 659.9007494 | Z56: 5.469405322 | AA56: 0.21 | AD56: 65 | AE56: 448.502664 | AF56: 5.415525326 | AG56: 0.219 | AJ56: 65 | AK56: 656.3900967 | AL56: 5.452021646 | AM56: 0.228
A57: 66 | B57: 9440.762434 | C57: 0.04723945783 | D57: 5.626152346 | E57: 5.375 | F57: 5.41 | K57: 66 | L57: 9440.762434 | M57: 0.04723945783 | N57: 5.626152346 | O57: 5.375 | P57: 5.41 | R57: 65 | S57: 542.6649216 | T57: 5.434963279 | U57: 0.224 | X57: 65 | Y57: 542.6649216 | Z57: 5.434963279 | AA57: 0.224 | AD57: 66 | AE57: 368.4558323 | AF57: 5.37479583 | AG57: 0.234 | AJ57: 66 | AK57: 539.6083931 | AL57: 5.415525326 | AM57: 0.244
A58: 67 | B58: 9384.133986 | C58: 0.03902818601 | D58: 5.599464157 | E58: 5.347 | F58: 5.386 | K58: 67 | L58: 9384.133986 | M58: 0.03902818601 | N58: 5.599464157 | O58: 5.347 | P58: 5.386 | R58: 66 | S58: 445.9764989 | T58: 5.396470455 | U58: 0.239 | X58: 66 | Y58: 445.9764989 | Z58: 5.396470455 | AA58: 0.239 | AD58: 67 | AE58: 302.4506597 | AF58: 5.329527271 | AG58: 0.25 | AJ58: 67 | AK58: 443.3014018 | AL58: 5.37479583 | AM58: 0.261
A59: 68 | B59: 9323.733232 | C59: 0.03223000227 | D59: 5.569616197 | E59: 5.316 | F59: 5.36 | K59: 68 | L59: 9323.733232 | M59: 0.03223000227 | N59: 5.569616197 | O59: 5.316 | P59: 5.36 | R59: 67 | S59: 366.2457268 | T59: 5.353570999 | U59: 0.256 | X59: 67 | Y59: 366.2457268 | Z59: 5.353570999 | AA59: 0.256 | AD59: 68 | AE59: 248.0283176 | AF59: 5.279511597 | AG59: 0.267 | AJ59: 68 | AK59: 363.8883949 | AL59: 5.329527271 | AM59: 0.281
A60: 69 | B60: 9258.797816 | C60: 0.02660182477 | D60: 5.536414952 | E60: 5.281 | F60: 5.33 | K60: 69 | L60: 9258.797816 | M60: 0.02660182477 | N60: 5.536414952 | O60: 5.281 | P60: 5.33 | R60: 68 | S60: 300.5039432 | T60: 5.306009489 | U60: 0.274 | X60: 68 | Y60: 300.5039432 | Z60: 5.306009489 | AA60: 0.274 | AD60: 69 | AE60: 203.1614651 | AF60: 5.224613147 | AG60: 0.286 | AJ60: 69 | AK60: 298.4110746 | AL60: 5.279511597 | AM60: 0.302
A61: 70 | B61: 9188.477938 | C61: 0.02194253176 | D61: 5.499680573 | E61: 5.243 | F61: 5.298 | K61: 70 | L61: 9188.477938 | M61: 0.02194253176 | N61: 5.499680573 | O61: 5.243 | P61: 5.298 | R61: 69 | S61: 246.3009171 | T61: 5.253625714 | U61: 0.294 | X61: 69 | Y61: 246.3009171 | Z61: 5.253625714 | AA61: 0.294 | AD61: 70 | AE61: 166.1810995 | AF61: 5.164718486 | AG61: 0.306 | AJ61: 70 | AK61: 244.43028 | AL61: 5.224613147 | AM61: 0.324
A62: 71 | B62: 9111.891957 | C62: 0.01808581362 | D62: 5.459217148 | E62: 5.201 | F62: 5.263 | K62: 71 | L62: 9111.891957 | M62: 0.01808581362 | N62: 5.459217148 | O62: 5.201 | P62: 5.263 | R62: 70 | S62: 201.6184689 | T62: 5.196309245 | U62: 0.316 | X62: 70 | Y62: 201.6184689 | Z62: 5.196309245 | AA62: 0.316 | AD62: 71 | AE62: 135.713645 | AF62: 5.099689844 | AG62: 0.328 | AJ62: 71 | AK62: 199.9379786 | AL62: 5.164718486 | AM62: 0.348
A63: 72 | B63: 9028.157625 | C63: 0.01489412359 | D63: 5.41479126 | E63: 5.155 | F63: 5.224 | K63: 72 | L63: 9028.157625 | M63: 0.01489412359 | N63: 5.41479126 | O63: 5.155 | P63: 5.224 | R63: 71 | S63: 164.7959797 | T63: 5.133944692 | U63: 0.338 | X63: 71 | Y63: 164.7959797 | Z63: 5.133944692 | AA63: 0.338 | AD63: 72 | AE63: 110.6277975 | AF63: 5.029331366 | AG63: 0.35 | AJ63: 72 | AK63: 163.2815762 | AL63: 5.099689844 | AM63: 0.374
A64: 73 | B64: 8936.407862 | C64: 0.01225364046 | D64: 5.366115229 | E64: 5.104 | F64: 5.182 | K64: 73 | L64: 8936.407862 | M64: 0.01225364046 | N64: 5.366115229 | O64: 5.104 | P64: 5.182 | R64: 72 | S64: 134.4664955 | T64: 5.066373322 | U64: 0.362 | X64: 72 | Y64: 134.4664955 | Z64: 5.066373322 | AA64: 0.362 | AD64: 73 | AE64: 89.99029731 | AF64: 4.953379063 | AG64: 0.374 | AJ64: 73 | AK64: 133.0999632 | AL64: 5.029331366 | AM64: 0.401
A65: 74 | B65: 8835.766341 | C65: 0.01007007499 | D65: 5.312850824 | E65: 5.049 | F65: 5.137 | K65: 74 | L65: 8835.766341 | M65: 0.01007007499 | N65: 5.312850824 | O65: 5.049 | P65: 5.137 | R65: 73 | S65: 109.5035289 | T65: 4.993363916 | U65: 0.388 | X65: 73 | Y65: 109.5035289 | Z65: 4.993363916 | AA65: 0.388 | AD65: 74 | AE65: 73.02942946 | AF65: 4.871539595 | AG65: 0.398 | AJ65: 74 | AK65: 108.2703039 | AL65: 4.953379063 | AM65: 0.429
A66: 75 | B66: 8725.269947 | C66: 0.008265206054 | D66: 5.254645913 | E66: 4.988 | F66: 5.087 | K66: 75 | L66: 8725.269947 | M66: 0.008265206054 | N66: 5.254645913 | O66: 4.988 | P66: 5.087 | R66: 74 | S66: 88.97682964 | T66: 4.914621513 | U66: 0.414 | X66: 74 | Y66: 88.97682964 | Z66: 4.914621513 | AA66: 0.414 | AC66: 8.156819151 | AD66: 75 | AE66: 59.10600082 | AF66: 4.783546913 | AG66: 0.424 | AJ66: 75 | AK66: 87.86412266 | AL66: 4.871539595 | AM66: 0.459
A67: 76 | B67: 8603.824825 | C67: 0.006774117154 | D67: 5.191159875 | E67: 4.922 | F67: 5.034 | K67: 76 | L67: 8603.824825 | M67: 0.006774117154 | N67: 5.191159875 | O67: 4.922 | P67: 5.034 | R67: 75 | S67: 72.11615399 | T67: 4.829855617 | U67: 0.442 | X67: 75 | Y67: 72.11615399 | Z67: 4.829855617 | AA67: 0.442 | AC67: 8.136680342 | AD67: 76 | AE67: 47.69102735 | AF67: 4.689148868 | AG67: 0.45 | AJ67: 76 | AK67: 71.11238503 | AL67: 4.783546913 | AM67: 0.49
A68: 77 | B68: 8470.277601 | C68: 0.005543003062 | D68: 5.122026397 | E68: 4.85 | F68: 4.976 | K68: 77 | L68: 8470.277601 | M68: 0.005543003062 | N68: 5.122026397 | O68: 4.85 | P68: 4.976 | R68: 76 | S68: 58.28331734 | T68: 4.738825278 | U68: 0.47 | X68: 76 | Y68: 58.28331734 | Z68: 4.738825278 | AA68: 0.47 | AD68: 77 | AE68: 38.34700549 | AF68: 4.58808445 | AG68: 0.477 | AJ68: 77 | AK68: 57.3786528 | AL68: 4.689148868 | AM68: 0.522
A69: 78 | B69: 8323.385436 | C69: 0.00452724306 | D69: 5.046869505 | E69: 4.772 | F69: 4.915 | K69: 78 | L69: 8323.385436 | M69: 0.00452724306 | N69: 5.046869505 | O69: 4.772 | P69: 4.915 | R69: 77 | S69: 46.95077468 | T69: 4.641268256 | U69: 0.5 | X69: 77 | Y69: 46.95077468 | Z69: 4.641268256 | AA69: 0.5 | AD69: 78 | AE69: 30.71130516 | AF69: 4.480183872 | AG69: 0.505 | AJ69: 78 | AK69: 46.13655096 | AL69: 4.58808445 | AM69: 0.555
A70: 79 | B70: 8161.653085 | C70: 0.003689761264 | D70: 4.965405774 | E70: 4.687 | F70: 4.849 | K70: 79 | L70: 8161.653085 | M70: 0.003689761264 | N70: 4.965405774 | O70: 4.687 | P70: 4.849 | R70: 78 | S70: 37.68198895 | T70: 4.536925205 | U70: 0.53 | X70: 78 | Y70: 37.68198895 | Z70: 4.536925205 | AA70: 0.53 | AD70: 79 | AE70: 24.48298416 | AF70: 4.365521304 | AG70: 0.532 | AJ70: 79 | AK70: 36.94978729 | AL70: 4.480183872 | AM70: 0.589
A71: 80 | B71: 7983.250439 | C71: 0.002999758003 | D71: 4.877526989 | E71: 4.596 | F71: 4.78 | K71: 80 | L71: 7983.250439 | M71: 0.002999758003 | N71: 4.877526989 | O71: 4.596 | P71: 4.78 | R71: 79 | S71: 30.1145514 | T71: 4.425713493 | U71: 0.561 | X71: 79 | Y71: 30.1145514 | Z71: 4.425713493 | AA71: 0.561 | AD71: 80 | AE71: 19.41331735 | AF71: 4.244406212 | AG71: 0.56 | AJ71: 80 | AK71: 29.45628823 | AL71: 4.365521304 | AM71: 0.624
A72: 81 | B72: 7786.229538 | C72: 0.002431756025 | D72: 4.783227634 | E72: 4.498 | F72: 4.708 | K72: 81 | L72: 7786.229538 | M72: 0.002431756025 | N72: 4.783227634 | O72: 4.498 | P72: 4.708 | R72: 80 | S72: 23.9478194 | T72: 4.307858823 | U72: 0.592 | X72: 80 | Y72: 23.9478194 | Z72: 4.307858823 | AA72: 0.592 | AD72: 81 | AE72: 15.29643499 | AF72: 4.117605668 | AG72: 0.588 | AJ72: 81 | AK72: 23.35680437 | AL72: 4.244406212 | AM72: 0.658
A73: 82 | B73: 7568.048279 | C73: 0.001964549711 | D73: 4.682949248 | E73: 4.394 | F73: 4.632 | K73: 82 | L73: 7568.048279 | M73: 0.001964549711 | N73: 4.682949248 | O73: 4.394 | P73: 4.632 | R73: 81 | S73: 18.93421059 | T73: 4.183750113 | U73: 0.623 | X73: 81 | Y73: 18.93421059 | Z73: 4.183750113 | AA73: 0.623 | AD73: 82 | AE73: 11.96392786 | AF73: 3.986003005 | AG73: 0.615 | AJ73: 82 | AK73: 18.403647 | AL73: 4.117605668 | AM73: 0.692
A74: 83 | B74: 7326.97032 | C74: 0.001580847191 | D74: 4.576873035 | E74: 4.283 | F74: 4.554 | K74: 83 | L74: 7326.97032 | M74: 0.001580847191 | N74: 4.576873035 | O74: 4.283 | P74: 4.554 | R74: 82 | S74: 14.86780706 | T74: 4.054518253 | U74: 0.654 | X74: 82 | Y74: 14.86780706 | Z74: 4.054518253 | AA74: 0.654 | AD74: 83 | AE74: 9.278281827 | AF74: 3.850316818 | AG74: 0.64 | AJ74: 83 | AK74: 14.39419742 | AL74: 3.986003005 | AM74: 0.725
A75: 84 | B75: 7061.408521 | C75: =(1+interest)^(-A75)*B75 -> 0.001266319013 | D75: =1+(D76*C76)/C75 -> 4.465296367 | E75: =ROUND((D75-11/24)*(1+EXP)+(1+EXP)*(11/24-(a_mode-1)/(2*a_mode)-1/a_mode*arrears),DPsingle) -> 4.167 | F75: =ROUND((1+EXP)*(a_gtee+(VLOOKUP(A75+gtee,male_table,4)-(a_mode-1)/(2*a_mode)-1/a_mode*arrears)*VLOOKUP(A75+gtee,male_table,3)/C75),DPsingle) -> 4.474 | K75: 84 | L75: =IF(basis<>1,HLOOKUP(YOB*(1-sex)+YOB_S*(sex),INDIRECT($G$4),$K75-18),VLOOKUP($K75,PA144,3)) -> 7061.408521 | M75: =(1+interest)^(-K75)*L75 -> 0.001266319013 | N75: =1+(N76*M76)/M75 -> 4.465296367 | O75: =ROUND((N75-11/24)*(1+EXP)+(1+EXP)*(11/24-(a_mode-1)/(2*a_mode)-1/a_mode*arrears),DPsingle) -> 4.167 | P75: =ROUND((1+EXP)*(a_gtee+(VLOOKUP(K75+gtee,female_table,4)-(a_mode-1)/(2*a_mode)-1/a_mode*arrears)*VLOOKUP(K75+gtee,female_table,3)/M75),DPsingle) -> 4.474 | R75: 83 | S75: 11.58282045 | T75: 3.920805666 | U75: 0.682 | X75: 83 | Y75: 11.58282045 | Z75: 3.920805666 | AA75: 0.682 | AD75: =K75 -> 84 | AE75: =IF(sex=1,VLOOKUP(AD75-diff2,female_table,2)*C75,VLOOKUP(AJ75-diff2,male_table,3)*L75) -> 7.125768555 | AF75: =1+(AF76*AE76)/AE75 -> 3.711324965 | AG75: 0.663 | AJ75: =K75 -> 84 | AK75: =IF(sex=1,VLOOKUP(AD75-diff3,female_table,2)*C75,VLOOKUP(AJ75-diff3,male_table,3)*L75) -> 11.16300783 | AL75: =1+(AL76*AK76)/AK75 -> 3.850316818 | AM75: 0.756
A76: 85 | B76: =IF(basis<>1,HLOOKUP(YOB*sex+YOB_S*(1-sex),INDIRECT($G$4),$A76-18),VLOOKUP($A76,PA144,2)) -> 6770.211774 | C76: 0.001009114334 | D76: 4.348536662 | E76: 4.046 | F76: 4.393 | K76: 85 | L76: 6770.211774 | M76: 0.001009114334 | N76: 4.348536662 | O76: 4.046 | P76: 4.393 | R76: =K75 -> 84 | S76: =VLOOKUP(R76-diff,female_table,2)*C75 -> 8.941995872 | T76: =1+(T77*S77)/S76 -> 3.783402283 | U76: 0.709 | X76: =K75 -> 84 | Y76: =VLOOKUP(X76-diff,male_table,3)*L75 -> 8.941995872 | Z76: =1+(Z77*Y77)/Y76 -> 3.783402283 | AA76: 0.709 | AD76: 85 | AE76: 5.412401642 | AF76: 3.569630536 | AG76: 0.683 | AJ76: 85 | AK76: 8.573247895 | AL76: 3.711324965 | AM76: 0.784
A77: 86 | B77: 6453.02446 | C77: 0.0007994434772 | D77: 4.226760789 | E77: 3.919 | F77: 4.31 | K77: 86 | L77: 6453.02446 | M77: 0.0007994434772 | N77: 4.226760789 | O77: 3.919 | P77: 4.31 | R77: 85 | S77: 6.831917744 | T77: 3.64307251 | U77: 0.734 | X77: 85 | Y77: 6.831917744 | Z77: 3.64307251 | AA77: 0.734 | AD77: 86 | AE77: 4.060011321 | AF77: 3.425574816 | AG77: 0.701 | AJ77: 86 | AK77: 6.511839478 | AL77: 3.569630536 | AM77: 0.81
A78: 87 | B78: 6110.167986 | C78: 0.0006291640992 | D78: 4.10006367 | E78: 3.787 | F78: 4.227 | K78: 87 | L78: 6110.167986 | M78: 0.0006291640992 | N78: 4.10006367 | O78: 3.787 | P78: 4.227 | R78: 86 | S78: 5.158828313 | T78: 3.500262634 | U78: 0.756 | X78: 86 | Y78: 5.158828313 | Z78: 3.500262634 | AA78: 0.756 | AD78: 87 | AE78: 3.002921952 | AF78: 3.279426295 | AG78: 0.717 | AJ78: 87 | AK78: 4.884733941 | AL78: 3.425574816 | AM78: =ROUND((IF(sex=1,VLOOKUP(AJ78-diff3,female_table,4),VLOOKUP(AJ78-diff3,male_table,4))-AL78)*(1+EXP),DPsingle) -> 0.833
A79: 88 | B79: 5742.40449 | C79: 0.0004914630759 | D79: 3.968657793 | E79: 3.651 | F79: 4.146 | K79: 88 | L79: 5742.40449 | M79: 0.0004914630759 | N79: 3.968657793 | O79: 3.651 | P79: 4.146 | R79: 87 | S79: 3.844298337 | T79: 3.355209334 | U79: 0.775 | X79: 87 | Y79: 3.844298337 | Z79: 3.355209334 | AA79: =ROUND((VLOOKUP(X79-diff,male_table,4)-Z79)*(1*1+EXP),DPsingle) -> 0.775 | AD79: 88 | AE79: 2.186007486 | AF79: 3.131251518 | AG79: 0.729 | AJ79: 88 | AK79: 3.612914749 | AL79: 3.279426295 | AM79: 0.853
A80: 89 | B80: 5351.486322 | C80: 0.0003806780749 | D80: 3.832597112 | E80: 3.509 | F80: 4.068 | K80: 89 | L80: 5351.486322 | M80: 0.0003806780749 | N80: 3.832597112 | O80: 3.509 | P80: 4.068 | R80: 88 | S80: 2.822179774 | T80: 3.208203606 | U80: 0.791 | X80: 88 | Y80: 2.822179774 | Z80: 3.208203606 | AA80: 0.791 | AD80: 89 | AE80: 1.563307753 | AF80: 2.980175699 | AG80: =ROUND((IF(sex=1,VLOOKUP(AD80-diff2*sex,female_table,4),VLOOKUP(AD80-diff2,male_table,4))-AF80)*(1+EXP),DPsingle) -> 0.74 | AJ80: 89 | AK80: 2.630057928 | AL80: 3.131251518 | AM80: 0.871
A81: 90 | B81: 4940.834268 | C81: 0.000292125899 | D81: 3.69124278 | E81: 3.362 | F81: 3.994 | K81: 90 | L81: 4940.834268 | M81: 0.000292125899 | N81: 3.69124278 | O81: 3.362 | P81: 3.994 | R81: 89 | S81: 2.037193511 | T81: 3.059084726 | U81: =ROUND((VLOOKUP(R81-diff,female_table,4)-T81)*(1+EXP),DPsingle) -> 0.804 | X81: 89 | Y81: 2.037193511 | Z81: 3.059084726 | AA81: 0.804 | AD81: 90 | AE81: 1.095122708 | AF81: 2.826737131 | AG81: 0.749 | AJ81: 90 | AK81: 1.880867277 | AL81: 2.980175699 | AM81: 0.887
A82: 91 | B82: 4510.309989 | C82: 0.0002216473268 | D82: 3.546993901 | E82: 3.212 | F82: 3.925 | K82: 91 | L82: 4510.309989 | M82: 0.0002216473268 | N82: 3.546993901 | O82: 3.212 | P82: 3.925 | R82: 90 | S82: 1.443345652 | T82: 2.906271298 | U82: 0.816 | X82: 90 | Y82: 1.443345652 | Z82: 2.906271298 | AA82: 0.816 | AD82: 91 | AE82: 0.7466537472 | AF82: 2.67928919 | AG82: 0.76 | AJ82: 91 | AK82: 1.31757836 | AL82: 2.826737131 | AM82: 0.899
A83: 92 | B83: 4052.942294 | C83: 0.0001655437761 | D83: 3.410181903 | E83: 3.07 | F83: 3.865 | K83: 92 | L83: 4052.942294 | M83: 0.0001655437761 | N83: 3.410181903 | O83: 3.07 | P83: 3.865 | R83: 91 | S83: 0.9996981523 | T83: 2.752239147 | U83: 0.827 | X83: 91 | Y83: 0.9996981523 | Z83: 2.752239147 | AA83: 0.827 | AD83: 92 | AE83: 0.4924465095 | AF83: 2.546159922 | AG83: 0.767 | AJ83: 92 | AK83: 0.8983238253 | AL83: 2.67928919 | AM83: 0.902
A84: 93 | B84: 3578.984975 | C84: 0.0001215034594 | D84: 3.283779865 | E84: 2.938 | F84: 3.811 | K84: 93 | L84: 3578.984975 | M84: 0.0001215034594 | N84: 3.283779865 | O84: 2.938 | P84: 3.811 | R84: 92 | S84: 0.6709393719 | T84: 2.610832381 | U84: 0.831 | X84: 92 | Y84: 0.6709393719 | Z84: 2.610832381 | AA84: 0.831 | AD84: 93 | AE84: 0.3136681591 | AF84: 2.42740946 | AG84: 0.768 | AJ84: 93 | AK84: 0.5924786875 | AL84: 2.546159922 | AM84: 0.899
A85: 94 | B85: 3105.957159 | C85: 8.764165295e-05 | D85: 3.1661561 | E85: 2.816 | F85: 3.763 | K85: 94 | L85: 3105.957159 | M85: 8.764165295e-05 | N85: 3.1661561 | O85: 2.816 | P85: 3.763 | R85: 93 | S85: 0.4348590556 | T85: 2.485336001 | U85: 0.83 | X85: 93 | Y85: 0.4348590556 | Z85: 2.485336001 | AA85: 0.83 | AD85: 94 | AE85: 0.192960437 | AF85: 2.320335218 | AG85: 0.765 | AJ85: 94 | AK85: 0.3773845395 | AL85: 2.42740946 | AM85: 0.891
A86: 95 | B86: 2648.935497 | C86: 6.212591711e-05 | D86: 3.055818086 | E86: 2.701 | F86: 3.721 | K86: 95 | L86: 2648.935497 | M86: 6.212591711e-05 | N86: 3.055818086 | O86: 2.701 | P86: 3.721 | R86: 94 | S86: 0.2722112194 | T86: 2.37283317 | U86: 0.825 | X86: 94 | Y86: 0.2722112194 | Z86: 2.37283317 | AA86: 0.825 | AD86: 95 | AE86: 0.1146209889 | AF86: 2.222738288 | AG86: 0.758 | AJ86: 95 | AK86: 0.2321570856 | AL86: 2.320335218 | AM86: 0.88
A87: 96 | B87: 2219.754818 | C87: 4.327058511e-05 | D87: 2.951649109 | E87: 2.593 | F87: 3.683 | K87: 96 | L87: 2219.754818 | M87: 4.327058511e-05 | N87: 2.951649109 | O87: 2.593 | P87: 3.683 | R87: 95 | S87: 0.1645675471 | T87: 2.270803677 | U87: 0.816 | X87: 95 | Y87: 0.1645675471 | Z87: 2.270803677 | AA87: 0.816 | AD87: 96 | AE87: 0.06569491033 | AF87: 2.133368797 | AG87: 0.749 | AJ87: 96 | AK87: 0.1379043038 | AL87: 2.222738288 | AM87: 0.866
A88: 97 | B88: 1826.638578 | C88: 2.959557055e-05 | D88: 2.853433718 | E88: 2.491 | F88: 3.65 | K88: 97 | L88: 1826.638578 | M88: 2.959557055e-05 | N88: 2.853433718 | O88: 2.491 | P88: 3.65 | R88: 96 | S88: 0.0960500898 | T88: 2.177333145 | U88: 0.805 | X88: 96 | Y88: 0.0960500898 | Z88: 2.177333145 | AA88: 0.805 | AD88: 97 | AE88: 0.03629414935 | AF88: 2.05147559 | AG88: 0.738 | AJ88: 97 | AK88: 0.07903972004 | AL88: 2.133368797 | AM88: 0.851
A89: 98 | B89: 1475.446866 | C89: 1.98693654e-05 | D89: 2.760703588 | E89: 2.394 | F89: 3.62 | K89: 98 | L89: 1475.446866 | M89: 1.98693654e-05 | N89: 2.760703588 | O89: 2.394 | P89: 3.62 | R89: 97 | S89: 0.05406041089 | T89: 2.091788657 | U89: 0.792 | X89: 97 | Y89: 0.05406041089 | Z89: 2.091788657 | AA89: 0.792 | AD89: 98 | AE89: 0.01931097576 | AF89: 1.976203201 | AG89: 0.725 | AJ89: 98 | AK89: 0.04366669182 | AL89: 2.05147559 | AM89: 0.834
A90: 99 | B90: 1169.321382 | C90: 1.308822175e-05 | D90: 2.672942409 | E90: 2.303 | F90: 3.594 | K90: 99 | L90: 1169.321382 | M90: 1.308822175e-05 | N90: 2.672942409 | O90: 2.303 | P90: 3.594 | R90: 98 | S90: 0.02931619291 | T90: 2.013308602 | U90: 0.777 | X90: 98 | Y90: 0.02931619291 | Z90: 2.013308603 | AA90: 0.777 | AD90: 99 | AE90: 0.009886360072 | AF90: 1.906812641 | AG90: 0.71 | AJ90: 99 | AK90: 0.02323367382 | AL90: 1.976203201 | AM90: 0.816
A91: 100 | B91: 908.8023653 | C91: 8.454784306e-06 | D91: 2.589757517 | E91: 2.217 | F91: 3.571 | K91: 100 | L91: 908.8023653 | M91: 8.454784306e-06 | N91: 2.589757517 | O91: 2.217 | P91: 3.571 | R91: 99 | S91: 0.01530433754 | T91: 1.941041249 | U91: 0.761 | X91: 99 | Y91: 0.01530433754 | Z91: 1.94104125 | AA91: 0.761 | AD91: 100 | AE91: 0.00486565419 | AF91: 1.842522287 | AG91: 0.695 | AJ91: 100 | AK91: 0.01189460688 | AL91: 1.906812641 | AM91: 0.797
A92: 101 | B92: 692.392534 | C92: 5.353918933e-06 | D92: 2.510508111 | E92: 2.134 | F92: 3.55 | K92: 101 | L92: 692.392534 | M92: 5.353918933e-06 | N92: 2.510508111 | O92: 2.134 | P92: 3.55 | R92: 100 | S92: 0.007683727975 | T92: 1.874352264 | U92: 0.744 | X92: 100 | Y92: 0.007683727975 | Z92: 1.874352265 | AA92: 0.744 | AD92: 101 | AE92: 0.002299275622 | AF92: 1.782918957 | AG92: 0.678 | AJ92: 101 | AK92: 0.005854029529 | AL92: 1.842522287 | AM92: 0.777
A93: 102 | B93: 516.6933986 | C93: 3.320768941e-06 | D93: 2.435320891 | E93: 2.056 | F93: 3.532 | K93: 102 | L93: 516.6933986 | M93: 3.320768941e-06 | N93: 2.435320891 | O93: 2.056 | P93: 3.532 | R93: 101 | S93: 0.003707013496 | T93: 1.81231737 | U93: 0.726 | X93: 101 | Y93: 0.003707013496 | Z93: 1.812317371 | AA93: 0.726 | AD93: 102 | AE93: 0.001041985508 | AF93: 1.727611812 | AG93: 0.661 | AJ93: 102 | AK93: 0.002766334569 | AL93: 1.782918957 | AM93: 0.757
A94: 103 | B94: 377.5171535 | C94: 2.016641806e-06 | D94: 2.363517913 | E94: 1.981 | F94: 3.516 | K94: 103 | L94: 377.5171535 | M94: 2.016641806e-06 | N94: 2.363517913 | O94: 1.981 | P94: 3.516 | R94: 102 | S94: 0.00171581939 | T94: 1.75500491 | U94: 0.708 | X94: 102 | Y94: 0.00171581939 | Z94: 1.755004913 | AA94: 0.708 | AD94: 103 | AE94: 0.0004523673616 | AF94: 1.675985113 | AG94: 0.644 | AJ94: 103 | AK94: 0.001253647238 | AL94: 1.727611812 | AM94: 0.736
A95: 104 | B95: 269.8833958 | C95: 1.198269688e-06 | D95: 2.294748215 | E95: 1.91 | F95: 3.501 | K95: 104 | L95: 269.8833958 | M95: 1.198269688e-06 | N95: 2.294748215 | O95: 1.91 | P95: 3.501 | R95: 103 | S95: 0.0007613168742 | T95: 1.701593788 | U95: 0.688 | X95: 103 | Y95: 0.0007613168742 | Z95: 1.701593795 | AA95: 0.688 | AD95: 104 | AE95: 0.0001878749308 | AF95: 1.627644522 | AG95: 0.625 | AJ95: 104 | AK95: 0.0005442581387 | AL95: 1.675985113 | AM95: 0.715
A96: 105 | B96: 188.6374554 | C96: 6.961337143e-07 | D96: 2.228677491 | E96: 1.841 | F96: 3.489 | K96: 105 | L96: 188.6374554 | M96: 6.961337143e-07 | N96: 2.228677491 | O96: 1.841 | P96: 3.489 | R96: 104 | S96: 0.0003233930924 | T96: 1.651659241 | U96: 0.669 | X96: 104 | Y96: 0.0003233930924 | Z96: 1.651659258 | AA96: 0.669 | AD96: 105 | AE96: 7.453093914e-05 | AF96: 1.582143906 | AG96: 0.606 | AJ96: 105 | AK96: 0.0002260385448 | AL96: =IF(AK96<>0,1+(AL97*AK97)/AK96,0) -> 1.627644522 | AM96: 0.694
A97: 106 | B97: 128.8123773 | C97: 3.95101487e-07 | D97: 2.164820567 | E97: 1.775 | F97: 3.478 | K97: 106 | L97: 128.8123773 | M97: 3.95101487e-07 | N97: 2.164820567 | O97: 1.775 | P97: 3.478 | R97: 105 | S97: 0.0001313168925 | T97: 1.604836157 | U97: 0.649 | X97: 105 | Y97: 0.0001313168925 | Z97: =IF(Y97<>0,1+(Z98*Y98)/Y97,0) -> 1.604836198 | AA97: 0.649 | AD97: 106 | AE97: 2.819135137e-05 | AF97: 1.539044065 | AG97: 0.586 | AJ97: 106 | AK97: 8.967063863e-05 | AL97: 1.582143906 | AM97: 0.672
A98: 107 | B98: 85.84616514 | C98: 2.188559203e-07 | D98: 2.102855329 | E98: 1.71 | F98: 3.468 | K98: 107 | L98: 85.84616514 | M98: 2.188559203e-07 | N98: 2.102855329 | O98: 1.71 | P98: 3.468 | R98: 106 | S98: 5.08939618e-05 | T98: 1.560601726 | U98: 0.628 | X98: 106 | Y98: 5.08939618e-05 | Z98: 1.560601833 | AA98: 0.628 | AD98: 107 | AE98: 1.014390625e-05 | AF98: 1.498079761 | AG98: 0.566 | AJ98: 107 | AK98: 3.39179475e-05 | AL98: 1.539044065 | AM98: 0.651
A99: 108 | B99: 55.76485752 | C99: 1.18163767e-07 | D99: 2.042643225 | E99: 1.648 | F99: 3.459 | K99: 108 | L99: 55.76485752 | M99: 1.18163767e-07 | N99: 2.042643225 | O99: 1.648 | P99: 3.459 | R99: 107 | S99: 1.878794147e-05 | T99: 1.518593342 | U99: 0.608 | X99: 107 | Y99: 1.878794147e-05 | Z99: 1.51859363 | AA99: 0.608 | AD99: 108 | AE99: 3.462733811e-06 | AF99: 1.459099854 | AG99: 0.546 | AJ99: 108 | AK99: 1.220446921e-05 | AL99: 1.498079761 | AM99: 0.629
A100: 109 | B100: 35.25725114 | C100: 6.209526868e-08 | D100: 1.984090796 | E100: 1.587 | F100: 3.452 | K100: 109 | L100: 35.25725114 | M100: 6.209526868e-08 | N100: 1.984090796 | O100: 1.587 | P100: 3.452 | R100: 108 | S100: 6.589385628e-06 | T100: 1.478635779 | U100: 0.587 | X100: 108 | Y100: 6.589385628e-06 | Z100: 1.478636602 | AA100: 0.587 | AD100: 109 | AE100: 1.117943545e-06 | AF100: 1.422022243 | AG100: 0.525 | AJ100: 109 | AK100: 4.166129607e-06 | AL100: 1.459099854 | AM100: 0.607
A101: 110 | B101: 21.66082687 | C101: 3.170818793e-08 | D101: 1.927179897 | E101: 1.528 | F101: 3.445 | K101: 110 | L101: 21.66082687 | M101: 3.170818793e-08 | N101: 1.927179897 | O101: 1.528 | P101: 3.445 | R101: 109 | S101: 2.189308483e-06 | T101: 1.44059905 | U101: 0.565 | X101: 109 | Y101: 2.189308483e-06 | Z101: 1.440601529 | AA101: 0.565 | AD101: 110 | AE101: 3.40169202e-07 | AF101: 1.386948142 | AG101: 0.504 | AJ101: 110 | AK101: 1.345034865e-06 | AL101: 1.422022243 | AM101: 0.585
A102: 111 | B102: 12.90735446 | C102: 1.570434979e-08 | D102: 1.872041493 | E102: 1.47 | F102: 3.44 | K102: 111 | L102: 12.90735446 | M102: 1.570434979e-08 | N102: 1.872041493 | O102: 1.47 | P102: 3.44 | R102: 110 | S102: 6.868255692e-07 | T102: 1.404442819 | U102: 0.544 | X102: 110 | Y102: 6.868255692e-07 | Z102: 1.40445072 | AA102: 0.544 | AD102: 111 | AE102: 9.724769357e-08 | AF102: 1.353531749 | AG102: 0.483 | AJ102: 111 | AK102: 4.09268821e-07 | AL102: 1.386948142 | AM102: 0.562
A103: 112 | B103: 7.450287278 | C103: 7.5342855e-09 | D103: 1.817669989 | E103: 1.414 | F103: 3.435 | K103: 112 | L103: 7.450287278 | M103: 7.5342855e-09 | N103: 1.817669989 | O103: 1.414 | P103: 3.435 | R103: 111 | S103: 2.027016094e-07 | T103: 1.370396959 | U103: 0.522 | X103: 111 | Y103: 2.027016094e-07 | Z103: 1.370423732 | AA103: 0.522 | AD103: 112 | AE103: 2.601935193e-08 | AF103: 1.321329882 | AG103: 0.46 | AJ103: 112 | AK103: 1.170019174e-07 | AL103: 1.353531749 | AM103: 0.539
A104: 113 | B104: 4.154971712 | C104: 3.492395791e-09 | D104: 1.763992259 | E104: 1.358 | F104: 3.431 | K104: 113 | L104: 4.154971712 | M104: 3.492395791e-09 | N104: 1.763992259 | O104: 1.358 | P104: 3.431 | R104: 112 | S104: 5.613259141e-08 | T104: 1.337548434 | U104: 0.499 | X104: 112 | Y104: 5.613259141e-08 | Z104: 1.337645112 | AA104: 0.499 | AD104: 113 | AE104: 6.480081376e-09 | AF104: 1.290229985 | AG104: 0.437 | AJ104: 113 | AK104: 3.130474312e-08 | AL104: 1.321329882 | AM104: 0.516
A105: 114 | B105: 2.232393106 | C105: 1.55959699e-09 | D105: 1.71080309 | E105: 1.303 | F105: 3.427 | K105: 114 | L105: 2.232393106 | M105: 1.55959699e-09 | N105: 1.71080309 | O105: 1.303 | P105: 3.427 | R105: 113 | S105: 1.451080572e-08 | T105: 1.305748882 | U105: 0.477 | X105: 113 | Y105: 1.451080572e-08 | Z105: 1.306122864 | AA105: 0.476 | AD105: 114 | AE105: 1.493048353e-09 | AF105: 1.25964703 | AG105: 0.414 | AJ105: 114 | AK105: 7.796400288e-09 | AL105: 1.290229985 | AM105: 0.493
A106: 115 | B106: 1.151794906 | C106: 6.688106807e-10 | D106: 1.657518923 | E106: 1.247 | F106: 3.423 | K106: 115 | L106: 1.151794906 | M106: 6.688106807e-10 | N106: 1.657518923 | O106: 1.247 | P106: 3.423 | R106: 114 | S106: 3.481633569e-09 | T106: 1.274304873 | U106: 0.454 | X106: 114 | Y106: 3.481633569e-09 | Z106: 1.275863563 | AA106: 0.452 | AD106: 115 | AE106: 3.160612901e-10 | AF106: 1.226551881 | AG106: 0.391 | AJ106: 115 | AK106: 1.796335869e-09 | AL106: 1.25964703 | AM106: 0.469
A107: 116 | B107: 0.568567168 | C107: =(1+interest)^(-A107)*B107 -> 2.744076123e-10 | D107: =1+(D108*C108)/C107 -> 1.602563699 | E107: =ROUND((D107-11/24)*(1+EXP)+(1+EXP)*(11/24-(a_mode-1)/(2*a_mode)-1/a_mode*arrears),DPsingle) -> 1.19 | F107: 3.428 | K107: 116 | L107: =IF(basis<>1,HLOOKUP(YOB*(1-sex)+YOB_S*(sex),INDIRECT($G$4),$K107-18),VLOOKUP($K107,PA176,3)) -> 0.568567168 | M107: =(1+interest)^(-K107)*L107 -> 2.744076123e-10 | N107: =1+(N108*M108)/M107 -> 1.602563699 | O107: =ROUND((N107-11/24)*(1+EXP)+(1+EXP)*(11/24-(a_mode-1)/(2*a_mode)-1/a_mode*arrears),DPsingle) -> 1.19 | P107: 3.428 | R107: 115 | S107: 7.703327353e-10 | T107: 1.239761741 | U107: 0.434 | X107: 115 | Y107: 7.703327353e-10 | Z107: 1.246806474 | AA107: 0.427 | AD107: 116 | AE107: =IF(sex=1,VLOOKUP(AD107-diff2,female_table,2)*C107,VLOOKUP(AJ107-diff2,male_table,3)*L107) -> 6.09817936e-11 | AF107: =1+(AF108*AE108)/AE107 -> 1.17419111 | AG107: 0.382 | AJ107: 116 | AK107: =IF(sex=1,VLOOKUP(AD107-diff3,female_table,2)*C107,VLOOKUP(AJ107-diff3,male_table,3)*L107) -> 3.802637946e-10 | AL107: 1.226551881 | AM107: 0.448
A108: 117 | B108: =IF(basis<>1,HLOOKUP(YOB*sex+YOB_S*(1-sex),INDIRECT($G$4),$A108-18),VLOOKUP($A108,PA176,2)) -> 0.2673730978 | C108: 1.072552146e-10 | D108: 1.541631953 | E108: 1.127 | F108: 3.443 | K108: 117 | L108: 0.2673730978 | M108: 1.072552146e-10 | N108: 1.541631953 | O108: 1.127 | P108: 3.443 | R108: 116 | S108: =VLOOKUP(R108-diff,female_table,2)*C107 -> 1.56019159e-10 | T108: =1+(T109*S109)/S108 -> 1.183805368 | U108: 0.436 | X108: 116 | Y108: =VLOOKUP(X108-diff,male_table,3)*L107 -> 1.56019159e-10 | Z108: 1.218588201 | AA108: 0.399 | AD108: 117 | AE108: 1.062248633e-11 | AF108: 1 | AG108: 0.481 | AJ108: 117 | AK108: 7.336921338e-11 | AL108: 1.17419111 | AM108: 0.446
A109: 118 | B109: 0.119157514 | C109: 3.972907677e-11 | D109: 1.462225051 | E109: 1.044 | F109: 3.483 | K109: 118 | L109: 0.119157514 | M109: 3.972907677e-11 | N109: 1.462225051 | O109: 1.044 | P109: 3.483 | R109: 117 | S109: 2.867715898e-11 | T109: 1 | U109: 0.563 | X109: 117 | Y109: 2.867715898e-11 | Z109: 1.189237304 | AA109: 0.366 | AD109: 118 | AE109: 1.651021494e-12 | AF109: 0 | AG109: 0 | AJ109: 118 | AK109: 1.278026474e-11 | AL109: 1 | AM109: 0.563
A110: 119 | B110: 0.04999860917 | C110: 1.385579003e-11 | D110: 1.325350233 | E110: 0.902 | F110: 3.602 | K110: 119 | L110: 0.04999860917 | M110: 1.385579003e-11 | N110: 1.325350233 | O110: 0.902 | P110: 3.602 | R110: 118 | S110: 4.734018023e-12 | T110: 0 | U110: 0 | X110: 118 | Y110: 4.734018023e-12 | Z110: 1.146338739 | AA110: 0 | AD110: 119
A111: 120 | B111: 0.01957143702 | C111: 4.507984511e-12 | D111: 1 | E111: 0.563 | K111: 120 | L111: 0.01957143702 | M111: 4.507984511e-12 | N111: 1 | O111: 0.563 | P111: 3.983 | R111: 119 | S111: 6.927702302e-13 | T111: 0 | U111: 0 | X111: 119 | Y111: 6.927702302e-13 | Z111: 1 | AA111: 0 | AD111: 120
R112: 120 | S112: 8.822773492e-14 | T112: 0 | U112: 0 | X112: 120 | Y112: 8.822773492e-14 | Z112: 0 | AA112: 0

Sheet annuity inputs (hidden)
A1: FSA and SMPI Calculations Spreadsheet - 26th Feb 2013 Version 13 | H1: New
B2: Annuity input options | F2: Client details
B3: Mode | C3: 4 | F3: Plan ID
B5: Gtee Period | C5: 6 | F5: Sex | G5: =C29 -> f
B7: spouse % | C7: 0 | D7: numeric percentage | F7: DOB | G7: =C30 -> 1955-01-29 | I7: =INT((NOW()-DOB)/365.25) -> 63
B9: escalation rate | C9: =IF(Inputsnew!F19="Y", Inputsnew!F20, 0) -> 0 | D9: as a figure eg 0 to 8.5. | F9: Retirement Date | G9: =IF(H9=10, EDATE(Inputsnew!F4, 120), EDATE(DOB, 12*H9)) -> 2030-01-29 | H9: 75
F10: Early Ret. Date | H10: Does not affect pension amount. Only used for step-ups.
B11: esc basis | C11: 1 | F11: Spouses DOB | G11: =IF(Inputsnew!F17="Y",IF(Isex="m",EDATE(DOB,36),EDATE(DOB,-36)), DOB) -> 1955-01-29 | H11: =IF(Spouse_DOB<=0,Spouse_DOB_Assumed,Spouse_DOB) -> 1955-01-29 | I11: <<assumed
B13: advance/arrears | C13: 1 | F13: tax year | G13: 2017
B15: Special | C15: 9 | D15: SMPI overrides :Mode,gtee,esc ,adv | F15: Fund | G15: =C34*E25 -> 58500.29652
F16: TFC | G16: =I_Fund*0.25 -> 14625.07413
B17: Protected rights | C17: 2 | D17: pension details | F17: age in years | G17: and months | H17: Early ret age
E18: member | F18: =PA_year -> 75 | G18: =PA_month -> 0 | H18: =ER_age -> -55.08333333
B19: FSA rate | C19: 3 | E19: spouse | F19: =SP_PA_YEAR -> 75 | G19: =Inputs!C26 -> 0
D20: Annuity assumptions | F20: Mortality table | G20: =IF(basis<>1,IF(OR(basis=8,basis=9),"PCA00 2012 CMI imp",IF(OR(basis=3,basis=4),"PA92 medium cohort",IF(basis=6,"PCA00 2011 CMI imp",IF(basis=7,"PCA00 2011 CMI imp FSA blend","PA92 unadjusted")))),"PA80") -> PA92 unadjusted
A21: basis | B21: Mode | C21: Gtee Pd | D21: spouse % | E21: esc rate | F21: esc basis | G21: advance/arrears | H21: interest
A22: =IF(FSA_basis=0,"SMPI",CHOOSE(L_M_H,"Very Low","Low","Mid","High")) -> Mid | B22: =VLOOKUP(a_mode,mode_table,2) -> Monthly | C22: =gtee -> 5 | D22: =spouse -> 0 | E22: =IF(i_esc=1,IF(i_special>5,"N/A",i_escrate),"N/A") -> N/A | F22: =IF(FSA_basis>0,INDEX(esc_table,FSA_basis),"RPI") -> fixed rate | G22: =INDEX(adv_arr,arrears+1) -> advance | H22: =rate -> 0.2031330837
B23: Member YOB | C23: =birth_year -> 1955 | D23: reduced SP COF | E23: =single_COF -> 5.087 | F23: ="single COF" -> single COF | G23: Pension | H23: D over D | N23: 50 | O23: 55
B24: Spouse YOB | C24: =YOB_S -> 1955 | D24: =IF(spouse>0,IF(Protected_rights=1,spouse_2way,spouse_4way),"") ->  | E24: =IF(spouse>0,spouse_COF/spouse," ") ->  | F24: =IF(spouse>0,"spouse COF","") ->  | G24: =IF(AND(Protected_rights=1,i_tax_year>2011),"PR ABOLISHED",ROUND(I_Fund/E25,2)) -> 11499.96 | H24: =D_overD ->  | N24: 55 | O24: 60
B25: Member sex | C25: =IF(sex=1,"Male","Female") -> Female | D25: =IF(spouse>0,"combined COF","") ->  | E25: =combined_COF -> 5.087 | G25: =((I_Fund-i_TFC)/E25) -> 8624.97 | H25: after TFC | N25: 60 | O25: 65
N26: 65 | O26: 70
A27: Inputs | B27: Single Premium | C27: =Inputsnew!F6*1 -> 49733.33 | N27: 70 | O27: 75
B28: Start Date | C28: =Inputsnew!F4*1 -> 2017-04-12 | I28: =C28 -> 2017-04-12 | J28: =C34 -> 11499.96 | K28: 17 | N28: 75 | O28: 80
B29: Sex | C29: =Inputsnew!F18 -> f | I29: =D34 -> 2237-04-13 | J29: =D33 -> 0 | K29: 18 | N29: 80 | O29: 85
B30: DOB | C30: =Inputsnew!F3*1 -> 1955-01-29 | I30: =E34 -> 2237-04-13 | J30: =E33 -> 0 | K30: 19 | N30: 85 | O30: 90
B31: Retirement Date | C31: =EDATE(C30, 12*E31) -> 2030-01-29 | D31: ret age | E31: =Inputsnew!F16*1 -> 75
B32: Drawdown charge | C32: =Inputsnew!F14*1 -> 0 | D32: Income 2 | E32: Income 3 | I32: =I33-5 -> 55 | J32: n/a | K32: =DATEDIF(NOW(),L32,"m") ->  | L32: =EDATE(DOB, I32*12) -> 2010-01-29
B33: AMC + TER | C33: =(Inputsnew!F15)*1 -> 0.019 | D33: =Inputsnew!F9*1 -> 0 | E33: =Inputsnew!F11*1 -> 0 | I33: =I34-5 -> 60 | J33: n/a | K33: =DATEDIF(NOW(),L33,"m") ->  | L33: =EDATE(DOB, I33*12) -> 2015-01-29
B34: Income | C34: =Inputsnew!F7*1 -> 11499.96 | D34: =IF(D33= 0, EDATE(Inputsnew!F10*1, 220*12), Inputsnew!F10*1) -> 2237-04-13 | E34: =IF(E33= 0, EDATE(Inputsnew!F12*1, 220*12), Inputsnew!F12*1) -> 2237-04-13 | I34: =I35-5 -> 65 | J34: 0.2898903499 | K34: =DATEDIF(NOW(),L34,"m") -> 22 | L34: =EDATE(DOB, I34*12) -> 2020-01-29
B35: Gilt Yield | C35: =MAX(2%, Inputsnew!F13*1) -> 0.02 | E35: Term | F35: =DATEDIF(NOW(),Retirement_Date,"m") -> 142 | I35: =I36-5 -> 70 | J35: 0.2673172615 | K35: =DATEDIF(NOW(),L35,"m") -> 82 | L35: =EDATE(DOB, I35*12) -> 2025-01-29
A36: Results | B36: Rate | C36: 0.2601330837 | E36: Final value | F36: =VLOOKUP(F35,B40:G947,6,FALSE) -> 4274.7427 | G36: =I_Fund -> 58500.29652 | I36: =IF(F18>75, "At ret ("&F18&")", 75) -> 75 | J36: 0.2601330837 | K36: =DATEDIF(NOW(),L36,"m") -> 142 | L36: =Retirement_Date -> 2030-01-29
B37: ="Rate - "&(5%-working!Z4)*100&"%" -> Rate - 5.7% | C37: =C36-(5%-working!Z4) -> 0.2031330837 | E37: GOAL SEEK RESULT | F37: =F36-I_Fund -> -54225.55382 | N37: App Esc | O37: =Inputsnew!F19 -> N
A38: =IF(C34>K40,"NOTE YOU HAVE SELECTED AN INITIAL INCOME GREATER THAN GAD LIMIT","") -> NOTE YOU HAVE SELECTED AN INITIAL INCOME GREATER THAN GAD LIMIT | I38: monthly income | J38: income | K38: max gad | N38: Esc | O38: =Inputsnew!F20 -> 0 | Q38: 17 | R38: 18 | S38: 19
A39: =IF(((C31-C30)/365.25)>75.01, "NOTE - YOU HAVE SELECTED A RETIREMENT DATE AFTER AGE 75","") ->  | F39: =VLOOKUP($A40, $I$28:$J$30, 2) -> 11499.96 | Q39: Inc 1 | R39: Inc 2 | S39: Inc 3
A40: =C28 -> 2017-04-12 | B40: 1 | C40: =C27 -> 49733.33 | D40: =IF(C40>0,C40*(1+$C$36)^(1/12),"") -> 50700.88893 | E40: =IF(C40>0,(D40-($C$32/12))*(1-$C$33)^(1/12),"") -> 50619.90484 | F40: =IF(C40>0,E40-(MIN(U40,K40*50)/12),"") -> 49661.57484 | G40: =F40 -> 49661.57484 | I40: =E40-F40 -> 958.33 | J40: =I40*12 -> 11499.96 | K40: =VLOOKUP(($C$28-$C$30)/365.25, N_GAD, VLOOKUP($C$35, 'Gilt Yields'!$A$1:$C$23, 2))*($C$40/1000)*1.5 -> 3655.399755 | M40: 1 | N40: =VLOOKUP(A40, $I$28:$J$30, 2) -> 11499.96 | O40: =N40 -> 11499.96 | Q40: =J28 -> 11499.96 | R40: =J29 -> 0 | S40: =J30 -> 0 | U40: =VLOOKUP(A40, $A$40:$S$795, VLOOKUP(A40, $I$28:$K$30, 3, FALSE)) -> 11499.96
A41: =EDATE($A$40, B40) -> 2017-05-12 | B41: =B40+1 -> 2 | C41: =IF(B41<=$F$35,G40,0) -> 49661.57484 | D41: 50627.73778 | E41: =IF(C41>0,(D41-($C$32/12))*(1-$C$33)^(1/12),"") -> 50546.87053 | F41: =IF(C41>0,E41-(MIN(U41,K41*50)/12),"") -> 49588.54053 | G41: =F41 -> 49588.54053 | I41: 958.33 | J41: 11499.96 | K41: =VLOOKUP(($C$28-$C$30)/365.25, N_GAD, VLOOKUP($C$35, 'Gilt Yields'!$A$1:$C$23, 2))*($C$40/1000)*1.5 -> 3655.399755 | M41: 2 | N41: 11499.96 | O41: =IF(N41=N40, IF(M40/12=INT(M40/12), O40*(1+$O$38), O40), N41) -> 11499.96 | Q41: =IF($M40/12=INT($M40/12), Q40*(1+$O$38), Q40) -> 11499.96 | R41: =IF($M40/12=INT($M40/12), R40*(1+$O$38), R40) -> 0 | S41: =IF($M40/12=INT($M40/12), S40*(1+$O$38), S40) -> 0 | U41: =VLOOKUP(A41, $A$40:$S$795, VLOOKUP(A41, $I$28:$K$30, 3)) -> 11499.96
A42: =EDATE($A$40, B41) -> 2017-06-12 | B42: 3 | C42: =IF(B42<=$F$35,G41,0) -> 49588.54053 | D42: 50553.28259 | E42: =IF(C42>0,(D42-($C$32/12))*(1-$C$33)^(1/12),"") -> 50472.53427 | F42: =IF(C42>0,E42-(MIN(U42,K42*50)/12),"") -> 49514.20427 | G42: =F42 -> 49514.20427 | I42: 958.33 | J42: 11499.96 | K42: =VLOOKUP(($C$28-$C$30)/365.25, N_GAD, VLOOKUP($C$35, 'Gilt Yields'!$A$1:$C$23, 2))*($C$40/1000)*1.5 -> 3655.399755 | M42: 3 | N42: 11499.96 | O42: =IF(N42=N41, IF(M41/12=INT(M41/12), O41*(1+$O$38), O41), N42) -> 11499.96 | Q42: =IF(M41/12=INT(M41/12), Q41*(1+$O$38), Q41) -> 11499.96 | R42: =IF($M41/12=INT($M41/12), R41*(1+$O$38), R41) -> 0 | S42: =IF($M41/12=INT($M41/12), S41*(1+$O$38), S41) -> 0 | U42: =VLOOKUP(A42, $A$40:$S$795, VLOOKUP(A42, $I$28:$K$30, 3)) -> 11499.96
A43: 2017-07-12 | B43: 4 | C43: 49514.20427 | D43: 50477.50012 | E43: 50396.87285 | F43: 49438.54285 | G43: =F43 -> 49438.54285 | I43: 958.33 | J43: 11499.96 | K43: =VLOOKUP(($C$28-$C$30)/365.25, N_GAD, VLOOKUP($C$35, 'Gilt Yields'!$A$1:$C$23, 2))*($C$40/1000)*1.5 -> 3655.399755 | M43: 4 | N43: 11499.96 | O43: 11499.96 | Q43: 11499.96 | R43: 0 | S43: 0 | U43: 11499.96
A44: 2017-08-12 | B44: 5 | C44: 49438.54285 | D44: 50400.36671 | E44: 50319.86265 | F44: 49361.53265 | G44: =F44 -> 49361.53265 | I44: 958.33 | J44: 11499.96 | K44: =VLOOKUP(($C$28-$C$30)/365.25, N_GAD, VLOOKUP($C$35, 'Gilt Yields'!$A$1:$C$23, 2))*($C$40/1000)*1.5 -> 3655.399755 | M44: 5 | N44: 11499.96 | O44: 11499.96 | Q44: 11499.96 | R44: 0 | S44: 0 | U44: 11499.96
A45: 2017-09-12 | B45: 6 | C45: 49361.53265 | D45: 50321.85828 | E45: 50241.47962 | F45: 49283.14962 | G45: =F45 -> 49283.14962 | I45: 958.33 | J45: 11499.96 | K45: =VLOOKUP(($C$28-$C$30)/365.25, N_GAD, VLOOKUP($C$35, 'Gilt Yields'!$A$1:$C$23, 2))*($C$40/1000)*1.5 -> 3655.399755 | M45: 6 | N45: 11499.96 | O45: 11499.96 | Q45: 11499.96 | R45: 0 | S45: 0 | U45: 11499.96
A46: 2017-10-12 | B46: 7 | C46: 49283.14962 | D46: 50241.95031 | E46: 50161.69928 | F46: 49203.36928 | G46: 49203.36928 | I46: 958.33 | J46: 11499.96 | K46: =VLOOKUP(($C$28-$C$30)/365.25, N_GAD, VLOOKUP($C$35, 'Gilt Yields'!$A$1:$C$23, 2))*($C$40/1000)*1.5 -> 3655.399755 | M46: 7 | N46: 11499.96 | O46: 11499.96 | Q46: 11499.96 | R46: 0 | S46: 0 | U46: 11499.96
A47: 2017-11-12 | B47: 8 | C47: 49203.36928 | D47: 50160.61786 | E47: 50080.49674 | F47: 49122.16674 | G47: 49122.16674 | I47: 958.33 | J47: 11499.96 | K47: =VLOOKUP(($C$28-$C$30)/365.25, N_GAD, VLOOKUP($C$35, 'Gilt Yields'!$A$1:$C$23, 2))*($C$40/1000)*1.5 -> 3655.399755 | M47: 8 | N47: =VLOOKUP(A47, $I$28:$J$30, 2) -> 11499.96 | O47: 11499.96 | Q47: 11499.96 | R47: 0 | S47: 0 | U47: 11499.96
A48: 2017-12-12 | B48: 9 | C48: 49122.16674 | D48: 50077.83552 | E48: 49997.84664 | F48: 49039.51664 | G48: 49039.51664 | I48: 958.33 | J48: 11499.96 | K48: =VLOOKUP(($C$28-$C$30)/365.25, N_GAD, VLOOKUP($C$35, 'Gilt Yields'!$A$1:$C$23, 2))*($C$40/1000)*1.5 -> 3655.399755 | M48: 9 | N48: 11499.96 | O48: 11499.96 | Q48: 11499.96 | R48: 0 | S48: 0 | U48: 11499.96
A49: 2018-01-12 | B49: 10 | C49: 49039.51664 | D49: =IF(C49>0,C49*(1+$C$36)^(1/12),"") -> 49993.57747 | E49: 49913.72316 | F49: 48955.39316 | G49: 48955.39316 | I49: =E49-F49 -> 958.33 | J49: 11499.96 | K49: =VLOOKUP(($C$28-$C$30)/365.25, N_GAD, VLOOKUP($C$35, 'Gilt Yields'!$A$1:$C$23, 2))*($C$40/1000)*1.5 -> 3655.399755 | M49: 10 | N49: 11499.96 | O49: 11499.96 | Q49: 11499.96 | R49: 0 | S49: 0 | U49: 11499.96
A50: 2018-02-12 | B50: 11 | C50: 48955.39316 | D50: 49907.81738 | E50: 49828.10005 | F50: 48869.77005 | G50: 48869.77005 | I50: 958.33 | J50: 11499.96 | K50: =VLOOKUP(($C$28-$C$30)/365.25, N_GAD, VLOOKUP($C$35, 'Gilt Yields'!$A$1:$C$23, 2))*($C$40/1000)*1.5 -> 3655.399755 | M50: 11 | N50: 11499.96 | O50: 11499.96 | Q50: 11499.96 | R50: 0 | S50: 0 | U50: 11499.96
A51: 2018-03-12 | B51: 12 | C51: 48869.77005 | D51: 49820.52848 | E51: 49740.95058 | F51: 48782.62058 | G51: 48782.62058 | I51: 958.33 | J51: 11499.96 | K51: =VLOOKUP(($C$28-$C$30)/365.25, N_GAD, VLOOKUP($C$35, 'Gilt Yields'!$A$1:$C$23, 2))*($C$40/1000)*1.5 -> 3655.399755 | M51: 12 | N51: 11499.96 | O51: 11499.96 | Q51: 11499.96 | R51: 0 | S51: 0 | U51: 11499.96
A52: 2018-04-12 | B52: 13 | C52: 48782.62058 | D52: 49731.68351 | E52: 49652.24753 | F52: 48693.91753 | G52: 48693.91753 | I52: 958.33 | J52: 11499.96 | K52: =VLOOKUP(($C$28-$C$30)/365.25, N_GAD, VLOOKUP($C$35, 'Gilt Yields'!$A$1:$C$23, 2))*($C$40/1000)*1.5 -> 3655.399755 | M52: 13 | N52: 11499.96 | O52: 11499.96 | Q52: 11499.96 | R52: 0 | S52: 0 | U52: 11499.96
A53: 2018-05-12 | B53: 14 | C53: 48693.91753 | D53: 49641.25475 | E53: 49561.96321 | F53: 48603.63321 | G53: 48603.63321 | I53: 958.33 | J53: 11499.96 | K53: =VLOOKUP(($C$28-$C$30)/365.25, N_GAD, VLOOKUP($C$35, 'Gilt Yields'!$A$1:$C$23, 2))*($C$40/1000)*1.5 -> 3655.399755 | M53: 14 | N53: 11499.96 | O53: 11499.96 | Q53: 11499.96 | R53: 0 | S53: 0 | U53: 11499.96
A54: 2018-06-12 | B54: 15 | C54: 48603.63321 | D54: 49549.21395 | E54: 49470.06943 | F54: 48511.73943 | G54: 48511.73943 | I54: 958.33 | J54: 11499.96 | K54: =VLOOKUP(($C$28-$C$30)/365.25, N_GAD, VLOOKUP($C$35, 'Gilt Yields'!$A$1:$C$23, 2))*($C$40/1000)*1.5 -> 3655.399755 | M54: 15 | N54: 11499.96 | O54: 11499.96 | Q54: 11499.96 | R54: 0 | S54: 0 | U54: 11499.96
A55: 2018-07-12 | B55: 16 | C55: 48511.73943 | D55: 49455.53238 | E55: 49376.53749 | F55: 48418.20749 | G55: 48418.20749 | I55: 958.33 | J55: 11499.96 | K55: =VLOOKUP(($C$28-$C$30)/365.25, N_GAD, VLOOKUP($C$35, 'Gilt Yields'!$A$1:$C$23, 2))*($C$40/1000)*1.5 -> 3655.399755 | M55: 16 | N55: 11499.96 | O55: 11499.96 | Q55: 11499.96 | R55: 0 | S55: 0 | U55: 11499.96
A56: 2018-08-12 | B56: 17 | C56: 48418.20749 | D56: 49360.18079 | E56: 49281.33821 | F56: 48323.00821 | G56: 48323.00821 | I56: 958.33 | J56: 11499.96 | K56: =VLOOKUP(($C$28-$C$30)/365.25, N_GAD, VLOOKUP($C$35, 'Gilt Yields'!$A$1:$C$23, 2))*($C$40/1000)*1.5 -> 3655.399755 | M56: 17 | N56: 11499.96 | O56: 11499.96 | Q56: 11499.96 | R56: 0 | S56: 0 | U56: 11499.96
A57: 2018-09-12 | B57: 18 | C57: 48323.00821 | D57: 49263.12941 | E57: 49184.44184 | F57: 48226.11184 | G57: 48226.11184 | I57: 958.33 | J57: 11499.96 | K57: =VLOOKUP(($C$28-$C$30)/365.25, N_GAD, VLOOKUP($C$35, 'Gilt Yields'!$A$1:$C$23, 2))*($C$40/1000)*1.5 -> 3655.399755 | M57: 18 | N57: 11499.96 | O57: 11499.96 | Q57: 11499.96 | R57: 0 | S57: 0 | U57: 11499.96
A58: 2018-10-12 | B58: 19 | C58: 48226.11184 | D58: 49164.34793 | E58: 49085.81815 | F58: 48127.48815 | G58: 48127.48815 | I58: 958.33 | J58: 11499.96 | K58: =VLOOKUP(($C$28-$C$30)/365.25, N_GAD, VLOOKUP($C$35, 'Gilt Yields'!$A$1:$C$23, 2))*($C$40/1000)*1.5 -> 3655.399755 | M58: 19 | N58: 11499.96 | O58: 11499.96 | Q58: 11499.96 | R58: 0 | S58: 0 | U58: 11499.96
A59: 2018-11-12 | B59: 20 | C59: 48127.48815 | D59: 49063.80552 | E59: 48985.43633 | F59: 48027.10633 | G59: 48027.10633 | I59: 958.33 | J59: 11499.96 | K59: =VLOOKUP(($C$28-$C$30)/365.25, N_GAD, VLOOKUP($C$35, 'Gilt Yields'!$A$1:$C$23, 2))*($C$40/1000)*1.5 -> 3655.399755 | M59: 20 | N59: 11499.96 | O59: 11499.96 | Q59: 11499.96 | R59: 0 | S59: 0 | U59: 11499.96
A60: 2018-12-12 | B60: 21 | C60: 48027.10633 | D60: 48961.47078 | E60: 48883.26505 | F60: 47924.93505 | G60: 47924.93505 | I60: 958.33 | J60: 11499.96 | K60: =VLOOKUP(($C$28-$C$30)/365.25, N_GAD, VLOOKUP($C$35, 'Gilt Yields'!$A$1:$C$23, 2))*($C$40/1000)*1.5 -> 3655.399755 | M60: 21 | N60: 11499.96 | O60: 11499.96 | Q60: 11499.96 | R60: 0 | S60: 0 | U60: 11499.96
A61: 2019-01-12 | B61: 22 | C61: 47924.93505 | D61: 48857.31177 | E61: 48779.27241 | F61: 47820.94241 | G61: 47820.94241 | I61: 958.33 | J61: 11499.96 | K61: =VLOOKUP(($C$28-$C$30)/365.25, N_GAD, VLOOKUP($C$35, 'Gilt Yields'!$A$1:$C$23, 2))*($C$40/1000)*1.5 -> 3655.399755 | M61: 22 | N61: 11499.96 | O61: 11499.96 | Q61: 11499.96 | R61: 0 | S61: 0 | U61: 11499.96
A62: 2019-02-12 | B62: 23 | C62: 47820.94241 | D62: 48751.29595 | E62: 48673.42593 | F62: 47715.09593 | G62: 47715.09593 | I62: 958.33 | J62: 11499.96 | K62: =VLOOKUP(($C$28-$C$30)/365.25, N_GAD, VLOOKUP($C$35, 'Gilt Yields'!$A$1:$C$23, 2))*($C$40/1000)*1.5 -> 3655.399755 | M62: 23 | N62: 11499.96 | O62: 11499.96 | Q62: 11499.96 | R62: 0 | S62: 0 | U62: 11499.96
A63: 2019-03-12 | B63: 24 | C63: 47715.09593 | D63: 48643.39024 | E63: 48565.69258 | F63: 47607.36258 | G63: 47607.36258 | I63: 958.33 | J63: 11499.96 | K63: =VLOOKUP(($C$28-$C$30)/365.25, N_GAD, VLOOKUP($C$35, 'Gilt Yields'!$A$1:$C$23, 2))*($C$40/1000)*1.5 -> 3655.399755 | M63: 24 | N63: 11499.96 | O63: 11499.96 | Q63: 11499.96 | R63: 0 | S63: 0 | U63: 11499.96
A64: 2019-04-12 | B64: 25 | C64: 47607.36258 | D64: 48533.56094 | E64: 48456.0387 | F64: 47497.7087 | G64: 47497.7087 | I64: 958.33 | J64: 11499.96 | K64: =VLOOKUP(($C$28-$C$30)/365.25, N_GAD, VLOOKUP($C$35, 'Gilt Yields'!$A$1:$C$23, 2))*($C$40/1000)*1.5 -> 3655.399755 | M64: 25 | N64: 11499.96 | O64: 11499.96 | Q64: 11499.96 | R64: 0 | S64: 0 | U64: 11499.96
A65: 2019-05-12 | B65: 26 | C65: 47497.7087 | D65: 48421.77375 | E65: 48344.43008 | F65: 47386.10008 | G65: 47386.10008 | I65: 958.33 | J65: 11499.96 | K65: =VLOOKUP(($C$28-$C$30)/365.25, N_GAD, VLOOKUP($C$35, 'Gilt Yields'!$A$1:$C$23, 2))*($C$40/1000)*1.5 -> 3655.399755 | M65: 26 | N65: 11499.96 | O65: 11499.96 | Q65: 11499.96 | R65: 0 | S65: 0 | U65: 11499.96
A66: 2019-06-12 | B66: 27 | C66: 47386.10008 | D66: 48307.99379 | E66: 48230.83185 | F66: 47272.50185 | G66: 47272.50185 | I66: 958.33 | J66: 11499.96 | K66: =VLOOKUP(($C$28-$C$30)/365.25, N_GAD, VLOOKUP($C$35, 'Gilt Yields'!$A$1:$C$23, 2))*($C$40/1000)*1.5 -> 3655.399755 | M66: 27 | N66: 11499.96 | O66: 11499.96 | Q66: 11499.96 | R66: 0 | S66: 0 | U66: 11499.96
A67: 2019-07-12 | B67: 28 | C67: 47272.50185 | D67: 48192.18552 | E67: 48115.20856 | F67: 47156.87856 | G67: 47156.87856 | I67: 958.33 | J67: 11499.96 | K67: =VLOOKUP(($C$28-$C$30)/365.25, N_GAD, VLOOKUP($C$35, 'Gilt Yields'!$A$1:$C$23, 2))*($C$40/1000)*1.5 -> 3655.399755 | M67: 28 | N67: 11499.96 | O67: 11499.96 | Q67: 11499.96 | R67: 0 | S67: 0 | U67: 11499.96
A68: 2019-08-12 | B68: 29 | C68: 47156.87856 | D68: 48074.31278 | E68: 47997.5241 | F68: 47039.1941 | G68: 47039.1941 | I68: 958.33 | J68: 11499.96 | K68: =VLOOKUP(($C$28-$C$30)/365.25, N_GAD, VLOOKUP($C$35, 'Gilt Yields'!$A$1:$C$23, 2))*($C$40/1000)*1.5 -> 3655.399755 | M68: 29 | N68: 11499.96 | O68: 11499.96 | Q68: 11499.96 | R68: 0 | S68: 0 | U68: 11499.96
A69: 2019-09-12 | B69: 30 | C69: 47039.1941 | D69: 47954.33878 | E69: 47877.74173 | F69: 46919.41173 | G69: 46919.41173 | I69: 958.33 | J69: 11499.96 | K69: =VLOOKUP(($C$28-$C$30)/365.25, N_GAD, VLOOKUP($C$35, 'Gilt Yields'!$A$1:$C$23, 2))*($C$40/1000)*1.5 -> 3655.399755 | M69: 30 | N69: 11499.96 | O69: 11499.96 | Q69: 11499.96 | R69: 0 | S69: 0 | U69: 11499.96
A70: 2019-10-12 | B70: 31 | C70: 46919.41173 | D70: 47832.22605 | E70: 47755.82405 | F70: 46797.49405 | G70: 46797.49405 | I70: 958.33 | J70: 11499.96 | K70: =VLOOKUP(($C$28-$C$30)/365.25, N_GAD, VLOOKUP($C$35, 'Gilt Yields'!$A$1:$C$23, 2))*($C$40/1000)*1.5 -> 3655.399755 | M70: 31 | N70: 11499.96 | O70: 11499.96 | Q70: 11499.96 | R70: 0 | S70: 0 | U70: 11499.96
A71: 2019-11-12 | B71: 32 | C71: 46797.49405 | D71: 47707.93647 | E71: 47631.733 | F71: 46673.403 | G71: 46673.403 | I71: 958.33 | J71: 11499.96 | K71: =VLOOKUP(($C$28-$C$30)/365.25, N_GAD, VLOOKUP($C$35, 'Gilt Yields'!$A$1:$C$23, 2))*($C$40/1000)*1.5 -> 3655.399755 | M71: 32 | N71: 11499.96 | O71: 11499.96 | Q71: 11499.96 | R71: 0 | S71: 0 | U71: 11499.96
A72: 2019-12-12 | B72: 33 | C72: 46673.403 | D72: 47581.43123 | E72: 47505.42983 | F72: 46547.09983 | G72: 46547.09983 | I72: 958.33 | J72: 11499.96 | K72: =VLOOKUP(($C$28-$C$30)/365.25, N_GAD, VLOOKUP($C$35, 'Gilt Yields'!$A$1:$C$23, 2))*($C$40/1000)*1.5 -> 3655.399755 | M72: 33 | N72: 11499.96 | O72: 11499.96 | Q72: 11499.96 | R72: 0 | S72: 0 | U72: 11499.96
A73: 2020-01-12 | B73: 34 | C73: 46547.09983 | D73: 47452.67084 | E73: 47376.8751 | F73: 46418.5451 | G73: 46418.5451 | I73: 958.33 | J73: 11499.96 | K73: =VLOOKUP(($C$28-$C$30)/365.25, N_GAD, VLOOKUP($C$35, 'Gilt Yields'!$A$1:$C$23, 2))*($C$40/1000)*1.5 -> 3655.399755 | M73: 34 | N73: 11499.96 | O73: 11499.96 | Q73: 11499.96 | R73: 0 | S73: 0 | U73: 11499.96
A74: 2020-02-12 | B74: 35 | C74: 46418.5451 | D74: 47321.61509 | E74: 47246.02869 | F74: 46287.69869 | G74: 46287.69869 | I74: 958.33 | J74: 11499.96 | K74: =VLOOKUP(($C$28-$C$30)/365.25, N_GAD, VLOOKUP($C$35, 'Gilt Yields'!$A$1:$C$23, 2))*($C$40/1000)*1.5 -> 3655.399755 | M74: 35 | N74: 11499.96 | O74: 11499.96 | Q74: 11499.96 | R74: 0 | S74: 0 | U74: 11499.96
A75: 2020-03-12 | B75: 36 | C75: 46287.69869 | D75: 47188.22307 | E75: 47112.84973 | F75: 46154.51973 | G75: 46154.51973 | I75: 958.33 | J75: 11499.96 | K75: =VLOOKUP(($C$28-$C$30)/365.25, N_GAD, VLOOKUP($C$35, 'Gilt Yields'!$A$1:$C$23, 2))*($C$40/1000)*1.5 -> 3655.399755 | M75: 36 | N75: 11499.96 | O75: 11499.96 | Q75: 11499.96 | R75: 0 | S75: 0 | U75: 11499.96
A76: 2020-04-12 | B76: 37 | C76: 46154.51973 | D76: 47052.45312 | E76: 46977.29665 | F76: 46018.96665 | G76: 46018.96665 | I76: 958.33 | J76: 11499.96 | K76: =VLOOKUP(($C$28-$C$30)/365.25+3, N_GAD, VLOOKUP($C$35, 'Gilt Yields'!$A$1:$C$23, 2))*($C$76/1000)*1.5 -> 3669.284319 | M76: 37 | N76: 11499.96 | O76: 11499.96 | Q76: 11499.96 | R76: 0 | S76: 0 | U76: 11499.96
A77: 2020-05-12 | B77: 38 | C77: 46018.96665 | D77: 46914.26286 | E77: 46839.32712 | F77: 45880.99712 | G77: 45880.99712 | I77: 958.33 | J77: 11499.96 | K77: =VLOOKUP(($C$28-$C$30)/365.25+3, N_GAD, VLOOKUP($C$35, 'Gilt Yields'!$A$1:$C$23, 2))*($C$76/1000)*1.5 -> 3669.284319 | M77: 38 | N77: 11499.96 | O77: 11499.96 | Q77: 11499.96 | R77: 0 | S77: 0 | U77: 11499.96
A78: 2020-06-12 | B78: 39 | C78: 45880.99712 | D78: 46773.60914 | E78: 46698.89807 | F78: 45740.56807 | G78: 45740.56807 | I78: 958.33 | J78: 11499.96 | K78: =VLOOKUP(($C$28-$C$30)/365.25+3, N_GAD, VLOOKUP($C$35, 'Gilt Yields'!$A$1:$C$23, 2))*($C$76/1000)*1.5 -> 3669.284319 | M78: 39 | N78: 11499.96 | O78: 11499.96 | Q78: 11499.96 | R78: 0 | S78: 0 | U78: 11499.96
A79: 2020-07-12 | B79: 40 | C79: 45740.56807 | D79: 46630.44805 | E79: 46555.96565 | F79: 45597.63565 | G79: 45597.63565 | I79: 958.33 | J79: 11499.96 | K79: =VLOOKUP(($C$28-$C$30)/365.25+3, N_GAD, VLOOKUP($C$35, 'Gilt Yields'!$A$1:$C$23, 2))*($C$76/1000)*1.5 -> 3669.284319 | M79: 40 | N79: 11499.96 | O79: 11499.96 | Q79: 11499.96 | R79: 0 | S79: 0 | U79: 11499.96
A80: 2020-08-12 | B80: 41 | C80: 45597.63565 | D80: 46484.73489 | E80: 46410.48523 | F80: 45452.15523 | G80: 45452.15523 | I80: 958.33 | J80: 11499.96 | K80: =VLOOKUP(($C$28-$C$30)/365.25+3, N_GAD, VLOOKUP($C$35, 'Gilt Yields'!$A$1:$C$23, 2))*($C$76/1000)*1.5 -> 3669.284319 | M80: 41 | N80: 11499.96 | O80: 11499.96 | Q80: 11499.96 | R80: 0 | S80: 0 | U80: 11499.96
A81: 2020-09-12 | B81: 42 | C81: 45452.15523 | D81: 46336.42416 | E81: 46262.4114 | F81: 45304.0814 | G81: 45304.0814 | I81: 958.33 | J81: 11499.96 | K81: =VLOOKUP(($C$28-$C$30)/365.25+3, N_GAD, VLOOKUP($C$35, 'Gilt Yields'!$A$1:$C$23, 2))*($C$76/1000)*1.5 -> 3669.284319 | M81: 42 | N81: 11499.96 | O81: 11499.96 | Q81: 11499.96 | R81: 0 | S81: 0 | U81: 11499.96
A82: 2020-10-12 | B82: 43 | C82: 45304.0814 | D82: 46185.46956 | E82: 46111.69791 | F82: 45153.36791 | G82: 45153.36791 | I82: 958.33 | J82: 11499.96 | K82: =VLOOKUP(($C$28-$C$30)/365.25+3, N_GAD, VLOOKUP($C$35, 'Gilt Yields'!$A$1:$C$23, 2))*($C$76/1000)*1.5 -> 3669.284319 | M82: 43 | N82: 11499.96 | O82: 11499.96 | Q82: 11499.96 | R82: 0 | S82: 0 | U82: 11499.96
A83: 2020-11-12 | B83: 44 | C83: 45153.36791 | D83: 46031.82395 | E83: 45958.29772 | F83: 44999.96772 | G83: 44999.96772 | I83: 958.33 | J83: 11499.96 | K83: =VLOOKUP(($C$28-$C$30)/365.25+3, N_GAD, VLOOKUP($C$35, 'Gilt Yields'!$A$1:$C$23, 2))*($C$76/1000)*1.5 -> 3669.284319 | M83: 44 | N83: 11499.96 | O83: 11499.96 | Q83: 11499.96 | R83: 0 | S83: 0 | U83: 11499.96
A84: 2020-12-12 | B84: 45 | C84: 44999.96772 | D84: 45875.43937 | E84: 45802.16294 | F84: 44843.83294 | G84: 44843.83294 | I84: 958.33 | J84: 11499.96 | K84: =VLOOKUP(($C$28-$C$30)/365.25+3, N_GAD, VLOOKUP($C$35, 'Gilt Yields'!$A$1:$C$23, 2))*($C$76/1000)*1.5 -> 3669.284319 | M84: 45 | N84: 11499.96 | O84: 11499.96 | Q84: 11499.96 | R84: 0 | S84: 0 | U84: 11499.96
A85: 2021-01-12 | B85: 46 | C85: 44843.83294 | D85: 45716.26699 | E85: 45643.2448 | F85: 44684.9148 | G85: 44684.9148 | I85: 958.33 | J85: 11499.96 | K85: =VLOOKUP(($C$28-$C$30)/365.25+3, N_GAD, VLOOKUP($C$35, 'Gilt Yields'!$A$1:$C$23, 2))*($C$76/1000)*1.5 -> 3669.284319 | M85: 46 | N85: 11499.96 | O85: 11499.96 | Q85: 11499.96 | R85: 0 | S85: 0 | U85: 11499.96
A86: 2021-02-12 | B86: 47 | C86: 44684.9148 | D86: 45554.25711 | E86: 45481.4937 | F86: 44523.1637 | G86: 44523.1637 | I86: 958.33 | J86: 11499.96 | K86: =VLOOKUP(($C$28-$C$30)/365.25+3, N_GAD, VLOOKUP($C$35, 'Gilt Yields'!$A$1:$C$23, 2))*($C$76/1000)*1.5 -> 3669.284319 | M86: 47 | N86: 11499.96 | O86: 11499.96 | Q86: 11499.96 | R86: 0 | S86: 0 | U86: 11499.96
A87: 2021-03-12 | B87: 48 | C87: 44523.1637 | D87: 45389.35916 | E87: 45316.85913 | F87: 44358.52913 | G87: 44358.52913 | I87: 958.33 | J87: 11499.96 | K87: =VLOOKUP(($C$28-$C$30)/365.25+3, N_GAD, VLOOKUP($C$35, 'Gilt Yields'!$A$1:$C$23, 2))*($C$76/1000)*1.5 -> 3669.284319 | M87: 48 | N87: 11499.96 | O87: 11499.96 | Q87: 11499.96 | R87: 0 | S87: 0 | U87: 11499.96
A88: 2021-04-12 | B88: 49 | C88: 44358.52913 | D88: 45221.52163 | E88: 45149.28969 | F88: 44190.95969 | G88: 44190.95969 | I88: 958.33 | J88: 11499.96 | K88: =VLOOKUP(($C$28-$C$30)/365.25+3, N_GAD, VLOOKUP($C$35, 'Gilt Yields'!$A$1:$C$23, 2))*($C$76/1000)*1.5 -> 3669.284319 | M88: 49 | N88: 11499.96 | O88: 11499.96 | Q88: 11499.96 | R88: 0 | S88: 0 | U88: 11499.96
A89: 2021-05-12 | B89: 50 | C89: 44190.95969 | D89: 45050.69214 | E89: 44978.73306 | F89: 44020.40306 | G89: 44020.40306 | I89: 958.33 | J89: 11499.96 | K89: =VLOOKUP(($C$28-$C$30)/365.25+3, N_GAD, VLOOKUP($C$35, 'Gilt Yields'!$A$1:$C$23, 2))*($C$76/1000)*1.5 -> 3669.284319 | M89: 50 | N89: 11499.96 | O89: 11499.96 | Q89: 11499.96 | R89: 0 | S89: 0 | U89: 11499.96
A90: 2021-06-12 | B90: 51 | C90: 44020.40306 | D90: 44876.81734 | E90: 44805.13599 | F90: 43846.80599 | G90: 43846.80599 | I90: 958.33 | J90: 11499.96 | K90: =VLOOKUP(($C$28-$C$30)/365.25+3, N_GAD, VLOOKUP($C$35, 'Gilt Yields'!$A$1:$C$23, 2))*($C$76/1000)*1.5 -> 3669.284319 | M90: 51 | N90: 11499.96 | O90: 11499.96 | Q90: 11499.96 | R90: 0 | S90: 0 | U90: 11499.96
A91: 2021-07-12 | B91: 52 | C91: 43846.80599 | D91: 44699.84295 | E91: 44628.44428 | F91: 43670.11428 | G91: 43670.11428 | I91: 958.33 | J91: 11499.96 | K91: =VLOOKUP(($C$28-$C$30)/365.25+3, N_GAD, VLOOKUP($C$35, 'Gilt Yields'!$A$1:$C$23, 2))*($C$76/1000)*1.5 -> 3669.284319 | M91: 52 | N91: 11499.96 | O91: 11499.96 | Q91: 11499.96 | R91: 0 | S91: 0 | U91: 11499.96
A92: 2021-08-12 | B92: 53 | C92: 43670.11428 | D92: 44519.71371 | E92: 44448.60276 | F92: 43490.27276 | G92: 43490.27276 | I92: 958.33 | J92: 11499.96 | K92: =VLOOKUP(($C$28-$C$30)/365.25+3, N_GAD, VLOOKUP($C$35, 'Gilt Yields'!$A$1:$C$23, 2))*($C$76/1000)*1.5 -> 3669.284319 | M92: 53 | N92: 11499.96 | O92: 11499.96 | Q92: 11499.96 | R92: 0 | S92: 0 | U92: 11499.96
A93: 2021-09-12 | B93: 54 | C93: 43490.27276 | D93: 44336.37339 | E93: 44265.55529 | F93: 43307.22529 | G93: 43307.22529 | I93: 958.33 | J93: 11499.96 | K93: =VLOOKUP(($C$28-$C$30)/365.25+3, N_GAD, VLOOKUP($C$35, 'Gilt Yields'!$A$1:$C$23, 2))*($C$76/1000)*1.5 -> 3669.284319 | M93: 54 | N93: 11499.96 | O93: 11499.96 | Q93: 11499.96 | R93: 0 | S93: 0 | U93: 11499.96
A94: 2021-10-12 | B94: 55 | C94: 43307.22529 | D94: 44149.76474 | E94: 44079.24471 | F94: 43120.91471 | G94: 43120.91471 | I94: 958.33 | J94: 11499.96 | K94: =VLOOKUP(($C$28-$C$30)/365.25+3, N_GAD, VLOOKUP($C$35, 'Gilt Yields'!$A$1:$C$23, 2))*($C$76/1000)*1.5 -> 3669.284319 | M94: 55 | N94: 11499.96 | O94: 11499.96 | Q94: 11499.96 | R94: 0 | S94: 0 | U94: 11499.96
A95: 2021-11-12 | B95: 56 | C95: 43120.91471 | D95: 43959.82949 | E95: 43889.61284 | F95: 42931.28284 | G95: 42931.28284 | I95: 958.33 | J95: 11499.96 | K95: =VLOOKUP(($C$28-$C$30)/365.25+3, N_GAD, VLOOKUP($C$35, 'Gilt Yields'!$A$1:$C$23, 2))*($C$76/1000)*1.5 -> 3669.284319 | M95: 56 | N95: 11499.96 | O95: 11499.96 | Q95: 11499.96 | R95: 0 | S95: 0 | U95: 11499.96
A96: 2021-12-12 | B96: 57 | C96: 42931.28284 | D96: 43766.50835 | E96: 43696.60049 | F96: 42738.27049 | G96: 42738.27049 | I96: 958.33 | J96: 11499.96 | K96: =VLOOKUP(($C$28-$C$30)/365.25+3, N_GAD, VLOOKUP($C$35, 'Gilt Yields'!$A$1:$C$23, 2))*($C$76/1000)*1.5 -> 3669.284319 | M96: 57 | N96: 11499.96 | O96: 11499.96 | Q96: 11499.96 | R96: 0 | S96: 0 | U96: 11499.96
A97: 2022-01-12 | B97: 58 | C97: 42738.27049 | D97: 43569.74096 | E97: 43500.14739 | F97: 42541.81739 | G97: 42541.81739 | I97: 958.33 | J97: 11499.96 | K97: =VLOOKUP(($C$28-$C$30)/365.25+3, N_GAD, VLOOKUP($C$35, 'Gilt Yields'!$A$1:$C$23, 2))*($C$76/1000)*1.5 -> 3669.284319 | M97: 58 | N97: 11499.96 | O97: 11499.96 | Q97: 11499.96 | R97: 0 | S97: 0 | U97: 11499.96
A98: 2022-02-12 | B98: 59 | C98: 42541.81739 | D98: 43369.46588 | E98: 43300.19221 | F98: 42341.86221 | G98: 42341.86221 | I98: 958.33 | J98: 11499.96 | K98: =VLOOKUP(($C$28-$C$30)/365.25+3, N_GAD, VLOOKUP($C$35, 'Gilt Yields'!$A$1:$C$23, 2))*($C$76/1000)*1.5 -> 3669.284319 | M98: 59 | N98: 11499.96 | O98: 11499.96 | Q98: 11499.96 | R98: 0 | S98: 0 | U98: 11499.96
A99: 2022-03-12 | B99: 60 | C99: 42341.86221 | D99: 43165.62058 | E99: 43096.67251 | F99: 42138.34251 | G99: 42138.34251 | I99: 958.33 | J99: 11499.96 | K99: =VLOOKUP(($C$28-$C$30)/365.25+3, N_GAD, VLOOKUP($C$35, 'Gilt Yields'!$A$1:$C$23, 2))*($C$76/1000)*1.5 -> 3669.284319 | M99: 60 | N99: 11499.96 | O99: 11499.96 | Q99: 11499.96 | R99: 0 | S99: 0 | U99: 11499.96
A100: 2022-04-12 | B100: 61 | C100: 42138.34251 | D100: 42958.14141 | E100: 42889.52475 | F100: 41931.19475 | G100: 41931.19475 | I100: 958.33 | J100: 11499.96 | K100: =VLOOKUP(($C$28-$C$30)/365.25+3, N_GAD, VLOOKUP($C$35, 'Gilt Yields'!$A$1:$C$23, 2))*($C$76/1000)*1.5 -> 3669.284319 | M100: 61 | N100: 11499.96 | O100: 11499.96 | Q100: 11499.96 | R100: 0 | S100: 0 | U100: 11499.96
A101: 2022-05-12 | B101: 62 | C101: 41931.19475 | D101: 42746.96361 | E101: 42678.68426 | F101: 41720.35426 | G101: 41720.35426 | I101: 958.33 | J101: 11499.96 | K101: =VLOOKUP(($C$28-$C$30)/365.25+3, N_GAD, VLOOKUP($C$35, 'Gilt Yields'!$A$1:$C$23, 2))*($C$76/1000)*1.5 -> 3669.284319 | M101: 62 | N101: 11499.96 | O101: 11499.96 | Q101: 11499.96 | R101: 0 | S101: 0 | U101: 11499.96
A102: 2022-06-12 | B102: 63 | C102: 41720.35426 | D102: 42532.02123 | E102: 42464.0852 | F102: 41505.7552 | G102: 41505.7552 | I102: 958.33 | J102: 11499.96 | K102: =VLOOKUP(($C$28-$C$30)/365.25+3, N_GAD, VLOOKUP($C$35, 'Gilt Yields'!$A$1:$C$23, 2))*($C$76/1000)*1.5 -> 3669.284319 | M102: 63 | N102: 11499.96 | O102: 11499.96 | Q102: 11499.96 | R102: 0 | S102: 0 | U102: 11499.96
A103: 2022-07-12 | B103: 64 | C103: 41505.7552 | D103: 42313.24716 | E103: 42245.66058 | F103: 41287.33058 | G103: 41287.33058 | I103: 958.33 | J103: 11499.96 | K103: =VLOOKUP(($C$28-$C$30)/365.25+3, N_GAD, VLOOKUP($C$35, 'Gilt Yields'!$A$1:$C$23, 2))*($C$76/1000)*1.5 -> 3669.284319 | M103: 64 | N103: 11499.96 | O103: 11499.96 | Q103: 11499.96 | R103: 0 | S103: 0 | U103: 11499.96
A104: 2022-08-12 | B104: 65 | C104: 41287.33058 | D104: =IF(C104>0,C104*(1+$C$36)^(1/12),"") -> 42090.5731 | E104: =IF(C104>0,(D104-($C$32/12))*(1-$C$33)^(1/12),"") -> 42023.34219 | F104: 41065.01219 | G104: =F104 -> 41065.01219 | I104: =E104-F104 -> 958.33 | J104: =I104*12 -> 11499.96 | K104: =VLOOKUP(($C$28-$C$30)/365.25+3, N_GAD, VLOOKUP($C$35, 'Gilt Yields'!$A$1:$C$23, 2))*($C$76/1000)*1.5 -> 3669.284319 | M104: 65 | N104: 11499.96 | O104: 11499.96 | Q104: 11499.96 | R104: 0 | S104: 0 | U104: 11499.96
A105: 2022-09-12 | B105: =B104+1 -> 66 | C105: =IF(B105<=$F$35,G104,0) -> 41065.01219 | D105: 41863.92952 | E105: 41797.06063 | F105: =IF(C105>0,E105-(MIN(U105,K105*50)/12),"") -> 40838.73063 | G105: 40838.73063 | I105: 958.33 | J105: 11499.96 | K105: =VLOOKUP(($C$28-$C$30)/365.25+3, N_GAD, VLOOKUP($C$35, 'Gilt Yields'!$A$1:$C$23, 2))*($C$76/1000)*1.5 -> 3669.284319 | M105: 66 | N105: 11499.96 | O105: 11499.96 | Q105: 11499.96 | R105: 0 | S105: 0 | U105: 11499.96
A106: =EDATE($A$40, B105) -> 2022-10-12 | B106: 67 | C106: 40838.73063 | D106: 41633.24567 | E106: 41566.74525 | F106: 40608.41525 | G106: 40608.41525 | I106: 958.33 | J106: 11499.96 | K106: =VLOOKUP(($C$28-$C$30)/365.25+3, N_GAD, VLOOKUP($C$35, 'Gilt Yields'!$A$1:$C$23, 2))*($C$76/1000)*1.5 -> 3669.284319 | M106: 67 | N106: 11499.96 | O106: =IF(N106=N105, IF(M105/12=INT(M105/12), O105*(1+$O$38), O105), N106) -> 11499.96 | Q106: =IF(M105/12=INT(M105/12), Q105*(1+$O$38), Q105) -> 11499.96 | R106: =IF($M105/12=INT($M105/12), R105*(1+$O$38), R105) -> 0 | S106: =IF($M105/12=INT($M105/12), S105*(1+$O$38), S105) -> 0 | U106: =VLOOKUP(A106, $A$40:$S$795, VLOOKUP(A106, $I$28:$K$30, 3)) -> 11499.96
A107: 2022-11-12 | B107: 68 | C107: 40608.41525 | D107: 41398.44951 | E107: 41332.32413 | F107: 40373.99413 | G107: 40373.99413 | I107: 958.33 | J107: 11499.96 | K107: =VLOOKUP(($C$28-$C$30)/365.25+3, N_GAD, VLOOKUP($C$35, 'Gilt Yields'!$A$1:$C$23, 2))*($C$76/1000)*1.5 -> 3669.284319 | M107: 68 | N107: 11499.96 | O107: 11499.96 | Q107: 11499.96 | R107: 0 | S107: 0 | U107: 11499.96
A108: 2022-12-12 | B108: 69 | C108: 40373.99413 | D108: 41159.46774 | E108: 41093.72408 | F108: 40135.39408 | G108: 40135.39408 | I108: 958.33 | J108: 11499.96 | K108: =VLOOKUP(($C$28-$C$30)/365.25+3, N_GAD, VLOOKUP($C$35, 'Gilt Yields'!$A$1:$C$23, 2))*($C$76/1000)*1.5 -> 3669.284319 | M108: 69 | N108: 11499.96 | O108: 11499.96 | Q108: 11499.96 | R108: 0 | S108: 0 | U108: 11499.96
A109: 2023-01-12 | B109: 70 | C109: 40135.39408 | D109: 40916.22575 | E109: 40850.87062 | F109: 39892.54062 | G109: 39892.54062 | I109: 958.33 | J109: 11499.96 | K109: =VLOOKUP(($C$28-$C$30)/365.25+3, N_GAD, VLOOKUP($C$35, 'Gilt Yields'!$A$1:$C$23, 2))*($C$76/1000)*1.5 -> 3669.284319 | M109: 70 | N109: 11499.96 | O109: 11499.96 | Q109: 11499.96 | R109: 0 | S109: 0 | U109: 11499.96
A110: 2023-02-12 | B110: 71 | C110: 39892.54062 | D110: 40668.64758 | E110: 40603.68791 | F110: 39645.35791 | G110: 39645.35791 | I110: 958.33 | J110: 11499.96 | K110: =VLOOKUP(($C$28-$C$30)/365.25+3, N_GAD, VLOOKUP($C$35, 'Gilt Yields'!$A$1:$C$23, 2))*($C$76/1000)*1.5 -> 3669.284319 | M110: 71 | N110: 11499.96 | O110: 11499.96 | Q110: 11499.96 | R110: 0 | S110: 0 | U110: 11499.96
A111: 2023-03-12 | B111: 72 | C111: 39645.35791 | D111: 40416.65595 | E111: 40352.09878 | F111: 39393.76878 | G111: 39393.76878 | I111: 958.33 | J111: 11499.96 | K111: =VLOOKUP(($C$28-$C$30)/365.25+3, N_GAD, VLOOKUP($C$35, 'Gilt Yields'!$A$1:$C$23, 2))*($C$76/1000)*1.5 -> 3669.284319 | M111: 72 | N111: =VLOOKUP(A111, $I$28:$J$30, 2) -> 11499.96 | O111: 11499.96 | Q111: 11499.96 | R111: 0 | S111: 0 | U111: 11499.96
A112: 2023-04-12 | B112: 73 | C112: 39393.76878 | D112: 40160.17217 | E112: 40096.02468 | F112: 39137.69468 | G112: 39137.69468 | I112: 958.33 | J112: 11499.96 | K112: =VLOOKUP(($C$28-$C$30)/365.25+6, N_GAD, VLOOKUP($C$35, 'Gilt Yields'!$A$1:$C$23, 2))*($C$112/1000)*1.5 -> 3427.257884 | M112: 73 | N112: 11499.96 | O112: 11499.96 | Q112: 11499.96 | R112: 0 | S112: 0 | U112: 11499.96
A113: 2023-05-12 | B113: 74 | C113: 39137.69468 | D113: 39899.11616 | E113: 39835.38565 | F113: 38877.05565 | G113: 38877.05565 | I113: 958.33 | J113: 11499.96 | K113: =VLOOKUP(($C$28-$C$30)/365.25+6, N_GAD, VLOOKUP($C$35, 'Gilt Yields'!$A$1:$C$23, 2))*($C$112/1000)*1.5 -> 3427.257884 | M113: 74 | N113: 11499.96 | O113: 11499.96 | Q113: 11499.96 | R113: 0 | S113: 0 | U113: 11499.96
A114: 2023-06-12 | B114: 75 | C114: 38877.05565 | D114: 39633.40641 | E114: 39570.10032 | F114: 38611.77032 | G114: 38611.77032 | I114: 958.33 | J114: 11499.96 | K114: =VLOOKUP(($C$28-$C$30)/365.25+6, N_GAD, VLOOKUP($C$35, 'Gilt Yields'!$A$1:$C$23, 2))*($C$112/1000)*1.5 -> 3427.257884 | M114: 75 | N114: 11499.96 | O114: 11499.96 | Q114: 11499.96 | R114: 0 | S114: 0 | U114: 11499.96
A115: 2023-07-12 | B115: 76 | C115: 38611.77032 | D115: 39362.95998 | E115: 39300.08587 | F115: 38341.75587 | G115: 38341.75587 | I115: 958.33 | J115: 11499.96 | K115: =VLOOKUP(($C$28-$C$30)/365.25+6, N_GAD, VLOOKUP($C$35, 'Gilt Yields'!$A$1:$C$23, 2))*($C$112/1000)*1.5 -> 3427.257884 | M115: 76 | N115: 11499.96 | O115: 11499.96 | Q115: 11499.96 | R115: 0 | S115: 0 | U115: 11499.96
A116: 2023-08-12 | B116: 77 | C116: 38341.75587 | D116: 39087.69241 | E116: 39025.25798 | F116: 38066.92798 | G116: 38066.92798 | I116: 958.33 | J116: 11499.96 | K116: =VLOOKUP(($C$28-$C$30)/365.25+6, N_GAD, VLOOKUP($C$35, 'Gilt Yields'!$A$1:$C$23, 2))*($C$112/1000)*1.5 -> 3427.257884 | M116: 77 | N116: 11499.96 | O116: 11499.96 | Q116: 11499.96 | R116: 0 | S116: 0 | U116: 11499.96
A117: 2023-09-12 | B117: 78 | C117: 38066.92798 | D117: 38807.51776 | E117: 38745.53085 | F117: 37787.20085 | G117: 37787.20085 | I117: 958.33 | J117: 11499.96 | K117: =VLOOKUP(($C$28-$C$30)/365.25+6, N_GAD, VLOOKUP($C$35, 'Gilt Yields'!$A$1:$C$23, 2))*($C$112/1000)*1.5 -> 3427.257884 | M117: 78 | N117: 11499.96 | O117: 11499.96 | Q117: 11499.96 | R117: 0 | S117: 0 | U117: 11499.96
A118: 2023-10-12 | B118: 79 | C118: 37787.20085 | D118: 38522.34856 | E118: 38460.81715 | F118: 37502.48715 | G118: 37502.48715 | I118: 958.33 | J118: 11499.96 | K118: =VLOOKUP(($C$28-$C$30)/365.25+6, N_GAD, VLOOKUP($C$35, 'Gilt Yields'!$A$1:$C$23, 2))*($C$112/1000)*1.5 -> 3427.257884 | M118: 79 | N118: 11499.96 | O118: 11499.96 | Q118: 11499.96 | R118: 0 | S118: 0 | U118: 11499.96
A119: 2023-11-12 | B119: 80 | C119: 37502.48715 | D119: 38232.09577 | E119: 38171.02797 | F119: 37212.69797 | G119: 37212.69797 | I119: 958.33 | J119: 11499.96 | K119: =VLOOKUP(($C$28-$C$30)/365.25+6, N_GAD, VLOOKUP($C$35, 'Gilt Yields'!$A$1:$C$23, 2))*($C$112/1000)*1.5 -> 3427.257884 | M119: 80 | N119: 11499.96 | O119: 11499.96 | Q119: 11499.96 | R119: 0 | S119: 0 | U119: 11499.96
A120: 2023-12-12 | B120: 81 | C120: 37212.69797 | D120: 37936.66876 | E120: 37876.07285 | F120: 36917.74285 | G120: 36917.74285 | I120: 958.33 | J120: 11499.96 | K120: =VLOOKUP(($C$28-$C$30)/365.25+6, N_GAD, VLOOKUP($C$35, 'Gilt Yields'!$A$1:$C$23, 2))*($C$112/1000)*1.5 -> 3427.257884 | M120: 81 | N120: 11499.96 | O120: 11499.96 | Q120: 11499.96 | R120: 0 | S120: 0 | U120: 11499.96
A121: 2024-01-12 | B121: 82 | C121: 36917.74285 | D121: 37635.97531 | E121: 37575.85969 | F121: 36617.52969 | G121: 36617.52969 | I121: 958.33 | J121: 11499.96 | K121: =VLOOKUP(($C$28-$C$30)/365.25+6, N_GAD, VLOOKUP($C$35, 'Gilt Yields'!$A$1:$C$23, 2))*($C$112/1000)*1.5 -> 3427.257884 | M121: 82 | N121: 11499.96 | O121: 11499.96 | Q121: 11499.96 | R121: 0 | S121: 0 | U121: 11499.96
A122: 2024-02-12 | B122: 83 | C122: 36617.52969 | D122: 37329.92152 | E122: 37270.29476 | F122: 36311.96476 | G122: 36311.96476 | I122: 958.33 | J122: 11499.96 | K122: =VLOOKUP(($C$28-$C$30)/365.25+6, N_GAD, VLOOKUP($C$35, 'Gilt Yields'!$A$1:$C$23, 2))*($C$112/1000)*1.5 -> 3427.257884 | M122: 83 | N122: 11499.96 | O122: 11499.96 | Q122: 11499.96 | R122: 0 | S122: 0 | U122: 11499.96
A123: 2024-03-12 | B123: 84 | C123: 36311.96476 | D123: 37018.41184 | E123: 36959.28265 | F123: 36000.95265 | G123: 36000.95265 | I123: 958.33 | J123: 11499.96 | K123: =VLOOKUP(($C$28-$C$30)/365.25+6, N_GAD, VLOOKUP($C$35, 'Gilt Yields'!$A$1:$C$23, 2))*($C$112/1000)*1.5 -> 3427.257884 | M123: 84 | N123: 11499.96 | O123: 11499.96 | Q123: 11499.96 | R123: 0 | S123: 0 | U123: 11499.96
A124: 2024-04-12 | B124: 85 | C124: 36000.95265 | D124: 36701.34901 | E124: 36642.72627 | F124: 35684.39627 | G124: 35684.39627 | I124: 958.33 | J124: 11499.96 | K124: =VLOOKUP(($C$28-$C$30)/365.25+6, N_GAD, VLOOKUP($C$35, 'Gilt Yields'!$A$1:$C$23, 2))*($C$112/1000)*1.5 -> 3427.257884 | M124: 85 | N124: 11499.96 | O124: 11499.96 | Q124: 11499.96 | R124: 0 | S124: 0 | U124: 11499.96
A125: 2024-05-12 | B125: 86 | C125: 35684.39627 | D125: 36378.63404 | E125: 36320.52676 | F125: 35362.19676 | G125: 35362.19676 | I125: 958.33 | J125: 11499.96 | K125: =VLOOKUP(($C$28-$C$30)/365.25+6, N_GAD, VLOOKUP($C$35, 'Gilt Yields'!$A$1:$C$23, 2))*($C$112/1000)*1.5 -> 3427.257884 | M125: 86 | N125: 11499.96 | O125: 11499.96 | Q125: 11499.96 | R125: 0 | S125: 0 | U125: 11499.96
A126: 2024-06-12 | B126: 87 | C126: 35362.19676 | D126: 36050.16616 | E126: 35992.58355 | F126: 35034.25355 | G126: 35034.25355 | I126: 958.33 | J126: 11499.96 | K126: =VLOOKUP(($C$28-$C$30)/365.25+6, N_GAD, VLOOKUP($C$35, 'Gilt Yields'!$A$1:$C$23, 2))*($C$112/1000)*1.5 -> 3427.257884 | M126: 87 | N126: 11499.96 | O126: 11499.96 | Q126: 11499.96 | R126: 0 | S126: 0 | U126: 11499.96
A127: 2024-07-12 | B127: 88 | C127: 35034.25355 | D127: 35715.84283 | E127: 35658.79423 | F127: 34700.46423 | G127: 34700.46423 | I127: 958.33 | J127: 11499.96 | K127: =VLOOKUP(($C$28-$C$30)/365.25+6, N_GAD, VLOOKUP($C$35, 'Gilt Yields'!$A$1:$C$23, 2))*($C$112/1000)*1.5 -> 3427.257884 | M127: 88 | N127: 11499.96 | O127: 11499.96 | Q127: 11499.96 | R127: 0 | S127: 0 | U127: 11499.96
A128: 2024-08-12 | B128: 89 | C128: 34700.46423 | D128: 35375.55966 | E128: 35319.05459 | F128: 34360.72459 | G128: 34360.72459 | I128: 958.33 | J128: 11499.96 | K128: =VLOOKUP(($C$28-$C$30)/365.25+6, N_GAD, VLOOKUP($C$35, 'Gilt Yields'!$A$1:$C$23, 2))*($C$112/1000)*1.5 -> 3427.257884 | M128: 89 | N128: 11499.96 | O128: 11499.96 | Q128: 11499.96 | R128: 0 | S128: 0 | U128: 11499.96
A129: 2024-09-12 | B129: 90 | C129: 34360.72459 | D129: 35029.21041 | E129: 34973.25856 | F129: 34014.92856 | G129: 34014.92856 | I129: 958.33 | J129: 11499.96 | K129: =VLOOKUP(($C$28-$C$30)/365.25+6, N_GAD, VLOOKUP($C$35, 'Gilt Yields'!$A$1:$C$23, 2))*($C$112/1000)*1.5 -> 3427.257884 | M129: 90 | N129: 11499.96 | O129: 11499.96 | Q129: 11499.96 | R129: 0 | S129: 0 | U129: 11499.96
A130: 2024-10-12 | B130: 91 | C130: 34014.92856 | D130: 34676.68693 | E130: 34621.29817 | F130: 33662.96817 | G130: 33662.96817 | I130: 958.33 | J130: 11499.96 | K130: =VLOOKUP(($C$28-$C$30)/365.25+6, N_GAD, VLOOKUP($C$35, 'Gilt Yields'!$A$1:$C$23, 2))*($C$112/1000)*1.5 -> 3427.257884 | M130: 91 | N130: 11499.96 | O130: 11499.96 | Q130: 11499.96 | R130: 0 | S130: 0 | U130: 11499.96
A131: 2024-11-12 | B131: 92 | C131: 33662.96817 | D131: 34317.87918 | E131: 34263.06353 | F131: 33304.73353 | G131: 33304.73353 | I131: 958.33 | J131: 11499.96 | K131: =VLOOKUP(($C$28-$C$30)/365.25+6, N_GAD, VLOOKUP($C$35, 'Gilt Yields'!$A$1:$C$23, 2))*($C$112/1000)*1.5 -> 3427.257884 | M131: 92 | N131: 11499.96 | O131: 11499.96 | Q131: 11499.96 | R131: 0 | S131: 0 | U131: 11499.96
A132: 2024-12-12 | B132: 93 | C132: 33304.73353 | D132: 33952.6751 | E132: 33898.44279 | F132: 32940.11279 | G132: 32940.11279 | I132: 958.33 | J132: 11499.96 | K132: =VLOOKUP(($C$28-$C$30)/365.25+6, N_GAD, VLOOKUP($C$35, 'Gilt Yields'!$A$1:$C$23, 2))*($C$112/1000)*1.5 -> 3427.257884 | M132: 93 | N132: 11499.96 | O132: 11499.96 | Q132: 11499.96 | R132: 0 | S132: 0 | U132: 11499.96
A133: 2025-01-12 | B133: 94 | C133: 32940.11279 | D133: 33580.96069 | E133: 33527.32212 | F133: 32568.99212 | G133: 32568.99212 | I133: 958.33 | J133: 11499.96 | K133: =VLOOKUP(($C$28-$C$30)/365.25+6, N_GAD, VLOOKUP($C$35, 'Gilt Yields'!$A$1:$C$23, 2))*($C$112/1000)*1.5 -> 3427.257884 | M133: 94 | N133: 11499.96 | O133: 11499.96 | Q133: 11499.96 | R133: 0 | S133: 0 | U133: 11499.96
A134: 2025-02-12 | B134: 95 | C134: 32568.99212 | D134: 33202.61989 | E134: 33149.58564 | F134: 32191.25564 | G134: 32191.25564 | I134: 958.33 | J134: 11499.96 | K134: =VLOOKUP(($C$28-$C$30)/365.25+6, N_GAD, VLOOKUP($C$35, 'Gilt Yields'!$A$1:$C$23, 2))*($C$112/1000)*1.5 -> 3427.257884 | M134: 95 | N134: 11499.96 | O134: 11499.96 | Q134: 11499.96 | R134: 0 | S134: 0 | U134: 11499.96
A135: 2025-03-12 | B135: 96 | C135: 32191.25564 | D135: 32817.53457 | E135: 32765.11541 | F135: 31806.78541 | G135: 31806.78541 | I135: 958.33 | J135: 11499.96 | K135: =VLOOKUP(($C$28-$C$30)/365.25+6, N_GAD, VLOOKUP($C$35, 'Gilt Yields'!$A$1:$C$23, 2))*($C$112/1000)*1.5 -> 3427.257884 | M135: 96 | N135: 11499.96 | O135: 11499.96 | Q135: 11499.96 | R135: 0 | S135: 0 | U135: 11499.96
A136: 2025-04-12 | B136: 97 | C136: 31806.78541 | D136: 32425.58449 | E136: 32373.79139 | F136: 31415.46139 | G136: 31415.46139 | I136: 958.33 | J136: 11499.96 | K136: =VLOOKUP(($C$28-$C$30)/365.25+6, N_GAD, VLOOKUP($C$35, 'Gilt Yields'!$A$1:$C$23, 2))*($C$112/1000)*1.5 -> 3427.257884 | M136: 97 | N136: 11499.96 | O136: 11499.96 | Q136: 11499.96 | R136: 0 | S136: 0 | U136: 11499.96
A137: 2025-05-12 | B137: 98 | C137: 31415.46139 | D137: 32026.64729 | E137: 31975.49141 | F137: 31017.16141 | G137: 31017.16141 | I137: 958.33 | J137: 11499.96 | K137: =VLOOKUP(($C$28-$C$30)/365.25+6, N_GAD, VLOOKUP($C$35, 'Gilt Yields'!$A$1:$C$23, 2))*($C$112/1000)*1.5 -> 3427.257884 | M137: 98 | N137: 11499.96 | O137: 11499.96 | Q137: 11499.96 | R137: 0 | S137: 0 | U137: 11499.96
A138: 2025-06-12 | B138: 99 | C138: 31017.16141 | D138: 31620.59841 | E138: 31570.0911 | F138: 30611.7611 | G138: 30611.7611 | I138: 958.33 | J138: 11499.96 | K138: =VLOOKUP(($C$28-$C$30)/365.25+6, N_GAD, VLOOKUP($C$35, 'Gilt Yields'!$A$1:$C$23, 2))*($C$112/1000)*1.5 -> 3427.257884 | M138: 99 | N138: 11499.96 | O138: 11499.96 | Q138: 11499.96 | R138: 0 | S138: 0 | U138: 11499.96
A139: 2025-07-12 | B139: 100 | C139: 30611.7611 | D139: 31207.31106 | E139: 31157.4639 | F139: 30199.1339 | G139: 30199.1339 | I139: 958.33 | J139: 11499.96 | K139: =VLOOKUP(($C$28-$C$30)/365.25+6, N_GAD, VLOOKUP($C$35, 'Gilt Yields'!$A$1:$C$23, 2))*($C$112/1000)*1.5 -> 3427.257884 | M139: 100 | N139: 11499.96 | O139: 11499.96 | Q139: 11499.96 | R139: 0 | S139: 0 | U139: 11499.96
A140: 2025-08-12 | B140: 101 | C140: 30199.1339 | D140: 30786.65622 | E140: 30737.48097 | F140: 29779.15097 | G140: 29779.15097 | I140: 958.33 | J140: 11499.96 | K140: =VLOOKUP(($C$28-$C$30)/365.25+6, N_GAD, VLOOKUP($C$35, 'Gilt Yields'!$A$1:$C$23, 2))*($C$112/1000)*1.5 -> 3427.257884 | M140: 101 | N140: 11499.96 | O140: 11499.96 | Q140: 11499.96 | R140: 0 | S140: 0 | U140: 11499.96
A141: 2025-09-12 | B141: 102 | C141: 29779.15097 | D141: 30358.50255 | E141: 30310.01118 | F141: 29351.68118 | G141: 29351.68118 | I141: 958.33 | J141: 11499.96 | K141: =VLOOKUP(($C$28-$C$30)/365.25+6, N_GAD, VLOOKUP($C$35, 'Gilt Yields'!$A$1:$C$23, 2))*($C$112/1000)*1.5 -> 3427.257884 | M141: 102 | N141: 11499.96 | O141: 11499.96 | Q141: 11499.96 | R141: 0 | S141: 0 | U141: 11499.96
A142: 2025-10-12 | B142: 103 | C142: 29351.68118 | D142: 29922.71636 | E142: 29874.92106 | F142: 28916.59106 | G142: 28916.59106 | I142: 958.33 | J142: 11499.96 | K142: =VLOOKUP(($C$28-$C$30)/365.25+6, N_GAD, VLOOKUP($C$35, 'Gilt Yields'!$A$1:$C$23, 2))*($C$112/1000)*1.5 -> 3427.257884 | M142: 103 | N142: 11499.96 | O142: 11499.96 | Q142: 11499.96 | R142: 0 | S142: 0 | U142: 11499.96
A143: 2025-11-12 | B143: 104 | C143: 28916.59106 | D143: 29479.16159 | E143: 29432.07479 | F143: 28473.74479 | G143: 28473.74479 | I143: 958.33 | J143: 11499.96 | K143: =VLOOKUP(($C$28-$C$30)/365.25+6, N_GAD, VLOOKUP($C$35, 'Gilt Yields'!$A$1:$C$23, 2))*($C$112/1000)*1.5 -> 3427.257884 | M143: 104 | N143: 11499.96 | O143: 11499.96 | Q143: 11499.96 | R143: 0 | S143: 0 | U143: 11499.96
A144: 2025-12-12 | B144: 105 | C144: 28473.74479 | D144: 29027.69977 | E144: 28981.33408 | F144: 28023.00408 | G144: 28023.00408 | I144: 958.33 | J144: 11499.96 | K144: =VLOOKUP(($C$28-$C$30)/365.25+6, N_GAD, VLOOKUP($C$35, 'Gilt Yields'!$A$1:$C$23, 2))*($C$112/1000)*1.5 -> 3427.257884 | M144: 105 | N144: 11499.96 | O144: 11499.96 | Q144: 11499.96 | R144: 0 | S144: 0 | U144: 11499.96
A145: 2026-01-12 | B145: 106 | C145: 28023.00408 | D145: 28568.18993 | E145: 28522.55821 | F145: 27564.22821 | G145: 27564.22821 | I145: 958.33 | J145: 11499.96 | K145: =VLOOKUP(($C$28-$C$30)/365.25+6, N_GAD, VLOOKUP($C$35, 'Gilt Yields'!$A$1:$C$23, 2))*($C$112/1000)*1.5 -> 3427.257884 | M145: 106 | N145: 11499.96 | O145: 11499.96 | Q145: 11499.96 | R145: 0 | S145: 0 | U145: 11499.96
A146: 2026-02-12 | B146: 107 | C146: 27564.22821 | D146: 28100.4886 | E146: 28055.60394 | F146: 27097.27394 | G146: 27097.27394 | I146: 958.33 | J146: 11499.96 | K146: =VLOOKUP(($C$28-$C$30)/365.25+6, N_GAD, VLOOKUP($C$35, 'Gilt Yields'!$A$1:$C$23, 2))*($C$112/1000)*1.5 -> 3427.257884 | M146: 107 | N146: 11499.96 | O146: 11499.96 | Q146: 11499.96 | R146: 0 | S146: 0 | U146: 11499.96
A147: 2026-03-12 | B147: 108 | C147: 27097.27394 | D147: 27624.44976 | E147: 27580.32547 | F147: 26621.99547 | G147: 26621.99547 | I147: 958.33 | J147: 11499.96 | K147: =VLOOKUP(($C$28-$C$30)/365.25+6, N_GAD, VLOOKUP($C$35, 'Gilt Yields'!$A$1:$C$23, 2))*($C$112/1000)*1.5 -> 3427.257884 | M147: 108 | N147: 11499.96 | O147: 11499.96 | Q147: 11499.96 | R147: 0 | S147: 0 | U147: 11499.96
A148: 2026-04-12 | B148: 109 | C148: 26621.99547 | D148: 27139.92478 | E148: 27096.57442 | F148: 26138.24442 | G148: 26138.24442 | I148: 958.33 | J148: 11499.96 | K148: =VLOOKUP(($C$28-$C$30)/365.25+9, N_GAD, VLOOKUP($C$35, 'Gilt Yields'!$A$1:$C$23, 2))*($C$148/1000)*1.5 -> 2595.644558 | M148: 109 | N148: 11499.96 | O148: 11499.96 | Q148: 11499.96 | R148: 0 | S148: 0 | U148: 11499.96
A149: 2026-05-12 | B149: 110 | C149: 26138.24442 | D149: 26646.76238 | E149: 26604.19974 | F149: 25645.86974 | G149: 25645.86974 | I149: 958.33 | J149: 11499.96 | K149: =VLOOKUP(($C$28-$C$30)/365.25+9, N_GAD, VLOOKUP($C$35, 'Gilt Yields'!$A$1:$C$23, 2))*($C$148/1000)*1.5 -> 2595.644558 | M149: 110 | N149: 11499.96 | O149: 11499.96 | Q149: 11499.96 | R149: 0 | S149: 0 | U149: 11499.96
A150: 2026-06-12 | B150: 111 | C150: 25645.86974 | D150: 26144.80859 | E150: 26103.04771 | F150: 25144.71771 | G150: 25144.71771 | I150: 958.33 | J150: 11499.96 | K150: =VLOOKUP(($C$28-$C$30)/365.25+9, N_GAD, VLOOKUP($C$35, 'Gilt Yields'!$A$1:$C$23, 2))*($C$148/1000)*1.5 -> 2595.644558 | M150: 111 | N150: 11499.96 | O150: 11499.96 | Q150: 11499.96 | R150: 0 | S150: 0 | U150: 11499.96
A151: 2026-07-12 | B151: 112 | C151: 25144.71771 | D151: 25633.90667 | E151: 25592.96186 | F151: 24634.63186 | G151: 24634.63186 | I151: 958.33 | J151: 11499.96 | K151: =VLOOKUP(($C$28-$C$30)/365.25+9, N_GAD, VLOOKUP($C$35, 'Gilt Yields'!$A$1:$C$23, 2))*($C$148/1000)*1.5 -> 2595.644558 | M151: 112 | N151: 11499.96 | O151: 11499.96 | Q151: 11499.96 | R151: 0 | S151: 0 | U151: 11499.96
A152: 2026-08-12 | B152: 113 | C152: 24634.63186 | D152: 25113.89713 | E152: 25073.78292 | F152: 24115.45292 | G152: 24115.45292 | I152: 958.33 | J152: 11499.96 | K152: =VLOOKUP(($C$28-$C$30)/365.25+9, N_GAD, VLOOKUP($C$35, 'Gilt Yields'!$A$1:$C$23, 2))*($C$148/1000)*1.5 -> 2595.644558 | M152: 113 | N152: 11499.96 | O152: 11499.96 | Q152: 11499.96 | R152: 0 | S152: 0 | U152: 11499.96
A153: 2026-09-12 | B153: 114 | C153: 24115.45292 | D153: 24584.6176 | E153: 24545.34881 | F153: 23587.01881 | G153: 23587.01881 | I153: 958.33 | J153: 11499.96 | K153: =VLOOKUP(($C$28-$C$30)/365.25+9, N_GAD, VLOOKUP($C$35, 'Gilt Yields'!$A$1:$C$23, 2))*($C$148/1000)*1.5 -> 2595.644558 | M153: 114 | N153: 11499.96 | O153: 11499.96 | Q153: 11499.96 | R153: 0 | S153: 0 | U153: 11499.96
A154: 2026-10-12 | B154: 115 | C154: 23587.01881 | D154: 24045.90283 | E154: 24007.49452 | F154: 23049.16452 | G154: 23049.16452 | I154: 958.33 | J154: 11499.96 | K154: =VLOOKUP(($C$28-$C$30)/365.25+9, N_GAD, VLOOKUP($C$35, 'Gilt Yields'!$A$1:$C$23, 2))*($C$148/1000)*1.5 -> 2595.644558 | M154: 115 | N154: 11499.96 | O154: 11499.96 | Q154: 11499.96 | R154: 0 | S154: 0 | U154: 11499.96
A155: 2026-11-12 | B155: 116 | C155: 23049.16452 | D155: 23497.58462 | E155: 23460.05214 | F155: 22501.72214 | G155: 22501.72214 | I155: 958.33 | J155: 11499.96 | K155: =VLOOKUP(($C$28-$C$30)/365.25+9, N_GAD, VLOOKUP($C$35, 'Gilt Yields'!$A$1:$C$23, 2))*($C$148/1000)*1.5 -> 2595.644558 | M155: 116 | N155: 11499.96 | O155: 11499.96 | Q155: 11499.96 | R155: 0 | S155: 0 | U155: 11499.96
A156: 2026-12-12 | B156: 117 | C156: =IF(B156<=$F$35,G155,0) -> 22501.72214 | D156: 22939.49178 | E156: 22902.85073 | F156: 21944.52073 | G156: 21944.52073 | I156: 958.33 | J156: 11499.96 | K156: =VLOOKUP(($C$28-$C$30)/365.25+9, N_GAD, VLOOKUP($C$35, 'Gilt Yields'!$A$1:$C$23, 2))*($C$148/1000)*1.5 -> 2595.644558 | M156: 117 | N156: 11499.96 | O156: 11499.96 | Q156: 11499.96 | R156: 0 | S156: 0 | U156: 11499.96
A157: 2027-01-12 | B157: 118 | C157: 21944.52073 | D157: 22371.45005 | E157: 22335.71633 | F157: 21377.38633 | G157: 21377.38633 | I157: 958.33 | J157: 11499.96 | K157: =VLOOKUP(($C$28-$C$30)/365.25+9, N_GAD, VLOOKUP($C$35, 'Gilt Yields'!$A$1:$C$23, 2))*($C$148/1000)*1.5 -> 2595.644558 | M157: 118 | N157: 11499.96 | O157: 11499.96 | Q157: 11499.96 | R157: 0 | S157: 0 | U157: 11499.96
A158: 2027-02-12 | B158: 119 | C158: 21377.38633 | D158: 21793.28209 | E158: 21758.47187 | F158: 20800.14187 | G158: 20800.14187 | I158: 958.33 | J158: 11499.96 | K158: =VLOOKUP(($C$28-$C$30)/365.25+9, N_GAD, VLOOKUP($C$35, 'Gilt Yields'!$A$1:$C$23, 2))*($C$148/1000)*1.5 -> 2595.644558 | M158: 119 | N158: 11499.96 | O158: 11499.96 | Q158: 11499.96 | R158: 0 | S158: 0 | U158: 11499.96
A159: 2027-03-12 | B159: 120 | C159: 20800.14187 | D159: 21204.80737 | E159: 21170.93712 | F159: 20212.60712 | G159: 20212.60712 | I159: 958.33 | J159: 11499.96 | K159: =VLOOKUP(($C$28-$C$30)/365.25+9, N_GAD, VLOOKUP($C$35, 'Gilt Yields'!$A$1:$C$23, 2))*($C$148/1000)*1.5 -> 2595.644558 | M159: 120 | N159: 11499.96 | O159: 11499.96 | Q159: 11499.96 | R159: 0 | S159: 0 | U159: 11499.96
A160: 2027-04-12 | B160: 121 | C160: 20212.60712 | D160: 20605.84217 | E160: 20572.92864 | F160: 19614.59864 | G160: 19614.59864 | I160: 958.33 | J160: 11499.96 | K160: =VLOOKUP(($C$28-$C$30)/365.25+9, N_GAD, VLOOKUP($C$35, 'Gilt Yields'!$A$1:$C$23, 2))*($C$148/1000)*1.5 -> 2595.644558 | M160: 121 | N160: 11499.96 | O160: 11499.96 | Q160: 11499.96 | R160: 0 | S160: 0 | U160: 11499.96
A161: 2027-05-12 | B161: 122 | C161: 19614.59864 | D161: 19996.19947 | E161: 19964.25971 | F161: 19005.92971 | G161: 19005.92971 | I161: 958.33 | J161: 11499.96 | K161: =VLOOKUP(($C$28-$C$30)/365.25+9, N_GAD, VLOOKUP($C$35, 'Gilt Yields'!$A$1:$C$23, 2))*($C$148/1000)*1.5 -> 2595.644558 | M161: 122 | N161: 11499.96 | O161: 11499.96 | Q161: 11499.96 | R161: 0 | S161: 0 | U161: 11499.96
A162: 2027-06-12 | B162: 123 | C162: 19005.92971 | D162: 19375.68893 | E162: 19344.74031 | F162: 18386.41031 | G162: 18386.41031 | I162: 958.33 | J162: 11499.96 | K162: =VLOOKUP(($C$28-$C$30)/365.25+9, N_GAD, VLOOKUP($C$35, 'Gilt Yields'!$A$1:$C$23, 2))*($C$148/1000)*1.5 -> 2595.644558 | M162: 123 | N162: 11499.96 | O162: 11499.96 | Q162: 11499.96 | R162: 0 | S162: 0 | U162: 11499.96
A163: 2027-07-12 | B163: 124 | C163: 18386.41031 | D163: 18744.11681 | E163: 18714.17699 | F163: 17755.84699 | G163: 17755.84699 | I163: 958.33 | J163: 11499.96 | K163: =VLOOKUP(($C$28-$C$30)/365.25+9, N_GAD, VLOOKUP($C$35, 'Gilt Yields'!$A$1:$C$23, 2))*($C$148/1000)*1.5 -> 2595.644558 | M163: 124 | N163: 11499.96 | O163: 11499.96 | Q163: 11499.96 | R163: 0 | S163: 0 | U163: 11499.96
A164: 2027-08-12 | B164: 125 | C164: 17755.84699 | D164: 18101.28592 | E164: 18072.3729 | F164: 17114.0429 | G164: 17114.0429 | I164: 958.33 | J164: 11499.96 | K164: =VLOOKUP(($C$28-$C$30)/365.25+9, N_GAD, VLOOKUP($C$35, 'Gilt Yields'!$A$1:$C$23, 2))*($C$148/1000)*1.5 -> 2595.644558 | M164: 125 | N164: 11499.96 | O164: 11499.96 | Q164: 11499.96 | R164: 0 | S164: 0 | U164: 11499.96
A165: 2027-09-12 | B165: 126 | C165: 17114.0429 | D165: 17446.99557 | E165: 17419.12763 | F165: 16460.79763 | G165: 16460.79763 | I165: 958.33 | J165: 11499.96 | K165: =VLOOKUP(($C$28-$C$30)/365.25+9, N_GAD, VLOOKUP($C$35, 'Gilt Yields'!$A$1:$C$23, 2))*($C$148/1000)*1.5 -> 2595.644558 | M165: 126 | N165: 11499.96 | O165: 11499.96 | Q165: 11499.96 | R165: 0 | S165: 0 | U165: 11499.96
A166: 2027-10-12 | B166: 127 | C166: 16460.79763 | D166: 16781.04146 | E166: 16754.23725 | F166: 15795.90725 | G166: 15795.90725 | I166: 958.33 | J166: 11499.96 | K166: =VLOOKUP(($C$28-$C$30)/365.25+9, N_GAD, VLOOKUP($C$35, 'Gilt Yields'!$A$1:$C$23, 2))*($C$148/1000)*1.5 -> 2595.644558 | M166: 127 | N166: 11499.96 | O166: 11499.96 | Q166: 11499.96 | R166: 0 | S166: 0 | U166: 11499.96
A167: 2027-11-12 | B167: 128 | C167: 15795.90725 | D167: 16103.21567 | E167: 16077.49414 | F167: 15119.16414 | G167: 15119.16414 | I167: 958.33 | J167: 11499.96 | K167: =VLOOKUP(($C$28-$C$30)/365.25+9, N_GAD, VLOOKUP($C$35, 'Gilt Yields'!$A$1:$C$23, 2))*($C$148/1000)*1.5 -> 2595.644558 | M167: 128 | N167: 11499.96 | O167: 11499.96 | Q167: 11499.96 | R167: 0 | S167: 0 | U167: 11499.96
A168: 2027-12-12 | B168: 129 | C168: 15119.16414 | D168: =IF(C168>0,C168*(1+$C$36)^(1/12),"") -> 15413.30656 | E168: =IF(C168>0,(D168-($C$32/12))*(1-$C$33)^(1/12),"") -> 15388.68702 | F168: 14430.35702 | G168: =F168 -> 14430.35702 | I168: =E168-F168 -> 958.33 | J168: =I168*12 -> 11499.96 | K168: =VLOOKUP(($C$28-$C$30)/365.25+9, N_GAD, VLOOKUP($C$35, 'Gilt Yields'!$A$1:$C$23, 2))*($C$148/1000)*1.5 -> 2595.644558 | M168: 129 | N168: 11499.96 | O168: 11499.96 | Q168: 11499.96 | R168: 0 | S168: 0 | U168: 11499.96
A169: 2028-01-12 | B169: =B168+1 -> 130 | C169: =IF(B169<=$F$35,G168,0) -> 14430.35702 | D169: 14711.09875 | E169: 14687.60084 | F169: =IF(C169>0,E169-(MIN(U169,K169*50)/12),"") -> 13729.27084 | G169: 13729.27084 | I169: 958.33 | J169: 11499.96 | K169: =VLOOKUP(($C$28-$C$30)/365.25+9, N_GAD, VLOOKUP($C$35, 'Gilt Yields'!$A$1:$C$23, 2))*($C$148/1000)*1.5 -> 2595.644558 | M169: 130 | N169: 11499.96 | O169: 11499.96 | Q169: 11499.96 | R169: 0 | S169: 0 | U169: 11499.96
A170: =EDATE($A$40, B169) -> 2028-02-12 | B170: 131 | C170: 13729.27084 | D170: 13996.37297 | E170: 13974.01669 | F170: 13015.68669 | G170: 13015.68669 | I170: 958.33 | J170: 11499.96 | K170: =VLOOKUP(($C$28-$C$30)/365.25+9, N_GAD, VLOOKUP($C$35, 'Gilt Yields'!$A$1:$C$23, 2))*($C$148/1000)*1.5 -> 2595.644558 | M170: 131 | N170: 11499.96 | O170: =IF(N170=N169, IF(M169/12=INT(M169/12), O169*(1+$O$38), O169), N170) -> 11499.96 | Q170: =IF(M169/12=INT(M169/12), Q169*(1+$O$38), Q169) -> 11499.96 | R170: =IF($M169/12=INT($M169/12), R169*(1+$O$38), R169) -> 0 | S170: =IF($M169/12=INT($M169/12), S169*(1+$O$38), S169) -> 0 | U170: =VLOOKUP(A170, $A$40:$S$795, VLOOKUP(A170, $I$28:$K$30, 3)) -> 11499.96
A171: 2028-03-12 | B171: 132 | C171: 13015.68669 | D171: 13268.90609 | E171: 13247.71178 | F171: 12289.38178 | G171: 12289.38178 | I171: 958.33 | J171: 11499.96 | K171: =VLOOKUP(($C$28-$C$30)/365.25+9, N_GAD, VLOOKUP($C$35, 'Gilt Yields'!$A$1:$C$23, 2))*($C$148/1000)*1.5 -> 2595.644558 | M171: 132 | N171: 11499.96 | O171: 11499.96 | Q171: 11499.96 | R171: 0 | S171: 0 | U171: 11499.96
A172: 2028-04-12 | B172: 133 | C172: 12289.38178 | D172: 12528.47096 | E172: 12508.45934 | F172: 11550.12934 | G172: 11550.12934 | I172: 958.33 | J172: 11499.96 | K172: =VLOOKUP(($C$28-$C$30)/365.25+9, N_GAD, VLOOKUP($C$35, 'Gilt Yields'!$A$1:$C$23, 2))*($C$148/1000)*1.5 -> 2595.644558 | M172: 133 | N172: 11499.96 | O172: 11499.96 | Q172: 11499.96 | R172: 0 | S172: 0 | U172: 11499.96
A173: 2028-05-12 | B173: 134 | C173: 11550.12934 | D173: 11774.83641 | E173: 11756.02856 | F173: 10797.69856 | G173: 10797.69856 | I173: 958.33 | J173: 11499.96 | K173: =VLOOKUP(($C$28-$C$30)/365.25+9, N_GAD, VLOOKUP($C$35, 'Gilt Yields'!$A$1:$C$23, 2))*($C$148/1000)*1.5 -> 2595.644558 | M173: 134 | N173: 11499.96 | O173: 11499.96 | Q173: 11499.96 | R173: 0 | S173: 0 | U173: 11499.96
A174: 2028-06-12 | B174: 135 | C174: 10797.69856 | D174: 11007.76714 | E174: 10990.18453 | F174: 10031.85453 | G174: 10031.85453 | I174: 958.33 | J174: 11499.96 | K174: =VLOOKUP(($C$28-$C$30)/365.25+9, N_GAD, VLOOKUP($C$35, 'Gilt Yields'!$A$1:$C$23, 2))*($C$148/1000)*1.5 -> 2595.644558 | M174: 135 | N174: 11499.96 | O174: 11499.96 | Q174: 11499.96 | R174: 0 | S174: 0 | U174: 11499.96
A175: 2028-07-12 | B175: 136 | C175: 10031.85453 | D175: 10227.02365 | E175: 10210.68811 | F175: 9252.358114 | G175: 9252.358114 | I175: 958.33 | J175: 11499.96 | K175: =VLOOKUP(($C$28-$C$30)/365.25+9, N_GAD, VLOOKUP($C$35, 'Gilt Yields'!$A$1:$C$23, 2))*($C$148/1000)*1.5 -> 2595.644558 | M175: 136 | N175: =VLOOKUP(A175, $I$28:$J$30, 2) -> 11499.96 | O175: 11499.96 | Q175: 11499.96 | R175: 0 | S175: 0 | U175: 11499.96
A176: 2028-08-12 | B176: 137 | C176: 9252.358114 | D176: 9432.362182 | E176: 9417.295952 | F176: 8458.965952 | G176: 8458.965952 | I176: 958.33 | J176: 11499.96 | K176: =VLOOKUP(($C$28-$C$30)/365.25+9, N_GAD, VLOOKUP($C$35, 'Gilt Yields'!$A$1:$C$23, 2))*($C$148/1000)*1.5 -> 2595.644558 | M176: 137 | N176: 11499.96 | O176: 11499.96 | Q176: 11499.96 | R176: 0 | S176: 0 | U176: 11499.96
A177: 2028-09-12 | B177: 138 | C177: 8458.965952 | D177: 8623.534623 | E177: 8609.760327 | F177: 7651.430327 | G177: 7651.430327 | I177: 958.33 | J177: 11499.96 | K177: =VLOOKUP(($C$28-$C$30)/365.25+9, N_GAD, VLOOKUP($C$35, 'Gilt Yields'!$A$1:$C$23, 2))*($C$148/1000)*1.5 -> 2595.644558 | M177: 138 | N177: 11499.96 | O177: 11499.96 | Q177: 11499.96 | R177: 0 | S177: 0 | U177: 11499.96
A178: 2028-10-12 | B178: 139 | C178: 7651.430327 | D178: 7800.288441 | E178: 7787.829108 | F178: 6829.499108 | G178: 6829.499108 | I178: 958.33 | J178: 11499.96 | K178: =VLOOKUP(($C$28-$C$30)/365.25+9, N_GAD, VLOOKUP($C$35, 'Gilt Yields'!$A$1:$C$23, 2))*($C$148/1000)*1.5 -> 2595.644558 | M178: 139 | N178: 11499.96 | O178: 11499.96 | Q178: 11499.96 | R178: 0 | S178: 0 | U178: 11499.96
A179: 2028-11-12 | B179: 140 | C179: 6829.499108 | D179: 6962.3666 | E179: 6951.245673 | F179: 5992.915673 | G179: 5992.915673 | I179: 958.33 | J179: 11499.96 | K179: =VLOOKUP(($C$28-$C$30)/365.25+9, N_GAD, VLOOKUP($C$35, 'Gilt Yields'!$A$1:$C$23, 2))*($C$148/1000)*1.5 -> 2595.644558 | M179: 140 | N179: 11499.96 | O179: 11499.96 | Q179: 11499.96 | R179: 0 | S179: 0 | U179: 11499.96
A180: 2028-12-12 | B180: 141 | C180: 5992.915673 | D180: 6109.507485 | E180: 6099.748822 | F180: 5141.418822 | G180: 5141.418822 | I180: 958.33 | J180: 11499.96 | K180: =VLOOKUP(($C$28-$C$30)/365.25+9, N_GAD, VLOOKUP($C$35, 'Gilt Yields'!$A$1:$C$23, 2))*($C$148/1000)*1.5 -> 2595.644558 | M180: 141 | N180: 11499.96 | O180: 11499.96 | Q180: 11499.96 | R180: 0 | S180: 0 | U180: 11499.96
A181: 2029-01-12 | B181: 142 | C181: 5141.418822 | D181: 5241.444814 | E181: 5233.0727 | F181: 4274.7427 | G181: 4274.7427 | I181: 958.33 | J181: 11499.96 | K181: =VLOOKUP(($C$28-$C$30)/365.25+9, N_GAD, VLOOKUP($C$35, 'Gilt Yields'!$A$1:$C$23, 2))*($C$148/1000)*1.5 -> 2595.644558 | M181: 142 | N181: 11499.96 | O181: 11499.96 | Q181: 11499.96 | R181: 0 | S181: 0 | U181: 11499.96
A182: 2029-02-12 | B182: 143 | C182: 0 | K182: =VLOOKUP(($C$28-$C$30)/365.25+9, N_GAD, VLOOKUP($C$35, 'Gilt Yields'!$A$1:$C$23, 2))*($C$148/1000)*1.5 -> 2595.644558 | M182: 143 | N182: 11499.96 | O182: 11499.96 | Q182: 11499.96 | R182: 0 | S182: 0 | U182: 11499.96
A183: 2029-03-12 | B183: 144 | C183: 0 | K183: =VLOOKUP(($C$28-$C$30)/365.25+12, N_GAD, VLOOKUP($C$35, 'Gilt Yields'!$A$1:$C$23, 2))*($C$148/1000)*1.5 -> 2915.108504 | M183: 144 | N183: 11499.96 | O183: 11499.96 | Q183: 11499.96 | R183: 0 | S183: 0 | U183: 11499.96
A184: 2029-04-12 | B184: 145 | C184: 0 | K184: =VLOOKUP(($C$28-$C$30)/365.25+12, N_GAD, VLOOKUP($C$35, 'Gilt Yields'!$A$1:$C$23, 2))*($C$184/1000)*1.5 -> 0 | M184: 145 | N184: 11499.96 | O184: 11499.96 | Q184: 11499.96 | R184: 0 | S184: 0 | U184: 11499.96
A185: 2029-05-12 | B185: 146 | C185: 0 | K185: =VLOOKUP(($C$28-$C$30)/365.25+12, N_GAD, VLOOKUP($C$35, 'Gilt Yields'!$A$1:$C$23, 2))*($C$184/1000)*1.5 -> 0 | M185: 146 | N185: 11499.96 | O185: 11499.96 | Q185: 11499.96 | R185: 0 | S185: 0 | U185: 11499.96
A186: 2029-06-12 | B186: 147 | C186: 0 | K186: =VLOOKUP(($C$28-$C$30)/365.25+12, N_GAD, VLOOKUP($C$35, 'Gilt Yields'!$A$1:$C$23, 2))*($C$184/1000)*1.5 -> 0 | M186: 147 | N186: 11499.96 | O186: 11499.96 | Q186: 11499.96 | R186: 0 | S186: 0 | U186: 11499.96
A187: 2029-07-12 | B187: 148 | C187: 0 | K187: =VLOOKUP(($C$28-$C$30)/365.25+12, N_GAD, VLOOKUP($C$35, 'Gilt Yields'!$A$1:$C$23, 2))*($C$184/1000)*1.5 -> 0 | M187: 148 | N187: 11499.96 | O187: 11499.96 | Q187: 11499.96 | R187: 0 | S187: 0 | U187: 11499.96
A188: 2029-08-12 | B188: 149 | C188: 0 | K188: =VLOOKUP(($C$28-$C$30)/365.25+12, N_GAD, VLOOKUP($C$35, 'Gilt Yields'!$A$1:$C$23, 2))*($C$184/1000)*1.5 -> 0 | M188: 149 | N188: 11499.96 | O188: 11499.96 | Q188: 11499.96 | R188: 0 | S188: 0 | U188: 11499.96
A189: 2029-09-12 | B189: 150 | C189: 0 | K189: =VLOOKUP(($C$28-$C$30)/365.25+12, N_GAD, VLOOKUP($C$35, 'Gilt Yields'!$A$1:$C$23, 2))*($C$184/1000)*1.5 -> 0 | M189: 150 | N189: 11499.96 | O189: 11499.96 | Q189: 11499.96 | R189: 0 | S189: 0 | U189: 11499.96
A190: 2029-10-12 | B190: 151 | C190: 0 | K190: =VLOOKUP(($C$28-$C$30)/365.25+12, N_GAD, VLOOKUP($C$35, 'Gilt Yields'!$A$1:$C$23, 2))*($C$184/1000)*1.5 -> 0 | M190: 151 | N190: 11499.96 | O190: 11499.96 | Q190: 11499.96 | R190: 0 | S190: 0 | U190: 11499.96
A191: 2029-11-12 | B191: 152 | C191: 0 | K191: =VLOOKUP(($C$28-$C$30)/365.25+12, N_GAD, VLOOKUP($C$35, 'Gilt Yields'!$A$1:$C$23, 2))*($C$184/1000)*1.5 -> 0 | M191: 152 | N191: 11499.96 | O191: 11499.96 | Q191: 11499.96 | R191: 0 | S191: 0 | U191: 11499.96
A192: 2029-12-12 | B192: 153 | C192: 0 | K192: =VLOOKUP(($C$28-$C$30)/365.25+12, N_GAD, VLOOKUP($C$35, 'Gilt Yields'!$A$1:$C$23, 2))*($C$184/1000)*1.5 -> 0 | M192: 153 | N192: 11499.96 | O192: 11499.96 | Q192: 11499.96 | R192: 0 | S192: 0 | U192: 11499.96
A193: 2030-01-12 | B193: 154 | C193: 0 | K193: =VLOOKUP(($C$28-$C$30)/365.25+12, N_GAD, VLOOKUP($C$35, 'Gilt Yields'!$A$1:$C$23, 2))*($C$184/1000)*1.5 -> 0 | M193: 154 | N193: 11499.96 | O193: 11499.96 | Q193: 11499.96 | R193: 0 | S193: 0 | U193: 11499.96
A194: 2030-02-12 | B194: 155 | C194: 0 | K194: =VLOOKUP(($C$28-$C$30)/365.25+12, N_GAD, VLOOKUP($C$35, 'Gilt Yields'!$A$1:$C$23, 2))*($C$184/1000)*1.5 -> 0 | M194: 155 | N194: 11499.96 | O194: 11499.96 | Q194: 11499.96 | R194: 0 | S194: 0 | U194: 11499.96
A195: 2030-03-12 | B195: 156 | C195: 0 | K195: =VLOOKUP(($C$28-$C$30)/365.25+12, N_GAD, VLOOKUP($C$35, 'Gilt Yields'!$A$1:$C$23, 2))*($C$184/1000)*1.5 -> 0 | M195: 156 | N195: 11499.96 | O195: 11499.96 | Q195: 11499.96 | R195: 0 | S195: 0 | U195: 11499.96
A196: 2030-04-12 | B196: 157 | C196: 0 | K196: =VLOOKUP(($C$28-$C$30)/365.25+12, N_GAD, VLOOKUP($C$35, 'Gilt Yields'!$A$1:$C$23, 2))*($C$184/1000)*1.5 -> 0 | M196: 157 | N196: 11499.96 | O196: 11499.96 | Q196: 11499.96 | R196: 0 | S196: 0 | U196: 11499.96
A197: 2030-05-12 | B197: 158 | C197: 0 | K197: =VLOOKUP(($C$28-$C$30)/365.25+12, N_GAD, VLOOKUP($C$35, 'Gilt Yields'!$A$1:$C$23, 2))*($C$184/1000)*1.5 -> 0 | M197: 158 | N197: 11499.96 | O197: 11499.96 | Q197: 11499.96 | R197: 0 | S197: 0 | U197: 11499.96
A198: 2030-06-12 | B198: 159 | C198: 0 | K198: =VLOOKUP(($C$28-$C$30)/365.25+12, N_GAD, VLOOKUP($C$35, 'Gilt Yields'!$A$1:$C$23, 2))*($C$184/1000)*1.5 -> 0 | M198: 159 | N198: 11499.96 | O198: 11499.96 | Q198: 11499.96 | R198: 0 | S198: 0 | U198: 11499.96
A199: 2030-07-12 | B199: 160 | C199: 0 | K199: =VLOOKUP(($C$28-$C$30)/365.25+12, N_GAD, VLOOKUP($C$35, 'Gilt Yields'!$A$1:$C$23, 2))*($C$184/1000)*1.5 -> 0 | M199: 160 | N199: 11499.96 | O199: 11499.96 | Q199: 11499.96 | R199: 0 | S199: 0 | U199: 11499.96
A200: 2030-08-12 | B200: 161 | C200: 0 | K200: =VLOOKUP(($C$28-$C$30)/365.25+12, N_GAD, VLOOKUP($C$35, 'Gilt Yields'!$A$1:$C$23, 2))*($C$184/1000)*1.5 -> 0 | M200: 161 | N200: 11499.96 | O200: 11499.96 | Q200: 11499.96 | R200: 0 | S200: 0 | U200: 11499.96
A201: 2030-09-12 | B201: 162 | C201: 0 | K201: =VLOOKUP(($C$28-$C$30)/365.25+12, N_GAD, VLOOKUP($C$35, 'Gilt Yields'!$A$1:$C$23, 2))*($C$184/1000)*1.5 -> 0 | M201: 162 | N201: 11499.96 | O201: 11499.96 | Q201: 11499.96 | R201: 0 | S201: 0 | U201: 11499.96
A202: 2030-10-12 | B202: 163 | C202: 0 | K202: =VLOOKUP(($C$28-$C$30)/365.25+12, N_GAD, VLOOKUP($C$35, 'Gilt Yields'!$A$1:$C$23, 2))*($C$184/1000)*1.5 -> 0 | M202: 163 | N202: 11499.96 | O202: 11499.96 | Q202: 11499.96 | R202: 0 | S202: 0 | U202: 11499.96
A203: 2030-11-12 | B203: 164 | C203: 0 | K203: =VLOOKUP(($C$28-$C$30)/365.25+12, N_GAD, VLOOKUP($C$35, 'Gilt Yields'!$A$1:$C$23, 2))*($C$184/1000)*1.5 -> 0 | M203: 164 | N203: 11499.96 | O203: 11499.96 | Q203: 11499.96 | R203: 0 | S203: 0 | U203: 11499.96
A204: 2030-12-12 | B204: 165 | C204: 0 | K204: =VLOOKUP(($C$28-$C$30)/365.25+12, N_GAD, VLOOKUP($C$35, 'Gilt Yields'!$A$1:$C$23, 2))*($C$184/1000)*1.5 -> 0 | M204: 165 | N204: 11499.96 | O204: 11499.96 | Q204: 11499.96 | R204: 0 | S204: 0 | U204: 11499.96
A205: 2031-01-12 | B205: 166 | C205: 0 | K205: =VLOOKUP(($C$28-$C$30)/365.25+12, N_GAD, VLOOKUP($C$35, 'Gilt Yields'!$A$1:$C$23, 2))*($C$184/1000)*1.5 -> 0 | M205: 166 | N205: 11499.96 | O205: 11499.96 | Q205: 11499.96 | R205: 0 | S205: 0 | U205: 11499.96
... 590 more rows

Sheet Version (hidden)
A1: Version Control
A3: Current version | B3: v12
A5: Version | B5: Effective date | C5: Change details
A6: v1 | B6: Unknown | C6: Any version prior to v1a
A7: v1a | B7: 2005-10-17 | C7: Version control added:
C9: v1a, v1b etc correspond to pre Pension Simplifcation and the latest version will be used upto 6th April 2006.
C10: v2a, v2b etc is the Act EB version only and should never be used to quote.
C11: v3, v4, v5 etc will contain the Pension Simplification changes and will be effective from 6th April 2006.
A13: V3 | B13: 2006-04-05 | C13: Interest Rate changed to 0.6 from April 2006
A14: v3 | B14: 2006-04-05 | C14: FSA age diff rule on Inputs C25 for spouse DOB changed by P Baylis checked by Tim Ward
A15: v4 | B15: 2006-06-01 | C15: The calculation for the Pension after TaxFreeCash has been changed to allow for widow's pension to be commuted too. This was originally not allowed. The original formula in cell G25 on Annuity Inputs was:
J16: =((I_Fund-i_TFC)-spouse_COF*#REF!)/single_COF -> 
A17: v5 | B17: 2007-04-06 | C17: Annuity Interest Rate updated (changed to 0.8 from 06/04/2007)
C18: A copy of this spreadsheet is also now on our pulse site (in the back ground, there are no links to it) as part of the Variable Annuity Program, you can only open it through the VA program or using a password, it should be updated whenever this copy is. The link to the program is:
C19: http://yorkintranet/fin_act/actuarial_eb/Programs/FSAandSMPI.xls
A20: v6 | B20: 2008-04-06 | C20: Annuity Interest Rate updated (changed to 0.6 from 06/04/2008)
A21: v7 | B21: 2009-04-06 | C21: Annuity Interest Rate updated (remained at 0.6 from 06/04/2009)
A22: v8 | B22: 2010-04-06 | C22: Annuity Interest Rate updated (changed to 0.4 from 06/04/2010)
A23: v9 | B23: 2011-02-25 | C23: Added functionality for 4th projection rate
A24: v10 | B24: 2011-04-06 | C24: Annuity Interest Rate updated (changed to 0.2 from 06/04/2011)
A25: v11 | B25: 2012-04-06 | C25: Annuity Interest Rate added ( -0.6% from 06/04/2012); Mortality table added (PCA00) for SMPIs from 06/04/2012 only; No calc of PR benefits post-06/04/2012
A26: v12 | B26: 2012-11-26 | C26: Mortality table added (PCA00_FSA_blend) for FSA-basis EMVs, TVQs, PSIs & KFIs from 26/11/2012 (date of release 52 on Intraquotes)
A27: v13 | B27: 2013-02-26 | C27: Annuity Interest Rate added ( -0.6% from 06/04/2013); Mortality table added (PCA00_CMI_2012) for SMPIs and FSA-basis quotes from 06/04/2013
A28: v13.1 | B28: 2013-03-12 | C28: Fixed formula so that any spouse DOB can be used and it will assume spouse is exactly 3 years younger/older depending on whether policyholder is male/female.
A29: v14 | B29: 2014-02-18 | C29: Annuity Interest Rate added ( -0.4% from 06/04/2014); Mortality table added (PCA00_CMI_2013) for SMPIs and FSA-basis quotes from 06/04/2014.
A30: v15 | B30: 2015-02-16 | C30: Annuity Interest Rate added ( -1.2% from 06/04/2015); Mortality table added (PCA00_CMI_2014) for SMPIs and FCA-basis quotes from 06/04/2015.

Sheet PMA92 (hidden)
A1: Standard Tales Program | D1: Hash | E1: 5933886A/v3.0
A2: =======================
A4: Tale x | B4: PMA92 | C4: none
A6: Interest | B6: 0.00% | C6: Date | D6: 06-Jun-02 9:53 AM
A10: Age!x | B10: l{x} | C10: l{x} | D10: l{x} | E10: l{x} | F10: l{x} | G10: l{x} | H10: l{x} | I10: l{x} | J10: l{x} | K10: l{x} | L10: l{x} | M10: l{x} | N10: l{x} | O10: l{x} | P10: l{x} | Q10: l{x} | R10: l{x} | S10: l{x} | T10: l{x} | U10: l{x} | V10: l{x} | W10: l{x} | X10: l{x} | Y10: l{x} | Z10: l{x} | AA10: l{x} | AB10: l{x} | AC10: l{x} | AD10: l{x} | AE10: l{x} | AF10: l{x} | AG10: l{x} | AH10: l{x} | AI10: l{x} | AJ10: l{x} | AK10: l{x} | AL10: l{x} | AM10: l{x} | AN10: l{x} | AO10: l{x} | AP10: l{x} | AQ10: l{x} | AR10: l{x} | AS10: l{x} | AT10: l{x} | AU10: l{x} | AV10: l{x} | AW10: l{x} | AX10: l{x} | AY10: l{x} | AZ10: l{x} | BA10: l{x} | BB10: l{x} | BC10: l{x} | BD10: l{x} | BE10: l{x} | BF10: l{x} | BG10: l{x} | BH10: l{x} | BI10: l{x} | BJ10: l{x} | BK10: l{x} | BL10: l{x} | BM10: l{x} | BN10: l{x} | BO10: l{x} | BP10: l{x} | BQ10: l{x} | BR10: l{x} | BS10: l{x} | BT10: l{x} | BU10: l{x} | BV10: l{x} | BW10: l{x} | BX10: l{x} | BY10: l{x} | BZ10: l{x} | CA10: l{x} | CB10: l{x} | CC10: l{x} | CD10: l{x} | CE10: l{x} | CF10: l{x} | CG10: l{x} | CH10: l{x} | CI10: l{x} | CJ10: l{x} | CK10: l{x} | CL10: l{x} | CM10: l{x} | CN10: l{x} | CO10: l{x} | CP10: l{x} | CQ10: l{x} | CR10: l{x} | CS10: l{x} | CT10: l{x} | CU10: l{x} | CV10: Age!x
B11: =1925 -> 1925 | C11: =1926 -> 1926 | D11: =1927 -> 1927 | E11: =1928 -> 1928 | F11: =1929 -> 1929 | G11: =1930 -> 1930 | H11: =1931 -> 1931 | I11: =1932 -> 1932 | J11: =1933 -> 1933 | K11: =1934 -> 1934 | L11: =1935 -> 1935 | M11: =1936 -> 1936 | N11: =1937 -> 1937 | O11: =1938 -> 1938 | P11: =1939 -> 1939 | Q11: =1940 -> 1940 | R11: =1941 -> 1941 | S11: =1942 -> 1942 | T11: =1943 -> 1943 | U11: =1944 -> 1944 | V11: =1945 -> 1945 | W11: =1946 -> 1946 | X11: =1947 -> 1947 | Y11: =1948 -> 1948 | Z11: =1949 -> 1949 | AA11: =1950 -> 1950 | AB11: =1951 -> 1951 | AC11: =1952 -> 1952 | AD11: =1953 -> 1953 | AE11: =1954 -> 1954 | AF11: =1955 -> 1955 | AG11: =1956 -> 1956 | AH11: =1957 -> 1957 | AI11: =1958 -> 1958 | AJ11: =1959 -> 1959 | AK11: =1960 -> 1960 | AL11: =1961 -> 1961 | AM11: =1962 -> 1962 | AN11: =1963 -> 1963 | AO11: =1964 -> 1964 | AP11: =1965 -> 1965 | AQ11: =1966 -> 1966 | AR11: =1967 -> 1967 | AS11: =1968 -> 1968 | AT11: =1969 -> 1969 | AU11: =1970 -> 1970 | AV11: =1971 -> 1971 | AW11: =1972 -> 1972 | AX11: =1973 -> 1973 | AY11: =1974 -> 1974 | AZ11: =1975 -> 1975 | BA11: =1976 -> 1976 | BB11: =1977 -> 1977 | BC11: =1978 -> 1978 | BD11: =1979 -> 1979 | BE11: =1980 -> 1980 | BF11: =1981 -> 1981 | BG11: =1982 -> 1982 | BH11: =1983 -> 1983 | BI11: =1984 -> 1984 | BJ11: =1985 -> 1985 | BK11: =1986 -> 1986 | BL11: =1987 -> 1987 | BM11: =1988 -> 1988 | BN11: =1989 -> 1989 | BO11: =1990 -> 1990 | BP11: =1991 -> 1991 | BQ11: =1992 -> 1992 | BR11: =1993 -> 1993 | BS11: =1994 -> 1994 | BT11: =1995 -> 1995 | BU11: =1996 -> 1996 | BV11: =1997 -> 1997 | BW11: =1998 -> 1998 | BX11: =1999 -> 1999 | BY11: =2000 -> 2000 | BZ11: =2001 -> 2001 | CA11: =2002 -> 2002 | CB11: =2003 -> 2003 | CC11: =2004 -> 2004 | CD11: =2005 -> 2005 | CE11: =2006 -> 2006 | CF11: =2007 -> 2007 | CG11: =2008 -> 2008 | CH11: =2009 -> 2009 | CI11: =2010 -> 2010 | CJ11: =2011 -> 2011 | CK11: =2012 -> 2012 | CL11: =2013 -> 2013 | CM11: =2014 -> 2014 | CN11: =2015 -> 2015 | CO11: =2016 -> 2016 | CP11: =2017 -> 2017 | CQ11: =2018 -> 2018 | CR11: =2019 -> 2019 | CS11: =2020 -> 2020 | CT11: =2021 -> 2021 | CU11: =2022 -> 2022
A12: 20 | AW12: 10000 | AX12: 10000 | AY12: 10000 | AZ12: 10000 | BA12: 10000 | BB12: 10000 | BC12: 10000 | BD12: 10000 | BE12: 10000 | BF12: 10000 | BG12: 10000 | BH12: 10000 | BI12: 10000 | BJ12: 10000 | BK12: 10000 | BL12: 10000 | BM12: 10000 | BN12: 10000 | BO12: 10000 | BP12: 10000 | BQ12: 10000 | BR12: 10000 | BS12: 10000 | BT12: 10000 | BU12: 10000 | BV12: 10000 | BW12: 10000 | BX12: 10000 | BY12: 10000 | BZ12: 10000 | CA12: 10000 | CB12: 10000 | CC12: 10000 | CD12: 10000 | CE12: 10000 | CF12: 10000 | CG12: 10000 | CH12: 10000 | CI12: 10000 | CJ12: 10000 | CK12: 10000 | CL12: 10000 | CM12: 10000 | CN12: 10000 | CO12: 10000 | CP12: 10000 | CQ12: 10000 | CR12: 10000 | CS12: 10000 | CT12: 10000 | CU12: 10000 | CV12: 20
